Workbook

Sheet Symbols
D2: =IF(Symbols!D4="B","B",IF(Symbols!D4=0,0,IF(Symbols!D4=1,"#.0",IF(Symbols!D4=2,"#.00",IF(Symbols!D4=3,"#.000",IF(Symbols!D4=4,"#.0000",IF(Symbols!D4=5,"#.00000",IF(Symbols!D4=6,"#.000000")))))))) -> #.00 | E2: =IF(Symbols!E4="B","B",IF(Symbols!E4=0,0,IF(Symbols!E4=1,"#.0",IF(Symbols!E4=2,"#.00",IF(Symbols!E4=3,"#.000",IF(Symbols!E4=4,"#.0000",IF(Symbols!E4=5,"#.00000",IF(Symbols!E4=6,"#.000000")))))))) -> 0 | F2: =IF(Symbols!F4="B","B",IF(Symbols!F4=0,0,IF(Symbols!F4=1,"#.0",IF(Symbols!F4=2,"#.00",IF(Symbols!F4=3,"#.000",IF(Symbols!F4=4,"#.0000",IF(Symbols!F4=5,"#.00000",IF(Symbols!F4=6,"#.000000")))))))) -> #.00 | G2: =IF(Symbols!G4="B","B",IF(Symbols!G4=0,0,IF(Symbols!G4=1,"#.0",IF(Symbols!G4=2,"#.00",IF(Symbols!G4=3,"#.000",IF(Symbols!G4=4,"#.0000",IF(Symbols!G4=5,"#.00000",IF(Symbols!G4=6,"#.000000")))))))) -> #.00 | H2: =IF(Symbols!H4="B","B",IF(Symbols!H4=0,0,IF(Symbols!H4=1,"#.0",IF(Symbols!H4=2,"#.00",IF(Symbols!H4=3,"#.000",IF(Symbols!H4=4,"#.0000",IF(Symbols!H4=5,"#.00000",IF(Symbols!H4=6,"#.000000")))))))) -> #.00 | I2: =IF(Symbols!I4="B","B",IF(Symbols!I4=0,0,IF(Symbols!I4=1,"#.0",IF(Symbols!I4=2,"#.00",IF(Symbols!I4=3,"#.000",IF(Symbols!I4=4,"#.0000",IF(Symbols!I4=5,"#.00000",IF(Symbols!I4=6,"#.000000")))))))) -> #.00 | J2: =IF(Symbols!J4="B","B",IF(Symbols!J4=0,0,IF(Symbols!J4=1,"#.0",IF(Symbols!J4=2,"#.00",IF(Symbols!J4=3,"#.000",IF(Symbols!J4=4,"#.0000",IF(Symbols!J4=5,"#.00000",IF(Symbols!J4=6,"#.000000")))))))) -> #.000 | K2: =IF(Symbols!K4="B","B",IF(Symbols!K4=0,0,IF(Symbols!K4=1,"#.0",IF(Symbols!K4=2,"#.00",IF(Symbols!K4=3,"#.000",IF(Symbols!K4=4,"#.0000",IF(Symbols!K4=5,"#.00000",IF(Symbols!K4=6,"#.000000")))))))) -> #.000 | L2: =IF(Symbols!L4="B","B",IF(Symbols!L4=0,0,IF(Symbols!L4=1,"#.0",IF(Symbols!L4=2,"#.00",IF(Symbols!L4=3,"#.000",IF(Symbols!L4=4,"#.0000",IF(Symbols!L4=5,"#.00000",IF(Symbols!L4=6,"#.000000")))))))) -> B | M2: =IF(Symbols!M4="B","B",IF(Symbols!M4=0,0,IF(Symbols!M4=1,"#.0",IF(Symbols!M4=2,"#.00",IF(Symbols!M4=3,"#.000",IF(Symbols!M4=4,"#.0000",IF(Symbols!M4=5,"#.00000",IF(Symbols!M4=6,"#.000000")))))))) -> #.00 | N2: =IF(Symbols!N4="B","B",IF(Symbols!N4=0,0,IF(Symbols!N4=1,"#.0",IF(Symbols!N4=2,"#.00",IF(Symbols!N4=3,"#.000",IF(Symbols!N4=4,"#.0000",IF(Symbols!N4=5,"#.00000",IF(Symbols!N4=6,"#.000000")))))))) -> 0
B3: Symbols | D3: DD | E3: DSX | F3: QFA | G3: PIL | H3: CLE | I3: HOE | J3: RBE | K3: NGE | L3: TYA | M3: PLE
C4: Decimals | D4: 2 | E4: 0 | F4: 2 | G4: 2 | H4: 2 | I4: 2 | J4: 3 | K4: 3 | L4: B | M4: 2
B5: EP | C5: 2 | D5: =IF(Symbols!C5="B","B",IF(Symbols!C5=0,0,IF(Symbols!C5=1,"#.0",IF(Symbols!C5=2,"#.00",IF(Symbols!C5=3,"#.000",IF(Symbols!C5=4,"#.0000",IF(Symbols!C5=5,"#.00000",IF(Symbols!C5=6,"#.000000")))))))) -> #.00
B6: ENQ | C6: 2 | D6: =IF(Symbols!C6="B","B",IF(Symbols!C6=0,0,IF(Symbols!C6=1,"#.0",IF(Symbols!C6=2,"#.00",IF(Symbols!C6=3,"#.000",IF(Symbols!C6=4,"#.0000",IF(Symbols!C6=5,"#.00000",IF(Symbols!C6=6,"#.000000")))))))) -> #.00 | E6: Enter in, using all capitals, the symbols in the column to the left for the symbols in the first column of the Correlation matrix. This will also be the top row
B7: EMD | C7: 2 | D7: =IF(Symbols!C7="B","B",IF(Symbols!C7=0,0,IF(Symbols!C7=1,"#.0",IF(Symbols!C7=2,"#.00",IF(Symbols!C7=3,"#.000",IF(Symbols!C7=4,"#.0000",IF(Symbols!C7=5,"#.00000",IF(Symbols!C7=6,"#.000000")))))))) -> #.00 | E7: of market information on the main display. For price formatting, enter in the number of decimals or B for bonds and grains.
B8: GCE | C8: 2 | D8: =IF(Symbols!C8="B","B",IF(Symbols!C8=0,0,IF(Symbols!C8=1,"#.0",IF(Symbols!C8=2,"#.00",IF(Symbols!C8=3,"#.000",IF(Symbols!C8=4,"#.0000",IF(Symbols!C8=5,"#.00000",IF(Symbols!C8=6,"#.000000")))))))) -> #.00
B9: DXE | C9: 2 | D9: =IF(Symbols!C9="B","B",IF(Symbols!C9=0,0,IF(Symbols!C9=1,"#.0",IF(Symbols!C9=2,"#.00",IF(Symbols!C9=3,"#.000",IF(Symbols!C9=4,"#.0000",IF(Symbols!C9=5,"#.00000",IF(Symbols!C9=6,"#.000000")))))))) -> #.00 | E9: Enter in, using all capitals, the symbols in the the top row above for the symbols along the top of the Correlation matrix. This will also be the bottom row
B10: EU6 | C10: 4 | D10: =IF(Symbols!C10="B","B",IF(Symbols!C10=0,0,IF(Symbols!C10=1,"#.0",IF(Symbols!C10=2,"#.00",IF(Symbols!C10=3,"#.000",IF(Symbols!C10=4,"#.0000",IF(Symbols!C10=5,"#.00000",IF(Symbols!C10=6,"#.000000")))))))) -> #.0000 | E10: of market information on the main display. Enter in the number of decimals or B for bonds and grains.
B11: JY6 | C11: 6 | D11: =IF(Symbols!C11="B","B",IF(Symbols!C11=0,0,IF(Symbols!C11=1,"#.0",IF(Symbols!C11=2,"#.00",IF(Symbols!C11=3,"#.000",IF(Symbols!C11=4,"#.0000",IF(Symbols!C11=5,"#.00000",IF(Symbols!C11=6,"#.000000")))))))) -> #.000000
B12: DA6 | C12: 4 | D12: =IF(Symbols!C12="B","B",IF(Symbols!C12=0,0,IF(Symbols!C12=1,"#.0",IF(Symbols!C12=2,"#.00",IF(Symbols!C12=3,"#.000",IF(Symbols!C12=4,"#.0000",IF(Symbols!C12=5,"#.00000",IF(Symbols!C12=6,"#.000000")))))))) -> #.0000 | E12: Click the "Chart" toolbar button on the Correlation matrix on the main display to change the scattergram chart to display
B13: BP6 | C13: 4 | D13: =IF(Symbols!C13="B","B",IF(Symbols!C13=0,0,IF(Symbols!C13=1,"#.0",IF(Symbols!C13=2,"#.00",IF(Symbols!C13=3,"#.000",IF(Symbols!C13=4,"#.0000",IF(Symbols!C13=5,"#.00000",IF(Symbols!C13=6,"#.000000")))))))) -> #.0000 | E13: that row of correlation values relative to the market in the same row listed in the first column.
B14: MX6 | C14: 6 | D14: =IF(Symbols!C14="B","B",IF(Symbols!C14=0,0,IF(Symbols!C14=1,"#.0",IF(Symbols!C14=2,"#.00",IF(Symbols!C14=3,"#.000",IF(Symbols!C14=4,"#.0000",IF(Symbols!C14=5,"#.00000",IF(Symbols!C14=6,"#.000000")))))))) -> #.000000
E15: Enter in the time frame and look back period for the correlation analysis. Use ADC for daily bars.

Sheet MainDisplay
E1: =IF(N32=$N$12,R12,IF(N32=$N$14,R14,IF(N32=$N$16,R16,IF(N32=$N$18,R18,IF(N32=$N$20,R20,IF(N32=$N$22,R22,IF(N32=$N$24,R24,IF(N32=$N$26,R26,IF(N32=$N$28,R28,IF(N32=$N$30,R30)))))))))) -> EP | S1: =Data!C2 -> DD | U1: =Data!D2 -> DSX | V1: =Data!E2 -> QFA | X1: =Data!F2 -> PIL | Y1: =Data!G2 -> CLE | AA1: =Data!H2 -> HOE | AB1: =Data!I2 -> RBE | AD1: =Data!J2 -> NGE | AE1: =Data!K2 -> TYA | AG1: =Data!L2 -> PLE
B2: 15 | C2: 15 | I2: CQG Correlation Dashboard | AE2: =RTD("cqg.rtd", ,"SystemInfo", "Linetime") -> 42500.4177
C3: 65
A4: =INDIRECT("Data!H"&$B$2) -> 0 | B4: =INDIRECT("Data!J"&$B$2) -> 0 | C4: =INDIRECT("Data!K"&$B$2) -> 0 | D4: =INDIRECT("Data!L"&$B$2) -> 0 | E4: =RTD("cqg.rtd", ,"ContractData",Symbols!B5, "LongDescription",, "T") -> E-Mini S&P 500, Jun 16 | H4: =RTD("cqg.rtd", ,"ContractData",Symbols!B6, "LongDescription",, "T") -> E-mini NASDAQ-100, Jun 16 | K4: =RTD("cqg.rtd", ,"ContractData",Symbols!B7, "LongDescription",, "T") -> E-mini MidCap 400, Jun 16 | N4: =RTD("cqg.rtd", ,"ContractData",Symbols!B8, "LongDescription",, "T") -> Gold (Globex), Jun 16 | Q4: =RTD("cqg.rtd", ,"ContractData",Symbols!B9, "LongDescription",, "T") -> Dollar Index (ICE), Jun 16 | T4: =RTD("cqg.rtd", ,"ContractData",Symbols!B10, "LongDescription",, "T") -> Euro FX (Globex), Jun 16 | W4: =RTD("cqg.rtd", ,"ContractData",Symbols!B11, "LongDescription",, "T") -> Japanese Yen (Globex), Jun 16 | Z4: =RTD("cqg.rtd", ,"ContractData",Symbols!B12, "LongDescription",, "T") -> Australian Dollar (Globex), Jun 16 | AC4: =RTD("cqg.rtd", ,"ContractData",Symbols!B13, "LongDescription",, "T") -> British Pound (Globex), Jun 16 | AF4: =RTD("cqg.rtd", ,"ContractData",Symbols!B14, "LongDescription",, "T") -> Mexican Peso (Globex), Jun 16
A5: =INDIRECT("Data!H"&$B$2+1) -> 0 | B5: =INDIRECT("Data!J"&$B$2+1) -> 0 | C5: =INDIRECT("Data!K"&$B$2+1) -> 0 | D5: =INDIRECT("Data!L"&$B$2+1) -> 0 | E5: =IF(Symbols!C5="B",RTD("cqg.rtd",,"ContractData",Symbols!B5,"LastTrade",,"B"),TEXT(RTD("cqg.rtd",,"ContractData",Symbols!B5,"LastTrade",,"T"),Symbols!D5)) -> 2071.75 | H5: =IF(Symbols!C6="B",RTD("cqg.rtd",,"ContractData",Symbols!B6,"LastTrade",,"B"),TEXT(RTD("cqg.rtd",,"ContractData",Symbols!B6,"LastTrade",,"T"),Symbols!D6)) -> 4371.50 | K5: =IF(Symbols!C7="B",RTD("cqg.rtd",,"ContractData",Symbols!B7,"LastTrade",,"B"),TEXT(RTD("cqg.rtd",,"ContractData",Symbols!B7,"LastTrade",,"T"),Symbols!D7)) -> 1459.50 | N5: =IF(Symbols!C8="B",RTD("cqg.rtd",,"ContractData",Symbols!B8,"LastTrade",,"B"),TEXT(RTD("cqg.rtd",,"ContractData",Symbols!B8,"LastTrade",,"T"),Symbols!D8)) -> 1262.30 | Q5: =IF(Symbols!C9="B",RTD("cqg.rtd",,"ContractData",Symbols!B9,"LastTrade",,"B"),TEXT(RTD("cqg.rtd",,"ContractData",Symbols!B9,"LastTrade",,"T"),Symbols!D9)) -> 94.11 | T5: =IF(Symbols!C10="B",RTD("cqg.rtd",,"ContractData",Symbols!B10,"LastTrade",,"B"),TEXT(RTD("cqg.rtd",,"ContractData",Symbols!B10,"LastTrade",,"T"),Symbols!D10)) -> 1.1404 | W5: =IF(Symbols!C11="B",RTD("cqg.rtd",,"ContractData",Symbols!B11,"LastTrade",,"B"),TEXT(RTD("cqg.rtd",,"ContractData",Symbols!B11,"LastTrade",,"T"),Symbols!D11)) -> .009176 | Z5: =IF(Symbols!C12="B",RTD("cqg.rtd",,"ContractData",Symbols!B12,"LastTrade",,"B"),TEXT(RTD("cqg.rtd",,"ContractData",Symbols!B12,"LastTrade",,"T"),Symbols!D12)) -> .7359 | AC5: =IF(Symbols!C13="B",RTD("cqg.rtd",,"ContractData",Symbols!B13,"LastTrade",,"B"),TEXT(RTD("cqg.rtd",,"ContractData",Symbols!B13,"LastTrade",,"T"),Symbols!D13)) -> 1.4470 | AF5: =IF(Symbols!C14="B",RTD("cqg.rtd",,"ContractData",Symbols!B14,"LastTrade",,"B"),TEXT(RTD("cqg.rtd",,"ContractData",Symbols!B14,"LastTrade",,"T"),Symbols!D14)) -> .055400
A6: =INDIRECT("Data!H"&$B$2+2) -> 0 | B6: =INDIRECT("Data!J"&$B$2+2) -> 0 | C6: =INDIRECT("Data!K"&$B$2+2) -> 0 | D6: =INDIRECT("Data!L"&$B$2+2) -> 0
A7: =INDIRECT("Data!H"&$B$2+3) -> 0 | B7: =INDIRECT("Data!J"&$B$2+3) -> 0 | C7: =INDIRECT("Data!K"&$B$2+3) -> 0 | D7: =INDIRECT("Data!L"&$B$2+3) -> 0 | E7: H: | F7: =IF(Symbols!C5="B",RTD("cqg.rtd",,"ContractData",Symbols!B5,"High",,"B"),TEXT(RTD("cqg.rtd",,"ContractData",Symbols!B5,"High",,"T"),Symbols!D5)) -> 2072.75 | G7: =IF(Symbols!C5="B",RTD("cqg.rtd",,"ContractData",Symbols!B5,"NetLastQuoteToday",,"B"),IF(RTD("cqg.rtd",,"ContractData",Symbols!B5,"NetLastQuoteToday",,"T")>0,"+"&TEXT(RTD("cqg.rtd",,"ContractData",Symbols!B5,"NetLastQuoteToday",,"T"),Symbols!D5),TEXT(RTD("cqg.rtd",,"ContractData",Symbols!B5,"NetLastQuoteToday",,"T"),Symbols!D5))) -> +17.25 | H7: H: | I7: =IF(Symbols!C6="B",RTD("cqg.rtd",,"ContractData",Symbols!B6,"High",,"B"),TEXT(RTD("cqg.rtd",,"ContractData",Symbols!B6,"High",,"T"),Symbols!D6)) -> 4374.75 | J7: =IF(Symbols!C6="B",RTD("cqg.rtd",,"ContractData",Symbols!B6,"NetLastQuoteToday",,"B"),IF(RTD("cqg.rtd",,"ContractData",Symbols!B6,"NetLastQuoteToday",,"T")>0,"+"&TEXT(RTD("cqg.rtd",,"ContractData",Symbols!B6,"NetLastQuoteToday",,"T"),Symbols!D6),TEXT(RTD("cqg.rtd",,"ContractData",Symbols!B6,"NetLastQuoteToday",,"T"),Symbols!D6))) -> +35.75 | K7: H: | L7: =IF(Symbols!C7="B",RTD("cqg.rtd",,"ContractData",Symbols!B7,"High",,"B"),TEXT(RTD("cqg.rtd",,"ContractData",Symbols!B7,"High",,"T"),Symbols!D7)) -> 1461.30 | M7: =IF(Symbols!C7="B",RTD("cqg.rtd",,"ContractData",Symbols!B7,"NetLastQuoteToday",,"B"),IF(RTD("cqg.rtd",,"ContractData",Symbols!B7,"NetLastQuoteToday",,"T")>0,"+"&TEXT(RTD("cqg.rtd",,"ContractData",Symbols!B7,"NetLastQuoteToday",,"T"),Symbols!D7),TEXT(RTD("cqg.rtd",,"ContractData",Symbols!B7,"NetLastQuoteToday",,"T"),Symbols!D7))) -> +9.30 | N7: H: | O7: =IF(Symbols!C8="B",RTD("cqg.rtd",,"ContractData",Symbols!B8,"High",,"B"),TEXT(RTD("cqg.rtd",,"ContractData",Symbols!B8,"High",,"T"),Symbols!D8)) -> 1269.50 | P7: =IF(Symbols!C8="B",RTD("cqg.rtd",,"ContractData",Symbols!B8,"NetLastQuoteToday",,"B"),IF(RTD("cqg.rtd",,"ContractData",Symbols!B8,"NetLastQuoteToday",,"T")>0,"+"&TEXT(RTD("cqg.rtd",,"ContractData",Symbols!B8,"NetLastQuoteToday",,"T"),Symbols!D8),TEXT(RTD("cqg.rtd",,"ContractData",Symbols!B8,"NetLastQuoteToday",,"T"),Symbols!D8))) -> -4.30 | Q7: H: | R7: =IF(Symbols!C9="B",RTD("cqg.rtd",,"ContractData",Symbols!B9,"High",,"B"),TEXT(RTD("cqg.rtd",,"ContractData",Symbols!B9,"High",,"T"),Symbols!D9)) -> 94.34 | S7: =IF(Symbols!C9="B",RTD("cqg.rtd",,"ContractData",Symbols!B9,"NetLastQuoteToday",,"B"),IF(RTD("cqg.rtd",,"ContractData",Symbols!B9,"NetLastQuoteToday",,"T")>0,"+"&TEXT(RTD("cqg.rtd",,"ContractData",Symbols!B9,"NetLastQuoteToday",,"T"),Symbols!D9),TEXT(RTD("cqg.rtd",,"ContractData",Symbols!B9,"NetLastQuoteToday",,"T"),Symbols!D9))) -> -.02 | T7: H: | U7: =IF(Symbols!C10="B",RTD("cqg.rtd",,"ContractData",Symbols!B10,"High",,"B"),TEXT(RTD("cqg.rtd",,"ContractData",Symbols!B10,"High",,"T"),Symbols!D10)) -> 1.1422 | V7: =IF(Symbols!C10="B",RTD("cqg.rtd",,"ContractData",Symbols!B10,"NetLastQuoteToday",,"B"),IF(RTD("cqg.rtd",,"ContractData",Symbols!B10,"NetLastQuoteToday",,"T")>0,"+"&TEXT(RTD("cqg.rtd",,"ContractData",Symbols!B10,"NetLastQuoteToday",,"T"),Symbols!D10),TEXT(RTD("cqg.rtd",,"ContractData",Symbols!B10,"NetLastQuoteToday",,"T"),Symbols!D10))) -> +.0004 | W7: H: | X7: =IF(Symbols!C8="B",RTD("cqg.rtd",,"ContractData",Symbols!B11,"High",,"B"),TEXT(RTD("cqg.rtd",,"ContractData",Symbols!B11,"High",,"T"),Symbols!D11)) -> .009243 | Y7: =IF(Symbols!C11="B",RTD("cqg.rtd",,"ContractData",Symbols!B11,"NetLastQuoteToday",,"B"),IF(RTD("cqg.rtd",,"ContractData",Symbols!B11,"NetLastQuoteToday",,"T")>0,"+"&TEXT(RTD("cqg.rtd",,"ContractData",Symbols!B11,"NetLastQuoteToday",,"T"),Symbols!D11),TEXT(RTD("cqg.rtd",,"ContractData",Symbols!B11,"NetLastQuoteToday",,"T"),Symbols!D11))) -> -.000051 | Z7: H: | AA7: =IF(Symbols!C12="B",RTD("cqg.rtd",,"ContractData",Symbols!B12,"High",,"B"),TEXT(RTD("cqg.rtd",,"ContractData",Symbols!B12,"High",,"T"),Symbols!D12)) -> .7365 | AB7: =IF(Symbols!C12="B",RTD("cqg.rtd",,"ContractData",Symbols!B12,"NetLastQuoteToday",,"B"),IF(RTD("cqg.rtd",,"ContractData",Symbols!B12,"NetLastQuoteToday",,"T")>0,"+"&TEXT(RTD("cqg.rtd",,"ContractData",Symbols!B12,"NetLastQuoteToday",,"T"),Symbols!D12),TEXT(RTD("cqg.rtd",,"ContractData",Symbols!B12,"NetLastQuoteToday",,"T"),Symbols!D12))) -> +.0049 | AC7: H: | AD7: =IF(Symbols!C13="B",RTD("cqg.rtd",,"ContractData",Symbols!B13,"High",,"B"),TEXT(RTD("cqg.rtd",,"ContractData",Symbols!B13,"High",,"T"),Symbols!D13)) -> 1.4480 | AE7: =IF(Symbols!C13="B",RTD("cqg.rtd",,"ContractData",Symbols!B13,"NetLastQuoteToday",,"B"),IF(RTD("cqg.rtd",,"ContractData",Symbols!B13,"NetLastQuoteToday",,"T")>0,"+"&TEXT(RTD("cqg.rtd",,"ContractData",Symbols!B13,"NetLastQuoteToday",,"T"),Symbols!D13),TEXT(RTD("cqg.rtd",,"ContractData",Symbols!B13,"NetLastQuoteToday",,"T"),Symbols!D13))) -> +.0057 | AF7: H: | AG7: =IF(Symbols!C14="B",RTD("cqg.rtd",,"ContractData",Symbols!B14,"High",,"B"),TEXT(RTD("cqg.rtd",,"ContractData",Symbols!B14,"High",,"T"),Symbols!D14)) -> .055430 | AH7: =IF(Symbols!C14="B",RTD("cqg.rtd",,"ContractData",Symbols!B14,"NetLastQuoteToday",,"B"),IF(RTD("cqg.rtd",,"ContractData",Symbols!B14,"NetLastQuoteToday",,"T")>0,"+"&TEXT(RTD("cqg.rtd",,"ContractData",Symbols!B14,"NetLastQuoteToday",,"T"),Symbols!D14),TEXT(RTD("cqg.rtd",,"ContractData",Symbols!B14,"NetLastQuoteToday",,"T"),Symbols!D14))) -> +.000410
A8: =INDIRECT("Data!H"&$B$2+4) -> 0 | B8: =INDIRECT("Data!J"&$B$2+4) -> 0 | C8: =INDIRECT("Data!K"&$B$2+4) -> 0 | D8: =INDIRECT("Data!L"&$B$2+4) -> 0 | E8: L: | F8: =IF(Symbols!C5="B",RTD("cqg.rtd",,"ContractData",Symbols!B5,"Low",,"B"),TEXT(RTD("cqg.rtd",,"ContractData",Symbols!B5,"Low",,"T"),Symbols!D5)) -> 2048.00 | G8: =IFERROR(RTD("cqg.rtd", ,"ContractData",Symbols!B5, "PerCentNetLastQuote",, "T")/100,"") -> 0.008397225265 | H8: L: | I8: =IF(Symbols!C6="B",RTD("cqg.rtd",,"ContractData",Symbols!B6,"Low",,"B"),TEXT(RTD("cqg.rtd",,"ContractData",Symbols!B6,"Low",,"T"),Symbols!D6)) -> 4323.75 | J8: =IFERROR(RTD("cqg.rtd", ,"ContractData",Symbols!B6, "PerCentNetLastQuote",, "T")/100,"") -> 0.008245401603 | K8: L: | L8: =IF(Symbols!C7="B",RTD("cqg.rtd",,"ContractData",Symbols!B7,"Low",,"B"),TEXT(RTD("cqg.rtd",,"ContractData",Symbols!B7,"Low",,"T"),Symbols!D7)) -> 1445.10 | M8: =IFERROR(RTD("cqg.rtd", ,"ContractData",Symbols!B7, "PerCentNetLastQuote",, "T")/100,"") -> 0.006412466386 | N8: L: | O8: =IF(Symbols!C8="B",RTD("cqg.rtd",,"ContractData",Symbols!B8,"Low",,"B"),TEXT(RTD("cqg.rtd",,"ContractData",Symbols!B8,"Low",,"T"),Symbols!D8)) -> 1258.30 | P8: =IFERROR(RTD("cqg.rtd", ,"ContractData",Symbols!B8, "PerCentNetLastQuote",, "T")/100,"") -> -0.003394915522 | Q8: L: | R8: =IF(Symbols!C9="B",RTD("cqg.rtd",,"ContractData",Symbols!B9,"Low",,"B"),TEXT(RTD("cqg.rtd",,"ContractData",Symbols!B9,"Low",,"T"),Symbols!D9)) -> 94.02 | S8: =IFERROR(RTD("cqg.rtd", ,"ContractData",Symbols!B9, "PerCentNetLastQuote",, "T")/100,"") -> -0.0002125059767 | T8: L: | U8: =IF(Symbols!C10="B",RTD("cqg.rtd",,"ContractData",Symbols!B10,"Low",,"B"),TEXT(RTD("cqg.rtd",,"ContractData",Symbols!B10,"Low",,"T"),Symbols!D10)) -> 1.1370 | V8: =IFERROR(RTD("cqg.rtd", ,"ContractData",Symbols!B10, "PerCentNetLastQuote",, "T")/100,"") -> 0.000350892583 | W8: L: | X8: =IF(Symbols!C11="B",RTD("cqg.rtd",,"ContractData",Symbols!B11,"Low",,"B"),TEXT(RTD("cqg.rtd",,"ContractData",Symbols!B11,"Low",,"T"),Symbols!D11)) -> .009158 | Y8: =IFERROR(RTD("cqg.rtd", ,"ContractData",Symbols!B11, "PerCentNetLastQuote",, "T")/100,"") -> -0.005473661392 | Z8: L: | AA8: =IF(Symbols!C12="B",RTD("cqg.rtd",,"ContractData",Symbols!B12,"Low",,"B"),TEXT(RTD("cqg.rtd",,"ContractData",Symbols!B12,"Low",,"T"),Symbols!D12)) -> .7290 | AB8: =IFERROR(RTD("cqg.rtd", ,"ContractData",Symbols!B12, "PerCentNetLastQuote",, "T")/100,"") -> 0.006703146375 | AC8: L: | AD8: =IF(Symbols!C13="B",RTD("cqg.rtd",,"ContractData",Symbols!B13,"Low",,"B"),TEXT(RTD("cqg.rtd",,"ContractData",Symbols!B13,"Low",,"T"),Symbols!D13)) -> 1.4391 | AE8: =IFERROR(RTD("cqg.rtd", ,"ContractData",Symbols!B13, "PerCentNetLastQuote",, "T")/100,"") -> 0.003954763061 | AF8: L: | AG8: =IF(Symbols!C14="B",RTD("cqg.rtd",,"ContractData",Symbols!B14,"Low",,"B"),TEXT(RTD("cqg.rtd",,"ContractData",Symbols!B14,"Low",,"T"),Symbols!D14)) -> .054700 | AH8: =IFERROR(RTD("cqg.rtd", ,"ContractData",Symbols!B14, "PerCentNetLastQuote",, "T")/100,"") -> 0.007455901073
A9: =INDIRECT("Data!H"&$B$2+5) -> 0 | B9: =INDIRECT("Data!J"&$B$2+5) -> 0 | C9: =INDIRECT("Data!K"&$B$2+5) -> 0 | D9: =INDIRECT("Data!L"&$B$2+5) -> 0 | E9: =N32 -> E-Mini S&P 500, Jun 16 | N9: Correlations
A10: =INDIRECT("Data!H"&$B$2+6) -> 0 | B10: =INDIRECT("Data!J"&$B$2+6) -> 0 | C10: =INDIRECT("Data!K"&$B$2+6) -> 0 | D10: =INDIRECT("Data!L"&$B$2+6) -> 0 | E10: =TEXT(S32,"#.00")&" Correlation to the "&RTD("cqg.rtd", ,"ContractData",'1'!C2, "LongDescription",, "T") -> .90 Correlation to the DAX Index, Jun 16 | N10: Time Frame | P10: Look Back | U10: =RTD("cqg.rtd", ,"ContractData",Data!D2, "LongDescription",, "T") -> Euro STOXX 50, Jun 16 | X10: =RTD("cqg.rtd", ,"ContractData",Data!F2, "LongDescription",, "T") -> CAC40, May 16 | AA10: =RTD("cqg.rtd", ,"ContractData",Data!H2, "LongDescription",, "T") -> NY Harbor ULSD, Jun 16 | AD10: =RTD("cqg.rtd", ,"ContractData",Data!J2, "LongDescription",, "T") -> Natural Gas (Globex), Jun 16 | AG10: =RTD("cqg.rtd", ,"ContractData",Data!L2, "LongDescription",, "T") -> Platinum (Globex), Jul 16
A11: =INDIRECT("Data!H"&$B$2+7) -> 0 | B11: =INDIRECT("Data!J"&$B$2+7) -> 0 | C11: =INDIRECT("Data!K"&$B$2+7) -> 0 | D11: =INDIRECT("Data!L"&$B$2+7) -> 0 | N11: ADC | P11: 10 | S11: =RTD("cqg.rtd", ,"ContractData",Data!C2, "LongDescription",, "T") -> DAX Index, Jun 16 | V11: =RTD("cqg.rtd", ,"ContractData",Data!E2, "LongDescription",, "T") -> FTSE 100 - Stnd Index, Jun 16 | Y11: =RTD("cqg.rtd", ,"ContractData",Data!G2, "LongDescription",, "T") -> Crude Light (Globex), Jun 16 | AB11: =RTD("cqg.rtd", ,"ContractData",Data!I2, "LongDescription",, "T") -> RBOB Gasoline (Globex), Jun 16 | AE11: =RTD("cqg.rtd", ,"ContractData",Data!K2, "LongDescription",, "T") -> 10yr US Treasury Notes (Globex), Jun 16
A12: =INDIRECT("Data!H"&$B$2+8) -> 0 | B12: =INDIRECT("Data!J"&$B$2+8) -> 0 | C12: =INDIRECT("Data!K"&$B$2+8) -> 0 | D12: =INDIRECT("Data!L"&$B$2+8) -> 0 | N12: =RTD("cqg.rtd", ,"ContractData",Symbols!B5, "LongDescription",, "T") -> E-Mini S&P 500, Jun 16 | R12: =Symbols!B5 -> EP | S12: =Data!C3 -> 0.8977677128 | U12: =Data!D3 -> 0.8826445551 | V12: =Data!E3 -> 0.8712144392 | X12: =Data!F3 -> 0.9095195675 | Y12: =Data!G3 -> 0.5378945207 | AA12: =Data!H3 -> 0.5955856143 | AB12: =Data!I3 -> 0.6259431939 | AD12: =Data!J3 -> 0.1113133227 | AE12: =Data!K3 -> -0.6917121333 | AG12: =Data!L3 -> -0.4147062582
A13: =INDIRECT("Data!H"&$B$2+9) -> 0 | B13: =INDIRECT("Data!J"&$B$2+9) -> 0 | C13: =INDIRECT("Data!K"&$B$2+9) -> 0 | D13: =INDIRECT("Data!L"&$B$2+9) -> 0 | N13: =$N$12 -> E-Mini S&P 500, Jun 16 | S13: =$S$12 -> 0.8977677128 | U13: =$U$12 -> 0.8826445551 | V13: =$V$12 -> 0.8712144392 | X13: =$X$12 -> 0.9095195675 | Y13: =$Y$12 -> 0.5378945207 | AA13: =$AA$12 -> 0.5955856143 | AB13: =$AB$12 -> 0.6259431939 | AD13: =$AD$12 -> 0.1113133227 | AE13: =$AE$12 -> -0.6917121333 | AG13: =$AG$12 -> -0.4147062582
A14: =INDIRECT("Data!H"&$B$2+10) -> 0 | B14: =INDIRECT("Data!J"&$B$2+10) -> 0 | C14: =INDIRECT("Data!K"&$B$2+10) -> 0 | D14: =INDIRECT("Data!L"&$B$2+10) -> 0 | E14: =TEXT(U32,"#.00")&" Correlation to the "&RTD("cqg.rtd",,"ContractData",'1'!I2,"LongDescription",,"T") -> .88 Correlation to the Euro STOXX 50, Jun 16 | N14: =RTD("cqg.rtd", ,"ContractData",Symbols!B6, "LongDescription",, "T") -> E-mini NASDAQ-100, Jun 16 | R14: =Symbols!B6 -> ENQ | S14: =Data!C4 -> 0.8992172657 | U14: =Data!D4 -> 0.8759537432 | V14: =Data!E4 -> 0.8032505117 | X14: =Data!F4 -> 0.8847637543 | Y14: =Data!G4 -> 0.4863060995 | AA14: =Data!H4 -> 0.5415709684 | AB14: =Data!I4 -> 0.5536318816 | AD14: =Data!J4 -> 0.1094641963 | AE14: =Data!K4 -> -0.6098902534 | AG14: =Data!L4 -> -0.5262934035
A15: =INDIRECT("Data!H"&$B$2+11) -> 0 | B15: =INDIRECT("Data!J"&$B$2+11) -> 0 | C15: =INDIRECT("Data!K"&$B$2+11) -> 0 | D15: =INDIRECT("Data!L"&$B$2+11) -> 0 | N15: =$N$14 -> E-mini NASDAQ-100, Jun 16 | S15: =$S$14 -> 0.8992172657 | U15: =$U$14 -> 0.8759537432 | V15: =$V$14 -> 0.8032505117 | X15: =$X$14 -> 0.8847637543 | Y15: =$Y$14 -> 0.4863060995 | AA15: =$AA$14 -> 0.5415709684 | AB15: =$AB$14 -> 0.5536318816 | AD15: =$AD$14 -> 0.1094641963 | AE15: =$AE$14 -> -0.6098902534 | AG15: =$AG$14 -> -0.5262934035
A16: =INDIRECT("Data!H"&$B$2+12) -> 0 | B16: =INDIRECT("Data!J"&$B$2+12) -> 0 | C16: =INDIRECT("Data!K"&$B$2+12) -> 0 | D16: =INDIRECT("Data!L"&$B$2+12) -> 0 | N16: =RTD("cqg.rtd", ,"ContractData",Symbols!B7, "LongDescription",, "T") -> E-mini MidCap 400, Jun 16 | R16: =Symbols!B7 -> EMD | S16: =Data!C5 -> 0.8971294553 | U16: =Data!D5 -> 0.8992708693 | V16: =Data!E5 -> 0.9104894698 | X16: =Data!F5 -> 0.9508756741 | Y16: =Data!G5 -> 0.5946553205 | AA16: =Data!H5 -> 0.6534389203 | AB16: =Data!I5 -> 0.7080026083 | AD16: =Data!J5 -> 0.0967010416 | AE16: =Data!K5 -> -0.7900866994 | AG16: =Data!L5 -> -0.3786610874
A17: =INDIRECT("Data!H"&$B$2+13) -> 0 | B17: =INDIRECT("Data!J"&$B$2+13) -> 0 | C17: =INDIRECT("Data!K"&$B$2+13) -> 0 | D17: =INDIRECT("Data!L"&$B$2+13) -> 0 | N17: =$N$16 -> E-mini MidCap 400, Jun 16 | S17: =$S$16 -> 0.8971294553 | U17: =$U$16 -> 0.8992708693 | V17: =$V$16 -> 0.9104894698 | X17: =$X$16 -> 0.9508756741 | Y17: =$Y$16 -> 0.5946553205 | AA17: =$AA$16 -> 0.6534389203 | AB17: =$AB$16 -> 0.7080026083 | AD17: =$AD$16 -> 0.0967010416 | AE17: =$AE$16 -> -0.7900866994 | AG17: =$AG$16 -> -0.3786610874
A18: =INDIRECT("Data!H"&$B$2+14) -> 0 | B18: =INDIRECT("Data!J"&$B$2+14) -> 0 | C18: =INDIRECT("Data!K"&$B$2+14) -> 0 | D18: =INDIRECT("Data!L"&$B$2+14) -> 0 | N18: =RTD("cqg.rtd", ,"ContractData",Symbols!B8, "LongDescription",, "T") -> Gold (Globex), Jun 16 | R18: =Symbols!B8 -> GCE | S18: =Data!C6 -> -0.4018570027 | U18: =Data!D6 -> -0.3767454309 | V18: =Data!E6 -> -0.4161576684 | X18: =Data!F6 -> -0.3248625289 | Y18: =Data!G6 -> -0.0485443604 | AA18: =Data!H6 -> -0.0428846363 | AB18: =Data!I6 -> 0.0229468162 | AD18: =Data!J6 -> -0.3340224755 | AE18: =Data!K6 -> -0.1312304173 | AG18: =Data!L6 -> 0.968905273
A19: =INDIRECT("Data!H"&$B$2+15) -> 0 | B19: =INDIRECT("Data!J"&$B$2+15) -> 0 | C19: =INDIRECT("Data!K"&$B$2+15) -> 0 | D19: =INDIRECT("Data!L"&$B$2+15) -> 0 | N19: =$N$18 -> Gold (Globex), Jun 16 | S19: =$S$18 -> -0.4018570027 | U19: =$U$18 -> -0.3767454309 | V19: =$V$18 -> -0.4161576684 | X19: =$X$18 -> -0.3248625289 | Y19: =$Y$18 -> -0.0485443604 | AA19: =$AA$18 -> -0.0428846363 | AB19: =$AB$18 -> 0.0229468162 | AD19: =$AD$18 -> -0.3340224755 | AE19: =$AE$18 -> -0.1312304173 | AG19: =$AG$18 -> 0.968905273
A20: =INDIRECT("Data!H"&$B$2+16) -> 0 | B20: =INDIRECT("Data!J"&$B$2+16) -> 0 | C20: =INDIRECT("Data!K"&$B$2+16) -> 0 | D20: =INDIRECT("Data!L"&$B$2+16) -> 0 | E20: =TEXT(V32,"#.00")&" Correlation to the "&RTD("cqg.rtd",,"ContractData",'1'!O2,"LongDescription",,"T") -> .87 Correlation to the FTSE 100 - Stnd Index, Jun 16 | N20: =RTD("cqg.rtd", ,"ContractData",Symbols!B9, "LongDescription",, "T") -> Dollar Index (ICE), Jun 16 | R20: =Symbols!B9 -> DXE | S20: =Data!C7 -> 0.1840101068 | U20: =Data!D7 -> 0.1517196898 | V20: =Data!E7 -> 0.2812576059 | X20: =Data!F7 -> 0.1022819657 | Y20: =Data!G7 -> 0.0073821068 | AA20: =Data!H7 -> -0.1305158294 | AB20: =Data!I7 -> -0.2260638227 | AD20: =Data!J7 -> 0.2905400473 | AE20: =Data!K7 -> 0.3943112315 | AG20: =Data!L7 -> -0.7161494782
A21: =INDIRECT("Data!H"&$B$2+17) -> 0 | B21: =INDIRECT("Data!J"&$B$2+17) -> 0 | C21: =INDIRECT("Data!K"&$B$2+17) -> 0 | D21: =INDIRECT("Data!L"&$B$2+17) -> 0 | N21: =$N$20 -> Dollar Index (ICE), Jun 16 | S21: =$S$20 -> 0.1840101068 | U21: =$U$20 -> 0.1517196898 | V21: =$V$20 -> 0.2812576059 | X21: =$X$20 -> 0.1022819657 | Y21: =$Y$20 -> 0.0073821068 | AA21: =$AA$20 -> -0.1305158294 | AB21: =$AB$20 -> -0.2260638227 | AD21: =$AD$20 -> 0.2905400473 | AE21: =$AE$20 -> 0.3943112315 | AG21: =$AG$20 -> -0.7161494782
A22: =INDIRECT("Data!H"&$B$2+18) -> 0 | B22: =INDIRECT("Data!J"&$B$2+18) -> 0 | C22: =INDIRECT("Data!K"&$B$2+18) -> 0 | D22: =INDIRECT("Data!L"&$B$2+18) -> 0 | N22: =RTD("cqg.rtd", ,"ContractData",Symbols!B10, "LongDescription",, "T") -> Euro FX (Globex), Jun 16 | R22: =Symbols!B10 -> EU6 | S22: =Data!C8 -> -0.4499305864 | U22: =Data!D8 -> -0.4358810483 | V22: =Data!E8 -> -0.5447319568 | X22: =Data!F8 -> -0.3594609483 | Y22: =Data!G8 -> -0.3619505556 | AA22: =Data!H8 -> -0.2194954747 | AB22: =Data!I8 -> -0.1264158423 | AD22: =Data!J8 -> -0.2254723673 | AE22: =Data!K8 -> -0.1287853043 | AG22: =Data!L8 -> 0.6568230269
A23: =INDIRECT("Data!H"&$B$2+19) -> 0 | B23: =INDIRECT("Data!J"&$B$2+19) -> 0 | C23: =INDIRECT("Data!K"&$B$2+19) -> 0 | D23: =INDIRECT("Data!L"&$B$2+19) -> 0 | N23: =$N$22 -> Euro FX (Globex), Jun 16 | S23: =$S$22 -> -0.4499305864 | U23: =$U$22 -> -0.4358810483 | V23: =$V$22 -> -0.5447319568 | X23: =$X$22 -> -0.3594609483 | Y23: =$Y$22 -> -0.3619505556 | AA23: =$AA$22 -> -0.2194954747 | AB23: =$AB$22 -> -0.1264158423 | AD23: =$AD$22 -> -0.2254723673 | AE23: =$AE$22 -> -0.1287853043 | AG23: =$AG$22 -> 0.6568230269
A24: =INDIRECT("Data!H"&$B$2+20) -> 0 | B24: =INDIRECT("Data!J"&$B$2+20) -> 0 | C24: =INDIRECT("Data!K"&$B$2+20) -> 0 | D24: =INDIRECT("Data!L"&$B$2+20) -> 0 | N24: =RTD("cqg.rtd", ,"ContractData",Symbols!B11, "LongDescription",, "T") -> Japanese Yen (Globex), Jun 16 | R24: =Symbols!B11 -> JY6 | S24: =Data!C9 -> -0.5530483032 | U24: =Data!D9 -> -0.529019635 | V24: =Data!E9 -> -0.5912170568 | X24: =Data!F9 -> -0.5325510082 | Y24: =Data!G9 -> -0.1778887953 | AA24: =Data!H9 -> -0.1449385516 | AB24: =Data!I9 -> -0.1140373494 | AD24: =Data!J9 -> -0.3918551614 | AE24: =Data!K9 -> 0.0602099983 | AG24: =Data!L9 -> 0.8752930421
A25: =INDIRECT("Data!H"&$B$2+21) -> 0 | B25: =INDIRECT("Data!J"&$B$2+21) -> 0 | C25: =INDIRECT("Data!K"&$B$2+21) -> 0 | D25: =INDIRECT("Data!L"&$B$2+21) -> 0 | N25: =$N$24 -> Japanese Yen (Globex), Jun 16 | S25: =$S$24 -> -0.5530483032 | U25: =$U$24 -> -0.529019635 | V25: =$V$24 -> -0.5912170568 | X25: =$X$24 -> -0.5325510082 | Y25: =$Y$24 -> -0.1778887953 | AA25: =$AA$24 -> -0.1449385516 | AB25: =$AB$24 -> -0.1140373494 | AD25: =$AD$24 -> -0.3918551614 | AE25: =$AE$24 -> 0.0602099983 | AG25: =$AG$24 -> 0.8752930421
A26: =INDIRECT("Data!H"&$B$2+22) -> 0 | B26: =INDIRECT("Data!J"&$B$2+22) -> 0 | C26: =INDIRECT("Data!K"&$B$2+22) -> 0 | D26: =INDIRECT("Data!L"&$B$2+22) -> 0 | E26: =TEXT(X32,"#.00")&" Correlation to the "&RTD("cqg.rtd",,"ContractData",'1'!U2,"LongDescription",,"T") -> .91 Correlation to the CAC40, May 16 | N26: =RTD("cqg.rtd", ,"ContractData",Symbols!B12, "LongDescription",, "T") -> Australian Dollar (Globex), Jun 16 | R26: =Symbols!B12 -> DA6 | S26: =Data!C10 -> 0.6582166139 | U26: =Data!D10 -> 0.717189867 | V26: =Data!E10 -> 0.8210383412 | X26: =Data!F10 -> 0.7420949133 | Y26: =Data!G10 -> 0.7226009004 | AA26: =Data!H10 -> 0.8446357532 | AB26: =Data!I10 -> 0.9103097071 | AD26: =Data!J10 -> -0.1290713842 | AE26: =Data!K10 -> -0.9148036078 | AG26: =Data!L10 -> 0.109395919
A27: =INDIRECT("Data!H"&$B$2+23) -> 0 | B27: =INDIRECT("Data!J"&$B$2+23) -> 0 | C27: =INDIRECT("Data!K"&$B$2+23) -> 0 | D27: =INDIRECT("Data!L"&$B$2+23) -> 0 | N27: =$N$26 -> Australian Dollar (Globex), Jun 16 | S27: =$S$26 -> 0.6582166139 | U27: =$U$26 -> 0.717189867 | V27: =$V$26 -> 0.8210383412 | X27: =$X$26 -> 0.7420949133 | Y27: =$Y$26 -> 0.7226009004 | AA27: =$AA$26 -> 0.8446357532 | AB27: =$AB$26 -> 0.9103097071 | AD27: =$AD$26 -> -0.1290713842 | AE27: =$AE$26 -> -0.9148036078 | AG27: =$AG$26 -> 0.109395919
A28: =INDIRECT("Data!H"&$B$2+24) -> 0 | B28: =INDIRECT("Data!J"&$B$2+24) -> 0 | C28: =INDIRECT("Data!K"&$B$2+24) -> 0 | D28: =INDIRECT("Data!L"&$B$2+24) -> 0 | N28: =RTD("cqg.rtd", ,"ContractData",Symbols!B13, "LongDescription",, "T") -> British Pound (Globex), Jun 16 | R28: =Symbols!B13 -> BP6 | S28: =Data!C11 -> 0.587735663 | U28: =Data!D11 -> 0.6237283992 | V28: =Data!E11 -> 0.7645518609 | X28: =Data!F11 -> 0.6410140503 | Y28: =Data!G11 -> 0.6205568768 | AA28: =Data!H11 -> 0.7406591657 | AB28: =Data!I11 -> 0.82165305 | AD28: =Data!J11 -> -0.1568998114 | AE28: =Data!K11 -> -0.8647894966 | AG28: =Data!L11 -> 0.2413354702
A29: =INDIRECT("Data!H"&$B$2+25) -> 0 | B29: =INDIRECT("Data!J"&$B$2+25) -> 0 | C29: =INDIRECT("Data!K"&$B$2+25) -> 0 | D29: =INDIRECT("Data!L"&$B$2+25) -> 0 | N29: =$N$28 -> British Pound (Globex), Jun 16 | S29: =$S$28 -> 0.587735663 | U29: =$U$28 -> 0.6237283992 | V29: =$V$28 -> 0.7645518609 | X29: =$X$28 -> 0.6410140503 | Y29: =$Y$28 -> 0.6205568768 | AA29: =$AA$28 -> 0.7406591657 | AB29: =$AB$28 -> 0.82165305 | AD29: =$AD$28 -> -0.1568998114 | AE29: =$AE$28 -> -0.8647894966 | AG29: =$AG$28 -> 0.2413354702
A30: =INDIRECT("Data!H"&$B$2+26) -> 0 | B30: =INDIRECT("Data!J"&$B$2+26) -> 0 | C30: =INDIRECT("Data!K"&$B$2+26) -> 0 | D30: =INDIRECT("Data!L"&$B$2+26) -> 0 | N30: =RTD("cqg.rtd", ,"ContractData",Symbols!B14, "LongDescription",, "T") -> Mexican Peso (Globex), Jun 16 | R30: =Symbols!B14 -> MX6 | S30: =Data!C12 -> 0.6940980041 | U30: =Data!D12 -> 0.7524019127 | V30: =Data!E12 -> 0.8692678004 | X30: =Data!F12 -> 0.7836633422 | Y30: =Data!G12 -> 0.781272379 | AA30: =Data!H12 -> 0.8921210611 | AB30: =Data!I12 -> 0.9556584759 | AD30: =Data!J12 -> -0.01867544 | AE30: =Data!K12 -> -0.9502029321 | AG30: =Data!L12 -> 0.1619466046
A31: =INDIRECT("Data!H"&$B$2+27) -> 0 | B31: =INDIRECT("Data!J"&$B$2+27) -> 0 | C31: =INDIRECT("Data!K"&$B$2+27) -> 0 | D31: =INDIRECT("Data!L"&$B$2+27) -> 0 | N31: =$N$30 -> Mexican Peso (Globex), Jun 16 | S31: =$S$30 -> 0.6940980041 | U31: =$U$30 -> 0.7524019127 | V31: =$V$30 -> 0.8692678004 | X31: =$X$30 -> 0.7836633422 | Y31: =$Y$30 -> 0.781272379 | AA31: =$AA$30 -> 0.8921210611 | AB31: =$AB$30 -> 0.9556584759 | AD31: =$AD$30 -> -0.01867544 | AE31: =$AE$30 -> -0.9502029321 | AG31: =$AG$30 -> 0.1619466046
A32: =INDIRECT("Data!H"&$B$2+28) -> 0 | B32: =INDIRECT("Data!J"&$B$2+28) -> 0 | C32: =INDIRECT("Data!K"&$B$2+28) -> 0 | D32: =INDIRECT("Data!L"&$B$2+28) -> 0 | N32: =$N$12 -> E-Mini S&P 500, Jun 16 | S32: =$S$12 -> 0.8977677128 | U32: =$U$12 -> 0.8826445551 | V32: =$V$12 -> 0.8712144392 | X32: =$X$12 -> 0.9095195675 | Y32: =$Y$12 -> 0.5378945207 | AA32: =$AA$12 -> 0.5955856143 | AB32: =$AB$12 -> 0.6259431939 | AD32: =$AD$12 -> 0.1113133227 | AE32: =$AE$12 -> -0.6917121333 | AG32: =$AG$12 -> -0.4147062582
A33: =INDIRECT("Data!H"&$B$2+29) -> 0 | B33: =INDIRECT("Data!J"&$B$2+29) -> 0 | C33: =INDIRECT("Data!K"&$B$2+29) -> 0 | D33: =INDIRECT("Data!L"&$B$2+29) -> 0 | E33: =TEXT(Y32,"#.00")&" Correlation to the "&RTD("cqg.rtd",,"ContractData",'1'!AA2,"LongDescription",,"T") -> .54 Correlation to the Crude Light (Globex), Jun 16 | N33: ="Correlations relative to the "&N32 -> Correlations relative to the E-Mini S&P 500, Jun 16
A34: =INDIRECT("Data!H"&$B$2+30) -> 0 | B34: =INDIRECT("Data!J"&$B$2+30) -> 0 | C34: =INDIRECT("Data!K"&$B$2+30) -> 0 | D34: =INDIRECT("Data!L"&$B$2+30) -> 0
A35: =INDIRECT("Data!H"&$B$2+31) -> 0 | B35: =INDIRECT("Data!J"&$B$2+31) -> 0 | C35: =INDIRECT("Data!K"&$B$2+31) -> 0 | D35: =INDIRECT("Data!L"&$B$2+31) -> 0
A36: =INDIRECT("Data!H"&$B$2+32) -> 0 | B36: =INDIRECT("Data!J"&$B$2+32) -> 0 | C36: =INDIRECT("Data!K"&$B$2+32) -> 0 | D36: =INDIRECT("Data!L"&$B$2+32) -> 0 | E36: =TEXT(AA32,"#.00")&" Correlation to the "&RTD("cqg.rtd",,"ContractData",'1'!AG2,"LongDescription",,"T") -> .60 Correlation to the NY Harbor ULSD, Jun 16
A37: =INDIRECT("Data!H"&$B$2+33) -> 0 | B37: =INDIRECT("Data!J"&$B$2+33) -> 0 | C37: =INDIRECT("Data!K"&$B$2+33) -> 0 | D37: =INDIRECT("Data!L"&$B$2+33) -> 0
A38: =INDIRECT("Data!H"&$B$2+34) -> 0 | B38: =INDIRECT("Data!J"&$B$2+34) -> 0 | C38: =INDIRECT("Data!K"&$B$2+34) -> 0 | D38: =INDIRECT("Data!L"&$B$2+34) -> 0
A39: =INDIRECT("Data!H"&$B$2+35) -> 0 | B39: =INDIRECT("Data!J"&$B$2+35) -> 0 | C39: =INDIRECT("Data!K"&$B$2+35) -> 0 | D39: =INDIRECT("Data!L"&$B$2+35) -> 0 | E39: =TEXT(AB32,"#.00")&" Correlation to the "&RTD("cqg.rtd",,"ContractData",'1'!AM2,"LongDescription",,"T") -> .63 Correlation to the RBOB Gasoline (Globex), Jun 16
A40: =INDIRECT("Data!H"&$B$2+36) -> 0 | B40: =INDIRECT("Data!J"&$B$2+36) -> 0 | C40: =INDIRECT("Data!K"&$B$2+36) -> 0 | D40: =INDIRECT("Data!L"&$B$2+36) -> 0
A41: =INDIRECT("Data!H"&$B$2+35) -> 0 | B41: =INDIRECT("Data!J"&$B$2+35) -> 0 | C41: =INDIRECT("Data!K"&$B$2+35) -> 0 | D41: =INDIRECT("Data!L"&$B$2+35) -> 0
A42: =INDIRECT("Data!H"&$B$2+38) -> 0 | B42: =INDIRECT("Data!J"&$B$2+38) -> 0 | C42: =INDIRECT("Data!K"&$B$2+38) -> 0 | D42: =INDIRECT("Data!L"&$B$2+38) -> 0 | E42: =TEXT(AD32,"#.00")&" Correlation to the "&RTD("cqg.rtd",,"ContractData",'1'!AS2,"LongDescription",,"T") -> .11 Correlation to the Natural Gas (Globex), Jun 16
A43: =INDIRECT("Data!H"&$B$2+39) -> 0 | B43: =INDIRECT("Data!J"&$B$2+39) -> 0 | C43: =INDIRECT("Data!K"&$B$2+39) -> 0 | D43: =INDIRECT("Data!L"&$B$2+39) -> 0
A44: =INDIRECT("Data!H"&$B$2+40) -> 0 | B44: =INDIRECT("Data!J"&$B$2+40) -> 0 | C44: =INDIRECT("Data!K"&$B$2+40) -> 0 | D44: =INDIRECT("Data!L"&$B$2+40) -> 0
A45: =INDIRECT("Data!H"&$B$2+41) -> 0 | B45: =INDIRECT("Data!J"&$B$2+41) -> 0 | C45: =INDIRECT("Data!K"&$B$2+41) -> 0 | D45: =INDIRECT("Data!L"&$B$2+41) -> 0 | E45: =TEXT(AE32,"#.00")&" Correlation to the "&RTD("cqg.rtd",,"ContractData",'1'!AY2,"LongDescription",,"T") -> -.69 Correlation to the 10yr US Treasury Notes (Globex), Jun 16
A46: =INDIRECT("Data!H"&$B$2+42) -> 0 | B46: =INDIRECT("Data!J"&$B$2+42) -> 0 | C46: =INDIRECT("Data!K"&$B$2+42) -> 0 | D46: =INDIRECT("Data!L"&$B$2+42) -> 0
A47: =INDIRECT("Data!H"&$B$2+43) -> 0 | B47: =INDIRECT("Data!J"&$B$2+43) -> 0 | C47: =INDIRECT("Data!K"&$B$2+43) -> 0 | D47: =INDIRECT("Data!L"&$B$2+43) -> 0
E48: =TEXT(AG32,"#.00")&" Correlation to the "&RTD("cqg.rtd",,"ContractData",'1'!BE2,"LongDescription",,"T") -> -.41 Correlation to the Platinum (Globex), Jul 16
A51: =INDIRECT("Data!H"&$B$2+47) -> 0 | B51: =INDIRECT("Data!J"&$B$2+47) -> 0 | C51: =INDIRECT("Data!K"&$B$2+47) -> 0 | D51: =INDIRECT("Data!L"&$B$2+47) -> 0 | E51: =RTD("cqg.rtd", ,"ContractData",Symbols!D3, "LongDescription",, "T") -> DAX Index, Jun 16 | H51: =RTD("cqg.rtd", ,"ContractData",Symbols!E3, "LongDescription",, "T") -> Euro STOXX 50, Jun 16 | K51: =RTD("cqg.rtd", ,"ContractData",Symbols!F3, "LongDescription",, "T") -> FTSE 100 - Stnd Index, Jun 16 | N51: =RTD("cqg.rtd", ,"ContractData",Symbols!G3, "LongDescription",, "T") -> CAC40, May 16 | Q51: =RTD("cqg.rtd", ,"ContractData",Symbols!H3, "LongDescription",, "T") -> Crude Light (Globex), Jun 16 | T51: =RTD("cqg.rtd", ,"ContractData",Symbols!I3, "LongDescription",, "T") -> NY Harbor ULSD, Jun 16 | W51: =RTD("cqg.rtd", ,"ContractData",Symbols!J3, "LongDescription",, "T") -> RBOB Gasoline (Globex), Jun 16 | Z51: =RTD("cqg.rtd", ,"ContractData",Symbols!K3, "LongDescription",, "T") -> Natural Gas (Globex), Jun 16 | AC51: =RTD("cqg.rtd", ,"ContractData",Symbols!L3, "LongDescription",, "T") -> 10yr US Treasury Notes (Globex), Jun 16 | AF51: =RTD("cqg.rtd", ,"ContractData",Symbols!M3, "LongDescription",, "T") -> Platinum (Globex), Jul 16
A52: =INDIRECT("Data!H"&$B$2+48) -> 0 | B52: =INDIRECT("Data!J"&$B$2+48) -> 0 | C52: =INDIRECT("Data!K"&$B$2+48) -> 0 | D52: =INDIRECT("Data!L"&$B$2+48) -> 0 | E52: =IF(Symbols!D4="B",RTD("cqg.rtd",,"ContractData",Symbols!D3,"LastTrade",,"B"),TEXT(RTD("cqg.rtd",,"ContractData",Symbols!D3,"LastTrade",,"T"),Symbols!D2)) -> 10035.00 | H52: =IF(Symbols!E4="B",RTD("cqg.rtd",,"ContractData",Symbols!E3,"LastTrade",,"B"),TEXT(RTD("cqg.rtd",,"ContractData",Symbols!E3,"LastTrade",,"T"),Symbols!E2)) -> 2940 | K52: =IF(Symbols!F4="B",RTD("cqg.rtd",,"ContractData",Symbols!F3,"LastTrade",,"B"),TEXT(RTD("cqg.rtd",,"ContractData",Symbols!F3,"LastTrade",,"T"),Symbols!F2)) -> 6119.00 | N52: =IF(Symbols!G4="B",RTD("cqg.rtd",,"ContractData",Symbols!G3,"LastTrade",,"B"),TEXT(RTD("cqg.rtd",,"ContractData",Symbols!G3,"LastTrade",,"T"),Symbols!G2)) -> 4320.50 | Q52: =IF(Symbols!H4="B",RTD("cqg.rtd",,"ContractData",Symbols!H3,"LastTrade",,"B"),TEXT(RTD("cqg.rtd",,"ContractData",Symbols!H3,"LastTrade",,"T"),Symbols!H2)) -> 44.29 | T52: =IF(Symbols!I4="B",RTD("cqg.rtd",,"ContractData",Symbols!I3,"LastTrade",,"B"),TEXT(RTD("cqg.rtd",,"ContractData",Symbols!I3,"LastTrade",,"T"),Symbols!I2)) -> 1.33 | W52: =IF(Symbols!J4="B",RTD("cqg.rtd",,"ContractData",Symbols!J3,"LastTrade",,"B"),TEXT(RTD("cqg.rtd",,"ContractData",Symbols!J3,"LastTrade",,"T"),Symbols!J2)) -> 1.473 | Z52: =IF(Symbols!K4="B",RTD("cqg.rtd",,"ContractData",Symbols!K3,"LastTrade",,"B"),TEXT(RTD("cqg.rtd",,"ContractData",Symbols!K3,"LastTrade",,"T"),Symbols!K2)) -> 2.147 | AC52: =IF(Symbols!L4="B",RTD("cqg.rtd",,"ContractData",Symbols!L3,"LastTrade",,"B"),TEXT(RTD("cqg.rtd",,"ContractData",Symbols!L3,"LastTrade",,"T"),Symbols!L2)) -> 130'25.0 | AF52: =IF(Symbols!M4="B",RTD("cqg.rtd",,"ContractData",Symbols!M3,"LastTrade",,"B"),TEXT(RTD("cqg.rtd",,"ContractData",Symbols!M3,"LastTrade",,"T"),Symbols!M2)) -> 1050.00
A53: =INDIRECT("Data!H"&$B$2+49) -> 0 | B53: =INDIRECT("Data!J"&$B$2+49) -> 0 | C53: =INDIRECT("Data!K"&$B$2+49) -> 0 | D53: =INDIRECT("Data!L"&$B$2+49) -> 0
E54: H: | F54: =IF(Symbols!D4="B",RTD("cqg.rtd",,"ContractData",Symbols!D3,"High",,"B"),TEXT(RTD("cqg.rtd",,"ContractData",Symbols!D3,"High",,"T"),Symbols!D2)) -> 10114.50 | G54: =IF(Symbols!D4="B",RTD("cqg.rtd",,"ContractData",Symbols!D3,"NetLastQuoteToday",,"B"),IF(RTD("cqg.rtd",,"ContractData",Symbols!D3,"NetLastQuoteToday",,"T")>0,"+"&TEXT(RTD("cqg.rtd",,"ContractData",Symbols!D3,"NetLastQuoteToday",,"T"),Symbols!D2),TEXT(RTD("cqg.rtd",,"ContractData",Symbols!D3,"NetLastQuoteToday",,"T"),Symbols!D2))) -> +53.50 | H54: H: | I54: =IF(Symbols!E4="B",RTD("cqg.rtd",,"ContractData",Symbols!E3,"High",,"B"),TEXT(RTD("cqg.rtd",,"ContractData",Symbols!E3,"High",,"T"),Symbols!E2)) -> 2972 | J54: =IF(Symbols!E4="B",RTD("cqg.rtd",,"ContractData",Symbols!E3,"NetLastQuoteToday",,"B"),IF(RTD("cqg.rtd",,"ContractData",Symbols!E3,"NetLastQuoteToday",,"T")>0,"+"&TEXT(RTD("cqg.rtd",,"ContractData",Symbols!E3,"NetLastQuoteToday",,"T"),Symbols!E2),TEXT(RTD("cqg.rtd",,"ContractData",Symbols!E3,"NetLastQuoteToday",,"T"),Symbols!E2))) -> +24 | K54: H: | L54: =IF(Symbols!F4="B",RTD("cqg.rtd",,"ContractData",Symbols!F3,"High",,"B"),TEXT(RTD("cqg.rtd",,"ContractData",Symbols!F3,"High",,"T"),Symbols!F2)) -> 6144.00 | M54: =IF(Symbols!F4="B",RTD("cqg.rtd",,"ContractData",Symbols!F3,"NetLastQuoteToday",,"B"),IF(RTD("cqg.rtd",,"ContractData",Symbols!F3,"NetLastQuoteToday",,"T")>0,"+"&TEXT(RTD("cqg.rtd",,"ContractData",Symbols!F3,"NetLastQuoteToday",,"T"),Symbols!F2),TEXT(RTD("cqg.rtd",,"ContractData",Symbols!F3,"NetLastQuoteToday",,"T"),Symbols!F2))) -> +36.00 | N54: H: | O54: =IF(Symbols!M4="B",RTD("cqg.rtd",,"ContractData",Symbols!M3,"High",,"B"),TEXT(RTD("cqg.rtd",,"ContractData",Symbols!M3,"High",,"T"),Symbols!M2)) -> 1054.10 | P54: =IF(Symbols!G4="B",RTD("cqg.rtd",,"ContractData",Symbols!G3,"NetLastQuoteToday",,"B"),IF(RTD("cqg.rtd",,"ContractData",Symbols!G3,"NetLastQuoteToday",,"T")>0,"+"&TEXT(RTD("cqg.rtd",,"ContractData",Symbols!G3,"NetLastQuoteToday",,"T"),Symbols!G2),TEXT(RTD("cqg.rtd",,"ContractData",Symbols!G3,"NetLastQuoteToday",,"T"),Symbols!G2))) -> +22.50 | Q54: H: | R54: =IF(Symbols!H4="B",RTD("cqg.rtd",,"ContractData",Symbols!H3,"High",,"B"),TEXT(RTD("cqg.rtd",,"ContractData",Symbols!H3,"High",,"T"),Symbols!H2)) -> 44.44 | S54: =IF(Symbols!H4="B",RTD("cqg.rtd",,"ContractData",Symbols!H3,"NetLastQuoteToday",,"B"),IF(RTD("cqg.rtd",,"ContractData",Symbols!H3,"NetLastQuoteToday",,"T")>0,"+"&TEXT(RTD("cqg.rtd",,"ContractData",Symbols!H3,"NetLastQuoteToday",,"T"),Symbols!H2),TEXT(RTD("cqg.rtd",,"ContractData",Symbols!H3,"NetLastQuoteToday",,"T"),Symbols!H2))) -> +.85 | T54: H: | U54: =IF(Symbols!I4="B",RTD("cqg.rtd",,"ContractData",Symbols!I3,"High",,"B"),TEXT(RTD("cqg.rtd",,"ContractData",Symbols!I3,"High",,"T"),Symbols!I2)) -> 1.33 | V54: =IF(Symbols!I4="B",RTD("cqg.rtd",,"ContractData",Symbols!I3,"NetLastQuoteToday",,"B"),IF(RTD("cqg.rtd",,"ContractData",Symbols!I3,"NetLastQuoteToday",,"T")>0,"+"&TEXT(RTD("cqg.rtd",,"ContractData",Symbols!I3,"NetLastQuoteToday",,"T"),Symbols!I2),TEXT(RTD("cqg.rtd",,"ContractData",Symbols!I3,"NetLastQuoteToday",,"T"),Symbols!I2))) -> +.04 | W54: H: | X54: =IF(Symbols!J4="B",RTD("cqg.rtd",,"ContractData",Symbols!J3,"High",,"B"),TEXT(RTD("cqg.rtd",,"ContractData",Symbols!J3,"High",,"T"),Symbols!J2)) -> 1.475 | Y54: =IF(Symbols!J4="B",RTD("cqg.rtd",,"ContractData",Symbols!J3,"NetLastQuoteToday",,"B"),IF(RTD("cqg.rtd",,"ContractData",Symbols!J3,"NetLastQuoteToday",,"T")>0,"+"&TEXT(RTD("cqg.rtd",,"ContractData",Symbols!J3,"NetLastQuoteToday",,"T"),Symbols!J2),TEXT(RTD("cqg.rtd",,"ContractData",Symbols!J3,"NetLastQuoteToday",,"T"),Symbols!J2))) -> +.030 | Z54: H: | AA54: =IF(Symbols!K4="B",RTD("cqg.rtd",,"ContractData",Symbols!K3,"High",,"B"),TEXT(RTD("cqg.rtd",,"ContractData",Symbols!K3,"High",,"T"),Symbols!K2)) -> 2.173 | AB54: =IF(Symbols!K4="B",RTD("cqg.rtd",,"ContractData",Symbols!K3,"NetLastQuoteToday",,"B"),IF(RTD("cqg.rtd",,"ContractData",Symbols!K3,"NetLastQuoteToday",,"T")>0,"+"&TEXT(RTD("cqg.rtd",,"ContractData",Symbols!K3,"NetLastQuoteToday",,"T"),Symbols!K2),TEXT(RTD("cqg.rtd",,"ContractData",Symbols!K3,"NetLastQuoteToday",,"T"),Symbols!K2))) -> +.049 | AC54: H: | AD54: =IF(Symbols!L4="B",RTD("cqg.rtd",,"ContractData",Symbols!L3,"High",,"B"),TEXT(RTD("cqg.rtd",,"ContractData",Symbols!L3,"High",,"T"),Symbols!L2)) -> 130'29.0 | AE54: =IF(Symbols!L4="B",RTD("cqg.rtd",,"ContractData",Symbols!L3,"NetLastQuoteToday",,"B"),IF(RTD("cqg.rtd",,"ContractData",Symbols!L3,"NetLastQuoteToday",,"T")>0,"+"&TEXT(RTD("cqg.rtd",,"ContractData",Symbols!L3,"NetLastQuoteToday",,"T"),Symbols!L2),TEXT(RTD("cqg.rtd",,"ContractData",Symbols!L3,"NetLastQuoteToday",,"T"),Symbols!L2))) -> -0'00.5 | AF54: H: | AG54: =IF(Symbols!M4="B",RTD("cqg.rtd",,"ContractData",Symbols!M3,"High",,"B"),TEXT(RTD("cqg.rtd",,"ContractData",Symbols!M3,"High",,"T"),Symbols!M2)) -> 1054.10 | AH54: =IF(Symbols!M4="B",RTD("cqg.rtd",,"ContractData",Symbols!M3,"NetLastQuoteToday",,"B"),IF(RTD("cqg.rtd",,"ContractData",Symbols!M3,"NetLastQuoteToday",,"T")>0,"+"&TEXT(RTD("cqg.rtd",,"ContractData",Symbols!M3,"NetLastQuoteToday",,"T"),Symbols!M2),TEXT(RTD("cqg.rtd",,"ContractData",Symbols!M3,"NetLastQuoteToday",,"T"),Symbols!M2))) -> +3.30
E55: L: | F55: =IF(Symbols!D4="B",RTD("cqg.rtd",,"ContractData",Symbols!D3,"Low",,"B"),TEXT(RTD("cqg.rtd",,"ContractData",Symbols!D3,"Low",,"T"),Symbols!D2)) -> 9993.50 | G55: =IFERROR(RTD("cqg.rtd", ,"ContractData",Symbols!D3, "PerCentNetLastQuote",, "T")/100,"") -> 0.005359647365 | H55: L: | I55: =IF(Symbols!E4="B",RTD("cqg.rtd",,"ContractData",Symbols!E3,"Low",,"B"),TEXT(RTD("cqg.rtd",,"ContractData",Symbols!E3,"Low",,"T"),Symbols!E2)) -> 2930 | J55: =IFERROR(RTD("cqg.rtd", ,"ContractData",Symbols!E3, "PerCentNetLastQuote",, "T")/100,"") -> 0.008230452675 | K55: L: | L55: =IF(Symbols!F4="B",RTD("cqg.rtd",,"ContractData",Symbols!F3,"Low",,"B"),TEXT(RTD("cqg.rtd",,"ContractData",Symbols!F3,"Low",,"T"),Symbols!F2)) -> 6073.00 | M55: =IFERROR(RTD("cqg.rtd", ,"ContractData",Symbols!F3, "PerCentNetLastQuote",, "T")/100,"") -> 0.0059181325 | N55: L: | O55: =IF(Symbols!M4="B",RTD("cqg.rtd",,"ContractData",Symbols!M3,"Low",,"B"),TEXT(RTD("cqg.rtd",,"ContractData",Symbols!M3,"Low",,"T"),Symbols!M2)) -> 1042.10 | P55: =IFERROR(RTD("cqg.rtd", ,"ContractData",Symbols!M3, "PerCentNetLastQuote",, "T")/100,"") -> 0.003152464654 | Q55: L: | R55: =IF(Symbols!H4="B",RTD("cqg.rtd",,"ContractData",Symbols!H3,"Low",,"B"),TEXT(RTD("cqg.rtd",,"ContractData",Symbols!H3,"Low",,"T"),Symbols!H2)) -> 43.03 | S55: =IFERROR(RTD("cqg.rtd", ,"ContractData",Symbols!H3, "PerCentNetLastQuote",, "T")/100,"") -> 0.01956721915 | T55: L: | U55: =IF(Symbols!I4="B",RTD("cqg.rtd",,"ContractData",Symbols!I3,"Low",,"B"),TEXT(RTD("cqg.rtd",,"ContractData",Symbols!I3,"Low",,"T"),Symbols!I2)) -> 1.28 | V55: =IFERROR(RTD("cqg.rtd", ,"ContractData",Symbols!I3, "PerCentNetLastQuote",, "T")/100,"") -> 0.03125242945 | W55: L: | X55: =IF(Symbols!J4="B",RTD("cqg.rtd",,"ContractData",Symbols!J3,"Low",,"B"),TEXT(RTD("cqg.rtd",,"ContractData",Symbols!J3,"Low",,"T"),Symbols!J2)) -> 1.441 | Y55: =IFERROR(RTD("cqg.rtd", ,"ContractData",Symbols!J3, "PerCentNetLastQuote",, "T")/100,"") -> 0.0209329729 | Z55: L: | AA55: =IF(Symbols!K4="B",RTD("cqg.rtd",,"ContractData",Symbols!K3,"Low",,"B"),TEXT(RTD("cqg.rtd",,"ContractData",Symbols!K3,"Low",,"T"),Symbols!K2)) -> 2.091 | AB55: =IFERROR(RTD("cqg.rtd", ,"ContractData",Symbols!K3, "PerCentNetLastQuote",, "T")/100,"") -> 0.02335557674 | AC55: L: | AD55: =IF(Symbols!L4="B",RTD("cqg.rtd",,"ContractData",Symbols!L3,"Low",,"B"),TEXT(RTD("cqg.rtd",,"ContractData",Symbols!L3,"Low",,"T"),Symbols!L2)) -> 130'20.0 | AE55: =IFERROR(RTD("cqg.rtd", ,"ContractData",Symbols!L3, "PerCentNetLastQuote",, "T")/100,"") -> -0.0001194600406 | AF55: L: | AG55: =IF(Symbols!M4="B",RTD("cqg.rtd",,"ContractData",Symbols!M3,"Low",,"B"),TEXT(RTD("cqg.rtd",,"ContractData",Symbols!M3,"Low",,"T"),Symbols!M2)) -> 1042.10 | AH55: =IFERROR(RTD("cqg.rtd", ,"ContractData",Symbols!M3, "PerCentNetLastQuote",, "T")/100,"") -> 0.003152464654
F56: Copyright © 2016 | J56: Chicago: | L56: =RTD("cqg.rtd", ,"SystemInfo", "Linetime") -> 42500.4177 | O56: Designed by Thom Hartle

Sheet Data (hidden)
A1: Lookback: | B1: =MainDisplay!P11 -> 10
A2: Time Frame: | B2: =MainDisplay!N11 -> ADC | C2: =Symbols!D3 -> DD | D2: =Symbols!E3 -> DSX | E2: =Symbols!F3 -> QFA | F2: =Symbols!G3 -> PIL | G2: =Symbols!H3 -> CLE | H2: =Symbols!I3 -> HOE | I2: =Symbols!J3 -> RBE | J2: =Symbols!K3 -> NGE | K2: =Symbols!L3 -> TYA | L2: =Symbols!M3 -> PLE
A3: =Symbols!B5 -> EP | C3: =RTD("cqg.rtd",,"StudyData", "Correlation("&$A$3&","&C$2&",Period:="&$B$1&",InputChoice1::=Close,InputChoice2::=Close)", "FG", "", "Close",$B$2, "0", "all","", "","True","T")/100 -> 0.8977677128 | D3: =RTD("cqg.rtd",,"StudyData", "Correlation("&$A$3&","&D$2&",Period:="&$B$1&",InputChoice1:=Close,InputChoice2:=Close)", "FG", "", "Close",$B$2, "0", "all","", "","True","T")/100 -> 0.8826445551 | E3: =RTD("cqg.rtd",,"StudyData", "Correlation("&$A$3&","&E$2&",Period:="&$B$1&",InputChoice1:=Close,InputChoice2:=Close)", "FG", "", "Close",$B$2, "0", "all","", "","True","T")/100 -> 0.8712144392 | F3: =RTD("cqg.rtd",,"StudyData", "Correlation("&$A$3&","&F$2&",Period:="&$B$1&",InputChoice1:=Close,InputChoice2:=Close)", "FG", "", "Close",$B$2, "0", "all","", "","True","T")/100 -> 0.9095195675 | G3: =RTD("cqg.rtd",,"StudyData", "Correlation("&$A$3&","&G$2&",Period:="&$B$1&",InputChoice1:=Close,InputChoice2:=Close)", "FG", "", "Close",$B$2, "0", "all","", "","True","T")/100 -> 0.5378945207 | H3: =RTD("cqg.rtd",,"StudyData", "Correlation("&$A$3&","&H$2&",Period:="&$B$1&",InputChoice1:=Close,InputChoice2:=Close)", "FG", "", "Close",$B$2, "0", "all","", "","True","T")/100 -> 0.5955856143 | I3: =RTD("cqg.rtd",,"StudyData", "Correlation("&$A$3&","&I$2&",Period:="&$B$1&",InputChoice1:=Close,InputChoice2:=Close)", "FG", "", "Close",$B$2, "0", "all","", "","True","T")/100 -> 0.6259431939 | J3: =RTD("cqg.rtd",,"StudyData", "Correlation("&$A$3&","&J$2&",Period:="&$B$1&",InputChoice1:=Close,InputChoice2:=Close)", "FG", "", "Close",$B$2, "0", "all","", "","True","T")/100 -> 0.1113133227 | K3: =RTD("cqg.rtd",,"StudyData", "Correlation("&$A$3&","&K$2&",Period:="&$B$1&",InputChoice1:=Close,InputChoice2:=Close)", "FG", "", "Close",$B$2, "0", "all","", "","True","T")/100 -> -0.6917121333 | L3: =RTD("cqg.rtd",,"StudyData", "Correlation("&$A$3&","&L$2&",Period:="&$B$1&",InputChoice1:=Close,InputChoice2:=Close)", "FG", "", "Close",$B$2, "0", "all","", "","True","T")/100 -> -0.4147062582
A4: =Symbols!B6 -> ENQ | C4: =RTD("cqg.rtd",,"StudyData", "Correlation("&$A$4&","&C$2&",Period:="&$B$1&",InputChoice1::=Close,InputChoice2::=Close)", "FG", "", "Close",$B$2, "0", "all","", "","True","T")/100 -> 0.8992172657 | D4: =RTD("cqg.rtd",,"StudyData", "Correlation("&$A$4&","&D$2&",Period:="&$B$1&",InputChoice1:=Close,InputChoice2:=Close)", "FG", "", "Close",$B$2, "0", "all","", "","True","T")/100 -> 0.8759537432 | E4: =RTD("cqg.rtd",,"StudyData", "Correlation("&$A$4&","&E$2&",Period:="&$B$1&",InputChoice1:=Close,InputChoice2:=Close)", "FG", "", "Close",$B$2, "0", "all","", "","True","T")/100 -> 0.8032505117 | F4: =RTD("cqg.rtd",,"StudyData", "Correlation("&$A$4&","&F$2&",Period:="&$B$1&",InputChoice1:=Close,InputChoice2:=Close)", "FG", "", "Close",$B$2, "0", "all","", "","True","T")/100 -> 0.8847637543 | G4: =RTD("cqg.rtd",,"StudyData", "Correlation("&$A$4&","&G$2&",Period:="&$B$1&",InputChoice1:=Close,InputChoice2:=Close)", "FG", "", "Close",$B$2, "0", "all","", "","True","T")/100 -> 0.4863060995 | H4: =RTD("cqg.rtd",,"StudyData", "Correlation("&$A$4&","&H$2&",Period:="&$B$1&",InputChoice1:=Close,InputChoice2:=Close)", "FG", "", "Close",$B$2, "0", "all","", "","True","T")/100 -> 0.5415709684 | I4: =RTD("cqg.rtd",,"StudyData", "Correlation("&$A$4&","&I$2&",Period:="&$B$1&",InputChoice1:=Close,InputChoice2:=Close)", "FG", "", "Close",$B$2, "0", "all","", "","True","T")/100 -> 0.5536318816 | J4: =RTD("cqg.rtd",,"StudyData", "Correlation("&$A$4&","&J$2&",Period:="&$B$1&",InputChoice1:=Close,InputChoice2:=Close)", "FG", "", "Close",$B$2, "0", "all","", "","True","T")/100 -> 0.1094641963 | K4: =RTD("cqg.rtd",,"StudyData", "Correlation("&$A$4&","&K$2&",Period:="&$B$1&",InputChoice1:=Close,InputChoice2:=Close)", "FG", "", "Close",$B$2, "0", "all","", "","True","T")/100 -> -0.6098902534 | L4: =RTD("cqg.rtd",,"StudyData", "Correlation("&$A$4&","&L$2&",Period:="&$B$1&",InputChoice1:=Close,InputChoice2:=Close)", "FG", "", "Close",$B$2, "0", "all","", "","True","T")/100 -> -0.5262934035
A5: =Symbols!B7 -> EMD | C5: =RTD("cqg.rtd",,"StudyData", "Correlation("&$A$5&","&C$2&",Period:="&$B$1&",InputChoice1:=Close,InputChoice2:=Close)", "FG", "", "Close",$B$2, "0", "all","", "","True","T")/100 -> 0.8971294553 | D5: =RTD("cqg.rtd",,"StudyData", "Correlation("&$A$5&","&D$2&",Period:="&$B$1&",InputChoice1:=Close,InputChoice2:=Close)", "FG", "", "Close",$B$2, "0", "all","", "","True","T")/100 -> 0.8992708693 | E5: =RTD("cqg.rtd",,"StudyData", "Correlation("&$A$5&","&E$2&",Period:="&$B$1&",InputChoice1:=Close,InputChoice2:=Close)", "FG", "", "Close",$B$2, "0", "all","", "","True","T")/100 -> 0.9104894698 | F5: =RTD("cqg.rtd",,"StudyData", "Correlation("&$A$5&","&F$2&",Period:="&$B$1&",InputChoice1:=Close,InputChoice2:=Close)", "FG", "", "Close",$B$2, "0", "all","", "","True","T")/100 -> 0.9508756741 | G5: =RTD("cqg.rtd",,"StudyData", "Correlation("&$A$5&","&G$2&",Period:="&$B$1&",InputChoice1:=Close,InputChoice2:=Close)", "FG", "", "Close",$B$2, "0", "all","", "","True","T")/100 -> 0.5946553205 | H5: =RTD("cqg.rtd",,"StudyData", "Correlation("&$A$5&","&H$2&",Period:="&$B$1&",InputChoice1:=Close,InputChoice2:=Close)", "FG", "", "Close",$B$2, "0", "all","", "","True","T")/100 -> 0.6534389203 | I5: =RTD("cqg.rtd",,"StudyData", "Correlation("&$A$5&","&I$2&",Period:="&$B$1&",InputChoice1:=Close,InputChoice2:=Close)", "FG", "", "Close",$B$2, "0", "all","", "","True","T")/100 -> 0.7080026083 | J5: =RTD("cqg.rtd",,"StudyData", "Correlation("&$A$5&","&J$2&",Period:="&$B$1&",InputChoice1:=Close,InputChoice2:=Close)", "FG", "", "Close",$B$2, "0", "all","", "","True","T")/100 -> 0.0967010416 | K5: =RTD("cqg.rtd",,"StudyData", "Correlation("&$A$5&","&K$2&",Period:="&$B$1&",InputChoice1:=Close,InputChoice2:=Close)", "FG", "", "Close",$B$2, "0", "all","", "","True","T")/100 -> -0.7900866994 | L5: =RTD("cqg.rtd",,"StudyData", "Correlation("&$A$5&","&L$2&",Period:="&$B$1&",InputChoice1:=Close,InputChoice2:=Close)", "FG", "", "Close",$B$2, "0", "all","", "","True","T")/100 -> -0.3786610874
A6: =Symbols!B8 -> GCE | C6: =RTD("cqg.rtd",,"StudyData", "Correlation("&$A$6&","&C$2&",Period:="&$B$1&",InputChoice1:=Close,InputChoice2:=Close)", "FG", "", "Close",$B$2, "0", "all","", "","True","T")/100 -> -0.4018570027 | D6: =RTD("cqg.rtd",,"StudyData", "Correlation("&$A$6&","&D$2&",Period:="&$B$1&",InputChoice1:=Close,InputChoice2:=Close)", "FG", "", "Close",$B$2, "0", "all","", "","True","T")/100 -> -0.3767454309 | E6: =RTD("cqg.rtd",,"StudyData", "Correlation("&$A$6&","&E$2&",Period:="&$B$1&",InputChoice1:=Close,InputChoice2:=Close)", "FG", "", "Close",$B$2, "0", "all","", "","True","T")/100 -> -0.4161576684 | F6: =RTD("cqg.rtd",,"StudyData", "Correlation("&$A$6&","&F$2&",Period:="&$B$1&",InputChoice1:=Close,InputChoice2:=Close)", "FG", "", "Close",$B$2, "0", "all","", "","True","T")/100 -> -0.3248625289 | G6: =RTD("cqg.rtd",,"StudyData", "Correlation("&$A$6&","&G$2&",Period:="&$B$1&",InputChoice1:=Close,InputChoice2:=Close)", "FG", "", "Close",$B$2, "0", "all","", "","True","T")/100 -> -0.0485443604 | H6: =RTD("cqg.rtd",,"StudyData", "Correlation("&$A$6&","&H$2&",Period:="&$B$1&",InputChoice1:=Close,InputChoice2:=Close)", "FG", "", "Close",$B$2, "0", "all","", "","True","T")/100 -> -0.0428846363 | I6: =RTD("cqg.rtd",,"StudyData", "Correlation("&$A$6&","&I$2&",Period:="&$B$1&",InputChoice1:=Close,InputChoice2:=Close)", "FG", "", "Close",$B$2, "0", "all","", "","True","T")/100 -> 0.0229468162 | J6: =RTD("cqg.rtd",,"StudyData", "Correlation("&$A$6&","&J$2&",Period:="&$B$1&",InputChoice1:=Close,InputChoice2:=Close)", "FG", "", "Close",$B$2, "0", "all","", "","True","T")/100 -> -0.3340224755 | K6: =RTD("cqg.rtd",,"StudyData", "Correlation("&$A$6&","&K$2&",Period:="&$B$1&",InputChoice1:=Close,InputChoice2:=Close)", "FG", "", "Close",$B$2, "0", "all","", "","True","T")/100 -> -0.1312304173 | L6: =RTD("cqg.rtd",,"StudyData", "Correlation("&$A$6&","&L$2&",Period:="&$B$1&",InputChoice1:=Close,InputChoice2:=Close)", "FG", "", "Close",$B$2, "0", "all","", "","True","T")/100 -> 0.968905273
A7: =Symbols!B9 -> DXE | C7: =RTD("cqg.rtd",,"StudyData", "Correlation("&$A$7&","&C$2&",Period:="&$B$1&",InputChoice1:=Close,InputChoice2:=Close)", "FG", "", "Close",$B$2, "0", "all","", "","True","T")/100 -> 0.1840101068 | D7: =RTD("cqg.rtd",,"StudyData", "Correlation("&$A$7&","&D$2&",Period:="&$B$1&",InputChoice1:=Close,InputChoice2:=Close)", "FG", "", "Close",$B$2, "0", "all","", "","True","T")/100 -> 0.1517196898 | E7: =RTD("cqg.rtd",,"StudyData", "Correlation("&$A$7&","&E$2&",Period:="&$B$1&",InputChoice1:=Close,InputChoice2:=Close)", "FG", "", "Close",$B$2, "0", "all","", "","True","T")/100 -> 0.2812576059 | F7: =RTD("cqg.rtd",,"StudyData", "Correlation("&$A$7&","&F$2&",Period:="&$B$1&",InputChoice1:=Close,InputChoice2:=Close)", "FG", "", "Close",$B$2, "0", "all","", "","True","T")/100 -> 0.1022819657 | G7: =RTD("cqg.rtd",,"StudyData", "Correlation("&$A$7&","&G$2&",Period:="&$B$1&",InputChoice1:=Close,InputChoice2:=Close)", "FG", "", "Close",$B$2, "0", "all","", "","True","T")/100 -> 0.0073821068 | H7: =RTD("cqg.rtd",,"StudyData", "Correlation("&$A$7&","&H$2&",Period:="&$B$1&",InputChoice1:=Close,InputChoice2:=Close)", "FG", "", "Close",$B$2, "0", "all","", "","True","T")/100 -> -0.1305158294 | I7: =RTD("cqg.rtd",,"StudyData", "Correlation("&$A$7&","&I$2&",Period:="&$B$1&",InputChoice1:=Close,InputChoice2:=Close)", "FG", "", "Close",$B$2, "0", "all","", "","True","T")/100 -> -0.2260638227 | J7: =RTD("cqg.rtd",,"StudyData", "Correlation("&$A$7&","&J$2&",Period:="&$B$1&",InputChoice1:=Close,InputChoice2:=Close)", "FG", "", "Close",$B$2, "0", "all","", "","True","T")/100 -> 0.2905400473 | K7: =RTD("cqg.rtd",,"StudyData", "Correlation("&$A$7&","&K$2&",Period:="&$B$1&",InputChoice1:=Close,InputChoice2:=Close)", "FG", "", "Close",$B$2, "0", "all","", "","True","T")/100 -> 0.3943112315 | L7: =RTD("cqg.rtd",,"StudyData", "Correlation("&$A$7&","&L$2&",Period:="&$B$1&",InputChoice1:=Close,InputChoice2:=Close)", "FG", "", "Close",$B$2, "0", "all","", "","True","T")/100 -> -0.7161494782
A8: =Symbols!B10 -> EU6 | C8: =RTD("cqg.rtd",,"StudyData", "Correlation("&$A$8&","&C$2&",Period:="&$B$1&",InputChoice1:=Close,InputChoice2:=Close)", "FG", "", "Close",$B$2, "0", "all","", "","True","T")/100 -> -0.4499305864 | D8: =RTD("cqg.rtd",,"StudyData", "Correlation("&$A$8&","&D$2&",Period:="&$B$1&",InputChoice1:=Close,InputChoice2:=Close)", "FG", "", "Close",$B$2, "0", "all","", "","True","T")/100 -> -0.4358810483 | E8: =RTD("cqg.rtd",,"StudyData", "Correlation("&$A$8&","&E$2&",Period:="&$B$1&",InputChoice1:=Close,InputChoice2:=Close)", "FG", "", "Close",$B$2, "0", "all","", "","True","T")/100 -> -0.5447319568 | F8: =RTD("cqg.rtd",,"StudyData", "Correlation("&$A$8&","&F$2&",Period:="&$B$1&",InputChoice1:=Close,InputChoice2:=Close)", "FG", "", "Close",$B$2, "0", "all","", "","True","T")/100 -> -0.3594609483 | G8: =RTD("cqg.rtd",,"StudyData", "Correlation("&$A$8&","&G$2&",Period:="&$B$1&",InputChoice1:=Close,InputChoice2:=Close)", "FG", "", "Close",$B$2, "0", "all","", "","True","T")/100 -> -0.3619505556 | H8: =RTD("cqg.rtd",,"StudyData", "Correlation("&$A$8&","&H$2&",Period:="&$B$1&",InputChoice1:=Close,InputChoice2:=Close)", "FG", "", "Close",$B$2, "0", "all","", "","True","T")/100 -> -0.2194954747 | I8: =RTD("cqg.rtd",,"StudyData", "Correlation("&$A$8&","&I$2&",Period:="&$B$1&",InputChoice1:=Close,InputChoice2:=Close)", "FG", "", "Close",$B$2, "0", "all","", "","True","T")/100 -> -0.1264158423 | J8: =RTD("cqg.rtd",,"StudyData", "Correlation("&$A$8&","&J$2&",Period:="&$B$1&",InputChoice1:=Close,InputChoice2:=Close)", "FG", "", "Close",$B$2, "0", "all","", "","True","T")/100 -> -0.2254723673 | K8: =RTD("cqg.rtd",,"StudyData", "Correlation("&$A$8&","&K$2&",Period:="&$B$1&",InputChoice1:=Close,InputChoice2:=Close)", "FG", "", "Close",$B$2, "0", "all","", "","True","T")/100 -> -0.1287853043 | L8: =RTD("cqg.rtd",,"StudyData", "Correlation("&$A$8&","&L$2&",Period:="&$B$1&",InputChoice1:=Close,InputChoice2:=Close)", "FG", "", "Close",$B$2, "0", "all","", "","True","T")/100 -> 0.6568230269
A9: =Symbols!B11 -> JY6 | C9: =RTD("cqg.rtd",,"StudyData", "Correlation("&$A$9&","&C$2&",Period:="&$B$1&",InputChoice1:=Close,InputChoice2:=Close)", "FG", "", "Close",$B$2, "0", "all","", "","True","T")/100 -> -0.5530483032 | D9: =RTD("cqg.rtd",,"StudyData", "Correlation("&$A$9&","&D$2&",Period:="&$B$1&",InputChoice1:=Close,InputChoice2:=Close)", "FG", "", "Close",$B$2, "0", "all","", "","True","T")/100 -> -0.529019635 | E9: =RTD("cqg.rtd",,"StudyData", "Correlation("&$A$9&","&E$2&",Period:="&$B$1&",InputChoice1:=Close,InputChoice2:=Close)", "FG", "", "Close",$B$2, "0", "all","", "","True","T")/100 -> -0.5912170568 | F9: =RTD("cqg.rtd",,"StudyData", "Correlation("&$A$9&","&F$2&",Period:="&$B$1&",InputChoice1:=Close,InputChoice2:=Close)", "FG", "", "Close",$B$2, "0", "all","", "","True","T")/100 -> -0.5325510082 | G9: =RTD("cqg.rtd",,"StudyData", "Correlation("&$A$9&","&G$2&",Period:="&$B$1&",InputChoice1:=Close,InputChoice2:=Close)", "FG", "", "Close",$B$2, "0", "all","", "","True","T")/100 -> -0.1778887953 | H9: =RTD("cqg.rtd",,"StudyData", "Correlation("&$A$9&","&H$2&",Period:="&$B$1&",InputChoice1:=Close,InputChoice2:=Close)", "FG", "", "Close",$B$2, "0", "all","", "","True","T")/100 -> -0.1449385516 | I9: =RTD("cqg.rtd",,"StudyData", "Correlation("&$A$9&","&I$2&",Period:="&$B$1&",InputChoice1:=Close,InputChoice2:=Close)", "FG", "", "Close",$B$2, "0", "all","", "","True","T")/100 -> -0.1140373494 | J9: =RTD("cqg.rtd",,"StudyData", "Correlation("&$A$9&","&J$2&",Period:="&$B$1&",InputChoice1:=Close,InputChoice2:=Close)", "FG", "", "Close",$B$2, "0", "all","", "","True","T")/100 -> -0.3918551614 | K9: =RTD("cqg.rtd",,"StudyData", "Correlation("&$A$9&","&K$2&",Period:="&$B$1&",InputChoice1:=Close,InputChoice2:=Close)", "FG", "", "Close",$B$2, "0", "all","", "","True","T")/100 -> 0.0602099983 | L9: =RTD("cqg.rtd",,"StudyData", "Correlation("&$A$9&","&L$2&",Period:="&$B$1&",InputChoice1:=Close,InputChoice2:=Close)", "FG", "", "Close",$B$2, "0", "all","", "","True","T")/100 -> 0.8752930421
A10: =Symbols!B12 -> DA6 | C10: =RTD("cqg.rtd",,"StudyData", "Correlation("&$A$10&","&C$2&",Period:="&$B$1&",InputChoice1:=Close,InputChoice2:=Close)", "FG", "", "Close",$B$2, "0", "all","", "","True","T")/100 -> 0.6582166139 | D10: =RTD("cqg.rtd",,"StudyData", "Correlation("&$A$10&","&D$2&",Period:="&$B$1&",InputChoice1:=Close,InputChoice2:=Close)", "FG", "", "Close",$B$2, "0", "all","", "","True","T")/100 -> 0.717189867 | E10: =RTD("cqg.rtd",,"StudyData", "Correlation("&$A$10&","&E$2&",Period:="&$B$1&",InputChoice1:=Close,InputChoice2:=Close)", "FG", "", "Close",$B$2, "0", "all","", "","True","T")/100 -> 0.8210383412 | F10: =RTD("cqg.rtd",,"StudyData", "Correlation("&$A$10&","&F$2&",Period:="&$B$1&",InputChoice1:=Close,InputChoice2:=Close)", "FG", "", "Close",$B$2, "0", "all","", "","True","T")/100 -> 0.7420949133 | G10: =RTD("cqg.rtd",,"StudyData", "Correlation("&$A$10&","&G$2&",Period:="&$B$1&",InputChoice1:=Close,InputChoice2:=Close)", "FG", "", "Close",$B$2, "0", "all","", "","True","T")/100 -> 0.7226009004 | H10: =RTD("cqg.rtd",,"StudyData", "Correlation("&$A$10&","&H$2&",Period:="&$B$1&",InputChoice1:=Close,InputChoice2:=Close)", "FG", "", "Close",$B$2, "0", "all","", "","True","T")/100 -> 0.8446357532 | I10: =RTD("cqg.rtd",,"StudyData", "Correlation("&$A$10&","&I$2&",Period:="&$B$1&",InputChoice1:=Close,InputChoice2:=Close)", "FG", "", "Close",$B$2, "0", "all","", "","True","T")/100 -> 0.9103097071 | J10: =RTD("cqg.rtd",,"StudyData", "Correlation("&$A$10&","&J$2&",Period:="&$B$1&",InputChoice1:=Close,InputChoice2:=Close)", "FG", "", "Close",$B$2, "0", "all","", "","True","T")/100 -> -0.1290713842 | K10: =RTD("cqg.rtd",,"StudyData", "Correlation("&$A$10&","&K$2&",Period:="&$B$1&",InputChoice1:=Close,InputChoice2:=Close)", "FG", "", "Close",$B$2, "0", "all","", "","True","T")/100 -> -0.9148036078 | L10: =RTD("cqg.rtd",,"StudyData", "Correlation("&$A$10&","&L$2&",Period:="&$B$1&",InputChoice1:=Close,InputChoice2:=Close)", "FG", "", "Close",$B$2, "0", "all","", "","True","T")/100 -> 0.109395919
A11: =Symbols!B13 -> BP6 | C11: =RTD("cqg.rtd",,"StudyData", "Correlation("&$A$11&","&C$2&",Period:="&$B$1&",InputChoice1:=Close,InputChoice2:=Close)", "FG", "", "Close",$B$2, "0", "all","", "","True","T")/100 -> 0.587735663 | D11: =RTD("cqg.rtd",,"StudyData", "Correlation("&$A$11&","&D$2&",Period:="&$B$1&",InputChoice1:=Close,InputChoice2:=Close)", "FG", "", "Close",$B$2, "0", "all","", "","True","T")/100 -> 0.6237283992 | E11: =RTD("cqg.rtd",,"StudyData", "Correlation("&$A$11&","&E$2&",Period:="&$B$1&",InputChoice1:=Close,InputChoice2:=Close)", "FG", "", "Close",$B$2, "0", "all","", "","True","T")/100 -> 0.7645518609 | F11: =RTD("cqg.rtd",,"StudyData", "Correlation("&$A$11&","&F$2&",Period:="&$B$1&",InputChoice1:=Close,InputChoice2:=Close)", "FG", "", "Close",$B$2, "0", "all","", "","True","T")/100 -> 0.6410140503 | G11: =RTD("cqg.rtd",,"StudyData", "Correlation("&$A$11&","&G$2&",Period:="&$B$1&",InputChoice1:=Close,InputChoice2:=Close)", "FG", "", "Close",$B$2, "0", "all","", "","True","T")/100 -> 0.6205568768 | H11: =RTD("cqg.rtd",,"StudyData", "Correlation("&$A$11&","&H$2&",Period:="&$B$1&",InputChoice1:=Close,InputChoice2:=Close)", "FG", "", "Close",$B$2, "0", "all","", "","True","T")/100 -> 0.7406591657 | I11: =RTD("cqg.rtd",,"StudyData", "Correlation("&$A$11&","&I$2&",Period:="&$B$1&",InputChoice1:=Close,InputChoice2:=Close)", "FG", "", "Close",$B$2, "0", "all","", "","True","T")/100 -> 0.82165305 | J11: =RTD("cqg.rtd",,"StudyData", "Correlation("&$A$11&","&J$2&",Period:="&$B$1&",InputChoice1:=Close,InputChoice2:=Close)", "FG", "", "Close",$B$2, "0", "all","", "","True","T")/100 -> -0.1568998114 | K11: =RTD("cqg.rtd",,"StudyData", "Correlation("&$A$11&","&K$2&",Period:="&$B$1&",InputChoice1:=Close,InputChoice2:=Close)", "FG", "", "Close",$B$2, "0", "all","", "","True","T")/100 -> -0.8647894966 | L11: =RTD("cqg.rtd",,"StudyData", "Correlation("&$A$11&","&L$2&",Period:="&$B$1&",InputChoice1:=Close,InputChoice2:=Close)", "FG", "", "Close",$B$2, "0", "all","", "","True","T")/100 -> 0.2413354702
A12: =Symbols!B14 -> MX6 | C12: =RTD("cqg.rtd",,"StudyData", "Correlation("&$A$12&","&C$2&",Period:="&$B$1&",InputChoice1:=Close,InputChoice2:=Close)", "FG", "", "Close",$B$2, "0", "all","", "","True","T")/100 -> 0.6940980041 | D12: =RTD("cqg.rtd",,"StudyData", "Correlation("&$A$12&","&D$2&",Period:="&$B$1&",InputChoice1:=Close,InputChoice2:=Close)", "FG", "", "Close",$B$2, "0", "all","", "","True","T")/100 -> 0.7524019127 | E12: =RTD("cqg.rtd",,"StudyData", "Correlation("&$A$12&","&E$2&",Period:="&$B$1&",InputChoice1:=Close,InputChoice2:=Close)", "FG", "", "Close",$B$2, "0", "all","", "","True","T")/100 -> 0.8692678004 | F12: =RTD("cqg.rtd",,"StudyData", "Correlation("&$A$12&","&F$2&",Period:="&$B$1&",InputChoice1:=Close,InputChoice2:=Close)", "FG", "", "Close",$B$2, "0", "all","", "","True","T")/100 -> 0.7836633422 | G12: =RTD("cqg.rtd",,"StudyData", "Correlation("&$A$12&","&G$2&",Period:="&$B$1&",InputChoice1:=Close,InputChoice2:=Close)", "FG", "", "Close",$B$2, "0", "all","", "","True","T")/100 -> 0.781272379 | H12: =RTD("cqg.rtd",,"StudyData", "Correlation("&$A$12&","&H$2&",Period:="&$B$1&",InputChoice1:=Close,InputChoice2:=Close)", "FG", "", "Close",$B$2, "0", "all","", "","True","T")/100 -> 0.8921210611 | I12: =RTD("cqg.rtd",,"StudyData", "Correlation("&$A$12&","&I$2&",Period:="&$B$1&",InputChoice1:=Close,InputChoice2:=Close)", "FG", "", "Close",$B$2, "0", "all","", "","True","T")/100 -> 0.9556584759 | J12: =RTD("cqg.rtd",,"StudyData", "Correlation("&$A$12&","&J$2&",Period:="&$B$1&",InputChoice1:=Close,InputChoice2:=Close)", "FG", "", "Close",$B$2, "0", "all","", "","True","T")/100 -> -0.01867544 | K12: =RTD("cqg.rtd",,"StudyData", "Correlation("&$A$12&","&K$2&",Period:="&$B$1&",InputChoice1:=Close,InputChoice2:=Close)", "FG", "", "Close",$B$2, "0", "all","", "","True","T")/100 -> -0.9502029321 | L12: =RTD("cqg.rtd",,"StudyData", "Correlation("&$A$12&","&L$2&",Period:="&$B$1&",InputChoice1:=Close,InputChoice2:=Close)", "FG", "", "Close",$B$2, "0", "all","", "","True","T")/100 -> 0.1619466046

Sheet 1 (hidden)
A1: Lookback | B1: =Data!B1 -> 10
A2: TimeFrame | B2: =Data!B2 -> ADC | C2: =Data!C2 -> DD | I2: =Data!D2 -> DSX | O2: =Data!E2 -> QFA | U2: =Data!F2 -> PIL | AA2: =Data!G2 -> CLE | AG2: =Data!H2 -> HOE | AM2: =Data!I2 -> RBE | AS2: =Data!J2 -> NGE | AY2: =Data!K2 -> TYA | BE2: =Data!L2 -> PLE
A3: Symbol | B3: =MainDisplay!E1 -> EP
A4: 0 | C4: =RTD("cqg.rtd",,"StudyData", "Correlation("&$B$3&","&C$2&",Period:="&$B$1&",InputChoice1:=Close,InputChoice2:=Close)", "FG", "", "Close",$B$2,A4, "all","", "","True","T")/100 -> 0.8968184207 | E4: -1 | F4: =FREQUENCY(C4:C104,E4:E104) -> 0 | G4: =IF(AND($C$4>=E4,$C$4<E5),IF(F4=0,1,F4),NA()) ->  | I4: =RTD("cqg.rtd",,"StudyData", "Correlation("&$B$3&","&I$2&",Period:="&$B$1&",InputChoice1:=Close,InputChoice2::=Close)", "FG", "", "Close",$B$2,A4, "all","", "","True","T")/100 -> 0.8826445551 | K4: -1 | L4: =FREQUENCY(I4:I104,K4:K104) -> 0 | M4: =IF(AND($I$4>=K4,$I$4<K5),IF(L4=0,1,L4),NA()) ->  | O4: =RTD("cqg.rtd",,"StudyData", "Correlation("&$B$3&","&O$2&",Period:="&$B$1&",InputChoice1:=Close,InputChoice2::=Close)", "FG", "", "Close",$B$2,A4, "all","", "","True","T")/100 -> 0.8712144392 | Q4: -1 | R4: =FREQUENCY(O4:O104,Q4:Q104) -> 0 | S4: =IF(AND($O$4>=Q4,$O$4<Q5),IF(R4=0,1,R4),NA()) ->  | U4: =RTD("cqg.rtd",,"StudyData", "Correlation("&$B$3&","&U$2&",Period:="&$B$1&",InputChoice1:=Close,InputChoice2::=Close)", "FG", "", "Close",$B$2,A4, "all","", "","True","T")/100 -> 0.9095195675 | W4: -1 | X4: =FREQUENCY(U4:U104,W4:W104) -> 0 | Y4: =IF(AND($U$4>=W4,$U$4<W5),IF(X4=0,1,X4),NA()) ->  | AA4: =RTD("cqg.rtd",,"StudyData", "Correlation("&$B$3&","&AA$2&",Period:="&$B$1&",InputChoice1:=Close,InputChoice2::=Close)", "FG", "", "Close",$B$2,A4, "all","", "","True","T")/100 -> 0.5378945207 | AC4: -1 | AD4: =FREQUENCY(AA4:AA104,AC4:AC104) -> 0 | AE4: =IF(AND($AA$4>=AC4,$AA$4<AC5),IF(AD4=0,1,AD4),NA()) ->  | AG4: =RTD("cqg.rtd",,"StudyData", "Correlation("&$B$3&","&AG$2&",Period:="&$B$1&",InputChoice1:=Close,InputChoice2::=Close)", "FG", "", "Close",$B$2,A4, "all","", "","True","T")/100 -> 0.5955856143 | AI4: -1 | AJ4: =FREQUENCY(AG4:AG104,AI4:AI104) -> 0 | AK4: =IF(AND($AG$4>=AI4,$AG$4<AI5),IF(AJ4=0,1,AJ4),NA()) ->  | AM4: =RTD("cqg.rtd",,"StudyData", "Correlation("&$B$3&","&AM$2&",Period:="&$B$1&",InputChoice1:=Close,InputChoice2::=Close)", "FG", "", "Close",$B$2,A4, "all","", "","True","T")/100 -> 0.6259431939 | AO4: -1 | AP4: =FREQUENCY(AM4:AM104,AO4:AO104) -> 0 | AQ4: =IF(AND($AM$4>=AO4,$AM$4<AO5),IF(AP4=0,1,AP4),NA()) ->  | AS4: =RTD("cqg.rtd",,"StudyData", "Correlation("&$B$3&","&AS$2&",Period:="&$B$1&",InputChoice1:=Close,InputChoice2::=Close)", "FG", "", "Close",$B$2,A4, "all","", "","True","T")/100 -> 0.1113133227 | AU4: -1 | AV4: =FREQUENCY(AS4:AS104,AU4:AU104) -> 0 | AW4: =IF(AND($AS$4>=AU4,$AS$4<AU5),IF(AV4=0,1,AV4),NA()) ->  | AY4: =RTD("cqg.rtd",,"StudyData", "Correlation("&$B$3&","&AY$2&",Period:="&$B$1&",InputChoice1:=Close,InputChoice2::=Close)", "FG", "", "Close",$B$2,A4, "all","", "","True","T")/100 -> -0.6945048866 | BA4: -1 | BB4: =FREQUENCY(AY4:AY104,BA4:BA104) -> 0 | BC4: =IF(AND($AY$4>=BA4,$AY$4<BA5),IF(BB4=0,1,BB4),NA()) ->  | BE4: =RTD("cqg.rtd",,"StudyData", "Correlation("&$B$3&","&BE$2&",Period:="&$B$1&",InputChoice1:=Close,InputChoice2::=Close)", "FG", "", "Close",$B$2,A4, "all","", "","True","T")/100 -> -0.4147062582 | BG4: -1 | BH4: =FREQUENCY(BE4:BE104,BG4:BG104) -> 0 | BI4: =IF(AND($BE$4>=BG4,$BE$4<BG5),IF(BH4=0,1,BH4),NA()) -> 
A5: =A4-1 -> -1 | C5: =RTD("cqg.rtd",,"StudyData", "Correlation("&$B$3&","&C$2&",Period:="&$B$1&",InputChoice1::=Close,InputChoice2::=Close)", "FG", "", "Close",$B$2,A5, "all","", "","True","T")/100 -> 0.9307171208 | E5: =E4+0.02 -> -0.98 | F5: 0 | G5: =IF(AND($C$4>=E5,$C$4<E6),IF(F5=0,1,F5),NA()) ->  | I5: =RTD("cqg.rtd",,"StudyData", "Correlation("&$B$3&","&I$2&",Period:="&$B$1&",InputChoice1:=Close,InputChoice2::=Close)", "FG", "", "Close",$B$2,A5, "all","", "","True","T")/100 -> 0.9325124693 | K5: =K4+0.02 -> -0.98 | L5: 0 | M5: =IF(AND($I$4>=K5,$I$4<K6),IF(L5=0,1,L5),NA()) ->  | O5: =RTD("cqg.rtd",,"StudyData", "Correlation("&$B$3&","&O$2&",Period:="&$B$1&",InputChoice1:=Close,InputChoice2::=Close)", "FG", "", "Close",$B$2,A5, "all","", "","True","T")/100 -> 0.9290951084 | Q5: =Q4+0.02 -> -0.98 | R5: 0 | S5: =IF(AND($O$4>=Q5,$O$4<Q6),IF(R5=0,1,R5),NA()) ->  | U5: =RTD("cqg.rtd",,"StudyData", "Correlation("&$B$3&","&U$2&",Period:="&$B$1&",InputChoice1:=Close,InputChoice2::=Close)", "FG", "", "Close",$B$2,A5, "all","", "","True","T")/100 -> 0.9711874932 | W5: =W4+0.02 -> -0.98 | X5: 0 | Y5: =IF(AND($U$4>=W5,$U$4<W6),IF(X5=0,1,X5),NA()) ->  | AA5: =RTD("cqg.rtd",,"StudyData", "Correlation("&$B$3&","&AA$2&",Period:="&$B$1&",InputChoice1:=Close,InputChoice2::=Close)", "FG", "", "Close",$B$2,A5, "all","", "","True","T")/100 -> 0.4243484678 | AC5: =AC4+0.02 -> -0.98 | AD5: 0 | AE5: =IF(AND($AA$4>=AC5,$AA$4<AC6),IF(AD5=0,1,AD5),NA()) ->  | AG5: =RTD("cqg.rtd",,"StudyData", "Correlation("&$B$3&","&AG$2&",Period:="&$B$1&",InputChoice1:=Close,InputChoice2::=Close)", "FG", "", "Close",$B$2,A5, "all","", "","True","T")/100 -> 0.5570264019 | AI5: =AI4+0.02 -> -0.98 | AJ5: 0 | AK5: =IF(AND($AG$4>=AI5,$AG$4<AI6),IF(AJ5=0,1,AJ5),NA()) ->  | AM5: =RTD("cqg.rtd",,"StudyData", "Correlation("&$B$3&","&AM$2&",Period:="&$B$1&",InputChoice1:=Close,InputChoice2::=Close)", "FG", "", "Close",$B$2,A5, "all","", "","True","T")/100 -> 0.751860836 | AO5: =AO4+0.02 -> -0.98 | AP5: 0 | AQ5: =IF(AND($AM$4>=AO5,$AM$4<AO6),IF(AP5=0,1,AP5),NA()) ->  | AS5: =RTD("cqg.rtd",,"StudyData", "Correlation("&$B$3&","&AS$2&",Period:="&$B$1&",InputChoice1:=Close,InputChoice2::=Close)", "FG", "", "Close",$B$2,A5, "all","", "","True","T")/100 -> 0.2071034788 | AU5: =AU4+0.02 -> -0.98 | AV5: 0 | AW5: =IF(AND($AS$4>=AU5,$AS$4<AU6),IF(AV5=0,1,AV5),NA()) ->  | AY5: =RTD("cqg.rtd",,"StudyData", "Correlation("&$B$3&","&AY$2&",Period:="&$B$1&",InputChoice1:=Close,InputChoice2::=Close)", "FG", "", "Close",$B$2,A5, "all","", "","True","T")/100 -> -0.8603944107 | BA5: =BA4+0.02 -> -0.98 | BB5: 0 | BC5: =IF(AND($AY$4>=BA5,$AY$4<BA6),IF(BB5=0,1,BB5),NA()) ->  | BE5: =RTD("cqg.rtd",,"StudyData", "Correlation("&$B$3&","&BE$2&",Period:="&$B$1&",InputChoice1:=Close,InputChoice2::=Close)", "FG", "", "Close",$B$2,A5, "all","", "","True","T")/100 -> -0.5318345761 | BG5: =BG4+0.02 -> -0.98 | BH5: 0 | BI5: =IF(AND($BE$4>=BG5,$BE$4<BG6),IF(BH5=0,1,BH5),NA()) -> 
A6: =A5-1 -> -2 | C6: =RTD("cqg.rtd",,"StudyData", "Correlation("&$B$3&","&C$2&",Period:="&$B$1&",InputChoice1::=Close,InputChoice2::=Close)", "FG", "", "Close",$B$2,A6, "all","", "","True","T")/100 -> 0.9396125695 | E6: =E5+0.02 -> -0.96 | F6: 0 | I6: =RTD("cqg.rtd",,"StudyData", "Correlation("&$B$3&","&I$2&",Period:="&$B$1&",InputChoice1:=Close,InputChoice2::=Close)", "FG", "", "Close",$B$2,A6, "all","", "","True","T")/100 -> 0.9370905861 | K6: =K5+0.02 -> -0.96 | L6: 0 | O6: =RTD("cqg.rtd",,"StudyData", "Correlation("&$B$3&","&O$2&",Period:="&$B$1&",InputChoice1:=Close,InputChoice2::=Close)", "FG", "", "Close",$B$2,A6, "all","", "","True","T")/100 -> 0.945889258 | Q6: =Q5+0.02 -> -0.96 | R6: 0 | U6: =RTD("cqg.rtd",,"StudyData", "Correlation("&$B$3&","&U$2&",Period:="&$B$1&",InputChoice1:=Close,InputChoice2::=Close)", "FG", "", "Close",$B$2,A6, "all","", "","True","T")/100 -> 0.9749039229 | W6: =W5+0.02 -> -0.96 | X6: 0 | AA6: =RTD("cqg.rtd",,"StudyData", "Correlation("&$B$3&","&AA$2&",Period:="&$B$1&",InputChoice1:=Close,InputChoice2::=Close)", "FG", "", "Close",$B$2,A6, "all","", "","True","T")/100 -> 0.0602588365 | AC6: =AC5+0.02 -> -0.96 | AD6: 0 | AG6: =RTD("cqg.rtd",,"StudyData", "Correlation("&$B$3&","&AG$2&",Period:="&$B$1&",InputChoice1:=Close,InputChoice2::=Close)", "FG", "", "Close",$B$2,A6, "all","", "","True","T")/100 -> 0.2494830251 | AI6: =AI5+0.02 -> -0.96 | AJ6: 0 | AM6: =RTD("cqg.rtd",,"StudyData", "Correlation("&$B$3&","&AM$2&",Period:="&$B$1&",InputChoice1:=Close,InputChoice2::=Close)", "FG", "", "Close",$B$2,A6, "all","", "","True","T")/100 -> 0.6907018676 | AO6: =AO5+0.02 -> -0.96 | AP6: 0 | AS6: =RTD("cqg.rtd",,"StudyData", "Correlation("&$B$3&","&AS$2&",Period:="&$B$1&",InputChoice1:=Close,InputChoice2::=Close)", "FG", "", "Close",$B$2,A6, "all","", "","True","T")/100 -> 0.3209444894 | AU6: =AU5+0.02 -> -0.96 | AV6: 0 | AY6: =RTD("cqg.rtd",,"StudyData", "Correlation("&$B$3&","&AY$2&",Period:="&$B$1&",InputChoice1:=Close,InputChoice2::=Close)", "FG", "", "Close",$B$2,A6, "all","", "","True","T")/100 -> -0.8895024824 | BA6: =BA5+0.02 -> -0.96 | BB6: 6 | BE6: =RTD("cqg.rtd",,"StudyData", "Correlation("&$B$3&","&BE$2&",Period:="&$B$1&",InputChoice1:=Close,InputChoice2::=Close)", "FG", "", "Close",$B$2,A6, "all","", "","True","T")/100 -> -0.6545166321 | BG6: =BG5+0.02 -> -0.96 | BH6: 0
A7: -3 | C7: =RTD("cqg.rtd",,"StudyData", "Correlation("&$B$3&","&C$2&",Period:="&$B$1&",InputChoice1::=Close,InputChoice2::=Close)", "FG", "", "Close",$B$2,A7, "all","", "","True","T")/100 -> 0.9424333442 | E7: -0.94 | F7: 0 | I7: =RTD("cqg.rtd",,"StudyData", "Correlation("&$B$3&","&I$2&",Period:="&$B$1&",InputChoice1:=Close,InputChoice2::=Close)", "FG", "", "Close",$B$2,A7, "all","", "","True","T")/100 -> 0.9426320599 | K7: -0.94 | L7: 0 | O7: =RTD("cqg.rtd",,"StudyData", "Correlation("&$B$3&","&O$2&",Period:="&$B$1&",InputChoice1:=Close,InputChoice2::=Close)", "FG", "", "Close",$B$2,A7, "all","", "","True","T")/100 -> 0.9223832776 | Q7: -0.94 | R7: 0 | U7: =RTD("cqg.rtd",,"StudyData", "Correlation("&$B$3&","&U$2&",Period:="&$B$1&",InputChoice1:=Close,InputChoice2::=Close)", "FG", "", "Close",$B$2,A7, "all","", "","True","T")/100 -> 0.977619211 | W7: -0.94 | X7: 0 | AA7: =RTD("cqg.rtd",,"StudyData", "Correlation("&$B$3&","&AA$2&",Period:="&$B$1&",InputChoice1:=Close,InputChoice2::=Close)", "FG", "", "Close",$B$2,A7, "all","", "","True","T")/100 -> 0.0002917085 | AC7: -0.94 | AD7: 0 | AG7: =RTD("cqg.rtd",,"StudyData", "Correlation("&$B$3&","&AG$2&",Period:="&$B$1&",InputChoice1:=Close,InputChoice2::=Close)", "FG", "", "Close",$B$2,A7, "all","", "","True","T")/100 -> 0.1052975763 | AI7: -0.94 | AJ7: 0 | AM7: =RTD("cqg.rtd",,"StudyData", "Correlation("&$B$3&","&AM$2&",Period:="&$B$1&",InputChoice1:=Close,InputChoice2::=Close)", "FG", "", "Close",$B$2,A7, "all","", "","True","T")/100 -> 0.6189451631 | AO7: -0.94 | AP7: 0 | AS7: =RTD("cqg.rtd",,"StudyData", "Correlation("&$B$3&","&AS$2&",Period:="&$B$1&",InputChoice1:=Close,InputChoice2::=Close)", "FG", "", "Close",$B$2,A7, "all","", "","True","T")/100 -> 0.4201752399 | AU7: -0.94 | AV7: 0 | AY7: =RTD("cqg.rtd",,"StudyData", "Correlation("&$B$3&","&AY$2&",Period:="&$B$1&",InputChoice1:=Close,InputChoice2::=Close)", "FG", "", "Close",$B$2,A7, "all","", "","True","T")/100 -> -0.8936432455 | BA7: -0.94 | BB7: 3 | BE7: =RTD("cqg.rtd",,"StudyData", "Correlation("&$B$3&","&BE$2&",Period:="&$B$1&",InputChoice1:=Close,InputChoice2::=Close)", "FG", "", "Close",$B$2,A7, "all","", "","True","T")/100 -> -0.6666204145 | BG7: -0.94 | BH7: 0
A8: -4 | C8: =RTD("cqg.rtd",,"StudyData", "Correlation("&$B$3&","&C$2&",Period:="&$B$1&",InputChoice1::=Close,InputChoice2::=Close)", "FG", "", "Close",$B$2,A8, "all","", "","True","T")/100 -> 0.8938335344 | E8: -0.92 | F8: 0 | I8: =RTD("cqg.rtd",,"StudyData", "Correlation("&$B$3&","&I$2&",Period:="&$B$1&",InputChoice1:=Close,InputChoice2::=Close)", "FG", "", "Close",$B$2,A8, "all","", "","True","T")/100 -> 0.9121914081 | K8: -0.92 | L8: 0 | O8: =RTD("cqg.rtd",,"StudyData", "Correlation("&$B$3&","&O$2&",Period:="&$B$1&",InputChoice1:=Close,InputChoice2::=Close)", "FG", "", "Close",$B$2,A8, "all","", "","True","T")/100 -> 0.9087540376 | Q8: -0.92 | R8: 0 | U8: =RTD("cqg.rtd",,"StudyData", "Correlation("&$B$3&","&U$2&",Period:="&$B$1&",InputChoice1:=Close,InputChoice2::=Close)", "FG", "", "Close",$B$2,A8, "all","", "","True","T")/100 -> 0.9676493581 | W8: -0.92 | X8: 0 | AA8: =RTD("cqg.rtd",,"StudyData", "Correlation("&$B$3&","&AA$2&",Period:="&$B$1&",InputChoice1:=Close,InputChoice2::=Close)", "FG", "", "Close",$B$2,A8, "all","", "","True","T")/100 -> -0.0855738673 | AC8: -0.92 | AD8: 0 | AG8: =RTD("cqg.rtd",,"StudyData", "Correlation("&$B$3&","&AG$2&",Period:="&$B$1&",InputChoice1:=Close,InputChoice2::=Close)", "FG", "", "Close",$B$2,A8, "all","", "","True","T")/100 -> -0.0733837307 | AI8: -0.92 | AJ8: 0 | AM8: =RTD("cqg.rtd",,"StudyData", "Correlation("&$B$3&","&AM$2&",Period:="&$B$1&",InputChoice1:=Close,InputChoice2::=Close)", "FG", "", "Close",$B$2,A8, "all","", "","True","T")/100 -> 0.4341917078 | AO8: -0.92 | AP8: 0 | AS8: =RTD("cqg.rtd",,"StudyData", "Correlation("&$B$3&","&AS$2&",Period:="&$B$1&",InputChoice1:=Close,InputChoice2::=Close)", "FG", "", "Close",$B$2,A8, "all","", "","True","T")/100 -> 0.3402033112 | AU8: -0.92 | AV8: 0 | AY8: =RTD("cqg.rtd",,"StudyData", "Correlation("&$B$3&","&AY$2&",Period:="&$B$1&",InputChoice1:=Close,InputChoice2::=Close)", "FG", "", "Close",$B$2,A8, "all","", "","True","T")/100 -> -0.8475420305 | BA8: -0.92 | BB8: 3 | BE8: =RTD("cqg.rtd",,"StudyData", "Correlation("&$B$3&","&BE$2&",Period:="&$B$1&",InputChoice1:=Close,InputChoice2::=Close)", "FG", "", "Close",$B$2,A8, "all","", "","True","T")/100 -> -0.6908034854 | BG8: -0.92 | BH8: 0
A9: -5 | C9: =RTD("cqg.rtd",,"StudyData", "Correlation("&$B$3&","&C$2&",Period:="&$B$1&",InputChoice1::=Close,InputChoice2::=Close)", "FG", "", "Close",$B$2,A9, "all","", "","True","T")/100 -> 0.8438943515 | E9: -0.9 | F9: 0 | I9: =RTD("cqg.rtd",,"StudyData", "Correlation("&$B$3&","&I$2&",Period:="&$B$1&",InputChoice1:=Close,InputChoice2::=Close)", "FG", "", "Close",$B$2,A9, "all","", "","True","T")/100 -> 0.8422690712 | K9: -0.9 | L9: 0 | O9: =RTD("cqg.rtd",,"StudyData", "Correlation("&$B$3&","&O$2&",Period:="&$B$1&",InputChoice1:=Close,InputChoice2::=Close)", "FG", "", "Close",$B$2,A9, "all","", "","True","T")/100 -> 0.8538477206 | Q9: -0.9 | R9: 0 | U9: =RTD("cqg.rtd",,"StudyData", "Correlation("&$B$3&","&U$2&",Period:="&$B$1&",InputChoice1:=Close,InputChoice2::=Close)", "FG", "", "Close",$B$2,A9, "all","", "","True","T")/100 -> 0.938992713 | W9: -0.9 | X9: 0 | AA9: =RTD("cqg.rtd",,"StudyData", "Correlation("&$B$3&","&AA$2&",Period:="&$B$1&",InputChoice1:=Close,InputChoice2::=Close)", "FG", "", "Close",$B$2,A9, "all","", "","True","T")/100 -> -0.2490778259 | AC9: -0.9 | AD9: 0 | AG9: =RTD("cqg.rtd",,"StudyData", "Correlation("&$B$3&","&AG$2&",Period:="&$B$1&",InputChoice1:=Close,InputChoice2::=Close)", "FG", "", "Close",$B$2,A9, "all","", "","True","T")/100 -> -0.2555901054 | AI9: -0.9 | AJ9: 0 | AM9: =RTD("cqg.rtd",,"StudyData", "Correlation("&$B$3&","&AM$2&",Period:="&$B$1&",InputChoice1:=Close,InputChoice2::=Close)", "FG", "", "Close",$B$2,A9, "all","", "","True","T")/100 -> -0.0996355002 | AO9: -0.9 | AP9: 0 | AS9: =RTD("cqg.rtd",,"StudyData", "Correlation("&$B$3&","&AS$2&",Period:="&$B$1&",InputChoice1:=Close,InputChoice2::=Close)", "FG", "", "Close",$B$2,A9, "all","", "","True","T")/100 -> 0.4605063142 | AU9: -0.9 | AV9: 0 | AY9: =RTD("cqg.rtd",,"StudyData", "Correlation("&$B$3&","&AY$2&",Period:="&$B$1&",InputChoice1:=Close,InputChoice2::=Close)", "FG", "", "Close",$B$2,A9, "all","", "","True","T")/100 -> -0.6456750046 | BA9: -0.9 | BB9: 3 | BE9: =RTD("cqg.rtd",,"StudyData", "Correlation("&$B$3&","&BE$2&",Period:="&$B$1&",InputChoice1:=Close,InputChoice2::=Close)", "FG", "", "Close",$B$2,A9, "all","", "","True","T")/100 -> -0.7774296755 | BG9: -0.9 | BH9: 0
A10: -6 | C10: =RTD("cqg.rtd",,"StudyData", "Correlation("&$B$3&","&C$2&",Period:="&$B$1&",InputChoice1::=Close,InputChoice2::=Close)", "FG", "", "Close",$B$2,A10, "all","", "","True","T")/100 -> 0.7461784126 | E10: -0.88 | F10: 0 | I10: =RTD("cqg.rtd",,"StudyData", "Correlation("&$B$3&","&I$2&",Period:="&$B$1&",InputChoice1:=Close,InputChoice2::=Close)", "FG", "", "Close",$B$2,A10, "all","", "","True","T")/100 -> 0.6799196352 | K10: -0.88 | L10: 0 | O10: =RTD("cqg.rtd",,"StudyData", "Correlation("&$B$3&","&O$2&",Period:="&$B$1&",InputChoice1:=Close,InputChoice2::=Close)", "FG", "", "Close",$B$2,A10, "all","", "","True","T")/100 -> 0.7665930468 | Q10: -0.88 | R10: 0 | U10: =RTD("cqg.rtd",,"StudyData", "Correlation("&$B$3&","&U$2&",Period:="&$B$1&",InputChoice1:=Close,InputChoice2::=Close)", "FG", "", "Close",$B$2,A10, "all","", "","True","T")/100 -> 0.9022577363 | W10: -0.88 | X10: 0 | AA10: =RTD("cqg.rtd",,"StudyData", "Correlation("&$B$3&","&AA$2&",Period:="&$B$1&",InputChoice1:=Close,InputChoice2::=Close)", "FG", "", "Close",$B$2,A10, "all","", "","True","T")/100 -> -0.5616196057 | AC10: -0.88 | AD10: 0 | AG10: =RTD("cqg.rtd",,"StudyData", "Correlation("&$B$3&","&AG$2&",Period:="&$B$1&",InputChoice1:=Close,InputChoice2::=Close)", "FG", "", "Close",$B$2,A10, "all","", "","True","T")/100 -> -0.5195375911 | AI10: -0.88 | AJ10: 0 | AM10: =RTD("cqg.rtd",,"StudyData", "Correlation("&$B$3&","&AM$2&",Period:="&$B$1&",InputChoice1:=Close,InputChoice2::=Close)", "FG", "", "Close",$B$2,A10, "all","", "","True","T")/100 -> -0.6294787525 | AO10: -0.88 | AP10: 0 | AS10: =RTD("cqg.rtd",,"StudyData", "Correlation("&$B$3&","&AS$2&",Period:="&$B$1&",InputChoice1:=Close,InputChoice2::=Close)", "FG", "", "Close",$B$2,A10, "all","", "","True","T")/100 -> 0.3898274643 | AU10: -0.88 | AV10: 0 | AY10: =RTD("cqg.rtd",,"StudyData", "Correlation("&$B$3&","&AY$2&",Period:="&$B$1&",InputChoice1:=Close,InputChoice2::=Close)", "FG", "", "Close",$B$2,A10, "all","", "","True","T")/100 -> -0.091801753 | BA10: -0.88 | BB10: 12 | BE10: =RTD("cqg.rtd",,"StudyData", "Correlation("&$B$3&","&BE$2&",Period:="&$B$1&",InputChoice1:=Close,InputChoice2::=Close)", "FG", "", "Close",$B$2,A10, "all","", "","True","T")/100 -> -0.7658537219 | BG10: -0.88 | BH10: 1
A11: -7 | C11: =RTD("cqg.rtd",,"StudyData", "Correlation("&$B$3&","&C$2&",Period:="&$B$1&",InputChoice1::=Close,InputChoice2::=Close)", "FG", "", "Close",$B$2,A11, "all","", "","True","T")/100 -> 0.6404547476 | E11: -0.86 | F11: 0 | I11: =RTD("cqg.rtd",,"StudyData", "Correlation("&$B$3&","&I$2&",Period:="&$B$1&",InputChoice1:=Close,InputChoice2::=Close)", "FG", "", "Close",$B$2,A11, "all","", "","True","T")/100 -> 0.5709210784 | K11: -0.86 | L11: 0 | O11: =RTD("cqg.rtd",,"StudyData", "Correlation("&$B$3&","&O$2&",Period:="&$B$1&",InputChoice1:=Close,InputChoice2::=Close)", "FG", "", "Close",$B$2,A11, "all","", "","True","T")/100 -> 0.6630442841 | Q11: -0.86 | R11: 0 | U11: =RTD("cqg.rtd",,"StudyData", "Correlation("&$B$3&","&U$2&",Period:="&$B$1&",InputChoice1:=Close,InputChoice2::=Close)", "FG", "", "Close",$B$2,A11, "all","", "","True","T")/100 -> 0.8690343808 | W11: -0.86 | X11: 0 | AA11: =RTD("cqg.rtd",,"StudyData", "Correlation("&$B$3&","&AA$2&",Period:="&$B$1&",InputChoice1:=Close,InputChoice2::=Close)", "FG", "", "Close",$B$2,A11, "all","", "","True","T")/100 -> -0.4771223775 | AC11: -0.86 | AD11: 0 | AG11: =RTD("cqg.rtd",,"StudyData", "Correlation("&$B$3&","&AG$2&",Period:="&$B$1&",InputChoice1:=Close,InputChoice2::=Close)", "FG", "", "Close",$B$2,A11, "all","", "","True","T")/100 -> -0.4538645009 | AI11: -0.86 | AJ11: 0 | AM11: =RTD("cqg.rtd",,"StudyData", "Correlation("&$B$3&","&AM$2&",Period:="&$B$1&",InputChoice1:=Close,InputChoice2::=Close)", "FG", "", "Close",$B$2,A11, "all","", "","True","T")/100 -> -0.5244585379 | AO11: -0.86 | AP11: 0 | AS11: =RTD("cqg.rtd",,"StudyData", "Correlation("&$B$3&","&AS$2&",Period:="&$B$1&",InputChoice1:=Close,InputChoice2::=Close)", "FG", "", "Close",$B$2,A11, "all","", "","True","T")/100 -> 0.2130665954 | AU11: -0.86 | AV11: 0 | AY11: =RTD("cqg.rtd",,"StudyData", "Correlation("&$B$3&","&AY$2&",Period:="&$B$1&",InputChoice1:=Close,InputChoice2::=Close)", "FG", "", "Close",$B$2,A11, "all","", "","True","T")/100 -> -0.0428782425 | BA11: -0.86 | BB11: 4 | BE11: =RTD("cqg.rtd",,"StudyData", "Correlation("&$B$3&","&BE$2&",Period:="&$B$1&",InputChoice1:=Close,InputChoice2::=Close)", "FG", "", "Close",$B$2,A11, "all","", "","True","T")/100 -> -0.678985633 | BG11: -0.86 | BH11: 1
A12: -8 | C12: =RTD("cqg.rtd",,"StudyData", "Correlation("&$B$3&","&C$2&",Period:="&$B$1&",InputChoice1::=Close,InputChoice2::=Close)", "FG", "", "Close",$B$2,A12, "all","", "","True","T")/100 -> 0.4841392536 | E12: -0.84 | F12: 0 | I12: =RTD("cqg.rtd",,"StudyData", "Correlation("&$B$3&","&I$2&",Period:="&$B$1&",InputChoice1:=Close,InputChoice2::=Close)", "FG", "", "Close",$B$2,A12, "all","", "","True","T")/100 -> 0.3578472485 | K12: -0.84 | L12: 0 | O12: =RTD("cqg.rtd",,"StudyData", "Correlation("&$B$3&","&O$2&",Period:="&$B$1&",InputChoice1:=Close,InputChoice2::=Close)", "FG", "", "Close",$B$2,A12, "all","", "","True","T")/100 -> 0.4567340655 | Q12: -0.84 | R12: 0 | U12: =RTD("cqg.rtd",,"StudyData", "Correlation("&$B$3&","&U$2&",Period:="&$B$1&",InputChoice1:=Close,InputChoice2::=Close)", "FG", "", "Close",$B$2,A12, "all","", "","True","T")/100 -> 0.7649842156 | W12: -0.84 | X12: 0 | AA12: =RTD("cqg.rtd",,"StudyData", "Correlation("&$B$3&","&AA$2&",Period:="&$B$1&",InputChoice1:=Close,InputChoice2::=Close)", "FG", "", "Close",$B$2,A12, "all","", "","True","T")/100 -> 0.0288965066 | AC12: -0.84 | AD12: 0 | AG12: =RTD("cqg.rtd",,"StudyData", "Correlation("&$B$3&","&AG$2&",Period:="&$B$1&",InputChoice1:=Close,InputChoice2::=Close)", "FG", "", "Close",$B$2,A12, "all","", "","True","T")/100 -> 0.0302538914 | AI12: -0.84 | AJ12: 0 | AM12: =RTD("cqg.rtd",,"StudyData", "Correlation("&$B$3&","&AM$2&",Period:="&$B$1&",InputChoice1:=Close,InputChoice2::=Close)", "FG", "", "Close",$B$2,A12, "all","", "","True","T")/100 -> -0.1018377014 | AO12: -0.84 | AP12: 0 | AS12: =RTD("cqg.rtd",,"StudyData", "Correlation("&$B$3&","&AS$2&",Period:="&$B$1&",InputChoice1:=Close,InputChoice2::=Close)", "FG", "", "Close",$B$2,A12, "all","", "","True","T")/100 -> 0.5884151156 | AU12: -0.84 | AV12: 0 | AY12: =RTD("cqg.rtd",,"StudyData", "Correlation("&$B$3&","&AY$2&",Period:="&$B$1&",InputChoice1:=Close,InputChoice2::=Close)", "FG", "", "Close",$B$2,A12, "all","", "","True","T")/100 -> -0.1252581477 | BA12: -0.84 | BB12: 3 | BE12: =RTD("cqg.rtd",,"StudyData", "Correlation("&$B$3&","&BE$2&",Period:="&$B$1&",InputChoice1:=Close,InputChoice2::=Close)", "FG", "", "Close",$B$2,A12, "all","", "","True","T")/100 -> 0.0099402309 | BG12: -0.84 | BH12: 0
A13: -9 | C13: =RTD("cqg.rtd",,"StudyData", "Correlation("&$B$3&","&C$2&",Period:="&$B$1&",InputChoice1::=Close,InputChoice2::=Close)", "FG", "", "Close",$B$2,A13, "all","", "","True","T")/100 -> 0.6662562513 | E13: -0.82 | F13: 0 | I13: =RTD("cqg.rtd",,"StudyData", "Correlation("&$B$3&","&I$2&",Period:="&$B$1&",InputChoice1:=Close,InputChoice2::=Close)", "FG", "", "Close",$B$2,A13, "all","", "","True","T")/100 -> 0.5934896394 | K13: -0.82 | L13: 0 | O13: =RTD("cqg.rtd",,"StudyData", "Correlation("&$B$3&","&O$2&",Period:="&$B$1&",InputChoice1:=Close,InputChoice2::=Close)", "FG", "", "Close",$B$2,A13, "all","", "","True","T")/100 -> 0.4481569898 | Q13: -0.82 | R13: 0 | U13: =RTD("cqg.rtd",,"StudyData", "Correlation("&$B$3&","&U$2&",Period:="&$B$1&",InputChoice1:=Close,InputChoice2::=Close)", "FG", "", "Close",$B$2,A13, "all","", "","True","T")/100 -> 0.7800960771 | W13: -0.82 | X13: 0 | AA13: =RTD("cqg.rtd",,"StudyData", "Correlation("&$B$3&","&AA$2&",Period:="&$B$1&",InputChoice1:=Close,InputChoice2::=Close)", "FG", "", "Close",$B$2,A13, "all","", "","True","T")/100 -> 0.4976885566 | AC13: -0.82 | AD13: 0 | AG13: =RTD("cqg.rtd",,"StudyData", "Correlation("&$B$3&","&AG$2&",Period:="&$B$1&",InputChoice1:=Close,InputChoice2::=Close)", "FG", "", "Close",$B$2,A13, "all","", "","True","T")/100 -> 0.5489667037 | AI13: -0.82 | AJ13: 0 | AM13: =RTD("cqg.rtd",,"StudyData", "Correlation("&$B$3&","&AM$2&",Period:="&$B$1&",InputChoice1:=Close,InputChoice2::=Close)", "FG", "", "Close",$B$2,A13, "all","", "","True","T")/100 -> 0.2293348288 | AO13: -0.82 | AP13: 0 | AS13: =RTD("cqg.rtd",,"StudyData", "Correlation("&$B$3&","&AS$2&",Period:="&$B$1&",InputChoice1:=Close,InputChoice2::=Close)", "FG", "", "Close",$B$2,A13, "all","", "","True","T")/100 -> 0.560927875 | AU13: -0.82 | AV13: 1 | AY13: =RTD("cqg.rtd",,"StudyData", "Correlation("&$B$3&","&AY$2&",Period:="&$B$1&",InputChoice1:=Close,InputChoice2::=Close)", "FG", "", "Close",$B$2,A13, "all","", "","True","T")/100 -> -0.22119883 | BA13: -0.82 | BB13: 4 | BE13: =RTD("cqg.rtd",,"StudyData", "Correlation("&$B$3&","&BE$2&",Period:="&$B$1&",InputChoice1:=Close,InputChoice2::=Close)", "FG", "", "Close",$B$2,A13, "all","", "","True","T")/100 -> 0.5191312377 | BG13: -0.82 | BH13: 0
A14: -10 | C14: =RTD("cqg.rtd",,"StudyData", "Correlation("&$B$3&","&C$2&",Period:="&$B$1&",InputChoice1::=Close,InputChoice2::=Close)", "FG", "", "Close",$B$2,A14, "all","", "","True","T")/100 -> 0.7478251806 | E14: -0.8 | F14: 0 | I14: =RTD("cqg.rtd",,"StudyData", "Correlation("&$B$3&","&I$2&",Period:="&$B$1&",InputChoice1:=Close,InputChoice2::=Close)", "FG", "", "Close",$B$2,A14, "all","", "","True","T")/100 -> 0.6577429299 | K14: -0.8 | L14: 0 | O14: =RTD("cqg.rtd",,"StudyData", "Correlation("&$B$3&","&O$2&",Period:="&$B$1&",InputChoice1:=Close,InputChoice2::=Close)", "FG", "", "Close",$B$2,A14, "all","", "","True","T")/100 -> 0.7344916479 | Q14: -0.8 | R14: 0 | U14: =RTD("cqg.rtd",,"StudyData", "Correlation("&$B$3&","&U$2&",Period:="&$B$1&",InputChoice1:=Close,InputChoice2::=Close)", "FG", "", "Close",$B$2,A14, "all","", "","True","T")/100 -> 0.8012992717 | W14: -0.8 | X14: 0 | AA14: =RTD("cqg.rtd",,"StudyData", "Correlation("&$B$3&","&AA$2&",Period:="&$B$1&",InputChoice1:=Close,InputChoice2::=Close)", "FG", "", "Close",$B$2,A14, "all","", "","True","T")/100 -> 0.3540162505 | AC14: -0.8 | AD14: 0 | AG14: =RTD("cqg.rtd",,"StudyData", "Correlation("&$B$3&","&AG$2&",Period:="&$B$1&",InputChoice1:=Close,InputChoice2::=Close)", "FG", "", "Close",$B$2,A14, "all","", "","True","T")/100 -> 0.4827925041 | AI14: -0.8 | AJ14: 0 | AM14: =RTD("cqg.rtd",,"StudyData", "Correlation("&$B$3&","&AM$2&",Period:="&$B$1&",InputChoice1:=Close,InputChoice2::=Close)", "FG", "", "Close",$B$2,A14, "all","", "","True","T")/100 -> -0.0497375708 | AO14: -0.8 | AP14: 0 | AS14: =RTD("cqg.rtd",,"StudyData", "Correlation("&$B$3&","&AS$2&",Period:="&$B$1&",InputChoice1:=Close,InputChoice2::=Close)", "FG", "", "Close",$B$2,A14, "all","", "","True","T")/100 -> 0.5353126301 | AU14: -0.8 | AV14: 6 | AY14: =RTD("cqg.rtd",,"StudyData", "Correlation("&$B$3&","&AY$2&",Period:="&$B$1&",InputChoice1:=Close,InputChoice2::=Close)", "FG", "", "Close",$B$2,A14, "all","", "","True","T")/100 -> -0.3334846303 | BA14: -0.8 | BB14: 8 | BE14: =RTD("cqg.rtd",,"StudyData", "Correlation("&$B$3&","&BE$2&",Period:="&$B$1&",InputChoice1:=Close,InputChoice2::=Close)", "FG", "", "Close",$B$2,A14, "all","", "","True","T")/100 -> 0.4763838268 | BG14: -0.8 | BH14: 0
A15: -11 | C15: =RTD("cqg.rtd",,"StudyData", "Correlation("&$B$3&","&C$2&",Period:="&$B$1&",InputChoice1::=Close,InputChoice2::=Close)", "FG", "", "Close",$B$2,A15, "all","", "","True","T")/100 -> 0.8732390061 | E15: -0.78 | F15: 0 | I15: =RTD("cqg.rtd",,"StudyData", "Correlation("&$B$3&","&I$2&",Period:="&$B$1&",InputChoice1:=Close,InputChoice2::=Close)", "FG", "", "Close",$B$2,A15, "all","", "","True","T")/100 -> 0.8613677919 | K15: -0.78 | L15: 0 | O15: =RTD("cqg.rtd",,"StudyData", "Correlation("&$B$3&","&O$2&",Period:="&$B$1&",InputChoice1:=Close,InputChoice2::=Close)", "FG", "", "Close",$B$2,A15, "all","", "","True","T")/100 -> 0.9549807364 | Q15: -0.78 | R15: 0 | U15: =RTD("cqg.rtd",,"StudyData", "Correlation("&$B$3&","&U$2&",Period:="&$B$1&",InputChoice1:=Close,InputChoice2::=Close)", "FG", "", "Close",$B$2,A15, "all","", "","True","T")/100 -> 0.9287791937 | W15: -0.78 | X15: 0 | AA15: =RTD("cqg.rtd",,"StudyData", "Correlation("&$B$3&","&AA$2&",Period:="&$B$1&",InputChoice1:=Close,InputChoice2::=Close)", "FG", "", "Close",$B$2,A15, "all","", "","True","T")/100 -> 0.0821025294 | AC15: -0.78 | AD15: 0 | AG15: =RTD("cqg.rtd",,"StudyData", "Correlation("&$B$3&","&AG$2&",Period:="&$B$1&",InputChoice1:=Close,InputChoice2::=Close)", "FG", "", "Close",$B$2,A15, "all","", "","True","T")/100 -> 0.3515107707 | AI15: -0.78 | AJ15: 0 | AM15: =RTD("cqg.rtd",,"StudyData", "Correlation("&$B$3&","&AM$2&",Period:="&$B$1&",InputChoice1:=Close,InputChoice2::=Close)", "FG", "", "Close",$B$2,A15, "all","", "","True","T")/100 -> -0.3080221683 | AO15: -0.78 | AP15: 0 | AS15: =RTD("cqg.rtd",,"StudyData", "Correlation("&$B$3&","&AS$2&",Period:="&$B$1&",InputChoice1:=Close,InputChoice2::=Close)", "FG", "", "Close",$B$2,A15, "all","", "","True","T")/100 -> 0.4253180125 | AU15: -0.78 | AV15: 0 | AY15: =RTD("cqg.rtd",,"StudyData", "Correlation("&$B$3&","&AY$2&",Period:="&$B$1&",InputChoice1:=Close,InputChoice2::=Close)", "FG", "", "Close",$B$2,A15, "all","", "","True","T")/100 -> -0.4638900215 | BA15: -0.78 | BB15: 1 | BE15: =RTD("cqg.rtd",,"StudyData", "Correlation("&$B$3&","&BE$2&",Period:="&$B$1&",InputChoice1:=Close,InputChoice2::=Close)", "FG", "", "Close",$B$2,A15, "all","", "","True","T")/100 -> 0.4202662625 | BG15: -0.78 | BH15: 2
A16: -12 | C16: =RTD("cqg.rtd",,"StudyData", "Correlation("&$B$3&","&C$2&",Period:="&$B$1&",InputChoice1::=Close,InputChoice2::=Close)", "FG", "", "Close",$B$2,A16, "all","", "","True","T")/100 -> 0.8919632687 | E16: -0.76 | F16: 0 | I16: =RTD("cqg.rtd",,"StudyData", "Correlation("&$B$3&","&I$2&",Period:="&$B$1&",InputChoice1:=Close,InputChoice2::=Close)", "FG", "", "Close",$B$2,A16, "all","", "","True","T")/100 -> 0.8941068753 | K16: -0.76 | L16: 0 | O16: =RTD("cqg.rtd",,"StudyData", "Correlation("&$B$3&","&O$2&",Period:="&$B$1&",InputChoice1:=Close,InputChoice2::=Close)", "FG", "", "Close",$B$2,A16, "all","", "","True","T")/100 -> 0.9858391116 | Q16: -0.76 | R16: 0 | U16: =RTD("cqg.rtd",,"StudyData", "Correlation("&$B$3&","&U$2&",Period:="&$B$1&",InputChoice1:=Close,InputChoice2::=Close)", "FG", "", "Close",$B$2,A16, "all","", "","True","T")/100 -> 0.963801534 | W16: -0.76 | X16: 0 | AA16: =RTD("cqg.rtd",,"StudyData", "Correlation("&$B$3&","&AA$2&",Period:="&$B$1&",InputChoice1:=Close,InputChoice2::=Close)", "FG", "", "Close",$B$2,A16, "all","", "","True","T")/100 -> 0.3794587757 | AC16: -0.76 | AD16: 0 | AG16: =RTD("cqg.rtd",,"StudyData", "Correlation("&$B$3&","&AG$2&",Period:="&$B$1&",InputChoice1:=Close,InputChoice2::=Close)", "FG", "", "Close",$B$2,A16, "all","", "","True","T")/100 -> 0.5865653368 | AI16: -0.76 | AJ16: 0 | AM16: =RTD("cqg.rtd",,"StudyData", "Correlation("&$B$3&","&AM$2&",Period:="&$B$1&",InputChoice1:=Close,InputChoice2::=Close)", "FG", "", "Close",$B$2,A16, "all","", "","True","T")/100 -> -0.2565771298 | AO16: -0.76 | AP16: 1 | AS16: =RTD("cqg.rtd",,"StudyData", "Correlation("&$B$3&","&AS$2&",Period:="&$B$1&",InputChoice1:=Close,InputChoice2::=Close)", "FG", "", "Close",$B$2,A16, "all","", "","True","T")/100 -> 0.5785713179 | AU16: -0.76 | AV16: 0 | AY16: =RTD("cqg.rtd",,"StudyData", "Correlation("&$B$3&","&AY$2&",Period:="&$B$1&",InputChoice1:=Close,InputChoice2::=Close)", "FG", "", "Close",$B$2,A16, "all","", "","True","T")/100 -> -0.6634112572 | BA16: -0.76 | BB16: 2 | BE16: =RTD("cqg.rtd",,"StudyData", "Correlation("&$B$3&","&BE$2&",Period:="&$B$1&",InputChoice1:=Close,InputChoice2::=Close)", "FG", "", "Close",$B$2,A16, "all","", "","True","T")/100 -> 0.4550807513 | BG16: -0.76 | BH16: 3
A17: -13 | C17: =RTD("cqg.rtd",,"StudyData", "Correlation("&$B$3&","&C$2&",Period:="&$B$1&",InputChoice1::=Close,InputChoice2::=Close)", "FG", "", "Close",$B$2,A17, "all","", "","True","T")/100 -> 0.9200133362 | E17: -0.74 | F17: 0 | I17: =RTD("cqg.rtd",,"StudyData", "Correlation("&$B$3&","&I$2&",Period:="&$B$1&",InputChoice1:=Close,InputChoice2::=Close)", "FG", "", "Close",$B$2,A17, "all","", "","True","T")/100 -> 0.9240854428 | K17: -0.74 | L17: 0 | O17: =RTD("cqg.rtd",,"StudyData", "Correlation("&$B$3&","&O$2&",Period:="&$B$1&",InputChoice1:=Close,InputChoice2::=Close)", "FG", "", "Close",$B$2,A17, "all","", "","True","T")/100 -> 0.9769730669 | Q17: -0.74 | R17: 0 | U17: =RTD("cqg.rtd",,"StudyData", "Correlation("&$B$3&","&U$2&",Period:="&$B$1&",InputChoice1:=Close,InputChoice2::=Close)", "FG", "", "Close",$B$2,A17, "all","", "","True","T")/100 -> 0.9763110366 | W17: -0.74 | X17: 0 | AA17: =RTD("cqg.rtd",,"StudyData", "Correlation("&$B$3&","&AA$2&",Period:="&$B$1&",InputChoice1:=Close,InputChoice2::=Close)", "FG", "", "Close",$B$2,A17, "all","", "","True","T")/100 -> 0.5059393109 | AC17: -0.74 | AD17: 0 | AG17: =RTD("cqg.rtd",,"StudyData", "Correlation("&$B$3&","&AG$2&",Period:="&$B$1&",InputChoice1:=Close,InputChoice2::=Close)", "FG", "", "Close",$B$2,A17, "all","", "","True","T")/100 -> 0.6786477654 | AI17: -0.74 | AJ17: 0 | AM17: =RTD("cqg.rtd",,"StudyData", "Correlation("&$B$3&","&AM$2&",Period:="&$B$1&",InputChoice1:=Close,InputChoice2::=Close)", "FG", "", "Close",$B$2,A17, "all","", "","True","T")/100 -> -0.1146401227 | AO17: -0.74 | AP17: 0 | AS17: =RTD("cqg.rtd",,"StudyData", "Correlation("&$B$3&","&AS$2&",Period:="&$B$1&",InputChoice1:=Close,InputChoice2::=Close)", "FG", "", "Close",$B$2,A17, "all","", "","True","T")/100 -> 0.5320164834 | AU17: -0.74 | AV17: 2 | AY17: =RTD("cqg.rtd",,"StudyData", "Correlation("&$B$3&","&AY$2&",Period:="&$B$1&",InputChoice1:=Close,InputChoice2::=Close)", "FG", "", "Close",$B$2,A17, "all","", "","True","T")/100 -> -0.7592833702 | BA17: -0.74 | BB17: 4 | BE17: =RTD("cqg.rtd",,"StudyData", "Correlation("&$B$3&","&BE$2&",Period:="&$B$1&",InputChoice1:=Close,InputChoice2::=Close)", "FG", "", "Close",$B$2,A17, "all","", "","True","T")/100 -> 0.5874574882 | BG17: -0.74 | BH17: 0
A18: -14 | C18: =RTD("cqg.rtd",,"StudyData", "Correlation("&$B$3&","&C$2&",Period:="&$B$1&",InputChoice1::=Close,InputChoice2::=Close)", "FG", "", "Close",$B$2,A18, "all","", "","True","T")/100 -> 0.9690787345 | E18: -0.72 | F18: 0 | I18: =RTD("cqg.rtd",,"StudyData", "Correlation("&$B$3&","&I$2&",Period:="&$B$1&",InputChoice1:=Close,InputChoice2::=Close)", "FG", "", "Close",$B$2,A18, "all","", "","True","T")/100 -> 0.9719088769 | K18: -0.72 | L18: 0 | O18: =RTD("cqg.rtd",,"StudyData", "Correlation("&$B$3&","&O$2&",Period:="&$B$1&",InputChoice1:=Close,InputChoice2::=Close)", "FG", "", "Close",$B$2,A18, "all","", "","True","T")/100 -> 0.9383724676 | Q18: -0.72 | R18: 0 | U18: =RTD("cqg.rtd",,"StudyData", "Correlation("&$B$3&","&U$2&",Period:="&$B$1&",InputChoice1:=Close,InputChoice2::=Close)", "FG", "", "Close",$B$2,A18, "all","", "","True","T")/100 -> 0.9852506605 | W18: -0.72 | X18: 0 | AA18: =RTD("cqg.rtd",,"StudyData", "Correlation("&$B$3&","&AA$2&",Period:="&$B$1&",InputChoice1:=Close,InputChoice2::=Close)", "FG", "", "Close",$B$2,A18, "all","", "","True","T")/100 -> 0.6320922372 | AC18: -0.72 | AD18: 0 | AG18: =RTD("cqg.rtd",,"StudyData", "Correlation("&$B$3&","&AG$2&",Period:="&$B$1&",InputChoice1:=Close,InputChoice2::=Close)", "FG", "", "Close",$B$2,A18, "all","", "","True","T")/100 -> 0.7443733922 | AI18: -0.72 | AJ18: 0 | AM18: =RTD("cqg.rtd",,"StudyData", "Correlation("&$B$3&","&AM$2&",Period:="&$B$1&",InputChoice1:=Close,InputChoice2::=Close)", "FG", "", "Close",$B$2,A18, "all","", "","True","T")/100 -> 0.2527659213 | AO18: -0.72 | AP18: 0 | AS18: =RTD("cqg.rtd",,"StudyData", "Correlation("&$B$3&","&AS$2&",Period:="&$B$1&",InputChoice1:=Close,InputChoice2::=Close)", "FG", "", "Close",$B$2,A18, "all","", "","True","T")/100 -> 0.3835001558 | AU18: -0.72 | AV18: 2 | AY18: =RTD("cqg.rtd",,"StudyData", "Correlation("&$B$3&","&AY$2&",Period:="&$B$1&",InputChoice1:=Close,InputChoice2::=Close)", "FG", "", "Close",$B$2,A18, "all","", "","True","T")/100 -> -0.8854872611 | BA18: -0.72 | BB18: 1 | BE18: =RTD("cqg.rtd",,"StudyData", "Correlation("&$B$3&","&BE$2&",Period:="&$B$1&",InputChoice1:=Close,InputChoice2::=Close)", "FG", "", "Close",$B$2,A18, "all","", "","True","T")/100 -> 0.7039481074 | BG18: -0.72 | BH18: 0
A19: -15 | C19: =RTD("cqg.rtd",,"StudyData", "Correlation("&$B$3&","&C$2&",Period:="&$B$1&",InputChoice1::=Close,InputChoice2::=Close)", "FG", "", "Close",$B$2,A19, "all","", "","True","T")/100 -> 0.935784084 | E19: -0.7 | F19: 0 | I19: =RTD("cqg.rtd",,"StudyData", "Correlation("&$B$3&","&I$2&",Period:="&$B$1&",InputChoice1:=Close,InputChoice2::=Close)", "FG", "", "Close",$B$2,A19, "all","", "","True","T")/100 -> 0.9319905177 | K19: -0.7 | L19: 0 | O19: =RTD("cqg.rtd",,"StudyData", "Correlation("&$B$3&","&O$2&",Period:="&$B$1&",InputChoice1:=Close,InputChoice2::=Close)", "FG", "", "Close",$B$2,A19, "all","", "","True","T")/100 -> 0.8950545469 | Q19: -0.7 | R19: 0 | U19: =RTD("cqg.rtd",,"StudyData", "Correlation("&$B$3&","&U$2&",Period:="&$B$1&",InputChoice1:=Close,InputChoice2::=Close)", "FG", "", "Close",$B$2,A19, "all","", "","True","T")/100 -> 0.9530730605 | W19: -0.7 | X19: 0 | AA19: =RTD("cqg.rtd",,"StudyData", "Correlation("&$B$3&","&AA$2&",Period:="&$B$1&",InputChoice1:=Close,InputChoice2::=Close)", "FG", "", "Close",$B$2,A19, "all","", "","True","T")/100 -> 0.4826651092 | AC19: -0.7 | AD19: 0 | AG19: =RTD("cqg.rtd",,"StudyData", "Correlation("&$B$3&","&AG$2&",Period:="&$B$1&",InputChoice1:=Close,InputChoice2::=Close)", "FG", "", "Close",$B$2,A19, "all","", "","True","T")/100 -> 0.5940160932 | AI19: -0.7 | AJ19: 0 | AM19: =RTD("cqg.rtd",,"StudyData", "Correlation("&$B$3&","&AM$2&",Period:="&$B$1&",InputChoice1:=Close,InputChoice2::=Close)", "FG", "", "Close",$B$2,A19, "all","", "","True","T")/100 -> 0.1916666412 | AO19: -0.7 | AP19: 1 | AS19: =RTD("cqg.rtd",,"StudyData", "Correlation("&$B$3&","&AS$2&",Period:="&$B$1&",InputChoice1:=Close,InputChoice2::=Close)", "FG", "", "Close",$B$2,A19, "all","", "","True","T")/100 -> 0.2466606407 | AU19: -0.7 | AV19: 0 | AY19: =RTD("cqg.rtd",,"StudyData", "Correlation("&$B$3&","&AY$2&",Period:="&$B$1&",InputChoice1:=Close,InputChoice2::=Close)", "FG", "", "Close",$B$2,A19, "all","", "","True","T")/100 -> -0.8990947268 | BA19: -0.7 | BB19: 2 | BC19: 2 | BE19: =RTD("cqg.rtd",,"StudyData", "Correlation("&$B$3&","&BE$2&",Period:="&$B$1&",InputChoice1:=Close,InputChoice2::=Close)", "FG", "", "Close",$B$2,A19, "all","", "","True","T")/100 -> 0.5208333995 | BG19: -0.7 | BH19: 1
A20: -16 | C20: =RTD("cqg.rtd",,"StudyData", "Correlation("&$B$3&","&C$2&",Period:="&$B$1&",InputChoice1::=Close,InputChoice2::=Close)", "FG", "", "Close",$B$2,A20, "all","", "","True","T")/100 -> 0.9234940634 | E20: -0.68 | F20: 0 | I20: =RTD("cqg.rtd",,"StudyData", "Correlation("&$B$3&","&I$2&",Period:="&$B$1&",InputChoice1:=Close,InputChoice2::=Close)", "FG", "", "Close",$B$2,A20, "all","", "","True","T")/100 -> 0.9168421126 | K20: -0.68 | L20: 0 | O20: =RTD("cqg.rtd",,"StudyData", "Correlation("&$B$3&","&O$2&",Period:="&$B$1&",InputChoice1:=Close,InputChoice2::=Close)", "FG", "", "Close",$B$2,A20, "all","", "","True","T")/100 -> 0.8544184595 | Q20: -0.68 | R20: 0 | U20: =RTD("cqg.rtd",,"StudyData", "Correlation("&$B$3&","&U$2&",Period:="&$B$1&",InputChoice1:=Close,InputChoice2::=Close)", "FG", "", "Close",$B$2,A20, "all","", "","True","T")/100 -> 0.9407032833 | W20: -0.68 | X20: 0 | AA20: =RTD("cqg.rtd",,"StudyData", "Correlation("&$B$3&","&AA$2&",Period:="&$B$1&",InputChoice1:=Close,InputChoice2::=Close)", "FG", "", "Close",$B$2,A20, "all","", "","True","T")/100 -> 0.508828345 | AC20: -0.68 | AD20: 0 | AG20: =RTD("cqg.rtd",,"StudyData", "Correlation("&$B$3&","&AG$2&",Period:="&$B$1&",InputChoice1:=Close,InputChoice2::=Close)", "FG", "", "Close",$B$2,A20, "all","", "","True","T")/100 -> 0.5821071932 | AI20: -0.68 | AJ20: 0 | AM20: =RTD("cqg.rtd",,"StudyData", "Correlation("&$B$3&","&AM$2&",Period:="&$B$1&",InputChoice1:=Close,InputChoice2::=Close)", "FG", "", "Close",$B$2,A20, "all","", "","True","T")/100 -> 0.2922280578 | AO20: -0.68 | AP20: 0 | AS20: =RTD("cqg.rtd",,"StudyData", "Correlation("&$B$3&","&AS$2&",Period:="&$B$1&",InputChoice1:=Close,InputChoice2::=Close)", "FG", "", "Close",$B$2,A20, "all","", "","True","T")/100 -> -0.0801664811 | AU20: -0.68 | AV20: 0 | AY20: =RTD("cqg.rtd",,"StudyData", "Correlation("&$B$3&","&AY$2&",Period:="&$B$1&",InputChoice1:=Close,InputChoice2::=Close)", "FG", "", "Close",$B$2,A20, "all","", "","True","T")/100 -> -0.8661179129 | BA20: -0.68 | BB20: 1 | BE20: =RTD("cqg.rtd",,"StudyData", "Correlation("&$B$3&","&BE$2&",Period:="&$B$1&",InputChoice1:=Close,InputChoice2::=Close)", "FG", "", "Close",$B$2,A20, "all","", "","True","T")/100 -> 0.4351720103 | BG20: -0.68 | BH20: 1
A21: -17 | C21: =RTD("cqg.rtd",,"StudyData", "Correlation("&$B$3&","&C$2&",Period:="&$B$1&",InputChoice1::=Close,InputChoice2::=Close)", "FG", "", "Close",$B$2,A21, "all","", "","True","T")/100 -> 0.8990244601 | E21: -0.66 | F21: 0 | I21: =RTD("cqg.rtd",,"StudyData", "Correlation("&$B$3&","&I$2&",Period:="&$B$1&",InputChoice1:=Close,InputChoice2::=Close)", "FG", "", "Close",$B$2,A21, "all","", "","True","T")/100 -> 0.8913875901 | K21: -0.66 | L21: 0 | O21: =RTD("cqg.rtd",,"StudyData", "Correlation("&$B$3&","&O$2&",Period:="&$B$1&",InputChoice1:=Close,InputChoice2::=Close)", "FG", "", "Close",$B$2,A21, "all","", "","True","T")/100 -> 0.7411910483 | Q21: -0.66 | R21: 0 | U21: =RTD("cqg.rtd",,"StudyData", "Correlation("&$B$3&","&U$2&",Period:="&$B$1&",InputChoice1:=Close,InputChoice2::=Close)", "FG", "", "Close",$B$2,A21, "all","", "","True","T")/100 -> 0.9232084235 | W21: -0.66 | X21: 0 | AA21: =RTD("cqg.rtd",,"StudyData", "Correlation("&$B$3&","&AA$2&",Period:="&$B$1&",InputChoice1:=Close,InputChoice2::=Close)", "FG", "", "Close",$B$2,A21, "all","", "","True","T")/100 -> 0.4609518555 | AC21: -0.66 | AD21: 0 | AG21: =RTD("cqg.rtd",,"StudyData", "Correlation("&$B$3&","&AG$2&",Period:="&$B$1&",InputChoice1:=Close,InputChoice2::=Close)", "FG", "", "Close",$B$2,A21, "all","", "","True","T")/100 -> 0.4973028535 | AI21: -0.66 | AJ21: 0 | AM21: =RTD("cqg.rtd",,"StudyData", "Correlation("&$B$3&","&AM$2&",Period:="&$B$1&",InputChoice1:=Close,InputChoice2::=Close)", "FG", "", "Close",$B$2,A21, "all","", "","True","T")/100 -> 0.3689283407 | AO21: -0.66 | AP21: 1 | AS21: =RTD("cqg.rtd",,"StudyData", "Correlation("&$B$3&","&AS$2&",Period:="&$B$1&",InputChoice1:=Close,InputChoice2::=Close)", "FG", "", "Close",$B$2,A21, "all","", "","True","T")/100 -> 0.0160555957 | AU21: -0.66 | AV21: 2 | AY21: =RTD("cqg.rtd",,"StudyData", "Correlation("&$B$3&","&AY$2&",Period:="&$B$1&",InputChoice1:=Close,InputChoice2::=Close)", "FG", "", "Close",$B$2,A21, "all","", "","True","T")/100 -> -0.8181328315 | BA21: -0.66 | BB21: 5 | BE21: =RTD("cqg.rtd",,"StudyData", "Correlation("&$B$3&","&BE$2&",Period:="&$B$1&",InputChoice1:=Close,InputChoice2::=Close)", "FG", "", "Close",$B$2,A21, "all","", "","True","T")/100 -> 0.4311250544 | BG21: -0.66 | BH21: 3
A22: -18 | C22: =RTD("cqg.rtd",,"StudyData", "Correlation("&$B$3&","&C$2&",Period:="&$B$1&",InputChoice1::=Close,InputChoice2::=Close)", "FG", "", "Close",$B$2,A22, "all","", "","True","T")/100 -> 0.8735560701 | E22: -0.64 | F22: 0 | I22: =RTD("cqg.rtd",,"StudyData", "Correlation("&$B$3&","&I$2&",Period:="&$B$1&",InputChoice1:=Close,InputChoice2::=Close)", "FG", "", "Close",$B$2,A22, "all","", "","True","T")/100 -> 0.8536516577 | K22: -0.64 | L22: 0 | O22: =RTD("cqg.rtd",,"StudyData", "Correlation("&$B$3&","&O$2&",Period:="&$B$1&",InputChoice1:=Close,InputChoice2::=Close)", "FG", "", "Close",$B$2,A22, "all","", "","True","T")/100 -> 0.6223189213 | Q22: -0.64 | R22: 0 | U22: =RTD("cqg.rtd",,"StudyData", "Correlation("&$B$3&","&U$2&",Period:="&$B$1&",InputChoice1:=Close,InputChoice2::=Close)", "FG", "", "Close",$B$2,A22, "all","", "","True","T")/100 -> 0.8742348418 | W22: -0.64 | X22: 0 | AA22: =RTD("cqg.rtd",,"StudyData", "Correlation("&$B$3&","&AA$2&",Period:="&$B$1&",InputChoice1:=Close,InputChoice2::=Close)", "FG", "", "Close",$B$2,A22, "all","", "","True","T")/100 -> 0.3302239899 | AC22: -0.64 | AD22: 1 | AG22: =RTD("cqg.rtd",,"StudyData", "Correlation("&$B$3&","&AG$2&",Period:="&$B$1&",InputChoice1:=Close,InputChoice2::=Close)", "FG", "", "Close",$B$2,A22, "all","", "","True","T")/100 -> 0.3868808519 | AI22: -0.64 | AJ22: 0 | AM22: =RTD("cqg.rtd",,"StudyData", "Correlation("&$B$3&","&AM$2&",Period:="&$B$1&",InputChoice1:=Close,InputChoice2::=Close)", "FG", "", "Close",$B$2,A22, "all","", "","True","T")/100 -> 0.3077166362 | AO22: -0.64 | AP22: 1 | AS22: =RTD("cqg.rtd",,"StudyData", "Correlation("&$B$3&","&AS$2&",Period:="&$B$1&",InputChoice1:=Close,InputChoice2::=Close)", "FG", "", "Close",$B$2,A22, "all","", "","True","T")/100 -> 0.2254562146 | AU22: -0.64 | AV22: 0 | AY22: =RTD("cqg.rtd",,"StudyData", "Correlation("&$B$3&","&AY$2&",Period:="&$B$1&",InputChoice1:=Close,InputChoice2::=Close)", "FG", "", "Close",$B$2,A22, "all","", "","True","T")/100 -> -0.8340187895 | BA22: -0.64 | BB22: 1 | BE22: =RTD("cqg.rtd",,"StudyData", "Correlation("&$B$3&","&BE$2&",Period:="&$B$1&",InputChoice1:=Close,InputChoice2::=Close)", "FG", "", "Close",$B$2,A22, "all","", "","True","T")/100 -> 0.3046957116 | BG22: -0.64 | BH22: 1
A23: -19 | C23: =RTD("cqg.rtd",,"StudyData", "Correlation("&$B$3&","&C$2&",Period:="&$B$1&",InputChoice1::=Close,InputChoice2::=Close)", "FG", "", "Close",$B$2,A23, "all","", "","True","T")/100 -> 0.7236719776 | E23: -0.62 | F23: 0 | I23: =RTD("cqg.rtd",,"StudyData", "Correlation("&$B$3&","&I$2&",Period:="&$B$1&",InputChoice1:=Close,InputChoice2::=Close)", "FG", "", "Close",$B$2,A23, "all","", "","True","T")/100 -> 0.7166779566 | K23: -0.62 | L23: 0 | O23: =RTD("cqg.rtd",,"StudyData", "Correlation("&$B$3&","&O$2&",Period:="&$B$1&",InputChoice1:=Close,InputChoice2::=Close)", "FG", "", "Close",$B$2,A23, "all","", "","True","T")/100 -> 0.2906659939 | Q23: -0.62 | R23: 0 | U23: =RTD("cqg.rtd",,"StudyData", "Correlation("&$B$3&","&U$2&",Period:="&$B$1&",InputChoice1:=Close,InputChoice2::=Close)", "FG", "", "Close",$B$2,A23, "all","", "","True","T")/100 -> 0.802712389 | W23: -0.62 | X23: 1 | AA23: =RTD("cqg.rtd",,"StudyData", "Correlation("&$B$3&","&AA$2&",Period:="&$B$1&",InputChoice1:=Close,InputChoice2::=Close)", "FG", "", "Close",$B$2,A23, "all","", "","True","T")/100 -> 0.1744672385 | AC23: -0.62 | AD23: 0 | AG23: =RTD("cqg.rtd",,"StudyData", "Correlation("&$B$3&","&AG$2&",Period:="&$B$1&",InputChoice1:=Close,InputChoice2::=Close)", "FG", "", "Close",$B$2,A23, "all","", "","True","T")/100 -> 0.2487362397 | AI23: -0.62 | AJ23: 0 | AM23: =RTD("cqg.rtd",,"StudyData", "Correlation("&$B$3&","&AM$2&",Period:="&$B$1&",InputChoice1:=Close,InputChoice2::=Close)", "FG", "", "Close",$B$2,A23, "all","", "","True","T")/100 -> 0.1836447166 | AO23: -0.62 | AP23: 1 | AS23: =RTD("cqg.rtd",,"StudyData", "Correlation("&$B$3&","&AS$2&",Period:="&$B$1&",InputChoice1:=Close,InputChoice2::=Close)", "FG", "", "Close",$B$2,A23, "all","", "","True","T")/100 -> 0.2849149476 | AU23: -0.62 | AV23: 0 | AY23: =RTD("cqg.rtd",,"StudyData", "Correlation("&$B$3&","&AY$2&",Period:="&$B$1&",InputChoice1:=Close,InputChoice2::=Close)", "FG", "", "Close",$B$2,A23, "all","", "","True","T")/100 -> -0.7559159358 | BA23: -0.62 | BB23: 1 | BE23: =RTD("cqg.rtd",,"StudyData", "Correlation("&$B$3&","&BE$2&",Period:="&$B$1&",InputChoice1:=Close,InputChoice2::=Close)", "FG", "", "Close",$B$2,A23, "all","", "","True","T")/100 -> 0.1641061901 | BG23: -0.62 | BH23: 0
A24: -20 | C24: =RTD("cqg.rtd",,"StudyData", "Correlation("&$B$3&","&C$2&",Period:="&$B$1&",InputChoice1::=Close,InputChoice2::=Close)", "FG", "", "Close",$B$2,A24, "all","", "","True","T")/100 -> 0.5584290601 | E24: -0.6 | F24: 0 | I24: =RTD("cqg.rtd",,"StudyData", "Correlation("&$B$3&","&I$2&",Period:="&$B$1&",InputChoice1:=Close,InputChoice2::=Close)", "FG", "", "Close",$B$2,A24, "all","", "","True","T")/100 -> 0.5066732896 | K24: -0.6 | L24: 0 | O24: =RTD("cqg.rtd",,"StudyData", "Correlation("&$B$3&","&O$2&",Period:="&$B$1&",InputChoice1:=Close,InputChoice2::=Close)", "FG", "", "Close",$B$2,A24, "all","", "","True","T")/100 -> 0.2208860102 | Q24: -0.6 | R24: 0 | U24: =RTD("cqg.rtd",,"StudyData", "Correlation("&$B$3&","&U$2&",Period:="&$B$1&",InputChoice1:=Close,InputChoice2::=Close)", "FG", "", "Close",$B$2,A24, "all","", "","True","T")/100 -> 0.5978881276 | W24: -0.6 | X24: 1 | AA24: =RTD("cqg.rtd",,"StudyData", "Correlation("&$B$3&","&AA$2&",Period:="&$B$1&",InputChoice1:=Close,InputChoice2::=Close)", "FG", "", "Close",$B$2,A24, "all","", "","True","T")/100 -> -0.1773194498 | AC24: -0.6 | AD24: 1 | AG24: =RTD("cqg.rtd",,"StudyData", "Correlation("&$B$3&","&AG$2&",Period:="&$B$1&",InputChoice1:=Close,InputChoice2::=Close)", "FG", "", "Close",$B$2,A24, "all","", "","True","T")/100 -> -0.0616355068 | AI24: -0.6 | AJ24: 1 | AM24: =RTD("cqg.rtd",,"StudyData", "Correlation("&$B$3&","&AM$2&",Period:="&$B$1&",InputChoice1:=Close,InputChoice2::=Close)", "FG", "", "Close",$B$2,A24, "all","", "","True","T")/100 -> -0.1294480893 | AO24: -0.6 | AP24: 0 | AS24: =RTD("cqg.rtd",,"StudyData", "Correlation("&$B$3&","&AS$2&",Period:="&$B$1&",InputChoice1:=Close,InputChoice2::=Close)", "FG", "", "Close",$B$2,A24, "all","", "","True","T")/100 -> -0.0037779197 | AU24: -0.6 | AV24: 1 | AY24: =RTD("cqg.rtd",,"StudyData", "Correlation("&$B$3&","&AY$2&",Period:="&$B$1&",InputChoice1:=Close,InputChoice2::=Close)", "FG", "", "Close",$B$2,A24, "all","", "","True","T")/100 -> -0.8208405686 | BA24: -0.6 | BB24: 2 | BE24: =RTD("cqg.rtd",,"StudyData", "Correlation("&$B$3&","&BE$2&",Period:="&$B$1&",InputChoice1:=Close,InputChoice2::=Close)", "FG", "", "Close",$B$2,A24, "all","", "","True","T")/100 -> -0.2440809278 | BG24: -0.6 | BH24: 0
A25: -21 | C25: =RTD("cqg.rtd",,"StudyData", "Correlation("&$B$3&","&C$2&",Period:="&$B$1&",InputChoice1::=Close,InputChoice2::=Close)", "FG", "", "Close",$B$2,A25, "all","", "","True","T")/100 -> 0.5396565611 | E25: -0.58 | F25: 0 | I25: =RTD("cqg.rtd",,"StudyData", "Correlation("&$B$3&","&I$2&",Period:="&$B$1&",InputChoice1:=Close,InputChoice2::=Close)", "FG", "", "Close",$B$2,A25, "all","", "","True","T")/100 -> 0.4782465775 | K25: =K24+0.02 -> -0.58 | L25: 1 | O25: =RTD("cqg.rtd",,"StudyData", "Correlation("&$B$3&","&O$2&",Period:="&$B$1&",InputChoice1:=Close,InputChoice2::=Close)", "FG", "", "Close",$B$2,A25, "all","", "","True","T")/100 -> 0.3907481413 | Q25: -0.58 | R25: 0 | U25: =RTD("cqg.rtd",,"StudyData", "Correlation("&$B$3&","&U$2&",Period:="&$B$1&",InputChoice1:=Close,InputChoice2::=Close)", "FG", "", "Close",$B$2,A25, "all","", "","True","T")/100 -> 0.5450472823 | W25: -0.58 | X25: 0 | AA25: =RTD("cqg.rtd",,"StudyData", "Correlation("&$B$3&","&AA$2&",Period:="&$B$1&",InputChoice1:=Close,InputChoice2::=Close)", "FG", "", "Close",$B$2,A25, "all","", "","True","T")/100 -> -0.4255163224 | AC25: -0.58 | AD25: 0 | AG25: =RTD("cqg.rtd",,"StudyData", "Correlation("&$B$3&","&AG$2&",Period:="&$B$1&",InputChoice1:=Close,InputChoice2::=Close)", "FG", "", "Close",$B$2,A25, "all","", "","True","T")/100 -> -0.2548847113 | AI25: -0.58 | AJ25: 0 | AM25: =RTD("cqg.rtd",,"StudyData", "Correlation("&$B$3&","&AM$2&",Period:="&$B$1&",InputChoice1:=Close,InputChoice2::=Close)", "FG", "", "Close",$B$2,A25, "all","", "","True","T")/100 -> -0.2970352441 | AO25: -0.58 | AP25: 1 | AS25: =RTD("cqg.rtd",,"StudyData", "Correlation("&$B$3&","&AS$2&",Period:="&$B$1&",InputChoice1:=Close,InputChoice2::=Close)", "FG", "", "Close",$B$2,A25, "all","", "","True","T")/100 -> -0.0701459488 | AU25: -0.58 | AV25: 1 | AY25: =RTD("cqg.rtd",,"StudyData", "Correlation("&$B$3&","&AY$2&",Period:="&$B$1&",InputChoice1:=Close,InputChoice2::=Close)", "FG", "", "Close",$B$2,A25, "all","", "","True","T")/100 -> -0.7161779862 | BA25: -0.58 | BB25: 1 | BE25: =RTD("cqg.rtd",,"StudyData", "Correlation("&$B$3&","&BE$2&",Period:="&$B$1&",InputChoice1:=Close,InputChoice2::=Close)", "FG", "", "Close",$B$2,A25, "all","", "","True","T")/100 -> -0.4786888887 | BG25: -0.58 | BH25: 0
A26: -22 | C26: =RTD("cqg.rtd",,"StudyData", "Correlation("&$B$3&","&C$2&",Period:="&$B$1&",InputChoice1::=Close,InputChoice2::=Close)", "FG", "", "Close",$B$2,A26, "all","", "","True","T")/100 -> 0.3392649247 | E26: -0.56 | F26: 0 | I26: =RTD("cqg.rtd",,"StudyData", "Correlation("&$B$3&","&I$2&",Period:="&$B$1&",InputChoice1:=Close,InputChoice2::=Close)", "FG", "", "Close",$B$2,A26, "all","", "","True","T")/100 -> 0.2601526343 | K26: -0.56 | L26: 0 | O26: =RTD("cqg.rtd",,"StudyData", "Correlation("&$B$3&","&O$2&",Period:="&$B$1&",InputChoice1:=Close,InputChoice2::=Close)", "FG", "", "Close",$B$2,A26, "all","", "","True","T")/100 -> 0.3879028017 | Q26: -0.56 | R26: 0 | U26: =RTD("cqg.rtd",,"StudyData", "Correlation("&$B$3&","&U$2&",Period:="&$B$1&",InputChoice1:=Close,InputChoice2::=Close)", "FG", "", "Close",$B$2,A26, "all","", "","True","T")/100 -> 0.359404367 | W26: -0.56 | X26: 0 | AA26: =RTD("cqg.rtd",,"StudyData", "Correlation("&$B$3&","&AA$2&",Period:="&$B$1&",InputChoice1:=Close,InputChoice2::=Close)", "FG", "", "Close",$B$2,A26, "all","", "","True","T")/100 -> -0.3863035253 | AC26: -0.56 | AD26: 3 | AG26: =RTD("cqg.rtd",,"StudyData", "Correlation("&$B$3&","&AG$2&",Period:="&$B$1&",InputChoice1:=Close,InputChoice2::=Close)", "FG", "", "Close",$B$2,A26, "all","", "","True","T")/100 -> -0.2217715557 | AI26: -0.56 | AJ26: 0 | AM26: =RTD("cqg.rtd",,"StudyData", "Correlation("&$B$3&","&AM$2&",Period:="&$B$1&",InputChoice1:=Close,InputChoice2::=Close)", "FG", "", "Close",$B$2,A26, "all","", "","True","T")/100 -> -0.3151789374 | AO26: -0.56 | AP26: 1 | AS26: =RTD("cqg.rtd",,"StudyData", "Correlation("&$B$3&","&AS$2&",Period:="&$B$1&",InputChoice1:=Close,InputChoice2::=Close)", "FG", "", "Close",$B$2,A26, "all","", "","True","T")/100 -> -0.1344384396 | AU26: -0.56 | AV26: 0 | AY26: =RTD("cqg.rtd",,"StudyData", "Correlation("&$B$3&","&AY$2&",Period:="&$B$1&",InputChoice1:=Close,InputChoice2::=Close)", "FG", "", "Close",$B$2,A26, "all","", "","True","T")/100 -> 0.0203263175 | BA26: -0.56 | BB26: 1 | BE26: =RTD("cqg.rtd",,"StudyData", "Correlation("&$B$3&","&BE$2&",Period:="&$B$1&",InputChoice1:=Close,InputChoice2::=Close)", "FG", "", "Close",$B$2,A26, "all","", "","True","T")/100 -> 0.0684930188 | BG26: -0.56 | BH26: 1
A27: -23 | C27: =RTD("cqg.rtd",,"StudyData", "Correlation("&$B$3&","&C$2&",Period:="&$B$1&",InputChoice1::=Close,InputChoice2::=Close)", "FG", "", "Close",$B$2,A27, "all","", "","True","T")/100 -> 0.0157691691 | E27: -0.54 | F27: 0 | I27: =RTD("cqg.rtd",,"StudyData", "Correlation("&$B$3&","&I$2&",Period:="&$B$1&",InputChoice1:=Close,InputChoice2::=Close)", "FG", "", "Close",$B$2,A27, "all","", "","True","T")/100 -> -0.0629717204 | K27: -0.54 | L27: 1 | O27: =RTD("cqg.rtd",,"StudyData", "Correlation("&$B$3&","&O$2&",Period:="&$B$1&",InputChoice1:=Close,InputChoice2::=Close)", "FG", "", "Close",$B$2,A27, "all","", "","True","T")/100 -> 0.2834331277 | Q27: -0.54 | R27: 0 | U27: =RTD("cqg.rtd",,"StudyData", "Correlation("&$B$3&","&U$2&",Period:="&$B$1&",InputChoice1:=Close,InputChoice2::=Close)", "FG", "", "Close",$B$2,A27, "all","", "","True","T")/100 -> 0.0844438923 | W27: -0.54 | X27: 0 | AA27: =RTD("cqg.rtd",,"StudyData", "Correlation("&$B$3&","&AA$2&",Period:="&$B$1&",InputChoice1:=Close,InputChoice2::=Close)", "FG", "", "Close",$B$2,A27, "all","", "","True","T")/100 -> -0.4812666223 | AC27: -0.54 | AD27: 0 | AG27: =RTD("cqg.rtd",,"StudyData", "Correlation("&$B$3&","&AG$2&",Period:="&$B$1&",InputChoice1:=Close,InputChoice2::=Close)", "FG", "", "Close",$B$2,A27, "all","", "","True","T")/100 -> -0.3436729497 | AI27: -0.54 | AJ27: 2 | AM27: =RTD("cqg.rtd",,"StudyData", "Correlation("&$B$3&","&AM$2&",Period:="&$B$1&",InputChoice1:=Close,InputChoice2::=Close)", "FG", "", "Close",$B$2,A27, "all","", "","True","T")/100 -> -0.4261396505 | AO27: -0.54 | AP27: 0 | AS27: =RTD("cqg.rtd",,"StudyData", "Correlation("&$B$3&","&AS$2&",Period:="&$B$1&",InputChoice1:=Close,InputChoice2::=Close)", "FG", "", "Close",$B$2,A27, "all","", "","True","T")/100 -> 0.2400993688 | AU27: -0.54 | AV27: 0 | AY27: =RTD("cqg.rtd",,"StudyData", "Correlation("&$B$3&","&AY$2&",Period:="&$B$1&",InputChoice1:=Close,InputChoice2::=Close)", "FG", "", "Close",$B$2,A27, "all","", "","True","T")/100 -> 0.3510943911 | BA27: -0.54 | BB27: 0 | BE27: =RTD("cqg.rtd",,"StudyData", "Correlation("&$B$3&","&BE$2&",Period:="&$B$1&",InputChoice1:=Close,InputChoice2::=Close)", "FG", "", "Close",$B$2,A27, "all","", "","True","T")/100 -> 0.1608947349 | BG27: -0.54 | BH27: 0
A28: -24 | C28: =RTD("cqg.rtd",,"StudyData", "Correlation("&$B$3&","&C$2&",Period:="&$B$1&",InputChoice1::=Close,InputChoice2::=Close)", "FG", "", "Close",$B$2,A28, "all","", "","True","T")/100 -> -0.2544571611 | E28: -0.52 | F28: 0 | I28: =RTD("cqg.rtd",,"StudyData", "Correlation("&$B$3&","&I$2&",Period:="&$B$1&",InputChoice1:=Close,InputChoice2::=Close)", "FG", "", "Close",$B$2,A28, "all","", "","True","T")/100 -> -0.3487411986 | K28: -0.52 | L28: 0 | O28: =RTD("cqg.rtd",,"StudyData", "Correlation("&$B$3&","&O$2&",Period:="&$B$1&",InputChoice1:=Close,InputChoice2::=Close)", "FG", "", "Close",$B$2,A28, "all","", "","True","T")/100 -> 0.1603850902 | Q28: -0.52 | R28: 0 | U28: =RTD("cqg.rtd",,"StudyData", "Correlation("&$B$3&","&U$2&",Period:="&$B$1&",InputChoice1:=Close,InputChoice2::=Close)", "FG", "", "Close",$B$2,A28, "all","", "","True","T")/100 -> -0.1823989647 | W28: -0.52 | X28: 0 | AA28: =RTD("cqg.rtd",,"StudyData", "Correlation("&$B$3&","&AA$2&",Period:="&$B$1&",InputChoice1:=Close,InputChoice2::=Close)", "FG", "", "Close",$B$2,A28, "all","", "","True","T")/100 -> -0.6488685405 | AC28: -0.52 | AD28: 0 | AG28: =RTD("cqg.rtd",,"StudyData", "Correlation("&$B$3&","&AG$2&",Period:="&$B$1&",InputChoice1:=Close,InputChoice2::=Close)", "FG", "", "Close",$B$2,A28, "all","", "","True","T")/100 -> -0.5460130214 | AI28: -0.52 | AJ28: 0 | AM28: =RTD("cqg.rtd",,"StudyData", "Correlation("&$B$3&","&AM$2&",Period:="&$B$1&",InputChoice1:=Close,InputChoice2::=Close)", "FG", "", "Close",$B$2,A28, "all","", "","True","T")/100 -> -0.6575349445 | AO28: -0.52 | AP28: 1 | AS28: =RTD("cqg.rtd",,"StudyData", "Correlation("&$B$3&","&AS$2&",Period:="&$B$1&",InputChoice1:=Close,InputChoice2::=Close)", "FG", "", "Close",$B$2,A28, "all","", "","True","T")/100 -> 0.6278386189 | AU28: -0.52 | AV28: 0 | AY28: =RTD("cqg.rtd",,"StudyData", "Correlation("&$B$3&","&AY$2&",Period:="&$B$1&",InputChoice1:=Close,InputChoice2::=Close)", "FG", "", "Close",$B$2,A28, "all","", "","True","T")/100 -> 0.7520607888 | BA28: -0.52 | BB28: 0 | BE28: =RTD("cqg.rtd",,"StudyData", "Correlation("&$B$3&","&BE$2&",Period:="&$B$1&",InputChoice1:=Close,InputChoice2::=Close)", "FG", "", "Close",$B$2,A28, "all","", "","True","T")/100 -> 0.0540367001 | BG28: -0.52 | BH28: 1
A29: -25 | C29: =RTD("cqg.rtd",,"StudyData", "Correlation("&$B$3&","&C$2&",Period:="&$B$1&",InputChoice1::=Close,InputChoice2::=Close)", "FG", "", "Close",$B$2,A29, "all","", "","True","T")/100 -> -0.1228555017 | E29: -0.5 | F29: 0 | I29: =RTD("cqg.rtd",,"StudyData", "Correlation("&$B$3&","&I$2&",Period:="&$B$1&",InputChoice1:=Close,InputChoice2::=Close)", "FG", "", "Close",$B$2,A29, "all","", "","True","T")/100 -> -0.2494575537 | K29: -0.5 | L29: 1 | O29: =RTD("cqg.rtd",,"StudyData", "Correlation("&$B$3&","&O$2&",Period:="&$B$1&",InputChoice1:=Close,InputChoice2::=Close)", "FG", "", "Close",$B$2,A29, "all","", "","True","T")/100 -> 0.025725539 | Q29: -0.5 | R29: 0 | U29: =RTD("cqg.rtd",,"StudyData", "Correlation("&$B$3&","&U$2&",Period:="&$B$1&",InputChoice1:=Close,InputChoice2::=Close)", "FG", "", "Close",$B$2,A29, "all","", "","True","T")/100 -> -0.1046995802 | W29: -0.5 | X29: 0 | AA29: =RTD("cqg.rtd",,"StudyData", "Correlation("&$B$3&","&AA$2&",Period:="&$B$1&",InputChoice1:=Close,InputChoice2::=Close)", "FG", "", "Close",$B$2,A29, "all","", "","True","T")/100 -> -0.5607585611 | AC29: -0.5 | AD29: 0 | AG29: =RTD("cqg.rtd",,"StudyData", "Correlation("&$B$3&","&AG$2&",Period:="&$B$1&",InputChoice1:=Close,InputChoice2::=Close)", "FG", "", "Close",$B$2,A29, "all","", "","True","T")/100 -> -0.4705208353 | AI29: -0.5 | AJ29: 1 | AM29: =RTD("cqg.rtd",,"StudyData", "Correlation("&$B$3&","&AM$2&",Period:="&$B$1&",InputChoice1:=Close,InputChoice2::=Close)", "FG", "", "Close",$B$2,A29, "all","", "","True","T")/100 -> -0.5625521777 | AO29: -0.5 | AP29: 0 | AS29: =RTD("cqg.rtd",,"StudyData", "Correlation("&$B$3&","&AS$2&",Period:="&$B$1&",InputChoice1:=Close,InputChoice2::=Close)", "FG", "", "Close",$B$2,A29, "all","", "","True","T")/100 -> 0.7826198265 | AU29: -0.5 | AV29: 1 | AY29: =RTD("cqg.rtd",,"StudyData", "Correlation("&$B$3&","&AY$2&",Period:="&$B$1&",InputChoice1:=Close,InputChoice2::=Close)", "FG", "", "Close",$B$2,A29, "all","", "","True","T")/100 -> 0.6117478074 | BA29: -0.5 | BB29: 0 | BE29: =RTD("cqg.rtd",,"StudyData", "Correlation("&$B$3&","&BE$2&",Period:="&$B$1&",InputChoice1:=Close,InputChoice2::=Close)", "FG", "", "Close",$B$2,A29, "all","", "","True","T")/100 -> 0.0928513732 | BG29: -0.5 | BH29: 0
A30: -26 | C30: =RTD("cqg.rtd",,"StudyData", "Correlation("&$B$3&","&C$2&",Period:="&$B$1&",InputChoice1::=Close,InputChoice2::=Close)", "FG", "", "Close",$B$2,A30, "all","", "","True","T")/100 -> -0.4014352194 | E30: -0.48 | F30: 0 | I30: =RTD("cqg.rtd",,"StudyData", "Correlation("&$B$3&","&I$2&",Period:="&$B$1&",InputChoice1:=Close,InputChoice2::=Close)", "FG", "", "Close",$B$2,A30, "all","", "","True","T")/100 -> -0.543651941 | K30: -0.48 | L30: 0 | O30: =RTD("cqg.rtd",,"StudyData", "Correlation("&$B$3&","&O$2&",Period:="&$B$1&",InputChoice1:=Close,InputChoice2::=Close)", "FG", "", "Close",$B$2,A30, "all","", "","True","T")/100 -> -0.1220093557 | Q30: -0.48 | R30: 0 | U30: =RTD("cqg.rtd",,"StudyData", "Correlation("&$B$3&","&U$2&",Period:="&$B$1&",InputChoice1:=Close,InputChoice2::=Close)", "FG", "", "Close",$B$2,A30, "all","", "","True","T")/100 -> -0.3800828168 | W30: -0.48 | X30: 0 | AA30: =RTD("cqg.rtd",,"StudyData", "Correlation("&$B$3&","&AA$2&",Period:="&$B$1&",InputChoice1:=Close,InputChoice2::=Close)", "FG", "", "Close",$B$2,A30, "all","", "","True","T")/100 -> -0.6195198552 | AC30: -0.48 | AD30: 1 | AG30: =RTD("cqg.rtd",,"StudyData", "Correlation("&$B$3&","&AG$2&",Period:="&$B$1&",InputChoice1:=Close,InputChoice2::=Close)", "FG", "", "Close",$B$2,A30, "all","", "","True","T")/100 -> -0.6030688616 | AI30: -0.48 | AJ30: 0 | AM30: =RTD("cqg.rtd",,"StudyData", "Correlation("&$B$3&","&AM$2&",Period:="&$B$1&",InputChoice1:=Close,InputChoice2::=Close)", "FG", "", "Close",$B$2,A30, "all","", "","True","T")/100 -> -0.7075746872 | AO30: -0.48 | AP30: 0 | AS30: =RTD("cqg.rtd",,"StudyData", "Correlation("&$B$3&","&AS$2&",Period:="&$B$1&",InputChoice1:=Close,InputChoice2::=Close)", "FG", "", "Close",$B$2,A30, "all","", "","True","T")/100 -> 0.7700943741 | AU30: -0.48 | AV30: 1 | AY30: =RTD("cqg.rtd",,"StudyData", "Correlation("&$B$3&","&AY$2&",Period:="&$B$1&",InputChoice1:=Close,InputChoice2::=Close)", "FG", "", "Close",$B$2,A30, "all","", "","True","T")/100 -> 0.7247661173 | BA30: -0.48 | BB30: 0 | BE30: =RTD("cqg.rtd",,"StudyData", "Correlation("&$B$3&","&BE$2&",Period:="&$B$1&",InputChoice1:=Close,InputChoice2::=Close)", "FG", "", "Close",$B$2,A30, "all","", "","True","T")/100 -> 0.0514561327 | BG30: -0.48 | BH30: 1
A31: -27 | C31: =RTD("cqg.rtd",,"StudyData", "Correlation("&$B$3&","&C$2&",Period:="&$B$1&",InputChoice1::=Close,InputChoice2::=Close)", "FG", "", "Close",$B$2,A31, "all","", "","True","T")/100 -> -0.1600568823 | E31: -0.46 | F31: 0 | I31: =RTD("cqg.rtd",,"StudyData", "Correlation("&$B$3&","&I$2&",Period:="&$B$1&",InputChoice1:=Close,InputChoice2::=Close)", "FG", "", "Close",$B$2,A31, "all","", "","True","T")/100 -> -0.4709915776 | K31: -0.46 | L31: 1 | O31: =RTD("cqg.rtd",,"StudyData", "Correlation("&$B$3&","&O$2&",Period:="&$B$1&",InputChoice1:=Close,InputChoice2::=Close)", "FG", "", "Close",$B$2,A31, "all","", "","True","T")/100 -> 0.2848044104 | Q31: -0.46 | R31: 0 | U31: =RTD("cqg.rtd",,"StudyData", "Correlation("&$B$3&","&U$2&",Period:="&$B$1&",InputChoice1:=Close,InputChoice2::=Close)", "FG", "", "Close",$B$2,A31, "all","", "","True","T")/100 -> -0.3291936377 | W31: -0.46 | X31: 0 | AA31: =RTD("cqg.rtd",,"StudyData", "Correlation("&$B$3&","&AA$2&",Period:="&$B$1&",InputChoice1:=Close,InputChoice2::=Close)", "FG", "", "Close",$B$2,A31, "all","", "","True","T")/100 -> -0.5695828538 | AC31: -0.46 | AD31: 1 | AG31: =RTD("cqg.rtd",,"StudyData", "Correlation("&$B$3&","&AG$2&",Period:="&$B$1&",InputChoice1:=Close,InputChoice2::=Close)", "FG", "", "Close",$B$2,A31, "all","", "","True","T")/100 -> -0.555921778 | AI31: -0.46 | AJ31: 1 | AM31: =RTD("cqg.rtd",,"StudyData", "Correlation("&$B$3&","&AM$2&",Period:="&$B$1&",InputChoice1:=Close,InputChoice2::=Close)", "FG", "", "Close",$B$2,A31, "all","", "","True","T")/100 -> -0.6776541524 | AO31: -0.46 | AP31: 0 | AS31: =RTD("cqg.rtd",,"StudyData", "Correlation("&$B$3&","&AS$2&",Period:="&$B$1&",InputChoice1:=Close,InputChoice2::=Close)", "FG", "", "Close",$B$2,A31, "all","", "","True","T")/100 -> 0.6445271102 | AU31: -0.46 | AV31: 1 | AY31: =RTD("cqg.rtd",,"StudyData", "Correlation("&$B$3&","&AY$2&",Period:="&$B$1&",InputChoice1:=Close,InputChoice2::=Close)", "FG", "", "Close",$B$2,A31, "all","", "","True","T")/100 -> 0.6917975755 | BA31: -0.46 | BB31: 2 | BE31: =RTD("cqg.rtd",,"StudyData", "Correlation("&$B$3&","&BE$2&",Period:="&$B$1&",InputChoice1:=Close,InputChoice2::=Close)", "FG", "", "Close",$B$2,A31, "all","", "","True","T")/100 -> 0.2140369864 | BG31: -0.46 | BH31: 2
A32: -28 | C32: =RTD("cqg.rtd",,"StudyData", "Correlation("&$B$3&","&C$2&",Period:="&$B$1&",InputChoice1::=Close,InputChoice2::=Close)", "FG", "", "Close",$B$2,A32, "all","", "","True","T")/100 -> 0.1556669798 | E32: -0.44 | F32: 0 | I32: =RTD("cqg.rtd",,"StudyData", "Correlation("&$B$3&","&I$2&",Period:="&$B$1&",InputChoice1:=Close,InputChoice2::=Close)", "FG", "", "Close",$B$2,A32, "all","", "","True","T")/100 -> -0.2539803209 | K32: -0.44 | L32: 0 | O32: =RTD("cqg.rtd",,"StudyData", "Correlation("&$B$3&","&O$2&",Period:="&$B$1&",InputChoice1:=Close,InputChoice2::=Close)", "FG", "", "Close",$B$2,A32, "all","", "","True","T")/100 -> 0.6598967177 | Q32: -0.44 | R32: 0 | U32: =RTD("cqg.rtd",,"StudyData", "Correlation("&$B$3&","&U$2&",Period:="&$B$1&",InputChoice1:=Close,InputChoice2::=Close)", "FG", "", "Close",$B$2,A32, "all","", "","True","T")/100 -> -0.1965089805 | W32: -0.44 | X32: 0 | AA32: =RTD("cqg.rtd",,"StudyData", "Correlation("&$B$3&","&AA$2&",Period:="&$B$1&",InputChoice1:=Close,InputChoice2::=Close)", "FG", "", "Close",$B$2,A32, "all","", "","True","T")/100 -> -0.4058140694 | AC32: -0.44 | AD32: 0 | AG32: =RTD("cqg.rtd",,"StudyData", "Correlation("&$B$3&","&AG$2&",Period:="&$B$1&",InputChoice1:=Close,InputChoice2::=Close)", "FG", "", "Close",$B$2,A32, "all","", "","True","T")/100 -> -0.3869464046 | AI32: -0.44 | AJ32: 1 | AM32: =RTD("cqg.rtd",,"StudyData", "Correlation("&$B$3&","&AM$2&",Period:="&$B$1&",InputChoice1:=Close,InputChoice2::=Close)", "FG", "", "Close",$B$2,A32, "all","", "","True","T")/100 -> -0.3461053385 | AO32: -0.44 | AP32: 1 | AS32: =RTD("cqg.rtd",,"StudyData", "Correlation("&$B$3&","&AS$2&",Period:="&$B$1&",InputChoice1:=Close,InputChoice2::=Close)", "FG", "", "Close",$B$2,A32, "all","", "","True","T")/100 -> 0.4709103218 | AU32: -0.44 | AV32: 1 | AY32: =RTD("cqg.rtd",,"StudyData", "Correlation("&$B$3&","&AY$2&",Period:="&$B$1&",InputChoice1:=Close,InputChoice2::=Close)", "FG", "", "Close",$B$2,A32, "all","", "","True","T")/100 -> 0.6173748422 | BA32: -0.44 | BB32: 0 | BE32: =RTD("cqg.rtd",,"StudyData", "Correlation("&$B$3&","&BE$2&",Period:="&$B$1&",InputChoice1:=Close,InputChoice2::=Close)", "FG", "", "Close",$B$2,A32, "all","", "","True","T")/100 -> 0.335782904 | BG32: -0.44 | BH32: 2
A33: -29 | C33: =RTD("cqg.rtd",,"StudyData", "Correlation("&$B$3&","&C$2&",Period:="&$B$1&",InputChoice1::=Close,InputChoice2::=Close)", "FG", "", "Close",$B$2,A33, "all","", "","True","T")/100 -> 0.1501640271 | E33: -0.42 | F33: 0 | I33: =RTD("cqg.rtd",,"StudyData", "Correlation("&$B$3&","&I$2&",Period:="&$B$1&",InputChoice1:=Close,InputChoice2::=Close)", "FG", "", "Close",$B$2,A33, "all","", "","True","T")/100 -> -0.3293515125 | K33: -0.42 | L33: 0 | O33: =RTD("cqg.rtd",,"StudyData", "Correlation("&$B$3&","&O$2&",Period:="&$B$1&",InputChoice1:=Close,InputChoice2::=Close)", "FG", "", "Close",$B$2,A33, "all","", "","True","T")/100 -> 0.6503890908 | Q33: -0.42 | R33: 0 | U33: =RTD("cqg.rtd",,"StudyData", "Correlation("&$B$3&","&U$2&",Period:="&$B$1&",InputChoice1:=Close,InputChoice2::=Close)", "FG", "", "Close",$B$2,A33, "all","", "","True","T")/100 -> -0.3469673483 | W33: -0.42 | X33: 0 | AA33: =RTD("cqg.rtd",,"StudyData", "Correlation("&$B$3&","&AA$2&",Period:="&$B$1&",InputChoice1:=Close,InputChoice2::=Close)", "FG", "", "Close",$B$2,A33, "all","", "","True","T")/100 -> -0.2129477013 | AC33: -0.42 | AD33: 1 | AG33: =RTD("cqg.rtd",,"StudyData", "Correlation("&$B$3&","&AG$2&",Period:="&$B$1&",InputChoice1:=Close,InputChoice2::=Close)", "FG", "", "Close",$B$2,A33, "all","", "","True","T")/100 -> -0.3535922406 | AI33: -0.42 | AJ33: 0 | AM33: =RTD("cqg.rtd",,"StudyData", "Correlation("&$B$3&","&AM$2&",Period:="&$B$1&",InputChoice1:=Close,InputChoice2::=Close)", "FG", "", "Close",$B$2,A33, "all","", "","True","T")/100 -> 0.1943227302 | AO33: -0.42 | AP33: 2 | AS33: =RTD("cqg.rtd",,"StudyData", "Correlation("&$B$3&","&AS$2&",Period:="&$B$1&",InputChoice1:=Close,InputChoice2::=Close)", "FG", "", "Close",$B$2,A33, "all","", "","True","T")/100 -> 0.3880483407 | AU33: -0.42 | AV33: 1 | AY33: =RTD("cqg.rtd",,"StudyData", "Correlation("&$B$3&","&AY$2&",Period:="&$B$1&",InputChoice1:=Close,InputChoice2::=Close)", "FG", "", "Close",$B$2,A33, "all","", "","True","T")/100 -> 0.6012167828 | BA33: -0.42 | BB33: 1 | BE33: =RTD("cqg.rtd",,"StudyData", "Correlation("&$B$3&","&BE$2&",Period:="&$B$1&",InputChoice1:=Close,InputChoice2::=Close)", "FG", "", "Close",$B$2,A33, "all","", "","True","T")/100 -> 0.3722123287 | BG33: -0.42 | BH33: 2 | BI33: 2
A34: -30 | C34: =RTD("cqg.rtd",,"StudyData", "Correlation("&$B$3&","&C$2&",Period:="&$B$1&",InputChoice1::=Close,InputChoice2::=Close)", "FG", "", "Close",$B$2,A34, "all","", "","True","T")/100 -> -0.3114386268 | E34: -0.4 | F34: 1 | I34: =RTD("cqg.rtd",,"StudyData", "Correlation("&$B$3&","&I$2&",Period:="&$B$1&",InputChoice1:=Close,InputChoice2::=Close)", "FG", "", "Close",$B$2,A34, "all","", "","True","T")/100 -> -0.5844276578 | K34: -0.4 | L34: 0 | O34: =RTD("cqg.rtd",,"StudyData", "Correlation("&$B$3&","&O$2&",Period:="&$B$1&",InputChoice1:=Close,InputChoice2::=Close)", "FG", "", "Close",$B$2,A34, "all","", "","True","T")/100 -> 0.8796409945 | Q34: -0.4 | R34: 0 | U34: =RTD("cqg.rtd",,"StudyData", "Correlation("&$B$3&","&U$2&",Period:="&$B$1&",InputChoice1:=Close,InputChoice2::=Close)", "FG", "", "Close",$B$2,A34, "all","", "","True","T")/100 -> -0.6231681807 | W34: -0.4 | X34: 0 | AA34: =RTD("cqg.rtd",,"StudyData", "Correlation("&$B$3&","&AA$2&",Period:="&$B$1&",InputChoice1:=Close,InputChoice2::=Close)", "FG", "", "Close",$B$2,A34, "all","", "","True","T")/100 -> 0.4438887028 | AC34: -0.4 | AD34: 1 | AG34: =RTD("cqg.rtd",,"StudyData", "Correlation("&$B$3&","&AG$2&",Period:="&$B$1&",InputChoice1:=Close,InputChoice2::=Close)", "FG", "", "Close",$B$2,A34, "all","", "","True","T")/100 -> 0.1753365208 | AI34: -0.4 | AJ34: 0 | AM34: =RTD("cqg.rtd",,"StudyData", "Correlation("&$B$3&","&AM$2&",Period:="&$B$1&",InputChoice1:=Close,InputChoice2::=Close)", "FG", "", "Close",$B$2,A34, "all","", "","True","T")/100 -> 0.6449892447 | AO34: -0.4 | AP34: 0 | AS34: =RTD("cqg.rtd",,"StudyData", "Correlation("&$B$3&","&AS$2&",Period:="&$B$1&",InputChoice1:=Close,InputChoice2::=Close)", "FG", "", "Close",$B$2,A34, "all","", "","True","T")/100 -> 0.2233214382 | AU34: -0.4 | AV34: 0 | AY34: =RTD("cqg.rtd",,"StudyData", "Correlation("&$B$3&","&AY$2&",Period:="&$B$1&",InputChoice1:=Close,InputChoice2::=Close)", "FG", "", "Close",$B$2,A34, "all","", "","True","T")/100 -> 0.6444307669 | BA34: -0.4 | BB34: 1 | BE34: =RTD("cqg.rtd",,"StudyData", "Correlation("&$B$3&","&BE$2&",Period:="&$B$1&",InputChoice1:=Close,InputChoice2::=Close)", "FG", "", "Close",$B$2,A34, "all","", "","True","T")/100 -> 0.4916461837 | BG34: -0.4 | BH34: 2
A35: -31 | C35: =RTD("cqg.rtd",,"StudyData", "Correlation("&$B$3&","&C$2&",Period:="&$B$1&",InputChoice1::=Close,InputChoice2::=Close)", "FG", "", "Close",$B$2,A35, "all","", "","True","T")/100 -> 0.083120729 | E35: -0.38 | F35: 0 | I35: =RTD("cqg.rtd",,"StudyData", "Correlation("&$B$3&","&I$2&",Period:="&$B$1&",InputChoice1:=Close,InputChoice2::=Close)", "FG", "", "Close",$B$2,A35, "all","", "","True","T")/100 -> -0.5116901168 | K35: -0.38 | L35: 0 | O35: =RTD("cqg.rtd",,"StudyData", "Correlation("&$B$3&","&O$2&",Period:="&$B$1&",InputChoice1:=Close,InputChoice2::=Close)", "FG", "", "Close",$B$2,A35, "all","", "","True","T")/100 -> 0.9522206959 | Q35: -0.38 | R35: 0 | U35: =RTD("cqg.rtd",,"StudyData", "Correlation("&$B$3&","&U$2&",Period:="&$B$1&",InputChoice1:=Close,InputChoice2::=Close)", "FG", "", "Close",$B$2,A35, "all","", "","True","T")/100 -> -0.6117581034 | W35: -0.38 | X35: 1 | AA35: =RTD("cqg.rtd",,"StudyData", "Correlation("&$B$3&","&AA$2&",Period:="&$B$1&",InputChoice1:=Close,InputChoice2::=Close)", "FG", "", "Close",$B$2,A35, "all","", "","True","T")/100 -> 0.8648423566 | AC35: -0.38 | AD35: 1 | AG35: =RTD("cqg.rtd",,"StudyData", "Correlation("&$B$3&","&AG$2&",Period:="&$B$1&",InputChoice1:=Close,InputChoice2::=Close)", "FG", "", "Close",$B$2,A35, "all","", "","True","T")/100 -> 0.6545939794 | AI35: -0.38 | AJ35: 1 | AM35: =RTD("cqg.rtd",,"StudyData", "Correlation("&$B$3&","&AM$2&",Period:="&$B$1&",InputChoice1:=Close,InputChoice2::=Close)", "FG", "", "Close",$B$2,A35, "all","", "","True","T")/100 -> 0.7453527917 | AO35: -0.38 | AP35: 0 | AS35: =RTD("cqg.rtd",,"StudyData", "Correlation("&$B$3&","&AS$2&",Period:="&$B$1&",InputChoice1:=Close,InputChoice2::=Close)", "FG", "", "Close",$B$2,A35, "all","", "","True","T")/100 -> 0.2002341229 | AU35: -0.38 | AV35: 0 | AY35: =RTD("cqg.rtd",,"StudyData", "Correlation("&$B$3&","&AY$2&",Period:="&$B$1&",InputChoice1:=Close,InputChoice2::=Close)", "FG", "", "Close",$B$2,A35, "all","", "","True","T")/100 -> 0.6335471741 | BA35: -0.38 | BB35: 0 | BE35: =RTD("cqg.rtd",,"StudyData", "Correlation("&$B$3&","&BE$2&",Period:="&$B$1&",InputChoice1:=Close,InputChoice2::=Close)", "FG", "", "Close",$B$2,A35, "all","", "","True","T")/100 -> 0.5359776385 | BG35: -0.38 | BH35: 0
A36: -32 | C36: =RTD("cqg.rtd",,"StudyData", "Correlation("&$B$3&","&C$2&",Period:="&$B$1&",InputChoice1::=Close,InputChoice2::=Close)", "FG", "", "Close",$B$2,A36, "all","", "","True","T")/100 -> 0.7003656764 | E36: -0.36 | F36: 0 | I36: =RTD("cqg.rtd",,"StudyData", "Correlation("&$B$3&","&I$2&",Period:="&$B$1&",InputChoice1:=Close,InputChoice2::=Close)", "FG", "", "Close",$B$2,A36, "all","", "","True","T")/100 -> 0.3657575132 | K36: -0.36 | L36: 0 | O36: =RTD("cqg.rtd",,"StudyData", "Correlation("&$B$3&","&O$2&",Period:="&$B$1&",InputChoice1:=Close,InputChoice2::=Close)", "FG", "", "Close",$B$2,A36, "all","", "","True","T")/100 -> 0.9083796314 | Q36: -0.36 | R36: 0 | U36: =RTD("cqg.rtd",,"StudyData", "Correlation("&$B$3&","&U$2&",Period:="&$B$1&",InputChoice1:=Close,InputChoice2::=Close)", "FG", "", "Close",$B$2,A36, "all","", "","True","T")/100 -> 0.1446370936 | W36: -0.36 | X36: 0 | AA36: =RTD("cqg.rtd",,"StudyData", "Correlation("&$B$3&","&AA$2&",Period:="&$B$1&",InputChoice1:=Close,InputChoice2::=Close)", "FG", "", "Close",$B$2,A36, "all","", "","True","T")/100 -> 0.8362367995 | AC36: -0.36 | AD36: 0 | AG36: =RTD("cqg.rtd",,"StudyData", "Correlation("&$B$3&","&AG$2&",Period:="&$B$1&",InputChoice1:=Close,InputChoice2::=Close)", "FG", "", "Close",$B$2,A36, "all","", "","True","T")/100 -> 0.6991299793 | AI36: -0.36 | AJ36: 0 | AM36: =RTD("cqg.rtd",,"StudyData", "Correlation("&$B$3&","&AM$2&",Period:="&$B$1&",InputChoice1:=Close,InputChoice2::=Close)", "FG", "", "Close",$B$2,A36, "all","", "","True","T")/100 -> 0.7038087749 | AO36: -0.36 | AP36: 0 | AS36: =RTD("cqg.rtd",,"StudyData", "Correlation("&$B$3&","&AS$2&",Period:="&$B$1&",InputChoice1:=Close,InputChoice2::=Close)", "FG", "", "Close",$B$2,A36, "all","", "","True","T")/100 -> 0.2588109699 | AU36: -0.36 | AV36: 1 | AY36: =RTD("cqg.rtd",,"StudyData", "Correlation("&$B$3&","&AY$2&",Period:="&$B$1&",InputChoice1:=Close,InputChoice2::=Close)", "FG", "", "Close",$B$2,A36, "all","", "","True","T")/100 -> 0.731712946 | BA36: -0.36 | BB36: 1 | BE36: =RTD("cqg.rtd",,"StudyData", "Correlation("&$B$3&","&BE$2&",Period:="&$B$1&",InputChoice1:=Close,InputChoice2::=Close)", "FG", "", "Close",$B$2,A36, "all","", "","True","T")/100 -> 0.5876281144 | BG36: -0.36 | BH36: 1
A37: -33 | C37: =RTD("cqg.rtd",,"StudyData", "Correlation("&$B$3&","&C$2&",Period:="&$B$1&",InputChoice1::=Close,InputChoice2::=Close)", "FG", "", "Close",$B$2,A37, "all","", "","True","T")/100 -> 0.7377061251 | E37: -0.34 | F37: 0 | I37: =RTD("cqg.rtd",,"StudyData", "Correlation("&$B$3&","&I$2&",Period:="&$B$1&",InputChoice1:=Close,InputChoice2::=Close)", "FG", "", "Close",$B$2,A37, "all","", "","True","T")/100 -> 0.4814711918 | K37: -0.34 | L37: 1 | O37: =RTD("cqg.rtd",,"StudyData", "Correlation("&$B$3&","&O$2&",Period:="&$B$1&",InputChoice1:=Close,InputChoice2::=Close)", "FG", "", "Close",$B$2,A37, "all","", "","True","T")/100 -> 0.9150405609 | Q37: -0.34 | R37: 0 | U37: =RTD("cqg.rtd",,"StudyData", "Correlation("&$B$3&","&U$2&",Period:="&$B$1&",InputChoice1:=Close,InputChoice2::=Close)", "FG", "", "Close",$B$2,A37, "all","", "","True","T")/100 -> 0.2926176406 | W37: -0.34 | X37: 1 | AA37: =RTD("cqg.rtd",,"StudyData", "Correlation("&$B$3&","&AA$2&",Period:="&$B$1&",InputChoice1:=Close,InputChoice2::=Close)", "FG", "", "Close",$B$2,A37, "all","", "","True","T")/100 -> 0.7489371376 | AC37: -0.34 | AD37: 0 | AG37: =RTD("cqg.rtd",,"StudyData", "Correlation("&$B$3&","&AG$2&",Period:="&$B$1&",InputChoice1:=Close,InputChoice2::=Close)", "FG", "", "Close",$B$2,A37, "all","", "","True","T")/100 -> 0.5995350389 | AI37: -0.34 | AJ37: 2 | AM37: =RTD("cqg.rtd",,"StudyData", "Correlation("&$B$3&","&AM$2&",Period:="&$B$1&",InputChoice1:=Close,InputChoice2::=Close)", "FG", "", "Close",$B$2,A37, "all","", "","True","T")/100 -> 0.4967699423 | AO37: -0.34 | AP37: 3 | AS37: =RTD("cqg.rtd",,"StudyData", "Correlation("&$B$3&","&AS$2&",Period:="&$B$1&",InputChoice1:=Close,InputChoice2::=Close)", "FG", "", "Close",$B$2,A37, "all","", "","True","T")/100 -> 0.5138821549 | AU37: -0.34 | AV37: 1 | AY37: =RTD("cqg.rtd",,"StudyData", "Correlation("&$B$3&","&AY$2&",Period:="&$B$1&",InputChoice1:=Close,InputChoice2::=Close)", "FG", "", "Close",$B$2,A37, "all","", "","True","T")/100 -> 0.6293321045 | BA37: -0.34 | BB37: 0 | BE37: =RTD("cqg.rtd",,"StudyData", "Correlation("&$B$3&","&BE$2&",Period:="&$B$1&",InputChoice1:=Close,InputChoice2::=Close)", "FG", "", "Close",$B$2,A37, "all","", "","True","T")/100 -> 0.3987409295 | BG37: -0.34 | BH37: 0
A38: -34 | C38: =RTD("cqg.rtd",,"StudyData", "Correlation("&$B$3&","&C$2&",Period:="&$B$1&",InputChoice1::=Close,InputChoice2::=Close)", "FG", "", "Close",$B$2,A38, "all","", "","True","T")/100 -> 0.7617635177 | E38: -0.32 | F38: 0 | I38: =RTD("cqg.rtd",,"StudyData", "Correlation("&$B$3&","&I$2&",Period:="&$B$1&",InputChoice1:=Close,InputChoice2::=Close)", "FG", "", "Close",$B$2,A38, "all","", "","True","T")/100 -> 0.6232225902 | K38: -0.32 | L38: 1 | O38: =RTD("cqg.rtd",,"StudyData", "Correlation("&$B$3&","&O$2&",Period:="&$B$1&",InputChoice1:=Close,InputChoice2::=Close)", "FG", "", "Close",$B$2,A38, "all","", "","True","T")/100 -> 0.8604063486 | Q38: -0.32 | R38: 0 | U38: =RTD("cqg.rtd",,"StudyData", "Correlation("&$B$3&","&U$2&",Period:="&$B$1&",InputChoice1:=Close,InputChoice2::=Close)", "FG", "", "Close",$B$2,A38, "all","", "","True","T")/100 -> 0.4901398207 | W38: -0.32 | X38: 1 | AA38: =RTD("cqg.rtd",,"StudyData", "Correlation("&$B$3&","&AA$2&",Period:="&$B$1&",InputChoice1:=Close,InputChoice2::=Close)", "FG", "", "Close",$B$2,A38, "all","", "","True","T")/100 -> 0.69454819 | AC38: -0.32 | AD38: 0 | AG38: =RTD("cqg.rtd",,"StudyData", "Correlation("&$B$3&","&AG$2&",Period:="&$B$1&",InputChoice1:=Close,InputChoice2::=Close)", "FG", "", "Close",$B$2,A38, "all","", "","True","T")/100 -> 0.4951208228 | AI38: -0.32 | AJ38: 0 | AM38: =RTD("cqg.rtd",,"StudyData", "Correlation("&$B$3&","&AM$2&",Period:="&$B$1&",InputChoice1:=Close,InputChoice2::=Close)", "FG", "", "Close",$B$2,A38, "all","", "","True","T")/100 -> 0.1622739707 | AO38: -0.32 | AP38: 0 | AS38: =RTD("cqg.rtd",,"StudyData", "Correlation("&$B$3&","&AS$2&",Period:="&$B$1&",InputChoice1:=Close,InputChoice2::=Close)", "FG", "", "Close",$B$2,A38, "all","", "","True","T")/100 -> 0.741758748 | AU38: -0.32 | AV38: 1 | AY38: =RTD("cqg.rtd",,"StudyData", "Correlation("&$B$3&","&AY$2&",Period:="&$B$1&",InputChoice1:=Close,InputChoice2::=Close)", "FG", "", "Close",$B$2,A38, "all","", "","True","T")/100 -> 0.3841854378 | BA38: -0.32 | BB38: 1 | BE38: =RTD("cqg.rtd",,"StudyData", "Correlation("&$B$3&","&BE$2&",Period:="&$B$1&",InputChoice1:=Close,InputChoice2::=Close)", "FG", "", "Close",$B$2,A38, "all","", "","True","T")/100 -> 0.271029843 | BG38: -0.32 | BH38: 1
A39: -35 | C39: =RTD("cqg.rtd",,"StudyData", "Correlation("&$B$3&","&C$2&",Period:="&$B$1&",InputChoice1::=Close,InputChoice2::=Close)", "FG", "", "Close",$B$2,A39, "all","", "","True","T")/100 -> 0.769320177 | E39: -0.3 | F39: 1 | I39: =RTD("cqg.rtd",,"StudyData", "Correlation("&$B$3&","&I$2&",Period:="&$B$1&",InputChoice1:=Close,InputChoice2::=Close)", "FG", "", "Close",$B$2,A39, "all","", "","True","T")/100 -> 0.6968085815 | K39: -0.3 | L39: 0 | O39: =RTD("cqg.rtd",,"StudyData", "Correlation("&$B$3&","&O$2&",Period:="&$B$1&",InputChoice1:=Close,InputChoice2::=Close)", "FG", "", "Close",$B$2,A39, "all","", "","True","T")/100 -> 0.766912557 | Q39: -0.3 | R39: 0 | U39: =RTD("cqg.rtd",,"StudyData", "Correlation("&$B$3&","&U$2&",Period:="&$B$1&",InputChoice1:=Close,InputChoice2::=Close)", "FG", "", "Close",$B$2,A39, "all","", "","True","T")/100 -> 0.5855606104 | W39: -0.3 | X39: 0 | AA39: =RTD("cqg.rtd",,"StudyData", "Correlation("&$B$3&","&AA$2&",Period:="&$B$1&",InputChoice1:=Close,InputChoice2::=Close)", "FG", "", "Close",$B$2,A39, "all","", "","True","T")/100 -> 0.7275474221 | AC39: -0.3 | AD39: 0 | AG39: =RTD("cqg.rtd",,"StudyData", "Correlation("&$B$3&","&AG$2&",Period:="&$B$1&",InputChoice1:=Close,InputChoice2::=Close)", "FG", "", "Close",$B$2,A39, "all","", "","True","T")/100 -> 0.4888714203 | AI39: -0.3 | AJ39: 0 | AM39: =RTD("cqg.rtd",,"StudyData", "Correlation("&$B$3&","&AM$2&",Period:="&$B$1&",InputChoice1:=Close,InputChoice2::=Close)", "FG", "", "Close",$B$2,A39, "all","", "","True","T")/100 -> 0.206111185 | AO39: -0.3 | AP39: 2 | AS39: =RTD("cqg.rtd",,"StudyData", "Correlation("&$B$3&","&AS$2&",Period:="&$B$1&",InputChoice1:=Close,InputChoice2::=Close)", "FG", "", "Close",$B$2,A39, "all","", "","True","T")/100 -> 0.8292422777 | AU39: -0.3 | AV39: 0 | AY39: =RTD("cqg.rtd",,"StudyData", "Correlation("&$B$3&","&AY$2&",Period:="&$B$1&",InputChoice1:=Close,InputChoice2::=Close)", "FG", "", "Close",$B$2,A39, "all","", "","True","T")/100 -> 0.0399002622 | BA39: -0.3 | BB39: 0 | BE39: =RTD("cqg.rtd",,"StudyData", "Correlation("&$B$3&","&BE$2&",Period:="&$B$1&",InputChoice1:=Close,InputChoice2::=Close)", "FG", "", "Close",$B$2,A39, "all","", "","True","T")/100 -> -0.2060028536 | BG39: -0.3 | BH39: 0
A40: -36 | C40: =RTD("cqg.rtd",,"StudyData", "Correlation("&$B$3&","&C$2&",Period:="&$B$1&",InputChoice1::=Close,InputChoice2::=Close)", "FG", "", "Close",$B$2,A40, "all","", "","True","T")/100 -> 0.7342314087 | E40: -0.28 | F40: 0 | I40: =RTD("cqg.rtd",,"StudyData", "Correlation("&$B$3&","&I$2&",Period:="&$B$1&",InputChoice1:=Close,InputChoice2::=Close)", "FG", "", "Close",$B$2,A40, "all","", "","True","T")/100 -> 0.6976739266 | K40: -0.28 | L40: 0 | O40: =RTD("cqg.rtd",,"StudyData", "Correlation("&$B$3&","&O$2&",Period:="&$B$1&",InputChoice1:=Close,InputChoice2::=Close)", "FG", "", "Close",$B$2,A40, "all","", "","True","T")/100 -> 0.6044594227 | Q40: -0.28 | R40: 0 | U40: =RTD("cqg.rtd",,"StudyData", "Correlation("&$B$3&","&U$2&",Period:="&$B$1&",InputChoice1:=Close,InputChoice2::=Close)", "FG", "", "Close",$B$2,A40, "all","", "","True","T")/100 -> 0.638532365 | W40: -0.28 | X40: 0 | AA40: =RTD("cqg.rtd",,"StudyData", "Correlation("&$B$3&","&AA$2&",Period:="&$B$1&",InputChoice1:=Close,InputChoice2::=Close)", "FG", "", "Close",$B$2,A40, "all","", "","True","T")/100 -> 0.649913637 | AC40: -0.28 | AD40: 0 | AG40: =RTD("cqg.rtd",,"StudyData", "Correlation("&$B$3&","&AG$2&",Period:="&$B$1&",InputChoice1:=Close,InputChoice2::=Close)", "FG", "", "Close",$B$2,A40, "all","", "","True","T")/100 -> 0.4082606994 | AI40: -0.28 | AJ40: 0 | AM40: =RTD("cqg.rtd",,"StudyData", "Correlation("&$B$3&","&AM$2&",Period:="&$B$1&",InputChoice1:=Close,InputChoice2::=Close)", "FG", "", "Close",$B$2,A40, "all","", "","True","T")/100 -> 0.1213061231 | AO40: -0.28 | AP40: 2 | AS40: =RTD("cqg.rtd",,"StudyData", "Correlation("&$B$3&","&AS$2&",Period:="&$B$1&",InputChoice1:=Close,InputChoice2::=Close)", "FG", "", "Close",$B$2,A40, "all","", "","True","T")/100 -> 0.8913295087 | AU40: -0.28 | AV40: 0 | AY40: =RTD("cqg.rtd",,"StudyData", "Correlation("&$B$3&","&AY$2&",Period:="&$B$1&",InputChoice1:=Close,InputChoice2::=Close)", "FG", "", "Close",$B$2,A40, "all","", "","True","T")/100 -> -0.029510339 | BA40: -0.28 | BB40: 0 | BE40: =RTD("cqg.rtd",,"StudyData", "Correlation("&$B$3&","&BE$2&",Period:="&$B$1&",InputChoice1:=Close,InputChoice2::=Close)", "FG", "", "Close",$B$2,A40, "all","", "","True","T")/100 -> -0.4138371384 | BG40: -0.28 | BH40: 0
A41: -37 | C41: =RTD("cqg.rtd",,"StudyData", "Correlation("&$B$3&","&C$2&",Period:="&$B$1&",InputChoice1::=Close,InputChoice2::=Close)", "FG", "", "Close",$B$2,A41, "all","", "","True","T")/100 -> 0.8241100895 | E41: -0.26 | F41: 0 | I41: =RTD("cqg.rtd",,"StudyData", "Correlation("&$B$3&","&I$2&",Period:="&$B$1&",InputChoice1:=Close,InputChoice2::=Close)", "FG", "", "Close",$B$2,A41, "all","", "","True","T")/100 -> 0.8922967694 | K41: -0.26 | L41: 0 | O41: =RTD("cqg.rtd",,"StudyData", "Correlation("&$B$3&","&O$2&",Period:="&$B$1&",InputChoice1:=Close,InputChoice2::=Close)", "FG", "", "Close",$B$2,A41, "all","", "","True","T")/100 -> 0.5167084018 | Q41: -0.26 | R41: 0 | U41: =RTD("cqg.rtd",,"StudyData", "Correlation("&$B$3&","&U$2&",Period:="&$B$1&",InputChoice1:=Close,InputChoice2::=Close)", "FG", "", "Close",$B$2,A41, "all","", "","True","T")/100 -> 0.8490156725 | W41: -0.26 | X41: 0 | AA41: =RTD("cqg.rtd",,"StudyData", "Correlation("&$B$3&","&AA$2&",Period:="&$B$1&",InputChoice1:=Close,InputChoice2::=Close)", "FG", "", "Close",$B$2,A41, "all","", "","True","T")/100 -> 0.5775247854 | AC41: -0.26 | AD41: 0 | AG41: =RTD("cqg.rtd",,"StudyData", "Correlation("&$B$3&","&AG$2&",Period:="&$B$1&",InputChoice1:=Close,InputChoice2::=Close)", "FG", "", "Close",$B$2,A41, "all","", "","True","T")/100 -> 0.3757112936 | AI41: -0.26 | AJ41: 0 | AM41: =RTD("cqg.rtd",,"StudyData", "Correlation("&$B$3&","&AM$2&",Period:="&$B$1&",InputChoice1:=Close,InputChoice2::=Close)", "FG", "", "Close",$B$2,A41, "all","", "","True","T")/100 -> 0.2607425744 | AO41: -0.26 | AP41: 0 | AS41: =RTD("cqg.rtd",,"StudyData", "Correlation("&$B$3&","&AS$2&",Period:="&$B$1&",InputChoice1:=Close,InputChoice2::=Close)", "FG", "", "Close",$B$2,A41, "all","", "","True","T")/100 -> 0.8532606772 | AU41: -0.26 | AV41: 0 | AY41: =RTD("cqg.rtd",,"StudyData", "Correlation("&$B$3&","&AY$2&",Period:="&$B$1&",InputChoice1:=Close,InputChoice2::=Close)", "FG", "", "Close",$B$2,A41, "all","", "","True","T")/100 -> -0.4143872729 | BA41: -0.26 | BB41: 0 | BE41: =RTD("cqg.rtd",,"StudyData", "Correlation("&$B$3&","&BE$2&",Period:="&$B$1&",InputChoice1:=Close,InputChoice2::=Close)", "FG", "", "Close",$B$2,A41, "all","", "","True","T")/100 -> -0.4302116423 | BG41: -0.26 | BH41: 0
A42: -38 | C42: =RTD("cqg.rtd",,"StudyData", "Correlation("&$B$3&","&C$2&",Period:="&$B$1&",InputChoice1::=Close,InputChoice2::=Close)", "FG", "", "Close",$B$2,A42, "all","", "","True","T")/100 -> 0.7200409667 | E42: -0.24 | F42: 1 | I42: =RTD("cqg.rtd",,"StudyData", "Correlation("&$B$3&","&I$2&",Period:="&$B$1&",InputChoice1:=Close,InputChoice2::=Close)", "FG", "", "Close",$B$2,A42, "all","", "","True","T")/100 -> 0.8802192097 | K42: -0.24 | L42: 2 | O42: =RTD("cqg.rtd",,"StudyData", "Correlation("&$B$3&","&O$2&",Period:="&$B$1&",InputChoice1:=Close,InputChoice2::=Close)", "FG", "", "Close",$B$2,A42, "all","", "","True","T")/100 -> 0.3854692693 | Q42: -0.24 | R42: 0 | U42: =RTD("cqg.rtd",,"StudyData", "Correlation("&$B$3&","&U$2&",Period:="&$B$1&",InputChoice1:=Close,InputChoice2::=Close)", "FG", "", "Close",$B$2,A42, "all","", "","True","T")/100 -> 0.877743733 | W42: -0.24 | X42: 0 | AA42: =RTD("cqg.rtd",,"StudyData", "Correlation("&$B$3&","&AA$2&",Period:="&$B$1&",InputChoice1:=Close,InputChoice2::=Close)", "FG", "", "Close",$B$2,A42, "all","", "","True","T")/100 -> 0.3801445533 | AC42: -0.24 | AD42: 1 | AG42: =RTD("cqg.rtd",,"StudyData", "Correlation("&$B$3&","&AG$2&",Period:="&$B$1&",InputChoice1:=Close,InputChoice2::=Close)", "FG", "", "Close",$B$2,A42, "all","", "","True","T")/100 -> 0.2358374488 | AI42: -0.24 | AJ42: 2 | AM42: =RTD("cqg.rtd",,"StudyData", "Correlation("&$B$3&","&AM$2&",Period:="&$B$1&",InputChoice1:=Close,InputChoice2::=Close)", "FG", "", "Close",$B$2,A42, "all","", "","True","T")/100 -> 0.2959534639 | AO42: -0.24 | AP42: 1 | AS42: =RTD("cqg.rtd",,"StudyData", "Correlation("&$B$3&","&AS$2&",Period:="&$B$1&",InputChoice1:=Close,InputChoice2::=Close)", "FG", "", "Close",$B$2,A42, "all","", "","True","T")/100 -> 0.7673747265 | AU42: -0.24 | AV42: 0 | AY42: =RTD("cqg.rtd",,"StudyData", "Correlation("&$B$3&","&AY$2&",Period:="&$B$1&",InputChoice1:=Close,InputChoice2::=Close)", "FG", "", "Close",$B$2,A42, "all","", "","True","T")/100 -> -0.7365088674 | BA42: -0.24 | BB42: 0 | BE42: =RTD("cqg.rtd",,"StudyData", "Correlation("&$B$3&","&BE$2&",Period:="&$B$1&",InputChoice1:=Close,InputChoice2::=Close)", "FG", "", "Close",$B$2,A42, "all","", "","True","T")/100 -> -0.4281569648 | BG42: -0.24 | BH42: 1
A43: -39 | C43: =RTD("cqg.rtd",,"StudyData", "Correlation("&$B$3&","&C$2&",Period:="&$B$1&",InputChoice1::=Close,InputChoice2::=Close)", "FG", "", "Close",$B$2,A43, "all","", "","True","T")/100 -> 0.6475039926 | E43: -0.22 | F43: 0 | I43: =RTD("cqg.rtd",,"StudyData", "Correlation("&$B$3&","&I$2&",Period:="&$B$1&",InputChoice1:=Close,InputChoice2::=Close)", "FG", "", "Close",$B$2,A43, "all","", "","True","T")/100 -> 0.8718722945 | K43: -0.22 | L43: 0 | O43: =RTD("cqg.rtd",,"StudyData", "Correlation("&$B$3&","&O$2&",Period:="&$B$1&",InputChoice1:=Close,InputChoice2::=Close)", "FG", "", "Close",$B$2,A43, "all","", "","True","T")/100 -> 0.7283630306 | Q43: -0.22 | R43: 0 | U43: =RTD("cqg.rtd",,"StudyData", "Correlation("&$B$3&","&U$2&",Period:="&$B$1&",InputChoice1:=Close,InputChoice2::=Close)", "FG", "", "Close",$B$2,A43, "all","", "","True","T")/100 -> 0.8353121517 | W43: -0.22 | X43: 0 | AA43: =RTD("cqg.rtd",,"StudyData", "Correlation("&$B$3&","&AA$2&",Period:="&$B$1&",InputChoice1:=Close,InputChoice2::=Close)", "FG", "", "Close",$B$2,A43, "all","", "","True","T")/100 -> 0.3948909369 | AC43: -0.22 | AD43: 0 | AG43: =RTD("cqg.rtd",,"StudyData", "Correlation("&$B$3&","&AG$2&",Period:="&$B$1&",InputChoice1:=Close,InputChoice2::=Close)", "FG", "", "Close",$B$2,A43, "all","", "","True","T")/100 -> 0.3022375877 | AI43: -0.22 | AJ43: 1 | AM43: =RTD("cqg.rtd",,"StudyData", "Correlation("&$B$3&","&AM$2&",Period:="&$B$1&",InputChoice1:=Close,InputChoice2::=Close)", "FG", "", "Close",$B$2,A43, "all","", "","True","T")/100 -> 0.4098508443 | AO43: -0.22 | AP43: 0 | AS43: =RTD("cqg.rtd",,"StudyData", "Correlation("&$B$3&","&AS$2&",Period:="&$B$1&",InputChoice1:=Close,InputChoice2::=Close)", "FG", "", "Close",$B$2,A43, "all","", "","True","T")/100 -> 0.7273993743 | AU43: -0.22 | AV43: 0 | AY43: =RTD("cqg.rtd",,"StudyData", "Correlation("&$B$3&","&AY$2&",Period:="&$B$1&",InputChoice1:=Close,InputChoice2::=Close)", "FG", "", "Close",$B$2,A43, "all","", "","True","T")/100 -> -0.86176038 | BA43: -0.22 | BB43: 1 | BE43: =RTD("cqg.rtd",,"StudyData", "Correlation("&$B$3&","&BE$2&",Period:="&$B$1&",InputChoice1:=Close,InputChoice2::=Close)", "FG", "", "Close",$B$2,A43, "all","", "","True","T")/100 -> -0.0227855472 | BG43: -0.22 | BH43: 0
A44: -40 | C44: =RTD("cqg.rtd",,"StudyData", "Correlation("&$B$3&","&C$2&",Period:="&$B$1&",InputChoice1::=Close,InputChoice2::=Close)", "FG", "", "Close",$B$2,A44, "all","", "","True","T")/100 -> 0.7510510152 | E44: -0.2 | F44: 0 | I44: =RTD("cqg.rtd",,"StudyData", "Correlation("&$B$3&","&I$2&",Period:="&$B$1&",InputChoice1:=Close,InputChoice2::=Close)", "FG", "", "Close",$B$2,A44, "all","", "","True","T")/100 -> 0.9044201973 | K44: -0.2 | L44: 0 | O44: =RTD("cqg.rtd",,"StudyData", "Correlation("&$B$3&","&O$2&",Period:="&$B$1&",InputChoice1:=Close,InputChoice2::=Close)", "FG", "", "Close",$B$2,A44, "all","", "","True","T")/100 -> 0.7830781014 | Q44: -0.2 | R44: 0 | U44: =RTD("cqg.rtd",,"StudyData", "Correlation("&$B$3&","&U$2&",Period:="&$B$1&",InputChoice1:=Close,InputChoice2::=Close)", "FG", "", "Close",$B$2,A44, "all","", "","True","T")/100 -> 0.8775837552 | W44: -0.2 | X44: 0 | AA44: =RTD("cqg.rtd",,"StudyData", "Correlation("&$B$3&","&AA$2&",Period:="&$B$1&",InputChoice1:=Close,InputChoice2::=Close)", "FG", "", "Close",$B$2,A44, "all","", "","True","T")/100 -> 0.5845653369 | AC44: -0.2 | AD44: 1 | AG44: =RTD("cqg.rtd",,"StudyData", "Correlation("&$B$3&","&AG$2&",Period:="&$B$1&",InputChoice1:=Close,InputChoice2::=Close)", "FG", "", "Close",$B$2,A44, "all","", "","True","T")/100 -> 0.4959847411 | AI44: -0.2 | AJ44: 0 | AM44: =RTD("cqg.rtd",,"StudyData", "Correlation("&$B$3&","&AM$2&",Period:="&$B$1&",InputChoice1:=Close,InputChoice2::=Close)", "FG", "", "Close",$B$2,A44, "all","", "","True","T")/100 -> 0.50652057 | AO44: -0.2 | AP44: 0 | AS44: =RTD("cqg.rtd",,"StudyData", "Correlation("&$B$3&","&AS$2&",Period:="&$B$1&",InputChoice1:=Close,InputChoice2::=Close)", "FG", "", "Close",$B$2,A44, "all","", "","True","T")/100 -> 0.5747715721 | AU44: -0.2 | AV44: 0 | AY44: =RTD("cqg.rtd",,"StudyData", "Correlation("&$B$3&","&AY$2&",Period:="&$B$1&",InputChoice1:=Close,InputChoice2::=Close)", "FG", "", "Close",$B$2,A44, "all","", "","True","T")/100 -> -0.8623948798 | BA44: -0.2 | BB44: 0 | BE44: =RTD("cqg.rtd",,"StudyData", "Correlation("&$B$3&","&BE$2&",Period:="&$B$1&",InputChoice1:=Close,InputChoice2::=Close)", "FG", "", "Close",$B$2,A44, "all","", "","True","T")/100 -> 0.2493384606 | BG44: -0.2 | BH44: 3
A45: -41 | C45: =RTD("cqg.rtd",,"StudyData", "Correlation("&$B$3&","&C$2&",Period:="&$B$1&",InputChoice1::=Close,InputChoice2::=Close)", "FG", "", "Close",$B$2,A45, "all","", "","True","T")/100 -> 0.7648716083 | E45: -0.18 | F45: 1 | I45: =RTD("cqg.rtd",,"StudyData", "Correlation("&$B$3&","&I$2&",Period:="&$B$1&",InputChoice1:=Close,InputChoice2::=Close)", "FG", "", "Close",$B$2,A45, "all","", "","True","T")/100 -> 0.9059476839 | K45: -0.18 | L45: 0 | O45: =RTD("cqg.rtd",,"StudyData", "Correlation("&$B$3&","&O$2&",Period:="&$B$1&",InputChoice1:=Close,InputChoice2::=Close)", "FG", "", "Close",$B$2,A45, "all","", "","True","T")/100 -> 0.9289547269 | Q45: -0.18 | R45: 0 | U45: =RTD("cqg.rtd",,"StudyData", "Correlation("&$B$3&","&U$2&",Period:="&$B$1&",InputChoice1:=Close,InputChoice2::=Close)", "FG", "", "Close",$B$2,A45, "all","", "","True","T")/100 -> 0.8782188408 | W45: -0.18 | X45: 2 | AA45: =RTD("cqg.rtd",,"StudyData", "Correlation("&$B$3&","&AA$2&",Period:="&$B$1&",InputChoice1:=Close,InputChoice2::=Close)", "FG", "", "Close",$B$2,A45, "all","", "","True","T")/100 -> 0.6953444857 | AC45: -0.18 | AD45: 0 | AG45: =RTD("cqg.rtd",,"StudyData", "Correlation("&$B$3&","&AG$2&",Period:="&$B$1&",InputChoice1:=Close,InputChoice2::=Close)", "FG", "", "Close",$B$2,A45, "all","", "","True","T")/100 -> 0.6255026033 | AI45: -0.18 | AJ45: 0 | AM45: =RTD("cqg.rtd",,"StudyData", "Correlation("&$B$3&","&AM$2&",Period:="&$B$1&",InputChoice1:=Close,InputChoice2::=Close)", "FG", "", "Close",$B$2,A45, "all","", "","True","T")/100 -> 0.462006522 | AO45: -0.18 | AP45: 0 | AS45: =RTD("cqg.rtd",,"StudyData", "Correlation("&$B$3&","&AS$2&",Period:="&$B$1&",InputChoice1:=Close,InputChoice2::=Close)", "FG", "", "Close",$B$2,A45, "all","", "","True","T")/100 -> 0.26352354 | AU45: -0.18 | AV45: 1 | AY45: =RTD("cqg.rtd",,"StudyData", "Correlation("&$B$3&","&AY$2&",Period:="&$B$1&",InputChoice1:=Close,InputChoice2::=Close)", "FG", "", "Close",$B$2,A45, "all","", "","True","T")/100 -> -0.9183669688 | BA45: -0.18 | BB45: 0 | BE45: =RTD("cqg.rtd",,"StudyData", "Correlation("&$B$3&","&BE$2&",Period:="&$B$1&",InputChoice1:=Close,InputChoice2::=Close)", "FG", "", "Close",$B$2,A45, "all","", "","True","T")/100 -> 0.5264700295 | BG45: -0.18 | BH45: 0
A46: -42 | C46: =RTD("cqg.rtd",,"StudyData", "Correlation("&$B$3&","&C$2&",Period:="&$B$1&",InputChoice1::=Close,InputChoice2::=Close)", "FG", "", "Close",$B$2,A46, "all","", "","True","T")/100 -> 0.8737805265 | E46: -0.16 | F46: 1 | I46: =RTD("cqg.rtd",,"StudyData", "Correlation("&$B$3&","&I$2&",Period:="&$B$1&",InputChoice1:=Close,InputChoice2::=Close)", "FG", "", "Close",$B$2,A46, "all","", "","True","T")/100 -> 0.8582412025 | K46: -0.16 | L46: 0 | O46: =RTD("cqg.rtd",,"StudyData", "Correlation("&$B$3&","&O$2&",Period:="&$B$1&",InputChoice1:=Close,InputChoice2::=Close)", "FG", "", "Close",$B$2,A46, "all","", "","True","T")/100 -> 0.895726205 | Q46: -0.16 | R46: 0 | U46: =RTD("cqg.rtd",,"StudyData", "Correlation("&$B$3&","&U$2&",Period:="&$B$1&",InputChoice1:=Close,InputChoice2::=Close)", "FG", "", "Close",$B$2,A46, "all","", "","True","T")/100 -> 0.9245575423 | W46: -0.16 | X46: 0 | AA46: =RTD("cqg.rtd",,"StudyData", "Correlation("&$B$3&","&AA$2&",Period:="&$B$1&",InputChoice1:=Close,InputChoice2::=Close)", "FG", "", "Close",$B$2,A46, "all","", "","True","T")/100 -> 0.7187161194 | AC46: -0.16 | AD46: 1 | AG46: =RTD("cqg.rtd",,"StudyData", "Correlation("&$B$3&","&AG$2&",Period:="&$B$1&",InputChoice1:=Close,InputChoice2::=Close)", "FG", "", "Close",$B$2,A46, "all","", "","True","T")/100 -> 0.6812308805 | AI46: -0.16 | AJ46: 1 | AM46: =RTD("cqg.rtd",,"StudyData", "Correlation("&$B$3&","&AM$2&",Period:="&$B$1&",InputChoice1:=Close,InputChoice2::=Close)", "FG", "", "Close",$B$2,A46, "all","", "","True","T")/100 -> 0.4340866863 | AO46: -0.16 | AP46: 0 | AS46: =RTD("cqg.rtd",,"StudyData", "Correlation("&$B$3&","&AS$2&",Period:="&$B$1&",InputChoice1:=Close,InputChoice2::=Close)", "FG", "", "Close",$B$2,A46, "all","", "","True","T")/100 -> -0.3575164827 | AU46: -0.16 | AV46: 0 | AY46: =RTD("cqg.rtd",,"StudyData", "Correlation("&$B$3&","&AY$2&",Period:="&$B$1&",InputChoice1:=Close,InputChoice2::=Close)", "FG", "", "Close",$B$2,A46, "all","", "","True","T")/100 -> -0.9190103284 | BA46: -0.16 | BB46: 0 | BE46: =RTD("cqg.rtd",,"StudyData", "Correlation("&$B$3&","&BE$2&",Period:="&$B$1&",InputChoice1:=Close,InputChoice2::=Close)", "FG", "", "Close",$B$2,A46, "all","", "","True","T")/100 -> 0.7056642486 | BG46: -0.16 | BH46: 0
A47: -43 | C47: =RTD("cqg.rtd",,"StudyData", "Correlation("&$B$3&","&C$2&",Period:="&$B$1&",InputChoice1::=Close,InputChoice2::=Close)", "FG", "", "Close",$B$2,A47, "all","", "","True","T")/100 -> 0.8687666219 | E47: -0.14 | F47: 0 | I47: =RTD("cqg.rtd",,"StudyData", "Correlation("&$B$3&","&I$2&",Period:="&$B$1&",InputChoice1:=Close,InputChoice2::=Close)", "FG", "", "Close",$B$2,A47, "all","", "","True","T")/100 -> 0.8508484648 | K47: -0.14 | L47: 0 | O47: =RTD("cqg.rtd",,"StudyData", "Correlation("&$B$3&","&O$2&",Period:="&$B$1&",InputChoice1:=Close,InputChoice2::=Close)", "FG", "", "Close",$B$2,A47, "all","", "","True","T")/100 -> 0.9303642808 | Q47: -0.14 | R47: 0 | U47: =RTD("cqg.rtd",,"StudyData", "Correlation("&$B$3&","&U$2&",Period:="&$B$1&",InputChoice1:=Close,InputChoice2::=Close)", "FG", "", "Close",$B$2,A47, "all","", "","True","T")/100 -> 0.921775076 | W47: -0.14 | X47: 0 | AA47: =RTD("cqg.rtd",,"StudyData", "Correlation("&$B$3&","&AA$2&",Period:="&$B$1&",InputChoice1:=Close,InputChoice2::=Close)", "FG", "", "Close",$B$2,A47, "all","", "","True","T")/100 -> 0.7537007512 | AC47: -0.14 | AD47: 0 | AG47: =RTD("cqg.rtd",,"StudyData", "Correlation("&$B$3&","&AG$2&",Period:="&$B$1&",InputChoice1:=Close,InputChoice2::=Close)", "FG", "", "Close",$B$2,A47, "all","", "","True","T")/100 -> 0.7068276488 | AI47: -0.14 | AJ47: 0 | AM47: =RTD("cqg.rtd",,"StudyData", "Correlation("&$B$3&","&AM$2&",Period:="&$B$1&",InputChoice1:=Close,InputChoice2::=Close)", "FG", "", "Close",$B$2,A47, "all","", "","True","T")/100 -> 0.4356360542 | AO47: -0.14 | AP47: 0 | AS47: =RTD("cqg.rtd",,"StudyData", "Correlation("&$B$3&","&AS$2&",Period:="&$B$1&",InputChoice1:=Close,InputChoice2::=Close)", "FG", "", "Close",$B$2,A47, "all","", "","True","T")/100 -> -0.5909163744 | AU47: -0.14 | AV47: 0 | AY47: =RTD("cqg.rtd",,"StudyData", "Correlation("&$B$3&","&AY$2&",Period:="&$B$1&",InputChoice1:=Close,InputChoice2::=Close)", "FG", "", "Close",$B$2,A47, "all","", "","True","T")/100 -> -0.8955860182 | BA47: -0.14 | BB47: 0 | BE47: =RTD("cqg.rtd",,"StudyData", "Correlation("&$B$3&","&BE$2&",Period:="&$B$1&",InputChoice1:=Close,InputChoice2::=Close)", "FG", "", "Close",$B$2,A47, "all","", "","True","T")/100 -> 0.727511423 | BG47: -0.14 | BH47: 1
A48: -44 | C48: =RTD("cqg.rtd",,"StudyData", "Correlation("&$B$3&","&C$2&",Period:="&$B$1&",InputChoice1::=Close,InputChoice2::=Close)", "FG", "", "Close",$B$2,A48, "all","", "","True","T")/100 -> 0.8359902269 | E48: -0.12 | F48: 1 | I48: =RTD("cqg.rtd",,"StudyData", "Correlation("&$B$3&","&I$2&",Period:="&$B$1&",InputChoice1:=Close,InputChoice2::=Close)", "FG", "", "Close",$B$2,A48, "all","", "","True","T")/100 -> 0.8412644861 | K48: -0.12 | L48: 0 | O48: =RTD("cqg.rtd",,"StudyData", "Correlation("&$B$3&","&O$2&",Period:="&$B$1&",InputChoice1:=Close,InputChoice2::=Close)", "FG", "", "Close",$B$2,A48, "all","", "","True","T")/100 -> 0.9254845047 | Q48: -0.12 | R48: 1 | U48: =RTD("cqg.rtd",,"StudyData", "Correlation("&$B$3&","&U$2&",Period:="&$B$1&",InputChoice1:=Close,InputChoice2::=Close)", "FG", "", "Close",$B$2,A48, "all","", "","True","T")/100 -> 0.9390911757 | W48: -0.12 | X48: 0 | AA48: =RTD("cqg.rtd",,"StudyData", "Correlation("&$B$3&","&AA$2&",Period:="&$B$1&",InputChoice1:=Close,InputChoice2::=Close)", "FG", "", "Close",$B$2,A48, "all","", "","True","T")/100 -> 0.8298204829 | AC48: -0.12 | AD48: 0 | AG48: =RTD("cqg.rtd",,"StudyData", "Correlation("&$B$3&","&AG$2&",Period:="&$B$1&",InputChoice1:=Close,InputChoice2::=Close)", "FG", "", "Close",$B$2,A48, "all","", "","True","T")/100 -> 0.7504290487 | AI48: -0.12 | AJ48: 0 | AM48: =RTD("cqg.rtd",,"StudyData", "Correlation("&$B$3&","&AM$2&",Period:="&$B$1&",InputChoice1:=Close,InputChoice2::=Close)", "FG", "", "Close",$B$2,A48, "all","", "","True","T")/100 -> 0.5458783679 | AO48: -0.12 | AP48: 3 | AS48: =RTD("cqg.rtd",,"StudyData", "Correlation("&$B$3&","&AS$2&",Period:="&$B$1&",InputChoice1:=Close,InputChoice2::=Close)", "FG", "", "Close",$B$2,A48, "all","", "","True","T")/100 -> -0.757019891 | AU48: -0.12 | AV48: 1 | AY48: =RTD("cqg.rtd",,"StudyData", "Correlation("&$B$3&","&AY$2&",Period:="&$B$1&",InputChoice1:=Close,InputChoice2::=Close)", "FG", "", "Close",$B$2,A48, "all","", "","True","T")/100 -> -0.9071195287 | BA48: -0.12 | BB48: 1 | BE48: =RTD("cqg.rtd",,"StudyData", "Correlation("&$B$3&","&BE$2&",Period:="&$B$1&",InputChoice1:=Close,InputChoice2::=Close)", "FG", "", "Close",$B$2,A48, "all","", "","True","T")/100 -> 0.6729363841 | BG48: -0.12 | BH48: 0
A49: -45 | C49: =RTD("cqg.rtd",,"StudyData", "Correlation("&$B$3&","&C$2&",Period:="&$B$1&",InputChoice1::=Close,InputChoice2::=Close)", "FG", "", "Close",$B$2,A49, "all","", "","True","T")/100 -> 0.7820463017 | E49: -0.1 | F49: 0 | I49: =RTD("cqg.rtd",,"StudyData", "Correlation("&$B$3&","&I$2&",Period:="&$B$1&",InputChoice1:=Close,InputChoice2::=Close)", "FG", "", "Close",$B$2,A49, "all","", "","True","T")/100 -> 0.8099374324 | K49: -0.1 | L49: 0 | O49: =RTD("cqg.rtd",,"StudyData", "Correlation("&$B$3&","&O$2&",Period:="&$B$1&",InputChoice1:=Close,InputChoice2::=Close)", "FG", "", "Close",$B$2,A49, "all","", "","True","T")/100 -> 0.9221668933 | Q49: -0.1 | R49: 0 | U49: =RTD("cqg.rtd",,"StudyData", "Correlation("&$B$3&","&U$2&",Period:="&$B$1&",InputChoice1:=Close,InputChoice2::=Close)", "FG", "", "Close",$B$2,A49, "all","", "","True","T")/100 -> 0.9327855521 | W49: -0.1 | X49: 1 | AA49: =RTD("cqg.rtd",,"StudyData", "Correlation("&$B$3&","&AA$2&",Period:="&$B$1&",InputChoice1:=Close,InputChoice2::=Close)", "FG", "", "Close",$B$2,A49, "all","", "","True","T")/100 -> 0.8673073264 | AC49: -0.1 | AD49: 0 | AG49: =RTD("cqg.rtd",,"StudyData", "Correlation("&$B$3&","&AG$2&",Period:="&$B$1&",InputChoice1:=Close,InputChoice2::=Close)", "FG", "", "Close",$B$2,A49, "all","", "","True","T")/100 -> 0.8254234082 | AI49: -0.1 | AJ49: 0 | AM49: =RTD("cqg.rtd",,"StudyData", "Correlation("&$B$3&","&AM$2&",Period:="&$B$1&",InputChoice1:=Close,InputChoice2::=Close)", "FG", "", "Close",$B$2,A49, "all","", "","True","T")/100 -> 0.7025773056 | AO49: -0.1 | AP49: 2 | AS49: =RTD("cqg.rtd",,"StudyData", "Correlation("&$B$3&","&AS$2&",Period:="&$B$1&",InputChoice1:=Close,InputChoice2::=Close)", "FG", "", "Close",$B$2,A49, "all","", "","True","T")/100 -> -0.8158627369 | AU49: -0.1 | AV49: 0 | AY49: =RTD("cqg.rtd",,"StudyData", "Correlation("&$B$3&","&AY$2&",Period:="&$B$1&",InputChoice1:=Close,InputChoice2::=Close)", "FG", "", "Close",$B$2,A49, "all","", "","True","T")/100 -> -0.8862010354 | BA49: -0.1 | BB49: 0 | BE49: =RTD("cqg.rtd",,"StudyData", "Correlation("&$B$3&","&BE$2&",Period:="&$B$1&",InputChoice1:=Close,InputChoice2::=Close)", "FG", "", "Close",$B$2,A49, "all","", "","True","T")/100 -> 0.5919699987 | BG49: -0.1 | BH49: 0
A50: -46 | C50: =RTD("cqg.rtd",,"StudyData", "Correlation("&$B$3&","&C$2&",Period:="&$B$1&",InputChoice1::=Close,InputChoice2::=Close)", "FG", "", "Close",$B$2,A50, "all","", "","True","T")/100 -> 0.7429856794 | E50: -0.08 | F50: 0 | I50: =RTD("cqg.rtd",,"StudyData", "Correlation("&$B$3&","&I$2&",Period:="&$B$1&",InputChoice1:=Close,InputChoice2::=Close)", "FG", "", "Close",$B$2,A50, "all","", "","True","T")/100 -> 0.7872701817 | K50: -0.08 | L50: 0 | O50: =RTD("cqg.rtd",,"StudyData", "Correlation("&$B$3&","&O$2&",Period:="&$B$1&",InputChoice1:=Close,InputChoice2::=Close)", "FG", "", "Close",$B$2,A50, "all","", "","True","T")/100 -> 0.9169937983 | Q50: -0.08 | R50: 0 | U50: =RTD("cqg.rtd",,"StudyData", "Correlation("&$B$3&","&U$2&",Period:="&$B$1&",InputChoice1:=Close,InputChoice2::=Close)", "FG", "", "Close",$B$2,A50, "all","", "","True","T")/100 -> 0.928191489 | W50: -0.08 | X50: 0 | AA50: =RTD("cqg.rtd",,"StudyData", "Correlation("&$B$3&","&AA$2&",Period:="&$B$1&",InputChoice1:=Close,InputChoice2::=Close)", "FG", "", "Close",$B$2,A50, "all","", "","True","T")/100 -> 0.8820706773 | AC50: -0.08 | AD50: 1 | AG50: =RTD("cqg.rtd",,"StudyData", "Correlation("&$B$3&","&AG$2&",Period:="&$B$1&",InputChoice1:=Close,InputChoice2::=Close)", "FG", "", "Close",$B$2,A50, "all","", "","True","T")/100 -> 0.87083066 | AI50: -0.08 | AJ50: 0 | AM50: =RTD("cqg.rtd",,"StudyData", "Correlation("&$B$3&","&AM$2&",Period:="&$B$1&",InputChoice1:=Close,InputChoice2::=Close)", "FG", "", "Close",$B$2,A50, "all","", "","True","T")/100 -> 0.652459558 | AO50: -0.08 | AP50: 1 | AS50: =RTD("cqg.rtd",,"StudyData", "Correlation("&$B$3&","&AS$2&",Period:="&$B$1&",InputChoice1:=Close,InputChoice2::=Close)", "FG", "", "Close",$B$2,A50, "all","", "","True","T")/100 -> -0.8088328842 | AU50: -0.08 | AV50: 1 | AY50: =RTD("cqg.rtd",,"StudyData", "Correlation("&$B$3&","&AY$2&",Period:="&$B$1&",InputChoice1:=Close,InputChoice2::=Close)", "FG", "", "Close",$B$2,A50, "all","", "","True","T")/100 -> -0.859769227 | BA50: -0.08 | BB50: 1 | BE50: =RTD("cqg.rtd",,"StudyData", "Correlation("&$B$3&","&BE$2&",Period:="&$B$1&",InputChoice1:=Close,InputChoice2::=Close)", "FG", "", "Close",$B$2,A50, "all","", "","True","T")/100 -> 0.4789503374 | BG50: -0.08 | BH50: 0
A51: -47 | C51: =RTD("cqg.rtd",,"StudyData", "Correlation("&$B$3&","&C$2&",Period:="&$B$1&",InputChoice1::=Close,InputChoice2::=Close)", "FG", "", "Close",$B$2,A51, "all","", "","True","T")/100 -> 0.6619317496 | E51: -0.06 | F51: 0 | I51: =RTD("cqg.rtd",,"StudyData", "Correlation("&$B$3&","&I$2&",Period:="&$B$1&",InputChoice1:=Close,InputChoice2::=Close)", "FG", "", "Close",$B$2,A51, "all","", "","True","T")/100 -> 0.7326339839 | K51: -0.06 | L51: 1 | O51: =RTD("cqg.rtd",,"StudyData", "Correlation("&$B$3&","&O$2&",Period:="&$B$1&",InputChoice1:=Close,InputChoice2::=Close)", "FG", "", "Close",$B$2,A51, "all","", "","True","T")/100 -> 0.8936157832 | Q51: -0.06 | R51: 0 | U51: =RTD("cqg.rtd",,"StudyData", "Correlation("&$B$3&","&U$2&",Period:="&$B$1&",InputChoice1:=Close,InputChoice2::=Close)", "FG", "", "Close",$B$2,A51, "all","", "","True","T")/100 -> 0.9130527844 | W51: -0.06 | X51: 0 | AA51: =RTD("cqg.rtd",,"StudyData", "Correlation("&$B$3&","&AA$2&",Period:="&$B$1&",InputChoice1:=Close,InputChoice2::=Close)", "FG", "", "Close",$B$2,A51, "all","", "","True","T")/100 -> 0.8769328066 | AC51: -0.06 | AD51: 0 | AG51: =RTD("cqg.rtd",,"StudyData", "Correlation("&$B$3&","&AG$2&",Period:="&$B$1&",InputChoice1:=Close,InputChoice2::=Close)", "FG", "", "Close",$B$2,A51, "all","", "","True","T")/100 -> 0.8878266504 | AI51: -0.06 | AJ51: 2 | AM51: =RTD("cqg.rtd",,"StudyData", "Correlation("&$B$3&","&AM$2&",Period:="&$B$1&",InputChoice1:=Close,InputChoice2::=Close)", "FG", "", "Close",$B$2,A51, "all","", "","True","T")/100 -> 0.6590182395 | AO51: -0.06 | AP51: 0 | AS51: =RTD("cqg.rtd",,"StudyData", "Correlation("&$B$3&","&AS$2&",Period:="&$B$1&",InputChoice1:=Close,InputChoice2::=Close)", "FG", "", "Close",$B$2,A51, "all","", "","True","T")/100 -> -0.8008173014 | AU51: -0.06 | AV51: 1 | AY51: =RTD("cqg.rtd",,"StudyData", "Correlation("&$B$3&","&AY$2&",Period:="&$B$1&",InputChoice1:=Close,InputChoice2::=Close)", "FG", "", "Close",$B$2,A51, "all","", "","True","T")/100 -> -0.8022638422 | BA51: -0.06 | BB51: 0 | BE51: =RTD("cqg.rtd",,"StudyData", "Correlation("&$B$3&","&BE$2&",Period:="&$B$1&",InputChoice1:=Close,InputChoice2::=Close)", "FG", "", "Close",$B$2,A51, "all","", "","True","T")/100 -> -0.0421741044 | BG51: -0.06 | BH51: 1
A52: -48 | C52: =RTD("cqg.rtd",,"StudyData", "Correlation("&$B$3&","&C$2&",Period:="&$B$1&",InputChoice1::=Close,InputChoice2::=Close)", "FG", "", "Close",$B$2,A52, "all","", "","True","T")/100 -> 0.4847413528 | E52: -0.04 | F52: 0 | I52: =RTD("cqg.rtd",,"StudyData", "Correlation("&$B$3&","&I$2&",Period:="&$B$1&",InputChoice1:=Close,InputChoice2::=Close)", "FG", "", "Close",$B$2,A52, "all","", "","True","T")/100 -> 0.5727659645 | K52: -0.04 | L52: 1 | O52: =RTD("cqg.rtd",,"StudyData", "Correlation("&$B$3&","&O$2&",Period:="&$B$1&",InputChoice1:=Close,InputChoice2::=Close)", "FG", "", "Close",$B$2,A52, "all","", "","True","T")/100 -> 0.8591566684 | Q52: -0.04 | R52: 0 | U52: =RTD("cqg.rtd",,"StudyData", "Correlation("&$B$3&","&U$2&",Period:="&$B$1&",InputChoice1:=Close,InputChoice2::=Close)", "FG", "", "Close",$B$2,A52, "all","", "","True","T")/100 -> 0.8619891442 | W52: -0.04 | X52: 0 | AA52: =RTD("cqg.rtd",,"StudyData", "Correlation("&$B$3&","&AA$2&",Period:="&$B$1&",InputChoice1:=Close,InputChoice2::=Close)", "FG", "", "Close",$B$2,A52, "all","", "","True","T")/100 -> 0.8267068634 | AC52: -0.04 | AD52: 0 | AG52: =RTD("cqg.rtd",,"StudyData", "Correlation("&$B$3&","&AG$2&",Period:="&$B$1&",InputChoice1:=Close,InputChoice2::=Close)", "FG", "", "Close",$B$2,A52, "all","", "","True","T")/100 -> 0.6993114246 | AI52: -0.04 | AJ52: 0 | AM52: =RTD("cqg.rtd",,"StudyData", "Correlation("&$B$3&","&AM$2&",Period:="&$B$1&",InputChoice1:=Close,InputChoice2::=Close)", "FG", "", "Close",$B$2,A52, "all","", "","True","T")/100 -> 0.7257947214 | AO52: -0.04 | AP52: 1 | AS52: =RTD("cqg.rtd",,"StudyData", "Correlation("&$B$3&","&AS$2&",Period:="&$B$1&",InputChoice1:=Close,InputChoice2::=Close)", "FG", "", "Close",$B$2,A52, "all","", "","True","T")/100 -> -0.7291844488 | AU52: -0.04 | AV52: 0 | AY52: =RTD("cqg.rtd",,"StudyData", "Correlation("&$B$3&","&AY$2&",Period:="&$B$1&",InputChoice1:=Close,InputChoice2::=Close)", "FG", "", "Close",$B$2,A52, "all","", "","True","T")/100 -> -0.7403852874 | BA52: -0.04 | BB52: 1 | BE52: =RTD("cqg.rtd",,"StudyData", "Correlation("&$B$3&","&BE$2&",Period:="&$B$1&",InputChoice1:=Close,InputChoice2::=Close)", "FG", "", "Close",$B$2,A52, "all","", "","True","T")/100 -> -0.3266850212 | BG52: -0.04 | BH52: 1
A53: -49 | C53: =RTD("cqg.rtd",,"StudyData", "Correlation("&$B$3&","&C$2&",Period:="&$B$1&",InputChoice1::=Close,InputChoice2::=Close)", "FG", "", "Close",$B$2,A53, "all","", "","True","T")/100 -> 0.4354105045 | E53: -0.02 | F53: 0 | I53: =RTD("cqg.rtd",,"StudyData", "Correlation("&$B$3&","&I$2&",Period:="&$B$1&",InputChoice1:=Close,InputChoice2::=Close)", "FG", "", "Close",$B$2,A53, "all","", "","True","T")/100 -> 0.4592176292 | K53: -0.02 | L53: 0 | O53: =RTD("cqg.rtd",,"StudyData", "Correlation("&$B$3&","&O$2&",Period:="&$B$1&",InputChoice1:=Close,InputChoice2::=Close)", "FG", "", "Close",$B$2,A53, "all","", "","True","T")/100 -> 0.9452403864 | Q53: -0.02 | R53: 0 | U53: =RTD("cqg.rtd",,"StudyData", "Correlation("&$B$3&","&U$2&",Period:="&$B$1&",InputChoice1:=Close,InputChoice2::=Close)", "FG", "", "Close",$B$2,A53, "all","", "","True","T")/100 -> 0.819344754 | W53: -0.02 | X53: 0 | AA53: =RTD("cqg.rtd",,"StudyData", "Correlation("&$B$3&","&AA$2&",Period:="&$B$1&",InputChoice1:=Close,InputChoice2::=Close)", "FG", "", "Close",$B$2,A53, "all","", "","True","T")/100 -> 0.730063211 | AC53: -0.02 | AD53: 0 | AG53: =RTD("cqg.rtd",,"StudyData", "Correlation("&$B$3&","&AG$2&",Period:="&$B$1&",InputChoice1:=Close,InputChoice2::=Close)", "FG", "", "Close",$B$2,A53, "all","", "","True","T")/100 -> 0.5058541505 | AI53: -0.02 | AJ53: 0 | AM53: =RTD("cqg.rtd",,"StudyData", "Correlation("&$B$3&","&AM$2&",Period:="&$B$1&",InputChoice1:=Close,InputChoice2::=Close)", "FG", "", "Close",$B$2,A53, "all","", "","True","T")/100 -> 0.7169585872 | AO53: -0.02 | AP53: 0 | AS53: =RTD("cqg.rtd",,"StudyData", "Correlation("&$B$3&","&AS$2&",Period:="&$B$1&",InputChoice1:=Close,InputChoice2::=Close)", "FG", "", "Close",$B$2,A53, "all","", "","True","T")/100 -> -0.4823718439 | AU53: -0.02 | AV53: 0 | AY53: =RTD("cqg.rtd",,"StudyData", "Correlation("&$B$3&","&AY$2&",Period:="&$B$1&",InputChoice1:=Close,InputChoice2::=Close)", "FG", "", "Close",$B$2,A53, "all","", "","True","T")/100 -> -0.4765758316 | BA53: -0.02 | BB53: 1 | BE53: =RTD("cqg.rtd",,"StudyData", "Correlation("&$B$3&","&BE$2&",Period:="&$B$1&",InputChoice1:=Close,InputChoice2::=Close)", "FG", "", "Close",$B$2,A53, "all","", "","True","T")/100 -> -0.4403312417 | BG53: -0.02 | BH53: 1
A54: -50 | C54: =RTD("cqg.rtd",,"StudyData", "Correlation("&$B$3&","&C$2&",Period:="&$B$1&",InputChoice1::=Close,InputChoice2::=Close)", "FG", "", "Close",$B$2,A54, "all","", "","True","T")/100 -> 0.5074393968 | E54: 6.175615574e-16 | F54: 0 | I54: =RTD("cqg.rtd",,"StudyData", "Correlation("&$B$3&","&I$2&",Period:="&$B$1&",InputChoice1:=Close,InputChoice2::=Close)", "FG", "", "Close",$B$2,A54, "all","", "","True","T")/100 -> 0.5284170302 | K54: 6.175615574e-16 | L54: 0 | O54: =RTD("cqg.rtd",,"StudyData", "Correlation("&$B$3&","&O$2&",Period:="&$B$1&",InputChoice1:=Close,InputChoice2::=Close)", "FG", "", "Close",$B$2,A54, "all","", "","True","T")/100 -> 0.9578106552 | Q54: 6.175615574e-16 | R54: 0 | U54: =RTD("cqg.rtd",,"StudyData", "Correlation("&$B$3&","&U$2&",Period:="&$B$1&",InputChoice1:=Close,InputChoice2::=Close)", "FG", "", "Close",$B$2,A54, "all","", "","True","T")/100 -> 0.9331551028 | W54: 6.175615574e-16 | X54: 0 | AA54: =RTD("cqg.rtd",,"StudyData", "Correlation("&$B$3&","&AA$2&",Period:="&$B$1&",InputChoice1:=Close,InputChoice2::=Close)", "FG", "", "Close",$B$2,A54, "all","", "","True","T")/100 -> 0.6842530684 | AC54: 6.175615574e-16 | AD54: 0 | AG54: =RTD("cqg.rtd",,"StudyData", "Correlation("&$B$3&","&AG$2&",Period:="&$B$1&",InputChoice1:=Close,InputChoice2::=Close)", "FG", "", "Close",$B$2,A54, "all","", "","True","T")/100 -> 0.5647149314 | AI54: 6.175615574e-16 | AJ54: 1 | AM54: =RTD("cqg.rtd",,"StudyData", "Correlation("&$B$3&","&AM$2&",Period:="&$B$1&",InputChoice1:=Close,InputChoice2::=Close)", "FG", "", "Close",$B$2,A54, "all","", "","True","T")/100 -> 0.7781990185 | AO54: 6.175615574e-16 | AP54: 0 | AS54: =RTD("cqg.rtd",,"StudyData", "Correlation("&$B$3&","&AS$2&",Period:="&$B$1&",InputChoice1:=Close,InputChoice2::=Close)", "FG", "", "Close",$B$2,A54, "all","", "","True","T")/100 -> -0.5070814309 | AU54: 6.175615574e-16 | AV54: 1 | AY54: =RTD("cqg.rtd",,"StudyData", "Correlation("&$B$3&","&AY$2&",Period:="&$B$1&",InputChoice1:=Close,InputChoice2::=Close)", "FG", "", "Close",$B$2,A54, "all","", "","True","T")/100 -> 0.2232338174 | BA54: 6.175615574e-16 | BB54: 1 | BE54: =RTD("cqg.rtd",,"StudyData", "Correlation("&$B$3&","&BE$2&",Period:="&$B$1&",InputChoice1:=Close,InputChoice2::=Close)", "FG", "", "Close",$B$2,A54, "all","", "","True","T")/100 -> -0.4967535447 | BG54: 6.175615574e-16 | BH54: 0
A55: -51 | C55: =RTD("cqg.rtd",,"StudyData", "Correlation("&$B$3&","&C$2&",Period:="&$B$1&",InputChoice1::=Close,InputChoice2::=Close)", "FG", "", "Close",$B$2,A55, "all","", "","True","T")/100 -> 0.6472824204 | E55: 0.02 | F55: 1 | I55: =RTD("cqg.rtd",,"StudyData", "Correlation("&$B$3&","&I$2&",Period:="&$B$1&",InputChoice1:=Close,InputChoice2::=Close)", "FG", "", "Close",$B$2,A55, "all","", "","True","T")/100 -> 0.6696639965 | K55: 0.02 | L55: 0 | O55: =RTD("cqg.rtd",,"StudyData", "Correlation("&$B$3&","&O$2&",Period:="&$B$1&",InputChoice1:=Close,InputChoice2::=Close)", "FG", "", "Close",$B$2,A55, "all","", "","True","T")/100 -> 0.9697236732 | Q55: 0.02 | R55: 0 | U55: =RTD("cqg.rtd",,"StudyData", "Correlation("&$B$3&","&U$2&",Period:="&$B$1&",InputChoice1:=Close,InputChoice2::=Close)", "FG", "", "Close",$B$2,A55, "all","", "","True","T")/100 -> 0.9312606977 | W55: 0.02 | X55: 0 | AA55: =RTD("cqg.rtd",,"StudyData", "Correlation("&$B$3&","&AA$2&",Period:="&$B$1&",InputChoice1:=Close,InputChoice2::=Close)", "FG", "", "Close",$B$2,A55, "all","", "","True","T")/100 -> 0.7080834203 | AC55: 0.02 | AD55: 1 | AG55: =RTD("cqg.rtd",,"StudyData", "Correlation("&$B$3&","&AG$2&",Period:="&$B$1&",InputChoice1:=Close,InputChoice2::=Close)", "FG", "", "Close",$B$2,A55, "all","", "","True","T")/100 -> 0.1961980243 | AI55: 0.02 | AJ55: 0 | AM55: =RTD("cqg.rtd",,"StudyData", "Correlation("&$B$3&","&AM$2&",Period:="&$B$1&",InputChoice1:=Close,InputChoice2::=Close)", "FG", "", "Close",$B$2,A55, "all","", "","True","T")/100 -> 0.3017144476 | AO55: 0.02 | AP55: 0 | AS55: =RTD("cqg.rtd",,"StudyData", "Correlation("&$B$3&","&AS$2&",Period:="&$B$1&",InputChoice1:=Close,InputChoice2::=Close)", "FG", "", "Close",$B$2,A55, "all","", "","True","T")/100 -> -0.7513984197 | AU55: 0.02 | AV55: 1 | AY55: =RTD("cqg.rtd",,"StudyData", "Correlation("&$B$3&","&AY$2&",Period:="&$B$1&",InputChoice1:=Close,InputChoice2::=Close)", "FG", "", "Close",$B$2,A55, "all","", "","True","T")/100 -> -0.0141940635 | BA55: 0.02 | BB55: 0 | BE55: =RTD("cqg.rtd",,"StudyData", "Correlation("&$B$3&","&BE$2&",Period:="&$B$1&",InputChoice1:=Close,InputChoice2::=Close)", "FG", "", "Close",$B$2,A55, "all","", "","True","T")/100 -> -0.6690450862 | BG55: 0.02 | BH55: 2
A56: -52 | C56: =RTD("cqg.rtd",,"StudyData", "Correlation("&$B$3&","&C$2&",Period:="&$B$1&",InputChoice1::=Close,InputChoice2::=Close)", "FG", "", "Close",$B$2,A56, "all","", "","True","T")/100 -> 0.8298077344 | E56: 0.04 | F56: 1 | I56: =RTD("cqg.rtd",,"StudyData", "Correlation("&$B$3&","&I$2&",Period:="&$B$1&",InputChoice1:=Close,InputChoice2::=Close)", "FG", "", "Close",$B$2,A56, "all","", "","True","T")/100 -> 0.8400821182 | K56: 0.04 | L56: 0 | O56: =RTD("cqg.rtd",,"StudyData", "Correlation("&$B$3&","&O$2&",Period:="&$B$1&",InputChoice1:=Close,InputChoice2::=Close)", "FG", "", "Close",$B$2,A56, "all","", "","True","T")/100 -> 0.9871677023 | Q56: 0.04 | R56: 1 | U56: =RTD("cqg.rtd",,"StudyData", "Correlation("&$B$3&","&U$2&",Period:="&$B$1&",InputChoice1:=Close,InputChoice2::=Close)", "FG", "", "Close",$B$2,A56, "all","", "","True","T")/100 -> 0.9623085146 | W56: 0.04 | X56: 0 | AA56: =RTD("cqg.rtd",,"StudyData", "Correlation("&$B$3&","&AA$2&",Period:="&$B$1&",InputChoice1:=Close,InputChoice2::=Close)", "FG", "", "Close",$B$2,A56, "all","", "","True","T")/100 -> 0.8783070675 | AC56: 0.04 | AD56: 1 | AG56: =RTD("cqg.rtd",,"StudyData", "Correlation("&$B$3&","&AG$2&",Period:="&$B$1&",InputChoice1:=Close,InputChoice2::=Close)", "FG", "", "Close",$B$2,A56, "all","", "","True","T")/100 -> 0.6458993459 | AI56: 0.04 | AJ56: 1 | AM56: =RTD("cqg.rtd",,"StudyData", "Correlation("&$B$3&","&AM$2&",Period:="&$B$1&",InputChoice1:=Close,InputChoice2::=Close)", "FG", "", "Close",$B$2,A56, "all","", "","True","T")/100 -> 0.50234339 | AO56: 0.04 | AP56: 1 | AS56: =RTD("cqg.rtd",,"StudyData", "Correlation("&$B$3&","&AS$2&",Period:="&$B$1&",InputChoice1:=Close,InputChoice2::=Close)", "FG", "", "Close",$B$2,A56, "all","", "","True","T")/100 -> -0.8080980458 | AU56: 0.04 | AV56: 0 | AY56: =RTD("cqg.rtd",,"StudyData", "Correlation("&$B$3&","&AY$2&",Period:="&$B$1&",InputChoice1:=Close,InputChoice2::=Close)", "FG", "", "Close",$B$2,A56, "all","", "","True","T")/100 -> -0.5811731248 | BA56: 0.04 | BB56: 2 | BE56: =RTD("cqg.rtd",,"StudyData", "Correlation("&$B$3&","&BE$2&",Period:="&$B$1&",InputChoice1:=Close,InputChoice2::=Close)", "FG", "", "Close",$B$2,A56, "all","", "","True","T")/100 -> -0.7889099009 | BG56: 0.04 | BH56: 0
A57: -53 | C57: =RTD("cqg.rtd",,"StudyData", "Correlation("&$B$3&","&C$2&",Period:="&$B$1&",InputChoice1::=Close,InputChoice2::=Close)", "FG", "", "Close",$B$2,A57, "all","", "","True","T")/100 -> 0.9297825879 | E57: 0.06 | F57: 0 | I57: =RTD("cqg.rtd",,"StudyData", "Correlation("&$B$3&","&I$2&",Period:="&$B$1&",InputChoice1:=Close,InputChoice2::=Close)", "FG", "", "Close",$B$2,A57, "all","", "","True","T")/100 -> 0.9215100617 | K57: 0.06 | L57: 0 | O57: =RTD("cqg.rtd",,"StudyData", "Correlation("&$B$3&","&O$2&",Period:="&$B$1&",InputChoice1:=Close,InputChoice2::=Close)", "FG", "", "Close",$B$2,A57, "all","", "","True","T")/100 -> 0.9870011962 | Q57: 0.06 | R57: 0 | U57: =RTD("cqg.rtd",,"StudyData", "Correlation("&$B$3&","&U$2&",Period:="&$B$1&",InputChoice1:=Close,InputChoice2::=Close)", "FG", "", "Close",$B$2,A57, "all","", "","True","T")/100 -> 0.9746729624 | W57: 0.06 | X57: 0 | AA57: =RTD("cqg.rtd",,"StudyData", "Correlation("&$B$3&","&AA$2&",Period:="&$B$1&",InputChoice1:=Close,InputChoice2::=Close)", "FG", "", "Close",$B$2,A57, "all","", "","True","T")/100 -> 0.8980255121 | AC57: 0.06 | AD57: 0 | AG57: =RTD("cqg.rtd",,"StudyData", "Correlation("&$B$3&","&AG$2&",Period:="&$B$1&",InputChoice1:=Close,InputChoice2::=Close)", "FG", "", "Close",$B$2,A57, "all","", "","True","T")/100 -> 0.7181920285 | AI57: 0.06 | AJ57: 0 | AM57: =RTD("cqg.rtd",,"StudyData", "Correlation("&$B$3&","&AM$2&",Period:="&$B$1&",InputChoice1:=Close,InputChoice2::=Close)", "FG", "", "Close",$B$2,A57, "all","", "","True","T")/100 -> 0.492349526 | AO57: 0.06 | AP57: 0 | AS57: =RTD("cqg.rtd",,"StudyData", "Correlation("&$B$3&","&AS$2&",Period:="&$B$1&",InputChoice1:=Close,InputChoice2::=Close)", "FG", "", "Close",$B$2,A57, "all","", "","True","T")/100 -> -0.8248169944 | AU57: 0.06 | AV57: 2 | AY57: =RTD("cqg.rtd",,"StudyData", "Correlation("&$B$3&","&AY$2&",Period:="&$B$1&",InputChoice1:=Close,InputChoice2::=Close)", "FG", "", "Close",$B$2,A57, "all","", "","True","T")/100 -> -0.8519044503 | BA57: 0.06 | BB57: 0 | BE57: =RTD("cqg.rtd",,"StudyData", "Correlation("&$B$3&","&BE$2&",Period:="&$B$1&",InputChoice1:=Close,InputChoice2::=Close)", "FG", "", "Close",$B$2,A57, "all","", "","True","T")/100 -> -0.4426315414 | BG57: 0.06 | BH57: 3
A58: -54 | C58: =RTD("cqg.rtd",,"StudyData", "Correlation("&$B$3&","&C$2&",Period:="&$B$1&",InputChoice1::=Close,InputChoice2::=Close)", "FG", "", "Close",$B$2,A58, "all","", "","True","T")/100 -> 0.9331973373 | E58: 0.08 | F58: 0 | I58: =RTD("cqg.rtd",,"StudyData", "Correlation("&$B$3&","&I$2&",Period:="&$B$1&",InputChoice1:=Close,InputChoice2::=Close)", "FG", "", "Close",$B$2,A58, "all","", "","True","T")/100 -> 0.92529621 | K58: 0.08 | L58: 0 | O58: =RTD("cqg.rtd",,"StudyData", "Correlation("&$B$3&","&O$2&",Period:="&$B$1&",InputChoice1:=Close,InputChoice2::=Close)", "FG", "", "Close",$B$2,A58, "all","", "","True","T")/100 -> 0.9845203029 | Q58: 0.08 | R58: 0 | U58: =RTD("cqg.rtd",,"StudyData", "Correlation("&$B$3&","&U$2&",Period:="&$B$1&",InputChoice1:=Close,InputChoice2::=Close)", "FG", "", "Close",$B$2,A58, "all","", "","True","T")/100 -> 0.9758233369 | W58: 0.08 | X58: 0 | AA58: =RTD("cqg.rtd",,"StudyData", "Correlation("&$B$3&","&AA$2&",Period:="&$B$1&",InputChoice1:=Close,InputChoice2::=Close)", "FG", "", "Close",$B$2,A58, "all","", "","True","T")/100 -> 0.9216968897 | AC58: 0.08 | AD58: 1 | AG58: =RTD("cqg.rtd",,"StudyData", "Correlation("&$B$3&","&AG$2&",Period:="&$B$1&",InputChoice1:=Close,InputChoice2::=Close)", "FG", "", "Close",$B$2,A58, "all","", "","True","T")/100 -> 0.7511832946 | AI58: 0.08 | AJ58: 0 | AM58: =RTD("cqg.rtd",,"StudyData", "Correlation("&$B$3&","&AM$2&",Period:="&$B$1&",InputChoice1:=Close,InputChoice2::=Close)", "FG", "", "Close",$B$2,A58, "all","", "","True","T")/100 -> 0.5193566526 | AO58: 0.08 | AP58: 0 | AS58: =RTD("cqg.rtd",,"StudyData", "Correlation("&$B$3&","&AS$2&",Period:="&$B$1&",InputChoice1:=Close,InputChoice2::=Close)", "FG", "", "Close",$B$2,A58, "all","", "","True","T")/100 -> -0.8160707862 | AU58: 0.08 | AV58: 1 | AY58: =RTD("cqg.rtd",,"StudyData", "Correlation("&$B$3&","&AY$2&",Period:="&$B$1&",InputChoice1:=Close,InputChoice2::=Close)", "FG", "", "Close",$B$2,A58, "all","", "","True","T")/100 -> -0.8834257511 | BA58: 0.08 | BB58: 0 | BE58: =RTD("cqg.rtd",,"StudyData", "Correlation("&$B$3&","&BE$2&",Period:="&$B$1&",InputChoice1:=Close,InputChoice2::=Close)", "FG", "", "Close",$B$2,A58, "all","", "","True","T")/100 -> -0.3606073236 | BG58: 0.08 | BH58: 1
A59: -55 | C59: =RTD("cqg.rtd",,"StudyData", "Correlation("&$B$3&","&C$2&",Period:="&$B$1&",InputChoice1::=Close,InputChoice2::=Close)", "FG", "", "Close",$B$2,A59, "all","", "","True","T")/100 -> 0.9197260551 | E59: 0.1 | F59: 2 | I59: =RTD("cqg.rtd",,"StudyData", "Correlation("&$B$3&","&I$2&",Period:="&$B$1&",InputChoice1:=Close,InputChoice2::=Close)", "FG", "", "Close",$B$2,A59, "all","", "","True","T")/100 -> 0.9009277164 | K59: 0.1 | L59: 0 | O59: =RTD("cqg.rtd",,"StudyData", "Correlation("&$B$3&","&O$2&",Period:="&$B$1&",InputChoice1:=Close,InputChoice2::=Close)", "FG", "", "Close",$B$2,A59, "all","", "","True","T")/100 -> 0.9789580817 | Q59: 0.1 | R59: 0 | U59: =RTD("cqg.rtd",,"StudyData", "Correlation("&$B$3&","&U$2&",Period:="&$B$1&",InputChoice1:=Close,InputChoice2::=Close)", "FG", "", "Close",$B$2,A59, "all","", "","True","T")/100 -> 0.9585680841 | W59: 0.1 | X59: 1 | AA59: =RTD("cqg.rtd",,"StudyData", "Correlation("&$B$3&","&AA$2&",Period:="&$B$1&",InputChoice1:=Close,InputChoice2::=Close)", "FG", "", "Close",$B$2,A59, "all","", "","True","T")/100 -> 0.8600364561 | AC59: 0.1 | AD59: 1 | AG59: =RTD("cqg.rtd",,"StudyData", "Correlation("&$B$3&","&AG$2&",Period:="&$B$1&",InputChoice1:=Close,InputChoice2::=Close)", "FG", "", "Close",$B$2,A59, "all","", "","True","T")/100 -> 0.7235441901 | AI59: 0.1 | AJ59: 0 | AM59: =RTD("cqg.rtd",,"StudyData", "Correlation("&$B$3&","&AM$2&",Period:="&$B$1&",InputChoice1:=Close,InputChoice2::=Close)", "FG", "", "Close",$B$2,A59, "all","", "","True","T")/100 -> 0.5391729367 | AO59: 0.1 | AP59: 0 | AS59: =RTD("cqg.rtd",,"StudyData", "Correlation("&$B$3&","&AS$2&",Period:="&$B$1&",InputChoice1:=Close,InputChoice2::=Close)", "FG", "", "Close",$B$2,A59, "all","", "","True","T")/100 -> -0.800039987 | AU59: 0.1 | AV59: 1 | AW59: 1 | AY59: =RTD("cqg.rtd",,"StudyData", "Correlation("&$B$3&","&AY$2&",Period:="&$B$1&",InputChoice1:=Close,InputChoice2::=Close)", "FG", "", "Close",$B$2,A59, "all","", "","True","T")/100 -> -0.8855291775 | BA59: 0.1 | BB59: 0 | BE59: =RTD("cqg.rtd",,"StudyData", "Correlation("&$B$3&","&BE$2&",Period:="&$B$1&",InputChoice1:=Close,InputChoice2::=Close)", "FG", "", "Close",$B$2,A59, "all","", "","True","T")/100 -> -0.207951899 | BG59: 0.1 | BH59: 1
A60: -56 | C60: =RTD("cqg.rtd",,"StudyData", "Correlation("&$B$3&","&C$2&",Period:="&$B$1&",InputChoice1::=Close,InputChoice2::=Close)", "FG", "", "Close",$B$2,A60, "all","", "","True","T")/100 -> 0.8852460871 | E60: 0.12 | F60: 0 | I60: =RTD("cqg.rtd",,"StudyData", "Correlation("&$B$3&","&I$2&",Period:="&$B$1&",InputChoice1:=Close,InputChoice2::=Close)", "FG", "", "Close",$B$2,A60, "all","", "","True","T")/100 -> 0.8500683128 | K60: 0.12 | L60: 0 | O60: =RTD("cqg.rtd",,"StudyData", "Correlation("&$B$3&","&O$2&",Period:="&$B$1&",InputChoice1:=Close,InputChoice2::=Close)", "FG", "", "Close",$B$2,A60, "all","", "","True","T")/100 -> 0.9721789386 | Q60: 0.12 | R60: 0 | U60: =RTD("cqg.rtd",,"StudyData", "Correlation("&$B$3&","&U$2&",Period:="&$B$1&",InputChoice1:=Close,InputChoice2::=Close)", "FG", "", "Close",$B$2,A60, "all","", "","True","T")/100 -> 0.9136943646 | W60: 0.12 | X60: 0 | AA60: =RTD("cqg.rtd",,"StudyData", "Correlation("&$B$3&","&AA$2&",Period:="&$B$1&",InputChoice1:=Close,InputChoice2::=Close)", "FG", "", "Close",$B$2,A60, "all","", "","True","T")/100 -> 0.7507458842 | AC60: 0.12 | AD60: 0 | AG60: =RTD("cqg.rtd",,"StudyData", "Correlation("&$B$3&","&AG$2&",Period:="&$B$1&",InputChoice1:=Close,InputChoice2::=Close)", "FG", "", "Close",$B$2,A60, "all","", "","True","T")/100 -> 0.7054275915 | AI60: 0.12 | AJ60: 1 | AM60: =RTD("cqg.rtd",,"StudyData", "Correlation("&$B$3&","&AM$2&",Period:="&$B$1&",InputChoice1:=Close,InputChoice2::=Close)", "FG", "", "Close",$B$2,A60, "all","", "","True","T")/100 -> 0.4517322988 | AO60: 0.12 | AP60: 0 | AS60: =RTD("cqg.rtd",,"StudyData", "Correlation("&$B$3&","&AS$2&",Period:="&$B$1&",InputChoice1:=Close,InputChoice2::=Close)", "FG", "", "Close",$B$2,A60, "all","", "","True","T")/100 -> -0.7296051476 | AU60: 0.12 | AV60: 2 | AY60: =RTD("cqg.rtd",,"StudyData", "Correlation("&$B$3&","&AY$2&",Period:="&$B$1&",InputChoice1:=Close,InputChoice2::=Close)", "FG", "", "Close",$B$2,A60, "all","", "","True","T")/100 -> -0.7629470879 | BA60: 0.12 | BB60: 0 | BE60: =RTD("cqg.rtd",,"StudyData", "Correlation("&$B$3&","&BE$2&",Period:="&$B$1&",InputChoice1:=Close,InputChoice2::=Close)", "FG", "", "Close",$B$2,A60, "all","", "","True","T")/100 -> 0.0075953737 | BG60: 0.12 | BH60: 0
A61: -57 | C61: =RTD("cqg.rtd",,"StudyData", "Correlation("&$B$3&","&C$2&",Period:="&$B$1&",InputChoice1::=Close,InputChoice2::=Close)", "FG", "", "Close",$B$2,A61, "all","", "","True","T")/100 -> 0.8703190469 | E61: 0.14 | F61: 0 | I61: =RTD("cqg.rtd",,"StudyData", "Correlation("&$B$3&","&I$2&",Period:="&$B$1&",InputChoice1:=Close,InputChoice2::=Close)", "FG", "", "Close",$B$2,A61, "all","", "","True","T")/100 -> 0.8489873252 | K61: 0.14 | L61: 0 | O61: =RTD("cqg.rtd",,"StudyData", "Correlation("&$B$3&","&O$2&",Period:="&$B$1&",InputChoice1:=Close,InputChoice2::=Close)", "FG", "", "Close",$B$2,A61, "all","", "","True","T")/100 -> 0.9473440373 | Q61: 0.14 | R61: 0 | U61: =RTD("cqg.rtd",,"StudyData", "Correlation("&$B$3&","&U$2&",Period:="&$B$1&",InputChoice1:=Close,InputChoice2::=Close)", "FG", "", "Close",$B$2,A61, "all","", "","True","T")/100 -> 0.9113314078 | W61: 0.14 | X61: 0 | AA61: =RTD("cqg.rtd",,"StudyData", "Correlation("&$B$3&","&AA$2&",Period:="&$B$1&",InputChoice1:=Close,InputChoice2::=Close)", "FG", "", "Close",$B$2,A61, "all","", "","True","T")/100 -> 0.808486425 | AC61: 0.14 | AD61: 0 | AG61: =RTD("cqg.rtd",,"StudyData", "Correlation("&$B$3&","&AG$2&",Period:="&$B$1&",InputChoice1:=Close,InputChoice2::=Close)", "FG", "", "Close",$B$2,A61, "all","", "","True","T")/100 -> 0.8083760043 | AI61: 0.14 | AJ61: 0 | AM61: =RTD("cqg.rtd",,"StudyData", "Correlation("&$B$3&","&AM$2&",Period:="&$B$1&",InputChoice1:=Close,InputChoice2::=Close)", "FG", "", "Close",$B$2,A61, "all","", "","True","T")/100 -> 0.5736299205 | AO61: 0.14 | AP61: 1 | AS61: =RTD("cqg.rtd",,"StudyData", "Correlation("&$B$3&","&AS$2&",Period:="&$B$1&",InputChoice1:=Close,InputChoice2::=Close)", "FG", "", "Close",$B$2,A61, "all","", "","True","T")/100 -> -0.6655542766 | AU61: 0.14 | AV61: 1 | AY61: =RTD("cqg.rtd",,"StudyData", "Correlation("&$B$3&","&AY$2&",Period:="&$B$1&",InputChoice1:=Close,InputChoice2::=Close)", "FG", "", "Close",$B$2,A61, "all","", "","True","T")/100 -> -0.8054170627 | BA61: 0.14 | BB61: 0 | BE61: =RTD("cqg.rtd",,"StudyData", "Correlation("&$B$3&","&BE$2&",Period:="&$B$1&",InputChoice1:=Close,InputChoice2::=Close)", "FG", "", "Close",$B$2,A61, "all","", "","True","T")/100 -> -0.2023583159 | BG61: 0.14 | BH61: 1
A62: -58 | C62: =RTD("cqg.rtd",,"StudyData", "Correlation("&$B$3&","&C$2&",Period:="&$B$1&",InputChoice1::=Close,InputChoice2::=Close)", "FG", "", "Close",$B$2,A62, "all","", "","True","T")/100 -> 0.890998199 | E62: 0.16 | F62: 2 | I62: =RTD("cqg.rtd",,"StudyData", "Correlation("&$B$3&","&I$2&",Period:="&$B$1&",InputChoice1:=Close,InputChoice2::=Close)", "FG", "", "Close",$B$2,A62, "all","", "","True","T")/100 -> 0.8698853564 | K62: 0.16 | L62: 1 | O62: =RTD("cqg.rtd",,"StudyData", "Correlation("&$B$3&","&O$2&",Period:="&$B$1&",InputChoice1:=Close,InputChoice2::=Close)", "FG", "", "Close",$B$2,A62, "all","", "","True","T")/100 -> 0.9508408234 | Q62: 0.16 | R62: 0 | U62: =RTD("cqg.rtd",,"StudyData", "Correlation("&$B$3&","&U$2&",Period:="&$B$1&",InputChoice1:=Close,InputChoice2::=Close)", "FG", "", "Close",$B$2,A62, "all","", "","True","T")/100 -> 0.9283460753 | W62: 0.16 | X62: 1 | AA62: =RTD("cqg.rtd",,"StudyData", "Correlation("&$B$3&","&AA$2&",Period:="&$B$1&",InputChoice1:=Close,InputChoice2::=Close)", "FG", "", "Close",$B$2,A62, "all","", "","True","T")/100 -> 0.8309712856 | AC62: 0.16 | AD62: 0 | AG62: =RTD("cqg.rtd",,"StudyData", "Correlation("&$B$3&","&AG$2&",Period:="&$B$1&",InputChoice1:=Close,InputChoice2::=Close)", "FG", "", "Close",$B$2,A62, "all","", "","True","T")/100 -> 0.8092152393 | AI62: 0.16 | AJ62: 0 | AM62: =RTD("cqg.rtd",,"StudyData", "Correlation("&$B$3&","&AM$2&",Period:="&$B$1&",InputChoice1:=Close,InputChoice2::=Close)", "FG", "", "Close",$B$2,A62, "all","", "","True","T")/100 -> 0.6436571704 | AO62: 0.16 | AP62: 1 | AS62: =RTD("cqg.rtd",,"StudyData", "Correlation("&$B$3&","&AS$2&",Period:="&$B$1&",InputChoice1:=Close,InputChoice2::=Close)", "FG", "", "Close",$B$2,A62, "all","", "","True","T")/100 -> -0.4786406512 | AU62: 0.16 | AV62: 1 | AY62: =RTD("cqg.rtd",,"StudyData", "Correlation("&$B$3&","&AY$2&",Period:="&$B$1&",InputChoice1:=Close,InputChoice2::=Close)", "FG", "", "Close",$B$2,A62, "all","", "","True","T")/100 -> -0.8879801534 | BA62: 0.16 | BB62: 0 | BE62: =RTD("cqg.rtd",,"StudyData", "Correlation("&$B$3&","&BE$2&",Period:="&$B$1&",InputChoice1:=Close,InputChoice2::=Close)", "FG", "", "Close",$B$2,A62, "all","", "","True","T")/100 -> -0.4602311136 | BG62: 0.16 | BH62: 0
A63: -59 | C63: =RTD("cqg.rtd",,"StudyData", "Correlation("&$B$3&","&C$2&",Period:="&$B$1&",InputChoice1::=Close,InputChoice2::=Close)", "FG", "", "Close",$B$2,A63, "all","", "","True","T")/100 -> 0.9243007267 | E63: 0.18 | F63: 0 | I63: =RTD("cqg.rtd",,"StudyData", "Correlation("&$B$3&","&I$2&",Period:="&$B$1&",InputChoice1:=Close,InputChoice2::=Close)", "FG", "", "Close",$B$2,A63, "all","", "","True","T")/100 -> 0.9065347721 | K63: 0.18 | L63: 0 | O63: =RTD("cqg.rtd",,"StudyData", "Correlation("&$B$3&","&O$2&",Period:="&$B$1&",InputChoice1:=Close,InputChoice2::=Close)", "FG", "", "Close",$B$2,A63, "all","", "","True","T")/100 -> 0.9816066068 | Q63: 0.18 | R63: 1 | U63: =RTD("cqg.rtd",,"StudyData", "Correlation("&$B$3&","&U$2&",Period:="&$B$1&",InputChoice1:=Close,InputChoice2::=Close)", "FG", "", "Close",$B$2,A63, "all","", "","True","T")/100 -> 0.948217261 | W63: 0.18 | X63: 0 | AA63: =RTD("cqg.rtd",,"StudyData", "Correlation("&$B$3&","&AA$2&",Period:="&$B$1&",InputChoice1:=Close,InputChoice2::=Close)", "FG", "", "Close",$B$2,A63, "all","", "","True","T")/100 -> 0.8646949191 | AC63: 0.18 | AD63: 1 | AG63: =RTD("cqg.rtd",,"StudyData", "Correlation("&$B$3&","&AG$2&",Period:="&$B$1&",InputChoice1:=Close,InputChoice2::=Close)", "FG", "", "Close",$B$2,A63, "all","", "","True","T")/100 -> 0.6763278907 | AI63: 0.18 | AJ63: 2 | AM63: =RTD("cqg.rtd",,"StudyData", "Correlation("&$B$3&","&AM$2&",Period:="&$B$1&",InputChoice1:=Close,InputChoice2::=Close)", "FG", "", "Close",$B$2,A63, "all","", "","True","T")/100 -> 0.6758598063 | AO63: 0.18 | AP63: 3 | AS63: =RTD("cqg.rtd",,"StudyData", "Correlation("&$B$3&","&AS$2&",Period:="&$B$1&",InputChoice1:=Close,InputChoice2::=Close)", "FG", "", "Close",$B$2,A63, "all","", "","True","T")/100 -> -0.3392364631 | AU63: 0.18 | AV63: 2 | AY63: =RTD("cqg.rtd",,"StudyData", "Correlation("&$B$3&","&AY$2&",Period:="&$B$1&",InputChoice1:=Close,InputChoice2::=Close)", "FG", "", "Close",$B$2,A63, "all","", "","True","T")/100 -> -0.9375994898 | BA63: 0.18 | BB63: 0 | BE63: =RTD("cqg.rtd",,"StudyData", "Correlation("&$B$3&","&BE$2&",Period:="&$B$1&",InputChoice1:=Close,InputChoice2::=Close)", "FG", "", "Close",$B$2,A63, "all","", "","True","T")/100 -> -0.7616257213 | BG63: 0.18 | BH63: 3
A64: -60 | C64: =RTD("cqg.rtd",,"StudyData", "Correlation("&$B$3&","&C$2&",Period:="&$B$1&",InputChoice1::=Close,InputChoice2::=Close)", "FG", "", "Close",$B$2,A64, "all","", "","True","T")/100 -> 0.9580116752 | E64: 0.2 | F64: 1 | I64: =RTD("cqg.rtd",,"StudyData", "Correlation("&$B$3&","&I$2&",Period:="&$B$1&",InputChoice1:=Close,InputChoice2::=Close)", "FG", "", "Close",$B$2,A64, "all","", "","True","T")/100 -> 0.9436592577 | K64: 0.2 | L64: 0 | O64: =RTD("cqg.rtd",,"StudyData", "Correlation("&$B$3&","&O$2&",Period:="&$B$1&",InputChoice1:=Close,InputChoice2::=Close)", "FG", "", "Close",$B$2,A64, "all","", "","True","T")/100 -> 0.979018594 | Q64: 0.2 | R64: 0 | U64: =RTD("cqg.rtd",,"StudyData", "Correlation("&$B$3&","&U$2&",Period:="&$B$1&",InputChoice1:=Close,InputChoice2::=Close)", "FG", "", "Close",$B$2,A64, "all","", "","True","T")/100 -> 0.9664890859 | W64: 0.2 | X64: 0 | AA64: =RTD("cqg.rtd",,"StudyData", "Correlation("&$B$3&","&AA$2&",Period:="&$B$1&",InputChoice1:=Close,InputChoice2::=Close)", "FG", "", "Close",$B$2,A64, "all","", "","True","T")/100 -> 0.8964986773 | AC64: 0.2 | AD64: 0 | AG64: =RTD("cqg.rtd",,"StudyData", "Correlation("&$B$3&","&AG$2&",Period:="&$B$1&",InputChoice1:=Close,InputChoice2::=Close)", "FG", "", "Close",$B$2,A64, "all","", "","True","T")/100 -> 0.6038564718 | AI64: 0.2 | AJ64: 1 | AM64: =RTD("cqg.rtd",,"StudyData", "Correlation("&$B$3&","&AM$2&",Period:="&$B$1&",InputChoice1:=Close,InputChoice2::=Close)", "FG", "", "Close",$B$2,A64, "all","", "","True","T")/100 -> 0.8067702501 | AO64: 0.2 | AP64: 3 | AS64: =RTD("cqg.rtd",,"StudyData", "Correlation("&$B$3&","&AS$2&",Period:="&$B$1&",InputChoice1:=Close,InputChoice2::=Close)", "FG", "", "Close",$B$2,A64, "all","", "","True","T")/100 -> 0.1370764574 | AU64: 0.2 | AV64: 2 | AY64: =RTD("cqg.rtd",,"StudyData", "Correlation("&$B$3&","&AY$2&",Period:="&$B$1&",InputChoice1:=Close,InputChoice2::=Close)", "FG", "", "Close",$B$2,A64, "all","", "","True","T")/100 -> -0.9757205842 | BA64: 0.2 | BB64: 0 | BE64: =RTD("cqg.rtd",,"StudyData", "Correlation("&$B$3&","&BE$2&",Period:="&$B$1&",InputChoice1:=Close,InputChoice2::=Close)", "FG", "", "Close",$B$2,A64, "all","", "","True","T")/100 -> -0.862886791 | BG64: 0.2 | BH64: 0
A65: -61 | C65: =RTD("cqg.rtd",,"StudyData", "Correlation("&$B$3&","&C$2&",Period:="&$B$1&",InputChoice1::=Close,InputChoice2::=Close)", "FG", "", "Close",$B$2,A65, "all","", "","True","T")/100 -> 0.9739132292 | E65: 0.22 | F65: 0 | I65: =RTD("cqg.rtd",,"StudyData", "Correlation("&$B$3&","&I$2&",Period:="&$B$1&",InputChoice1:=Close,InputChoice2::=Close)", "FG", "", "Close",$B$2,A65, "all","", "","True","T")/100 -> 0.965545333 | K65: 0.22 | L65: 1 | O65: =RTD("cqg.rtd",,"StudyData", "Correlation("&$B$3&","&O$2&",Period:="&$B$1&",InputChoice1:=Close,InputChoice2::=Close)", "FG", "", "Close",$B$2,A65, "all","", "","True","T")/100 -> 0.9474129441 | Q65: 0.22 | R65: 0 | U65: =RTD("cqg.rtd",,"StudyData", "Correlation("&$B$3&","&U$2&",Period:="&$B$1&",InputChoice1:=Close,InputChoice2::=Close)", "FG", "", "Close",$B$2,A65, "all","", "","True","T")/100 -> 0.9830482431 | W65: 0.22 | X65: 0 | AA65: =RTD("cqg.rtd",,"StudyData", "Correlation("&$B$3&","&AA$2&",Period:="&$B$1&",InputChoice1:=Close,InputChoice2::=Close)", "FG", "", "Close",$B$2,A65, "all","", "","True","T")/100 -> 0.9219703337 | AC65: 0.22 | AD65: 0 | AG65: =RTD("cqg.rtd",,"StudyData", "Correlation("&$B$3&","&AG$2&",Period:="&$B$1&",InputChoice1:=Close,InputChoice2::=Close)", "FG", "", "Close",$B$2,A65, "all","", "","True","T")/100 -> 0.7397786543 | AI65: 0.22 | AJ65: 0 | AM65: =RTD("cqg.rtd",,"StudyData", "Correlation("&$B$3&","&AM$2&",Period:="&$B$1&",InputChoice1:=Close,InputChoice2::=Close)", "FG", "", "Close",$B$2,A65, "all","", "","True","T")/100 -> 0.9139076856 | AO65: 0.22 | AP65: 2 | AS65: =RTD("cqg.rtd",,"StudyData", "Correlation("&$B$3&","&AS$2&",Period:="&$B$1&",InputChoice1:=Close,InputChoice2::=Close)", "FG", "", "Close",$B$2,A65, "all","", "","True","T")/100 -> 0.4119685262 | AU65: 0.22 | AV65: 3 | AY65: =RTD("cqg.rtd",,"StudyData", "Correlation("&$B$3&","&AY$2&",Period:="&$B$1&",InputChoice1:=Close,InputChoice2::=Close)", "FG", "", "Close",$B$2,A65, "all","", "","True","T")/100 -> -0.9748659385 | BA65: 0.22 | BB65: 0 | BE65: =RTD("cqg.rtd",,"StudyData", "Correlation("&$B$3&","&BE$2&",Period:="&$B$1&",InputChoice1:=Close,InputChoice2::=Close)", "FG", "", "Close",$B$2,A65, "all","", "","True","T")/100 -> -0.8974490672 | BG65: 0.22 | BH65: 1
A66: -62 | C66: =RTD("cqg.rtd",,"StudyData", "Correlation("&$B$3&","&C$2&",Period:="&$B$1&",InputChoice1::=Close,InputChoice2::=Close)", "FG", "", "Close",$B$2,A66, "all","", "","True","T")/100 -> 0.9098211577 | E66: 0.24 | F66: 0 | I66: =RTD("cqg.rtd",,"StudyData", "Correlation("&$B$3&","&I$2&",Period:="&$B$1&",InputChoice1:=Close,InputChoice2::=Close)", "FG", "", "Close",$B$2,A66, "all","", "","True","T")/100 -> 0.9026318719 | K66: 0.24 | L66: 0 | O66: =RTD("cqg.rtd",,"StudyData", "Correlation("&$B$3&","&O$2&",Period:="&$B$1&",InputChoice1:=Close,InputChoice2::=Close)", "FG", "", "Close",$B$2,A66, "all","", "","True","T")/100 -> 0.907123347 | Q66: 0.24 | R66: 1 | U66: =RTD("cqg.rtd",,"StudyData", "Correlation("&$B$3&","&U$2&",Period:="&$B$1&",InputChoice1:=Close,InputChoice2::=Close)", "FG", "", "Close",$B$2,A66, "all","", "","True","T")/100 -> 0.929567446 | W66: 0.24 | X66: 0 | AA66: =RTD("cqg.rtd",,"StudyData", "Correlation("&$B$3&","&AA$2&",Period:="&$B$1&",InputChoice1:=Close,InputChoice2::=Close)", "FG", "", "Close",$B$2,A66, "all","", "","True","T")/100 -> 0.7974454253 | AC66: 0.24 | AD66: 0 | AG66: =RTD("cqg.rtd",,"StudyData", "Correlation("&$B$3&","&AG$2&",Period:="&$B$1&",InputChoice1:=Close,InputChoice2::=Close)", "FG", "", "Close",$B$2,A66, "all","", "","True","T")/100 -> 0.6682146267 | AI66: 0.24 | AJ66: 2 | AM66: =RTD("cqg.rtd",,"StudyData", "Correlation("&$B$3&","&AM$2&",Period:="&$B$1&",InputChoice1:=Close,InputChoice2::=Close)", "FG", "", "Close",$B$2,A66, "all","", "","True","T")/100 -> 0.8294561455 | AO66: 0.24 | AP66: 2 | AS66: =RTD("cqg.rtd",,"StudyData", "Correlation("&$B$3&","&AS$2&",Period:="&$B$1&",InputChoice1:=Close,InputChoice2::=Close)", "FG", "", "Close",$B$2,A66, "all","", "","True","T")/100 -> 0.2731224062 | AU66: 0.24 | AV66: 4 | AY66: =RTD("cqg.rtd",,"StudyData", "Correlation("&$B$3&","&AY$2&",Period:="&$B$1&",InputChoice1:=Close,InputChoice2::=Close)", "FG", "", "Close",$B$2,A66, "all","", "","True","T")/100 -> -0.8172909454 | BA66: 0.24 | BB66: 1 | BE66: =RTD("cqg.rtd",,"StudyData", "Correlation("&$B$3&","&BE$2&",Period:="&$B$1&",InputChoice1:=Close,InputChoice2::=Close)", "FG", "", "Close",$B$2,A66, "all","", "","True","T")/100 -> -0.7955031563 | BG66: 0.24 | BH66: 3
A67: -63 | C67: =RTD("cqg.rtd",,"StudyData", "Correlation("&$B$3&","&C$2&",Period:="&$B$1&",InputChoice1::=Close,InputChoice2::=Close)", "FG", "", "Close",$B$2,A67, "all","", "","True","T")/100 -> 0.7315463585 | E67: 0.26 | F67: 0 | I67: =RTD("cqg.rtd",,"StudyData", "Correlation("&$B$3&","&I$2&",Period:="&$B$1&",InputChoice1:=Close,InputChoice2::=Close)", "FG", "", "Close",$B$2,A67, "all","", "","True","T")/100 -> 0.7471871635 | K67: 0.26 | L67: 0 | O67: =RTD("cqg.rtd",,"StudyData", "Correlation("&$B$3&","&O$2&",Period:="&$B$1&",InputChoice1:=Close,InputChoice2::=Close)", "FG", "", "Close",$B$2,A67, "all","", "","True","T")/100 -> 0.8635442905 | Q67: 0.26 | R67: 0 | U67: =RTD("cqg.rtd",,"StudyData", "Correlation("&$B$3&","&U$2&",Period:="&$B$1&",InputChoice1:=Close,InputChoice2::=Close)", "FG", "", "Close",$B$2,A67, "all","", "","True","T")/100 -> 0.8584361002 | W67: 0.26 | X67: 0 | AA67: =RTD("cqg.rtd",,"StudyData", "Correlation("&$B$3&","&AA$2&",Period:="&$B$1&",InputChoice1:=Close,InputChoice2::=Close)", "FG", "", "Close",$B$2,A67, "all","", "","True","T")/100 -> 0.6780404464 | AC67: 0.26 | AD67: 0 | AG67: =RTD("cqg.rtd",,"StudyData", "Correlation("&$B$3&","&AG$2&",Period:="&$B$1&",InputChoice1:=Close,InputChoice2::=Close)", "FG", "", "Close",$B$2,A67, "all","", "","True","T")/100 -> 0.5567207879 | AI67: 0.26 | AJ67: 2 | AM67: =RTD("cqg.rtd",,"StudyData", "Correlation("&$B$3&","&AM$2&",Period:="&$B$1&",InputChoice1:=Close,InputChoice2::=Close)", "FG", "", "Close",$B$2,A67, "all","", "","True","T")/100 -> 0.7523786727 | AO67: 0.26 | AP67: 1 | AS67: =RTD("cqg.rtd",,"StudyData", "Correlation("&$B$3&","&AS$2&",Period:="&$B$1&",InputChoice1:=Close,InputChoice2::=Close)", "FG", "", "Close",$B$2,A67, "all","", "","True","T")/100 -> 0.1744500973 | AU67: 0.26 | AV67: 3 | AY67: =RTD("cqg.rtd",,"StudyData", "Correlation("&$B$3&","&AY$2&",Period:="&$B$1&",InputChoice1:=Close,InputChoice2::=Close)", "FG", "", "Close",$B$2,A67, "all","", "","True","T")/100 -> -0.6004441093 | BA67: 0.26 | BB67: 1 | BE67: =RTD("cqg.rtd",,"StudyData", "Correlation("&$B$3&","&BE$2&",Period:="&$B$1&",InputChoice1:=Close,InputChoice2::=Close)", "FG", "", "Close",$B$2,A67, "all","", "","True","T")/100 -> -0.7138480275 | BG67: 0.26 | BH67: 2
A68: -64 | C68: =RTD("cqg.rtd",,"StudyData", "Correlation("&$B$3&","&C$2&",Period:="&$B$1&",InputChoice1::=Close,InputChoice2::=Close)", "FG", "", "Close",$B$2,A68, "all","", "","True","T")/100 -> 0.5365783265 | E68: 0.28 | F68: 0 | I68: =RTD("cqg.rtd",,"StudyData", "Correlation("&$B$3&","&I$2&",Period:="&$B$1&",InputChoice1:=Close,InputChoice2::=Close)", "FG", "", "Close",$B$2,A68, "all","", "","True","T")/100 -> 0.5614077184 | K68: 0.28 | L68: 1 | O68: =RTD("cqg.rtd",,"StudyData", "Correlation("&$B$3&","&O$2&",Period:="&$B$1&",InputChoice1:=Close,InputChoice2::=Close)", "FG", "", "Close",$B$2,A68, "all","", "","True","T")/100 -> 0.8098916109 | Q68: 0.28 | R68: 0 | U68: =RTD("cqg.rtd",,"StudyData", "Correlation("&$B$3&","&U$2&",Period:="&$B$1&",InputChoice1:=Close,InputChoice2::=Close)", "FG", "", "Close",$B$2,A68, "all","", "","True","T")/100 -> 0.7391078694 | W68: 0.28 | X68: 0 | AA68: =RTD("cqg.rtd",,"StudyData", "Correlation("&$B$3&","&AA$2&",Period:="&$B$1&",InputChoice1:=Close,InputChoice2::=Close)", "FG", "", "Close",$B$2,A68, "all","", "","True","T")/100 -> 0.515764444 | AC68: 0.28 | AD68: 0 | AG68: =RTD("cqg.rtd",,"StudyData", "Correlation("&$B$3&","&AG$2&",Period:="&$B$1&",InputChoice1:=Close,InputChoice2::=Close)", "FG", "", "Close",$B$2,A68, "all","", "","True","T")/100 -> 0.2689103996 | AI68: 0.28 | AJ68: 3 | AM68: =RTD("cqg.rtd",,"StudyData", "Correlation("&$B$3&","&AM$2&",Period:="&$B$1&",InputChoice1:=Close,InputChoice2::=Close)", "FG", "", "Close",$B$2,A68, "all","", "","True","T")/100 -> 0.6119096344 | AO68: 0.28 | AP68: 1 | AS68: =RTD("cqg.rtd",,"StudyData", "Correlation("&$B$3&","&AS$2&",Period:="&$B$1&",InputChoice1:=Close,InputChoice2::=Close)", "FG", "", "Close",$B$2,A68, "all","", "","True","T")/100 -> 0.1562399076 | AU68: 0.28 | AV68: 3 | AY68: =RTD("cqg.rtd",,"StudyData", "Correlation("&$B$3&","&AY$2&",Period:="&$B$1&",InputChoice1:=Close,InputChoice2::=Close)", "FG", "", "Close",$B$2,A68, "all","", "","True","T")/100 -> -0.3667881618 | BA68: 0.28 | BB68: 0 | BE68: =RTD("cqg.rtd",,"StudyData", "Correlation("&$B$3&","&BE$2&",Period:="&$B$1&",InputChoice1:=Close,InputChoice2::=Close)", "FG", "", "Close",$B$2,A68, "all","", "","True","T")/100 -> -0.563450691 | BG68: 0.28 | BH68: 1
A69: -65 | C69: =RTD("cqg.rtd",,"StudyData", "Correlation("&$B$3&","&C$2&",Period:="&$B$1&",InputChoice1::=Close,InputChoice2::=Close)", "FG", "", "Close",$B$2,A69, "all","", "","True","T")/100 -> 0.0832887829 | E69: 0.3 | F69: 0 | G69: =IF(AND($C$4>=E69,$C$4<E70),IF(F69=0,1,F69),NA()) ->  | I69: =RTD("cqg.rtd",,"StudyData", "Correlation("&$B$3&","&I$2&",Period:="&$B$1&",InputChoice1:=Close,InputChoice2::=Close)", "FG", "", "Close",$B$2,A69, "all","", "","True","T")/100 -> 0.1545890197 | K69: 0.3 | L69: 1 | M69: =IF(AND($I$4>=K69,$I$4<K70),IF(L69=0,1,L69),NA()) ->  | O69: =RTD("cqg.rtd",,"StudyData", "Correlation("&$B$3&","&O$2&",Period:="&$B$1&",InputChoice1:=Close,InputChoice2::=Close)", "FG", "", "Close",$B$2,A69, "all","", "","True","T")/100 -> 0.7815506824 | Q69: 0.3 | R69: 3 | S69: =IF(AND($O$4>=Q69,$O$4<Q70),IF(R69=0,1,R69),NA()) ->  | U69: =RTD("cqg.rtd",,"StudyData", "Correlation("&$B$3&","&U$2&",Period:="&$B$1&",InputChoice1:=Close,InputChoice2::=Close)", "FG", "", "Close",$B$2,A69, "all","", "","True","T")/100 -> 0.5652312491 | W69: 0.3 | X69: 1 | Y69: =IF(AND($U$4>=W69,$U$4<W70),IF(X69=0,1,X69),NA()) ->  | AA69: =RTD("cqg.rtd",,"StudyData", "Correlation("&$B$3&","&AA$2&",Period:="&$B$1&",InputChoice1:=Close,InputChoice2::=Close)", "FG", "", "Close",$B$2,A69, "all","", "","True","T")/100 -> 0.3978892198 | AC69: 0.3 | AD69: 0 | AE69: =IF(AND($AA$4>=AC69,$AA$4<AC70),IF(AD69=0,1,AD69),NA()) ->  | AG69: =RTD("cqg.rtd",,"StudyData", "Correlation("&$B$3&","&AG$2&",Period:="&$B$1&",InputChoice1:=Close,InputChoice2::=Close)", "FG", "", "Close",$B$2,A69, "all","", "","True","T")/100 -> 0.5064545174 | AI69: 0.3 | AJ69: 1 | AK69: =IF(AND($AG$4>=AI69,$AG$4<AI70),IF(AJ69=0,1,AJ69),NA()) ->  | AM69: =RTD("cqg.rtd",,"StudyData", "Correlation("&$B$3&","&AM$2&",Period:="&$B$1&",InputChoice1:=Close,InputChoice2::=Close)", "FG", "", "Close",$B$2,A69, "all","", "","True","T")/100 -> 0.3792945288 | AO69: 0.3 | AP69: 2 | AQ69: =IF(AND($AM$4>=AO69,$AM$4<AO70),IF(AP69=0,1,AP69),NA()) ->  | AS69: =RTD("cqg.rtd",,"StudyData", "Correlation("&$B$3&","&AS$2&",Period:="&$B$1&",InputChoice1:=Close,InputChoice2::=Close)", "FG", "", "Close",$B$2,A69, "all","", "","True","T")/100 -> 0.1836474496 | AU69: 0.3 | AV69: 2 | AW69: =IF(AND($AS$4>=AU69,$AS$4<AU70),IF(AV69=0,1,AV69),NA()) ->  | AY69: =RTD("cqg.rtd",,"StudyData", "Correlation("&$B$3&","&AY$2&",Period:="&$B$1&",InputChoice1:=Close,InputChoice2::=Close)", "FG", "", "Close",$B$2,A69, "all","", "","True","T")/100 -> 0.2581645038 | BA69: 0.3 | BB69: 0 | BC69: =IF(AND($AY$4>=BA69,$AY$4<BA70),IF(BB69=0,1,BB69),NA()) ->  | BE69: =RTD("cqg.rtd",,"StudyData", "Correlation("&$B$3&","&BE$2&",Period:="&$B$1&",InputChoice1:=Close,InputChoice2::=Close)", "FG", "", "Close",$B$2,A69, "all","", "","True","T")/100 -> -0.0622780054 | BG69: 0.3 | BH69: 0 | BI69: =IF(AND($BE$4>=BG69,$BE$4<BG70),IF(BH69=0,1,BH69),NA()) -> 
A70: =A69-1 -> -66 | C70: =RTD("cqg.rtd",,"StudyData", "Correlation("&$B$3&","&C$2&",Period:="&$B$1&",InputChoice1::=Close,InputChoice2::=Close)", "FG", "", "Close",$B$2,A70, "all","", "","True","T")/100 -> -0.1901042044 | E70: =E69+0.02 -> 0.32 | F70: 2 | I70: =RTD("cqg.rtd",,"StudyData", "Correlation("&$B$3&","&I$2&",Period:="&$B$1&",InputChoice1:=Close,InputChoice2::=Close)", "FG", "", "Close",$B$2,A70, "all","", "","True","T")/100 -> -0.0575007847 | K70: =K69+0.02 -> 0.32 | L70: 1 | O70: =RTD("cqg.rtd",,"StudyData", "Correlation("&$B$3&","&O$2&",Period:="&$B$1&",InputChoice1:=Close,InputChoice2::=Close)", "FG", "", "Close",$B$2,A70, "all","", "","True","T")/100 -> 0.8619604636 | Q70: =Q69+0.02 -> 0.32 | R70: 0 | U70: =RTD("cqg.rtd",,"StudyData", "Correlation("&$B$3&","&U$2&",Period:="&$B$1&",InputChoice1:=Close,InputChoice2::=Close)", "FG", "", "Close",$B$2,A70, "all","", "","True","T")/100 -> 0.4637409773 | W70: =W69+0.02 -> 0.32 | X70: 0 | AA70: =RTD("cqg.rtd",,"StudyData", "Correlation("&$B$3&","&AA$2&",Period:="&$B$1&",InputChoice1:=Close,InputChoice2::=Close)", "FG", "", "Close",$B$2,A70, "all","", "","True","T")/100 -> 0.3385321881 | AC70: =AC69+0.02 -> 0.32 | AD70: 0 | AG70: =RTD("cqg.rtd",,"StudyData", "Correlation("&$B$3&","&AG$2&",Period:="&$B$1&",InputChoice1:=Close,InputChoice2::=Close)", "FG", "", "Close",$B$2,A70, "all","", "","True","T")/100 -> 0.6177043978 | AI70: =AI69+0.02 -> 0.32 | AJ70: 2 | AM70: =RTD("cqg.rtd",,"StudyData", "Correlation("&$B$3&","&AM$2&",Period:="&$B$1&",InputChoice1:=Close,InputChoice2::=Close)", "FG", "", "Close",$B$2,A70, "all","", "","True","T")/100 -> 0.2355694351 | AO70: =AO69+0.02 -> 0.32 | AP70: 3 | AS70: =RTD("cqg.rtd",,"StudyData", "Correlation("&$B$3&","&AS$2&",Period:="&$B$1&",InputChoice1:=Close,InputChoice2::=Close)", "FG", "", "Close",$B$2,A70, "all","", "","True","T")/100 -> 0.1170199719 | AU70: =AU69+0.02 -> 0.32 | AV70: 0 | AY70: =RTD("cqg.rtd",,"StudyData", "Correlation("&$B$3&","&AY$2&",Period:="&$B$1&",InputChoice1:=Close,InputChoice2::=Close)", "FG", "", "Close",$B$2,A70, "all","", "","True","T")/100 -> 0.4566795982 | BA70: =BA69+0.02 -> 0.32 | BB70: 0 | BE70: =RTD("cqg.rtd",,"StudyData", "Correlation("&$B$3&","&BE$2&",Period:="&$B$1&",InputChoice1:=Close,InputChoice2::=Close)", "FG", "", "Close",$B$2,A70, "all","", "","True","T")/100 -> 0.1245696537 | BG70: =BG69+0.02 -> 0.32 | BH70: 2
A71: -67 | C71: =RTD("cqg.rtd",,"StudyData", "Correlation("&$B$3&","&C$2&",Period:="&$B$1&",InputChoice1::=Close,InputChoice2::=Close)", "FG", "", "Close",$B$2,A71, "all","", "","True","T")/100 -> 0.0330608658 | E71: 0.34 | F71: 3 | I71: =RTD("cqg.rtd",,"StudyData", "Correlation("&$B$3&","&I$2&",Period:="&$B$1&",InputChoice1:=Close,InputChoice2::=Close)", "FG", "", "Close",$B$2,A71, "all","", "","True","T")/100 -> 0.2029940608 | K71: 0.34 | L71: 1 | O71: =RTD("cqg.rtd",,"StudyData", "Correlation("&$B$3&","&O$2&",Period:="&$B$1&",InputChoice1:=Close,InputChoice2::=Close)", "FG", "", "Close",$B$2,A71, "all","", "","True","T")/100 -> 0.9341663526 | Q71: 0.34 | R71: 0 | U71: =RTD("cqg.rtd",,"StudyData", "Correlation("&$B$3&","&U$2&",Period:="&$B$1&",InputChoice1:=Close,InputChoice2::=Close)", "FG", "", "Close",$B$2,A71, "all","", "","True","T")/100 -> 0.7097904408 | W71: 0.34 | X71: 0 | AA71: =RTD("cqg.rtd",,"StudyData", "Correlation("&$B$3&","&AA$2&",Period:="&$B$1&",InputChoice1:=Close,InputChoice2::=Close)", "FG", "", "Close",$B$2,A71, "all","", "","True","T")/100 -> 0.5240813947 | AC71: 0.34 | AD71: 2 | AG71: =RTD("cqg.rtd",,"StudyData", "Correlation("&$B$3&","&AG$2&",Period:="&$B$1&",InputChoice1:=Close,InputChoice2::=Close)", "FG", "", "Close",$B$2,A71, "all","", "","True","T")/100 -> 0.7387093307 | AI71: 0.34 | AJ71: 0 | AM71: =RTD("cqg.rtd",,"StudyData", "Correlation("&$B$3&","&AM$2&",Period:="&$B$1&",InputChoice1:=Close,InputChoice2::=Close)", "FG", "", "Close",$B$2,A71, "all","", "","True","T")/100 -> 0.3045458598 | AO71: 0.34 | AP71: 0 | AS71: =RTD("cqg.rtd",,"StudyData", "Correlation("&$B$3&","&AS$2&",Period:="&$B$1&",InputChoice1:=Close,InputChoice2::=Close)", "FG", "", "Close",$B$2,A71, "all","", "","True","T")/100 -> 0.2205502069 | AU71: 0.34 | AV71: 1 | AY71: =RTD("cqg.rtd",,"StudyData", "Correlation("&$B$3&","&AY$2&",Period:="&$B$1&",InputChoice1:=Close,InputChoice2::=Close)", "FG", "", "Close",$B$2,A71, "all","", "","True","T")/100 -> 0.5191820761 | BA71: 0.34 | BB71: 0 | BE71: =RTD("cqg.rtd",,"StudyData", "Correlation("&$B$3&","&BE$2&",Period:="&$B$1&",InputChoice1:=Close,InputChoice2::=Close)", "FG", "", "Close",$B$2,A71, "all","", "","True","T")/100 -> 0.3948587831 | BG71: 0.34 | BH71: 1
A72: -68 | C72: =RTD("cqg.rtd",,"StudyData", "Correlation("&$B$3&","&C$2&",Period:="&$B$1&",InputChoice1::=Close,InputChoice2::=Close)", "FG", "", "Close",$B$2,A72, "all","", "","True","T")/100 -> 0.5009976407 | E72: 0.36 | F72: 0 | I72: =RTD("cqg.rtd",,"StudyData", "Correlation("&$B$3&","&I$2&",Period:="&$B$1&",InputChoice1:=Close,InputChoice2::=Close)", "FG", "", "Close",$B$2,A72, "all","", "","True","T")/100 -> 0.6432877197 | K72: 0.36 | L72: 2 | O72: =RTD("cqg.rtd",,"StudyData", "Correlation("&$B$3&","&O$2&",Period:="&$B$1&",InputChoice1:=Close,InputChoice2::=Close)", "FG", "", "Close",$B$2,A72, "all","", "","True","T")/100 -> 0.955521917 | Q72: 0.36 | R72: 0 | U72: =RTD("cqg.rtd",,"StudyData", "Correlation("&$B$3&","&U$2&",Period:="&$B$1&",InputChoice1:=Close,InputChoice2::=Close)", "FG", "", "Close",$B$2,A72, "all","", "","True","T")/100 -> 0.8591529766 | W72: 0.36 | X72: 1 | AA72: =RTD("cqg.rtd",,"StudyData", "Correlation("&$B$3&","&AA$2&",Period:="&$B$1&",InputChoice1:=Close,InputChoice2::=Close)", "FG", "", "Close",$B$2,A72, "all","", "","True","T")/100 -> 0.6514492109 | AC72: 0.36 | AD72: 1 | AG72: =RTD("cqg.rtd",,"StudyData", "Correlation("&$B$3&","&AG$2&",Period:="&$B$1&",InputChoice1:=Close,InputChoice2::=Close)", "FG", "", "Close",$B$2,A72, "all","", "","True","T")/100 -> 0.8084582824 | AI72: 0.36 | AJ72: 1 | AM72: =RTD("cqg.rtd",,"StudyData", "Correlation("&$B$3&","&AM$2&",Period:="&$B$1&",InputChoice1:=Close,InputChoice2::=Close)", "FG", "", "Close",$B$2,A72, "all","", "","True","T")/100 -> 0.5206703098 | AO72: 0.36 | AP72: 0 | AS72: =RTD("cqg.rtd",,"StudyData", "Correlation("&$B$3&","&AS$2&",Period:="&$B$1&",InputChoice1:=Close,InputChoice2::=Close)", "FG", "", "Close",$B$2,A72, "all","", "","True","T")/100 -> 0.4157613169 | AU72: 0.36 | AV72: 2 | AY72: =RTD("cqg.rtd",,"StudyData", "Correlation("&$B$3&","&AY$2&",Period:="&$B$1&",InputChoice1:=Close,InputChoice2::=Close)", "FG", "", "Close",$B$2,A72, "all","", "","True","T")/100 -> 0.4708750335 | BA72: 0.36 | BB72: 1 | BE72: =RTD("cqg.rtd",,"StudyData", "Correlation("&$B$3&","&BE$2&",Period:="&$B$1&",InputChoice1:=Close,InputChoice2::=Close)", "FG", "", "Close",$B$2,A72, "all","", "","True","T")/100 -> 0.529426302 | BG72: 0.36 | BH72: 1
A73: -69 | C73: =RTD("cqg.rtd",,"StudyData", "Correlation("&$B$3&","&C$2&",Period:="&$B$1&",InputChoice1::=Close,InputChoice2::=Close)", "FG", "", "Close",$B$2,A73, "all","", "","True","T")/100 -> 0.5586569855 | E73: 0.38 | F73: 0 | I73: =RTD("cqg.rtd",,"StudyData", "Correlation("&$B$3&","&I$2&",Period:="&$B$1&",InputChoice1:=Close,InputChoice2::=Close)", "FG", "", "Close",$B$2,A73, "all","", "","True","T")/100 -> 0.6956017881 | K73: 0.38 | L73: 1 | O73: =RTD("cqg.rtd",,"StudyData", "Correlation("&$B$3&","&O$2&",Period:="&$B$1&",InputChoice1:=Close,InputChoice2::=Close)", "FG", "", "Close",$B$2,A73, "all","", "","True","T")/100 -> 0.9290384975 | Q73: 0.38 | R73: 0 | U73: =RTD("cqg.rtd",,"StudyData", "Correlation("&$B$3&","&U$2&",Period:="&$B$1&",InputChoice1:=Close,InputChoice2::=Close)", "FG", "", "Close",$B$2,A73, "all","", "","True","T")/100 -> 0.9100420042 | W73: 0.38 | X73: 0 | AA73: =RTD("cqg.rtd",,"StudyData", "Correlation("&$B$3&","&AA$2&",Period:="&$B$1&",InputChoice1:=Close,InputChoice2::=Close)", "FG", "", "Close",$B$2,A73, "all","", "","True","T")/100 -> 0.7252566674 | AC73: 0.38 | AD73: 1 | AG73: =RTD("cqg.rtd",,"StudyData", "Correlation("&$B$3&","&AG$2&",Period:="&$B$1&",InputChoice1:=Close,InputChoice2::=Close)", "FG", "", "Close",$B$2,A73, "all","", "","True","T")/100 -> 0.8102324391 | AI73: 0.38 | AJ73: 1 | AM73: =RTD("cqg.rtd",,"StudyData", "Correlation("&$B$3&","&AM$2&",Period:="&$B$1&",InputChoice1:=Close,InputChoice2::=Close)", "FG", "", "Close",$B$2,A73, "all","", "","True","T")/100 -> 0.8002303379 | AO73: 0.38 | AP73: 2 | AS73: =RTD("cqg.rtd",,"StudyData", "Correlation("&$B$3&","&AS$2&",Period:="&$B$1&",InputChoice1:=Close,InputChoice2::=Close)", "FG", "", "Close",$B$2,A73, "all","", "","True","T")/100 -> 0.6595732215 | AU73: 0.38 | AV73: 0 | AY73: =RTD("cqg.rtd",,"StudyData", "Correlation("&$B$3&","&AY$2&",Period:="&$B$1&",InputChoice1:=Close,InputChoice2::=Close)", "FG", "", "Close",$B$2,A73, "all","", "","True","T")/100 -> 0.6138812201 | BA73: 0.38 | BB73: 0 | BE73: =RTD("cqg.rtd",,"StudyData", "Correlation("&$B$3&","&BE$2&",Period:="&$B$1&",InputChoice1:=Close,InputChoice2::=Close)", "FG", "", "Close",$B$2,A73, "all","", "","True","T")/100 -> 0.556762212 | BG73: 0.38 | BH73: 1
A74: -70 | C74: =RTD("cqg.rtd",,"StudyData", "Correlation("&$B$3&","&C$2&",Period:="&$B$1&",InputChoice1::=Close,InputChoice2::=Close)", "FG", "", "Close",$B$2,A74, "all","", "","True","T")/100 -> 0.5929617126 | E74: 0.4 | F74: 0 | I74: =RTD("cqg.rtd",,"StudyData", "Correlation("&$B$3&","&I$2&",Period:="&$B$1&",InputChoice1:=Close,InputChoice2::=Close)", "FG", "", "Close",$B$2,A74, "all","", "","True","T")/100 -> 0.7081304612 | K74: 0.4 | L74: 0 | O74: =RTD("cqg.rtd",,"StudyData", "Correlation("&$B$3&","&O$2&",Period:="&$B$1&",InputChoice1:=Close,InputChoice2::=Close)", "FG", "", "Close",$B$2,A74, "all","", "","True","T")/100 -> 0.8117207008 | Q74: 0.4 | R74: 3 | U74: =RTD("cqg.rtd",,"StudyData", "Correlation("&$B$3&","&U$2&",Period:="&$B$1&",InputChoice1:=Close,InputChoice2::=Close)", "FG", "", "Close",$B$2,A74, "all","", "","True","T")/100 -> 0.8694873995 | W74: 0.4 | X74: 0 | AA74: =RTD("cqg.rtd",,"StudyData", "Correlation("&$B$3&","&AA$2&",Period:="&$B$1&",InputChoice1:=Close,InputChoice2::=Close)", "FG", "", "Close",$B$2,A74, "all","", "","True","T")/100 -> 0.8241633299 | AC74: 0.4 | AD74: 5 | AG74: =RTD("cqg.rtd",,"StudyData", "Correlation("&$B$3&","&AG$2&",Period:="&$B$1&",InputChoice1:=Close,InputChoice2::=Close)", "FG", "", "Close",$B$2,A74, "all","", "","True","T")/100 -> 0.8253102422 | AI74: 0.4 | AJ74: 1 | AM74: =RTD("cqg.rtd",,"StudyData", "Correlation("&$B$3&","&AM$2&",Period:="&$B$1&",InputChoice1:=Close,InputChoice2::=Close)", "FG", "", "Close",$B$2,A74, "all","", "","True","T")/100 -> 0.8952106329 | AO74: 0.4 | AP74: 0 | AS74: =RTD("cqg.rtd",,"StudyData", "Correlation("&$B$3&","&AS$2&",Period:="&$B$1&",InputChoice1:=Close,InputChoice2::=Close)", "FG", "", "Close",$B$2,A74, "all","", "","True","T")/100 -> 0.7992083074 | AU74: 0.4 | AV74: 5 | AY74: =RTD("cqg.rtd",,"StudyData", "Correlation("&$B$3&","&AY$2&",Period:="&$B$1&",InputChoice1:=Close,InputChoice2::=Close)", "FG", "", "Close",$B$2,A74, "all","", "","True","T")/100 -> 0.5479514062 | BA74: 0.4 | BB74: 1 | BE74: =RTD("cqg.rtd",,"StudyData", "Correlation("&$B$3&","&BE$2&",Period:="&$B$1&",InputChoice1:=Close,InputChoice2::=Close)", "FG", "", "Close",$B$2,A74, "all","", "","True","T")/100 -> 0.5260544709 | BG74: 0.4 | BH74: 3
A75: -71 | C75: =RTD("cqg.rtd",,"StudyData", "Correlation("&$B$3&","&C$2&",Period:="&$B$1&",InputChoice1::=Close,InputChoice2::=Close)", "FG", "", "Close",$B$2,A75, "all","", "","True","T")/100 -> 0.7087767123 | E75: 0.42 | F75: 0 | I75: =RTD("cqg.rtd",,"StudyData", "Correlation("&$B$3&","&I$2&",Period:="&$B$1&",InputChoice1:=Close,InputChoice2::=Close)", "FG", "", "Close",$B$2,A75, "all","", "","True","T")/100 -> 0.7817735509 | K75: 0.42 | L75: 0 | O75: =RTD("cqg.rtd",,"StudyData", "Correlation("&$B$3&","&O$2&",Period:="&$B$1&",InputChoice1:=Close,InputChoice2::=Close)", "FG", "", "Close",$B$2,A75, "all","", "","True","T")/100 -> 0.8624281841 | Q75: 0.42 | R75: 0 | U75: =RTD("cqg.rtd",,"StudyData", "Correlation("&$B$3&","&U$2&",Period:="&$B$1&",InputChoice1:=Close,InputChoice2::=Close)", "FG", "", "Close",$B$2,A75, "all","", "","True","T")/100 -> 0.7922403499 | W75: 0.42 | X75: 0 | AA75: =RTD("cqg.rtd",,"StudyData", "Correlation("&$B$3&","&AA$2&",Period:="&$B$1&",InputChoice1:=Close,InputChoice2::=Close)", "FG", "", "Close",$B$2,A75, "all","", "","True","T")/100 -> 0.7581232071 | AC75: 0.42 | AD75: 2 | AG75: =RTD("cqg.rtd",,"StudyData", "Correlation("&$B$3&","&AG$2&",Period:="&$B$1&",InputChoice1:=Close,InputChoice2::=Close)", "FG", "", "Close",$B$2,A75, "all","", "","True","T")/100 -> 0.6753309544 | AI75: 0.42 | AJ75: 1 | AM75: =RTD("cqg.rtd",,"StudyData", "Correlation("&$B$3&","&AM$2&",Period:="&$B$1&",InputChoice1:=Close,InputChoice2::=Close)", "FG", "", "Close",$B$2,A75, "all","", "","True","T")/100 -> 0.80087299 | AO75: 0.42 | AP75: 1 | AS75: =RTD("cqg.rtd",,"StudyData", "Correlation("&$B$3&","&AS$2&",Period:="&$B$1&",InputChoice1:=Close,InputChoice2::=Close)", "FG", "", "Close",$B$2,A75, "all","", "","True","T")/100 -> 0.2604066364 | AU75: 0.42 | AV75: 2 | AY75: =RTD("cqg.rtd",,"StudyData", "Correlation("&$B$3&","&AY$2&",Period:="&$B$1&",InputChoice1:=Close,InputChoice2::=Close)", "FG", "", "Close",$B$2,A75, "all","", "","True","T")/100 -> -0.615074038 | BA75: 0.42 | BB75: 0 | BE75: =RTD("cqg.rtd",,"StudyData", "Correlation("&$B$3&","&BE$2&",Period:="&$B$1&",InputChoice1:=Close,InputChoice2::=Close)", "FG", "", "Close",$B$2,A75, "all","", "","True","T")/100 -> 0.2296790494 | BG75: 0.42 | BH75: 1
A76: -72 | C76: =RTD("cqg.rtd",,"StudyData", "Correlation("&$B$3&","&C$2&",Period:="&$B$1&",InputChoice1::=Close,InputChoice2::=Close)", "FG", "", "Close",$B$2,A76, "all","", "","True","T")/100 -> 0.7233810609 | E76: 0.44 | F76: 2 | I76: =RTD("cqg.rtd",,"StudyData", "Correlation("&$B$3&","&I$2&",Period:="&$B$1&",InputChoice1:=Close,InputChoice2::=Close)", "FG", "", "Close",$B$2,A76, "all","", "","True","T")/100 -> 0.7709864338 | K76: 0.44 | L76: 2 | O76: =RTD("cqg.rtd",,"StudyData", "Correlation("&$B$3&","&O$2&",Period:="&$B$1&",InputChoice1:=Close,InputChoice2::=Close)", "FG", "", "Close",$B$2,A76, "all","", "","True","T")/100 -> 0.9133844087 | Q76: 0.44 | R76: 0 | U76: =RTD("cqg.rtd",,"StudyData", "Correlation("&$B$3&","&U$2&",Period:="&$B$1&",InputChoice1:=Close,InputChoice2::=Close)", "FG", "", "Close",$B$2,A76, "all","", "","True","T")/100 -> 0.792364346 | W76: 0.44 | X76: 0 | AA76: =RTD("cqg.rtd",,"StudyData", "Correlation("&$B$3&","&AA$2&",Period:="&$B$1&",InputChoice1:=Close,InputChoice2::=Close)", "FG", "", "Close",$B$2,A76, "all","", "","True","T")/100 -> 0.8526665648 | AC76: 0.44 | AD76: 1 | AG76: =RTD("cqg.rtd",,"StudyData", "Correlation("&$B$3&","&AG$2&",Period:="&$B$1&",InputChoice1:=Close,InputChoice2::=Close)", "FG", "", "Close",$B$2,A76, "all","", "","True","T")/100 -> 0.7480747557 | AI76: 0.44 | AJ76: 1 | AM76: =RTD("cqg.rtd",,"StudyData", "Correlation("&$B$3&","&AM$2&",Period:="&$B$1&",InputChoice1:=Close,InputChoice2::=Close)", "FG", "", "Close",$B$2,A76, "all","", "","True","T")/100 -> 0.8714188021 | AO76: 0.44 | AP76: 3 | AS76: =RTD("cqg.rtd",,"StudyData", "Correlation("&$B$3&","&AS$2&",Period:="&$B$1&",InputChoice1:=Close,InputChoice2::=Close)", "FG", "", "Close",$B$2,A76, "all","", "","True","T")/100 -> 0.199138639 | AU76: 0.44 | AV76: 2 | AY76: =RTD("cqg.rtd",,"StudyData", "Correlation("&$B$3&","&AY$2&",Period:="&$B$1&",InputChoice1:=Close,InputChoice2::=Close)", "FG", "", "Close",$B$2,A76, "all","", "","True","T")/100 -> -0.6759811788 | BA76: 0.44 | BB76: 0 | BE76: =RTD("cqg.rtd",,"StudyData", "Correlation("&$B$3&","&BE$2&",Period:="&$B$1&",InputChoice1:=Close,InputChoice2::=Close)", "FG", "", "Close",$B$2,A76, "all","", "","True","T")/100 -> 0.2311883009 | BG76: 0.44 | BH76: 4
A77: -73 | C77: =RTD("cqg.rtd",,"StudyData", "Correlation("&$B$3&","&C$2&",Period:="&$B$1&",InputChoice1::=Close,InputChoice2::=Close)", "FG", "", "Close",$B$2,A77, "all","", "","True","T")/100 -> 0.7129528811 | E77: 0.46 | F77: 0 | I77: =RTD("cqg.rtd",,"StudyData", "Correlation("&$B$3&","&I$2&",Period:="&$B$1&",InputChoice1:=Close,InputChoice2::=Close)", "FG", "", "Close",$B$2,A77, "all","", "","True","T")/100 -> 0.7609850388 | K77: 0.46 | L77: 1 | O77: =RTD("cqg.rtd",,"StudyData", "Correlation("&$B$3&","&O$2&",Period:="&$B$1&",InputChoice1:=Close,InputChoice2::=Close)", "FG", "", "Close",$B$2,A77, "all","", "","True","T")/100 -> 0.9231959216 | Q77: 0.46 | R77: 2 | U77: =RTD("cqg.rtd",,"StudyData", "Correlation("&$B$3&","&U$2&",Period:="&$B$1&",InputChoice1:=Close,InputChoice2::=Close)", "FG", "", "Close",$B$2,A77, "all","", "","True","T")/100 -> 0.8205048886 | W77: 0.46 | X77: 0 | AA77: =RTD("cqg.rtd",,"StudyData", "Correlation("&$B$3&","&AA$2&",Period:="&$B$1&",InputChoice1:=Close,InputChoice2::=Close)", "FG", "", "Close",$B$2,A77, "all","", "","True","T")/100 -> 0.8502530449 | AC77: 0.46 | AD77: 1 | AG77: =RTD("cqg.rtd",,"StudyData", "Correlation("&$B$3&","&AG$2&",Period:="&$B$1&",InputChoice1:=Close,InputChoice2::=Close)", "FG", "", "Close",$B$2,A77, "all","", "","True","T")/100 -> 0.8985044638 | AI77: 0.46 | AJ77: 0 | AM77: =RTD("cqg.rtd",,"StudyData", "Correlation("&$B$3&","&AM$2&",Period:="&$B$1&",InputChoice1:=Close,InputChoice2::=Close)", "FG", "", "Close",$B$2,A77, "all","", "","True","T")/100 -> 0.9121639539 | AO77: 0.46 | AP77: 1 | AS77: =RTD("cqg.rtd",,"StudyData", "Correlation("&$B$3&","&AS$2&",Period:="&$B$1&",InputChoice1:=Close,InputChoice2::=Close)", "FG", "", "Close",$B$2,A77, "all","", "","True","T")/100 -> 0.487476535 | AU77: 0.46 | AV77: 1 | AY77: =RTD("cqg.rtd",,"StudyData", "Correlation("&$B$3&","&AY$2&",Period:="&$B$1&",InputChoice1:=Close,InputChoice2::=Close)", "FG", "", "Close",$B$2,A77, "all","", "","True","T")/100 -> -0.8046137018 | BA77: 0.46 | BB77: 1 | BE77: =RTD("cqg.rtd",,"StudyData", "Correlation("&$B$3&","&BE$2&",Period:="&$B$1&",InputChoice1:=Close,InputChoice2::=Close)", "FG", "", "Close",$B$2,A77, "all","", "","True","T")/100 -> 0.2362065959 | BG77: 0.46 | BH77: 2
A78: -74 | C78: =RTD("cqg.rtd",,"StudyData", "Correlation("&$B$3&","&C$2&",Period:="&$B$1&",InputChoice1::=Close,InputChoice2::=Close)", "FG", "", "Close",$B$2,A78, "all","", "","True","T")/100 -> 0.7951704562 | E78: 0.48 | F78: 0 | I78: =RTD("cqg.rtd",,"StudyData", "Correlation("&$B$3&","&I$2&",Period:="&$B$1&",InputChoice1:=Close,InputChoice2::=Close)", "FG", "", "Close",$B$2,A78, "all","", "","True","T")/100 -> 0.8011550999 | K78: 0.48 | L78: 2 | O78: =RTD("cqg.rtd",,"StudyData", "Correlation("&$B$3&","&O$2&",Period:="&$B$1&",InputChoice1:=Close,InputChoice2::=Close)", "FG", "", "Close",$B$2,A78, "all","", "","True","T")/100 -> 0.9237025936 | Q78: 0.48 | R78: 0 | U78: =RTD("cqg.rtd",,"StudyData", "Correlation("&$B$3&","&U$2&",Period:="&$B$1&",InputChoice1:=Close,InputChoice2::=Close)", "FG", "", "Close",$B$2,A78, "all","", "","True","T")/100 -> 0.900136665 | W78: 0.48 | X78: 1 | AA78: =RTD("cqg.rtd",,"StudyData", "Correlation("&$B$3&","&AA$2&",Period:="&$B$1&",InputChoice1:=Close,InputChoice2::=Close)", "FG", "", "Close",$B$2,A78, "all","", "","True","T")/100 -> 0.8806780071 | AC78: 0.48 | AD78: 1 | AG78: =RTD("cqg.rtd",,"StudyData", "Correlation("&$B$3&","&AG$2&",Period:="&$B$1&",InputChoice1:=Close,InputChoice2::=Close)", "FG", "", "Close",$B$2,A78, "all","", "","True","T")/100 -> 0.9178738401 | AI78: 0.48 | AJ78: 0 | AM78: =RTD("cqg.rtd",,"StudyData", "Correlation("&$B$3&","&AM$2&",Period:="&$B$1&",InputChoice1:=Close,InputChoice2::=Close)", "FG", "", "Close",$B$2,A78, "all","", "","True","T")/100 -> 0.8959472443 | AO78: 0.48 | AP78: 2 | AS78: =RTD("cqg.rtd",,"StudyData", "Correlation("&$B$3&","&AS$2&",Period:="&$B$1&",InputChoice1:=Close,InputChoice2::=Close)", "FG", "", "Close",$B$2,A78, "all","", "","True","T")/100 -> 0.5807853027 | AU78: 0.48 | AV78: 3 | AY78: =RTD("cqg.rtd",,"StudyData", "Correlation("&$B$3&","&AY$2&",Period:="&$B$1&",InputChoice1:=Close,InputChoice2::=Close)", "FG", "", "Close",$B$2,A78, "all","", "","True","T")/100 -> -0.8808631074 | BA78: 0.48 | BB78: 1 | BE78: =RTD("cqg.rtd",,"StudyData", "Correlation("&$B$3&","&BE$2&",Period:="&$B$1&",InputChoice1:=Close,InputChoice2::=Close)", "FG", "", "Close",$B$2,A78, "all","", "","True","T")/100 -> 0.3417272729 | BG78: 0.48 | BH78: 2
A79: -75 | C79: =RTD("cqg.rtd",,"StudyData", "Correlation("&$B$3&","&C$2&",Period:="&$B$1&",InputChoice1::=Close,InputChoice2::=Close)", "FG", "", "Close",$B$2,A79, "all","", "","True","T")/100 -> 0.8339811319 | E79: 0.5 | F79: 2 | I79: =RTD("cqg.rtd",,"StudyData", "Correlation("&$B$3&","&I$2&",Period:="&$B$1&",InputChoice1:=Close,InputChoice2::=Close)", "FG", "", "Close",$B$2,A79, "all","", "","True","T")/100 -> 0.8387554454 | K79: 0.5 | L79: 1 | O79: =RTD("cqg.rtd",,"StudyData", "Correlation("&$B$3&","&O$2&",Period:="&$B$1&",InputChoice1:=Close,InputChoice2::=Close)", "FG", "", "Close",$B$2,A79, "all","", "","True","T")/100 -> 0.9181738885 | Q79: 0.5 | R79: 0 | U79: =RTD("cqg.rtd",,"StudyData", "Correlation("&$B$3&","&U$2&",Period:="&$B$1&",InputChoice1:=Close,InputChoice2::=Close)", "FG", "", "Close",$B$2,A79, "all","", "","True","T")/100 -> 0.9221448897 | W79: 0.5 | X79: 1 | AA79: =RTD("cqg.rtd",,"StudyData", "Correlation("&$B$3&","&AA$2&",Period:="&$B$1&",InputChoice1:=Close,InputChoice2::=Close)", "FG", "", "Close",$B$2,A79, "all","", "","True","T")/100 -> 0.8582569581 | AC79: 0.5 | AD79: 3 | AG79: =RTD("cqg.rtd",,"StudyData", "Correlation("&$B$3&","&AG$2&",Period:="&$B$1&",InputChoice1:=Close,InputChoice2::=Close)", "FG", "", "Close",$B$2,A79, "all","", "","True","T")/100 -> 0.9077108114 | AI79: 0.5 | AJ79: 5 | AM79: =RTD("cqg.rtd",,"StudyData", "Correlation("&$B$3&","&AM$2&",Period:="&$B$1&",InputChoice1:=Close,InputChoice2::=Close)", "FG", "", "Close",$B$2,A79, "all","", "","True","T")/100 -> 0.8740030607 | AO79: 0.5 | AP79: 2 | AS79: =RTD("cqg.rtd",,"StudyData", "Correlation("&$B$3&","&AS$2&",Period:="&$B$1&",InputChoice1:=Close,InputChoice2::=Close)", "FG", "", "Close",$B$2,A79, "all","", "","True","T")/100 -> 0.6201451269 | AU79: 0.5 | AV79: 2 | AY79: =RTD("cqg.rtd",,"StudyData", "Correlation("&$B$3&","&AY$2&",Period:="&$B$1&",InputChoice1:=Close,InputChoice2::=Close)", "FG", "", "Close",$B$2,A79, "all","", "","True","T")/100 -> -0.8800860705 | BA79: 0.5 | BB79: 0 | BE79: =RTD("cqg.rtd",,"StudyData", "Correlation("&$B$3&","&BE$2&",Period:="&$B$1&",InputChoice1:=Close,InputChoice2::=Close)", "FG", "", "Close",$B$2,A79, "all","", "","True","T")/100 -> 0.6231834447 | BG79: 0.5 | BH79: 2
A80: -76 | C80: =RTD("cqg.rtd",,"StudyData", "Correlation("&$B$3&","&C$2&",Period:="&$B$1&",InputChoice1::=Close,InputChoice2::=Close)", "FG", "", "Close",$B$2,A80, "all","", "","True","T")/100 -> 0.8392068833 | E80: 0.52 | F80: 4 | I80: =RTD("cqg.rtd",,"StudyData", "Correlation("&$B$3&","&I$2&",Period:="&$B$1&",InputChoice1:=Close,InputChoice2::=Close)", "FG", "", "Close",$B$2,A80, "all","", "","True","T")/100 -> 0.8393977885 | K80: 0.52 | L80: 1 | O80: =RTD("cqg.rtd",,"StudyData", "Correlation("&$B$3&","&O$2&",Period:="&$B$1&",InputChoice1:=Close,InputChoice2::=Close)", "FG", "", "Close",$B$2,A80, "all","", "","True","T")/100 -> 0.8407206467 | Q80: 0.52 | R80: 1 | U80: =RTD("cqg.rtd",,"StudyData", "Correlation("&$B$3&","&U$2&",Period:="&$B$1&",InputChoice1:=Close,InputChoice2::=Close)", "FG", "", "Close",$B$2,A80, "all","", "","True","T")/100 -> 0.9144045763 | W80: 0.52 | X80: 0 | AA80: =RTD("cqg.rtd",,"StudyData", "Correlation("&$B$3&","&AA$2&",Period:="&$B$1&",InputChoice1:=Close,InputChoice2::=Close)", "FG", "", "Close",$B$2,A80, "all","", "","True","T")/100 -> 0.8953135009 | AC80: 0.52 | AD80: 3 | AE80: 3 | AG80: =RTD("cqg.rtd",,"StudyData", "Correlation("&$B$3&","&AG$2&",Period:="&$B$1&",InputChoice1:=Close,InputChoice2::=Close)", "FG", "", "Close",$B$2,A80, "all","", "","True","T")/100 -> 0.93227663 | AI80: 0.52 | AJ80: 3 | AM80: =RTD("cqg.rtd",,"StudyData", "Correlation("&$B$3&","&AM$2&",Period:="&$B$1&",InputChoice1:=Close,InputChoice2::=Close)", "FG", "", "Close",$B$2,A80, "all","", "","True","T")/100 -> 0.905960143 | AO80: 0.52 | AP80: 3 | AS80: =RTD("cqg.rtd",,"StudyData", "Correlation("&$B$3&","&AS$2&",Period:="&$B$1&",InputChoice1:=Close,InputChoice2::=Close)", "FG", "", "Close",$B$2,A80, "all","", "","True","T")/100 -> 0.7162229242 | AU80: 0.52 | AV80: 2 | AY80: =RTD("cqg.rtd",,"StudyData", "Correlation("&$B$3&","&AY$2&",Period:="&$B$1&",InputChoice1:=Close,InputChoice2::=Close)", "FG", "", "Close",$B$2,A80, "all","", "","True","T")/100 -> -0.9422276123 | BA80: 0.52 | BB80: 1 | BE80: =RTD("cqg.rtd",,"StudyData", "Correlation("&$B$3&","&BE$2&",Period:="&$B$1&",InputChoice1:=Close,InputChoice2::=Close)", "FG", "", "Close",$B$2,A80, "all","", "","True","T")/100 -> 0.7474944143 | BG80: 0.52 | BH80: 1
A81: -77 | C81: =RTD("cqg.rtd",,"StudyData", "Correlation("&$B$3&","&C$2&",Period:="&$B$1&",InputChoice1::=Close,InputChoice2::=Close)", "FG", "", "Close",$B$2,A81, "all","", "","True","T")/100 -> 0.8517007745 | E81: 0.54 | F81: 2 | I81: =RTD("cqg.rtd",,"StudyData", "Correlation("&$B$3&","&I$2&",Period:="&$B$1&",InputChoice1:=Close,InputChoice2::=Close)", "FG", "", "Close",$B$2,A81, "all","", "","True","T")/100 -> 0.8525323386 | K81: 0.54 | L81: 1 | O81: =RTD("cqg.rtd",,"StudyData", "Correlation("&$B$3&","&O$2&",Period:="&$B$1&",InputChoice1:=Close,InputChoice2::=Close)", "FG", "", "Close",$B$2,A81, "all","", "","True","T")/100 -> 0.8740942951 | Q81: 0.54 | R81: 0 | U81: =RTD("cqg.rtd",,"StudyData", "Correlation("&$B$3&","&U$2&",Period:="&$B$1&",InputChoice1:=Close,InputChoice2::=Close)", "FG", "", "Close",$B$2,A81, "all","", "","True","T")/100 -> 0.8828969259 | W81: 0.54 | X81: 0 | AA81: =RTD("cqg.rtd",,"StudyData", "Correlation("&$B$3&","&AA$2&",Period:="&$B$1&",InputChoice1:=Close,InputChoice2::=Close)", "FG", "", "Close",$B$2,A81, "all","", "","True","T")/100 -> 0.8871090565 | AC81: 0.54 | AD81: 2 | AG81: =RTD("cqg.rtd",,"StudyData", "Correlation("&$B$3&","&AG$2&",Period:="&$B$1&",InputChoice1:=Close,InputChoice2::=Close)", "FG", "", "Close",$B$2,A81, "all","", "","True","T")/100 -> 0.8985448843 | AI81: 0.54 | AJ81: 0 | AM81: =RTD("cqg.rtd",,"StudyData", "Correlation("&$B$3&","&AM$2&",Period:="&$B$1&",InputChoice1:=Close,InputChoice2::=Close)", "FG", "", "Close",$B$2,A81, "all","", "","True","T")/100 -> 0.9053009195 | AO81: 0.54 | AP81: 2 | AS81: =RTD("cqg.rtd",,"StudyData", "Correlation("&$B$3&","&AS$2&",Period:="&$B$1&",InputChoice1:=Close,InputChoice2::=Close)", "FG", "", "Close",$B$2,A81, "all","", "","True","T")/100 -> 0.5045463181 | AU81: 0.54 | AV81: 2 | AY81: =RTD("cqg.rtd",,"StudyData", "Correlation("&$B$3&","&AY$2&",Period:="&$B$1&",InputChoice1:=Close,InputChoice2::=Close)", "FG", "", "Close",$B$2,A81, "all","", "","True","T")/100 -> -0.9227440416 | BA81: 0.54 | BB81: 0 | BE81: =RTD("cqg.rtd",,"StudyData", "Correlation("&$B$3&","&BE$2&",Period:="&$B$1&",InputChoice1:=Close,InputChoice2::=Close)", "FG", "", "Close",$B$2,A81, "all","", "","True","T")/100 -> 0.7468649967 | BG81: 0.54 | BH81: 7
A82: -78 | C82: =RTD("cqg.rtd",,"StudyData", "Correlation("&$B$3&","&C$2&",Period:="&$B$1&",InputChoice1::=Close,InputChoice2::=Close)", "FG", "", "Close",$B$2,A82, "all","", "","True","T")/100 -> 0.8583749187 | E82: 0.56 | F82: 2 | I82: =RTD("cqg.rtd",,"StudyData", "Correlation("&$B$3&","&I$2&",Period:="&$B$1&",InputChoice1:=Close,InputChoice2::=Close)", "FG", "", "Close",$B$2,A82, "all","", "","True","T")/100 -> 0.8469012507 | K82: 0.56 | L82: 0 | O82: =RTD("cqg.rtd",,"StudyData", "Correlation("&$B$3&","&O$2&",Period:="&$B$1&",InputChoice1:=Close,InputChoice2::=Close)", "FG", "", "Close",$B$2,A82, "all","", "","True","T")/100 -> 0.9398522173 | Q82: 0.56 | R82: 0 | U82: =RTD("cqg.rtd",,"StudyData", "Correlation("&$B$3&","&U$2&",Period:="&$B$1&",InputChoice1:=Close,InputChoice2::=Close)", "FG", "", "Close",$B$2,A82, "all","", "","True","T")/100 -> 0.8833484851 | W82: 0.56 | X82: 1 | AA82: =RTD("cqg.rtd",,"StudyData", "Correlation("&$B$3&","&AA$2&",Period:="&$B$1&",InputChoice1:=Close,InputChoice2::=Close)", "FG", "", "Close",$B$2,A82, "all","", "","True","T")/100 -> 0.9139884945 | AC82: 0.56 | AD82: 1 | AG82: =RTD("cqg.rtd",,"StudyData", "Correlation("&$B$3&","&AG$2&",Period:="&$B$1&",InputChoice1:=Close,InputChoice2::=Close)", "FG", "", "Close",$B$2,A82, "all","", "","True","T")/100 -> 0.9110035899 | AI82: 0.56 | AJ82: 3 | AM82: =RTD("cqg.rtd",,"StudyData", "Correlation("&$B$3&","&AM$2&",Period:="&$B$1&",InputChoice1:=Close,InputChoice2::=Close)", "FG", "", "Close",$B$2,A82, "all","", "","True","T")/100 -> 0.9387593756 | AO82: 0.56 | AP82: 1 | AS82: =RTD("cqg.rtd",,"StudyData", "Correlation("&$B$3&","&AS$2&",Period:="&$B$1&",InputChoice1:=Close,InputChoice2::=Close)", "FG", "", "Close",$B$2,A82, "all","", "","True","T")/100 -> 0.3997770764 | AU82: 0.56 | AV82: 0 | AY82: =RTD("cqg.rtd",,"StudyData", "Correlation("&$B$3&","&AY$2&",Period:="&$B$1&",InputChoice1:=Close,InputChoice2::=Close)", "FG", "", "Close",$B$2,A82, "all","", "","True","T")/100 -> -0.9427120395 | BA82: 0.56 | BB82: 1 | BE82: =RTD("cqg.rtd",,"StudyData", "Correlation("&$B$3&","&BE$2&",Period:="&$B$1&",InputChoice1:=Close,InputChoice2::=Close)", "FG", "", "Close",$B$2,A82, "all","", "","True","T")/100 -> 0.7791433544 | BG82: 0.56 | BH82: 1
A83: -79 | C83: =RTD("cqg.rtd",,"StudyData", "Correlation("&$B$3&","&C$2&",Period:="&$B$1&",InputChoice1::=Close,InputChoice2::=Close)", "FG", "", "Close",$B$2,A83, "all","", "","True","T")/100 -> 0.8877777082 | E83: 0.58 | F83: 0 | I83: =RTD("cqg.rtd",,"StudyData", "Correlation("&$B$3&","&I$2&",Period:="&$B$1&",InputChoice1:=Close,InputChoice2::=Close)", "FG", "", "Close",$B$2,A83, "all","", "","True","T")/100 -> 0.8851640114 | K83: 0.58 | L83: 3 | O83: =RTD("cqg.rtd",,"StudyData", "Correlation("&$B$3&","&O$2&",Period:="&$B$1&",InputChoice1:=Close,InputChoice2::=Close)", "FG", "", "Close",$B$2,A83, "all","", "","True","T")/100 -> 0.9509167342 | Q83: 0.58 | R83: 0 | U83: =RTD("cqg.rtd",,"StudyData", "Correlation("&$B$3&","&U$2&",Period:="&$B$1&",InputChoice1:=Close,InputChoice2::=Close)", "FG", "", "Close",$B$2,A83, "all","", "","True","T")/100 -> 0.9320658609 | W83: 0.58 | X83: 1 | AA83: =RTD("cqg.rtd",,"StudyData", "Correlation("&$B$3&","&AA$2&",Period:="&$B$1&",InputChoice1:=Close,InputChoice2::=Close)", "FG", "", "Close",$B$2,A83, "all","", "","True","T")/100 -> 0.9284936241 | AC83: 0.58 | AD83: 1 | AG83: =RTD("cqg.rtd",,"StudyData", "Correlation("&$B$3&","&AG$2&",Period:="&$B$1&",InputChoice1:=Close,InputChoice2::=Close)", "FG", "", "Close",$B$2,A83, "all","", "","True","T")/100 -> 0.9266112481 | AI83: 0.58 | AJ83: 1 | AK83: 1 | AM83: =RTD("cqg.rtd",,"StudyData", "Correlation("&$B$3&","&AM$2&",Period:="&$B$1&",InputChoice1:=Close,InputChoice2::=Close)", "FG", "", "Close",$B$2,A83, "all","", "","True","T")/100 -> 0.9421881064 | AO83: 0.58 | AP83: 1 | AS83: =RTD("cqg.rtd",,"StudyData", "Correlation("&$B$3&","&AS$2&",Period:="&$B$1&",InputChoice1:=Close,InputChoice2::=Close)", "FG", "", "Close",$B$2,A83, "all","", "","True","T")/100 -> 0.2851723821 | AU83: 0.58 | AV83: 3 | AY83: =RTD("cqg.rtd",,"StudyData", "Correlation("&$B$3&","&AY$2&",Period:="&$B$1&",InputChoice1:=Close,InputChoice2::=Close)", "FG", "", "Close",$B$2,A83, "all","", "","True","T")/100 -> -0.951325443 | BA83: 0.58 | BB83: 0 | BE83: =RTD("cqg.rtd",,"StudyData", "Correlation("&$B$3&","&BE$2&",Period:="&$B$1&",InputChoice1:=Close,InputChoice2::=Close)", "FG", "", "Close",$B$2,A83, "all","", "","True","T")/100 -> 0.7795323717 | BG83: 0.58 | BH83: 0
A84: -80 | C84: =RTD("cqg.rtd",,"StudyData", "Correlation("&$B$3&","&C$2&",Period:="&$B$1&",InputChoice1::=Close,InputChoice2::=Close)", "FG", "", "Close",$B$2,A84, "all","", "","True","T")/100 -> 0.9008914767 | E84: 0.6 | F84: 1 | I84: =RTD("cqg.rtd",,"StudyData", "Correlation("&$B$3&","&I$2&",Period:="&$B$1&",InputChoice1:=Close,InputChoice2::=Close)", "FG", "", "Close",$B$2,A84, "all","", "","True","T")/100 -> 0.904130513 | K84: 0.6 | L84: 3 | O84: =RTD("cqg.rtd",,"StudyData", "Correlation("&$B$3&","&O$2&",Period:="&$B$1&",InputChoice1:=Close,InputChoice2::=Close)", "FG", "", "Close",$B$2,A84, "all","", "","True","T")/100 -> 0.9569106361 | Q84: 0.6 | R84: 0 | U84: =RTD("cqg.rtd",,"StudyData", "Correlation("&$B$3&","&U$2&",Period:="&$B$1&",InputChoice1:=Close,InputChoice2::=Close)", "FG", "", "Close",$B$2,A84, "all","", "","True","T")/100 -> 0.9484300938 | W84: 0.6 | X84: 2 | AA84: =RTD("cqg.rtd",,"StudyData", "Correlation("&$B$3&","&AA$2&",Period:="&$B$1&",InputChoice1:=Close,InputChoice2::=Close)", "FG", "", "Close",$B$2,A84, "all","", "","True","T")/100 -> 0.9354982381 | AC84: 0.6 | AD84: 1 | AG84: =RTD("cqg.rtd",,"StudyData", "Correlation("&$B$3&","&AG$2&",Period:="&$B$1&",InputChoice1:=Close,InputChoice2::=Close)", "FG", "", "Close",$B$2,A84, "all","", "","True","T")/100 -> 0.9195022385 | AI84: 0.6 | AJ84: 6 | AM84: =RTD("cqg.rtd",,"StudyData", "Correlation("&$B$3&","&AM$2&",Period:="&$B$1&",InputChoice1:=Close,InputChoice2::=Close)", "FG", "", "Close",$B$2,A84, "all","", "","True","T")/100 -> 0.9416602559 | AO84: 0.6 | AP84: 0 | AS84: =RTD("cqg.rtd",,"StudyData", "Correlation("&$B$3&","&AS$2&",Period:="&$B$1&",InputChoice1:=Close,InputChoice2::=Close)", "FG", "", "Close",$B$2,A84, "all","", "","True","T")/100 -> 0.0747035619 | AU84: 0.6 | AV84: 2 | AY84: =RTD("cqg.rtd",,"StudyData", "Correlation("&$B$3&","&AY$2&",Period:="&$B$1&",InputChoice1:=Close,InputChoice2::=Close)", "FG", "", "Close",$B$2,A84, "all","", "","True","T")/100 -> -0.9609611436 | BA84: 0.6 | BB84: 0 | BE84: =RTD("cqg.rtd",,"StudyData", "Correlation("&$B$3&","&BE$2&",Period:="&$B$1&",InputChoice1:=Close,InputChoice2::=Close)", "FG", "", "Close",$B$2,A84, "all","", "","True","T")/100 -> 0.7784434094 | BG84: 0.6 | BH84: 6
A85: -81 | C85: =RTD("cqg.rtd",,"StudyData", "Correlation("&$B$3&","&C$2&",Period:="&$B$1&",InputChoice1::=Close,InputChoice2::=Close)", "FG", "", "Close",$B$2,A85, "all","", "","True","T")/100 -> 0.9317659358 | E85: 0.62 | F85: 0 | I85: =RTD("cqg.rtd",,"StudyData", "Correlation("&$B$3&","&I$2&",Period:="&$B$1&",InputChoice1:=Close,InputChoice2::=Close)", "FG", "", "Close",$B$2,A85, "all","", "","True","T")/100 -> 0.9384626759 | K85: 0.62 | L85: 0 | O85: =RTD("cqg.rtd",,"StudyData", "Correlation("&$B$3&","&O$2&",Period:="&$B$1&",InputChoice1:=Close,InputChoice2::=Close)", "FG", "", "Close",$B$2,A85, "all","", "","True","T")/100 -> 0.979943197 | Q85: 0.62 | R85: 1 | U85: =RTD("cqg.rtd",,"StudyData", "Correlation("&$B$3&","&U$2&",Period:="&$B$1&",InputChoice1:=Close,InputChoice2::=Close)", "FG", "", "Close",$B$2,A85, "all","", "","True","T")/100 -> 0.9661157388 | W85: 0.62 | X85: 0 | AA85: =RTD("cqg.rtd",,"StudyData", "Correlation("&$B$3&","&AA$2&",Period:="&$B$1&",InputChoice1:=Close,InputChoice2::=Close)", "FG", "", "Close",$B$2,A85, "all","", "","True","T")/100 -> 0.9293543659 | AC85: 0.62 | AD85: 1 | AG85: =RTD("cqg.rtd",,"StudyData", "Correlation("&$B$3&","&AG$2&",Period:="&$B$1&",InputChoice1:=Close,InputChoice2::=Close)", "FG", "", "Close",$B$2,A85, "all","", "","True","T")/100 -> 0.898654997 | AI85: 0.62 | AJ85: 2 | AM85: =RTD("cqg.rtd",,"StudyData", "Correlation("&$B$3&","&AM$2&",Period:="&$B$1&",InputChoice1:=Close,InputChoice2::=Close)", "FG", "", "Close",$B$2,A85, "all","", "","True","T")/100 -> 0.9181038888 | AO85: 0.62 | AP85: 2 | AQ85: 2 | AS85: =RTD("cqg.rtd",,"StudyData", "Correlation("&$B$3&","&AS$2&",Period:="&$B$1&",InputChoice1:=Close,InputChoice2::=Close)", "FG", "", "Close",$B$2,A85, "all","", "","True","T")/100 -> -0.3759456799 | AU85: 0.62 | AV85: 0 | AY85: =RTD("cqg.rtd",,"StudyData", "Correlation("&$B$3&","&AY$2&",Period:="&$B$1&",InputChoice1:=Close,InputChoice2::=Close)", "FG", "", "Close",$B$2,A85, "all","", "","True","T")/100 -> -0.9717408053 | BA85: 0.62 | BB85: 4 | BE85: =RTD("cqg.rtd",,"StudyData", "Correlation("&$B$3&","&BE$2&",Period:="&$B$1&",InputChoice1:=Close,InputChoice2::=Close)", "FG", "", "Close",$B$2,A85, "all","", "","True","T")/100 -> 0.6799188926 | BG85: 0.62 | BH85: 1
A86: -82 | C86: =RTD("cqg.rtd",,"StudyData", "Correlation("&$B$3&","&C$2&",Period:="&$B$1&",InputChoice1::=Close,InputChoice2::=Close)", "FG", "", "Close",$B$2,A86, "all","", "","True","T")/100 -> 0.9484359847 | E86: 0.64 | F86: 0 | I86: =RTD("cqg.rtd",,"StudyData", "Correlation("&$B$3&","&I$2&",Period:="&$B$1&",InputChoice1:=Close,InputChoice2::=Close)", "FG", "", "Close",$B$2,A86, "all","", "","True","T")/100 -> 0.9537980939 | K86: 0.64 | L86: 1 | O86: =RTD("cqg.rtd",,"StudyData", "Correlation("&$B$3&","&O$2&",Period:="&$B$1&",InputChoice1:=Close,InputChoice2::=Close)", "FG", "", "Close",$B$2,A86, "all","", "","True","T")/100 -> 0.9849273904 | Q86: 0.64 | R86: 1 | U86: =RTD("cqg.rtd",,"StudyData", "Correlation("&$B$3&","&U$2&",Period:="&$B$1&",InputChoice1:=Close,InputChoice2::=Close)", "FG", "", "Close",$B$2,A86, "all","", "","True","T")/100 -> 0.9755588309 | W86: 0.64 | X86: 1 | AA86: =RTD("cqg.rtd",,"StudyData", "Correlation("&$B$3&","&AA$2&",Period:="&$B$1&",InputChoice1:=Close,InputChoice2::=Close)", "FG", "", "Close",$B$2,A86, "all","", "","True","T")/100 -> 0.9270642492 | AC86: 0.64 | AD86: 1 | AG86: =RTD("cqg.rtd",,"StudyData", "Correlation("&$B$3&","&AG$2&",Period:="&$B$1&",InputChoice1:=Close,InputChoice2::=Close)", "FG", "", "Close",$B$2,A86, "all","", "","True","T")/100 -> 0.8983456821 | AI86: 0.64 | AJ86: 2 | AM86: =RTD("cqg.rtd",,"StudyData", "Correlation("&$B$3&","&AM$2&",Period:="&$B$1&",InputChoice1:=Close,InputChoice2::=Close)", "FG", "", "Close",$B$2,A86, "all","", "","True","T")/100 -> 0.9052598141 | AO86: 0.64 | AP86: 1 | AS86: =RTD("cqg.rtd",,"StudyData", "Correlation("&$B$3&","&AS$2&",Period:="&$B$1&",InputChoice1:=Close,InputChoice2::=Close)", "FG", "", "Close",$B$2,A86, "all","", "","True","T")/100 -> -0.4234921467 | AU86: 0.64 | AV86: 2 | AY86: =RTD("cqg.rtd",,"StudyData", "Correlation("&$B$3&","&AY$2&",Period:="&$B$1&",InputChoice1:=Close,InputChoice2::=Close)", "FG", "", "Close",$B$2,A86, "all","", "","True","T")/100 -> -0.9664708966 | BA86: 0.64 | BB86: 2 | BE86: =RTD("cqg.rtd",,"StudyData", "Correlation("&$B$3&","&BE$2&",Period:="&$B$1&",InputChoice1:=Close,InputChoice2::=Close)", "FG", "", "Close",$B$2,A86, "all","", "","True","T")/100 -> 0.6696819713 | BG86: 0.64 | BH86: 1
A87: -83 | C87: =RTD("cqg.rtd",,"StudyData", "Correlation("&$B$3&","&C$2&",Period:="&$B$1&",InputChoice1::=Close,InputChoice2::=Close)", "FG", "", "Close",$B$2,A87, "all","", "","True","T")/100 -> 0.9746859545 | E87: 0.66 | F87: 3 | I87: =RTD("cqg.rtd",,"StudyData", "Correlation("&$B$3&","&I$2&",Period:="&$B$1&",InputChoice1:=Close,InputChoice2::=Close)", "FG", "", "Close",$B$2,A87, "all","", "","True","T")/100 -> 0.9833642241 | K87: 0.66 | L87: 2 | O87: =RTD("cqg.rtd",,"StudyData", "Correlation("&$B$3&","&O$2&",Period:="&$B$1&",InputChoice1:=Close,InputChoice2::=Close)", "FG", "", "Close",$B$2,A87, "all","", "","True","T")/100 -> 0.9887852183 | Q87: 0.66 | R87: 2 | U87: =RTD("cqg.rtd",,"StudyData", "Correlation("&$B$3&","&U$2&",Period:="&$B$1&",InputChoice1:=Close,InputChoice2::=Close)", "FG", "", "Close",$B$2,A87, "all","", "","True","T")/100 -> 0.9817152881 | W87: 0.66 | X87: 0 | AA87: =RTD("cqg.rtd",,"StudyData", "Correlation("&$B$3&","&AA$2&",Period:="&$B$1&",InputChoice1:=Close,InputChoice2::=Close)", "FG", "", "Close",$B$2,A87, "all","", "","True","T")/100 -> 0.9462510721 | AC87: 0.66 | AD87: 3 | AG87: =RTD("cqg.rtd",,"StudyData", "Correlation("&$B$3&","&AG$2&",Period:="&$B$1&",InputChoice1:=Close,InputChoice2::=Close)", "FG", "", "Close",$B$2,A87, "all","", "","True","T")/100 -> 0.9168260169 | AI87: 0.66 | AJ87: 2 | AM87: =RTD("cqg.rtd",,"StudyData", "Correlation("&$B$3&","&AM$2&",Period:="&$B$1&",InputChoice1:=Close,InputChoice2::=Close)", "FG", "", "Close",$B$2,A87, "all","", "","True","T")/100 -> 0.8907900014 | AO87: 0.66 | AP87: 4 | AS87: =RTD("cqg.rtd",,"StudyData", "Correlation("&$B$3&","&AS$2&",Period:="&$B$1&",InputChoice1:=Close,InputChoice2::=Close)", "FG", "", "Close",$B$2,A87, "all","", "","True","T")/100 -> -0.6790724533 | AU87: 0.66 | AV87: 3 | AY87: =RTD("cqg.rtd",,"StudyData", "Correlation("&$B$3&","&AY$2&",Period:="&$B$1&",InputChoice1:=Close,InputChoice2::=Close)", "FG", "", "Close",$B$2,A87, "all","", "","True","T")/100 -> -0.9601061533 | BA87: 0.66 | BB87: 1 | BE87: =RTD("cqg.rtd",,"StudyData", "Correlation("&$B$3&","&BE$2&",Period:="&$B$1&",InputChoice1:=Close,InputChoice2::=Close)", "FG", "", "Close",$B$2,A87, "all","", "","True","T")/100 -> 0.6151825461 | BG87: 0.66 | BH87: 0
A88: -84 | C88: =RTD("cqg.rtd",,"StudyData", "Correlation("&$B$3&","&C$2&",Period:="&$B$1&",InputChoice1::=Close,InputChoice2::=Close)", "FG", "", "Close",$B$2,A88, "all","", "","True","T")/100 -> 0.9784168717 | E88: 0.68 | F88: 2 | I88: =RTD("cqg.rtd",,"StudyData", "Correlation("&$B$3&","&I$2&",Period:="&$B$1&",InputChoice1:=Close,InputChoice2::=Close)", "FG", "", "Close",$B$2,A88, "all","", "","True","T")/100 -> 0.9827192882 | K88: 0.68 | L88: 2 | O88: =RTD("cqg.rtd",,"StudyData", "Correlation("&$B$3&","&O$2&",Period:="&$B$1&",InputChoice1:=Close,InputChoice2::=Close)", "FG", "", "Close",$B$2,A88, "all","", "","True","T")/100 -> 0.9909997014 | Q88: 0.68 | R88: 1 | U88: =RTD("cqg.rtd",,"StudyData", "Correlation("&$B$3&","&U$2&",Period:="&$B$1&",InputChoice1:=Close,InputChoice2::=Close)", "FG", "", "Close",$B$2,A88, "all","", "","True","T")/100 -> 0.9913730578 | W88: 0.68 | X88: 0 | AA88: =RTD("cqg.rtd",,"StudyData", "Correlation("&$B$3&","&AA$2&",Period:="&$B$1&",InputChoice1:=Close,InputChoice2::=Close)", "FG", "", "Close",$B$2,A88, "all","", "","True","T")/100 -> 0.9314240931 | AC88: 0.68 | AD88: 1 | AG88: =RTD("cqg.rtd",,"StudyData", "Correlation("&$B$3&","&AG$2&",Period:="&$B$1&",InputChoice1:=Close,InputChoice2::=Close)", "FG", "", "Close",$B$2,A88, "all","", "","True","T")/100 -> 0.9099419937 | AI88: 0.68 | AJ88: 4 | AM88: =RTD("cqg.rtd",,"StudyData", "Correlation("&$B$3&","&AM$2&",Period:="&$B$1&",InputChoice1:=Close,InputChoice2::=Close)", "FG", "", "Close",$B$2,A88, "all","", "","True","T")/100 -> 0.8624705059 | AO88: 0.68 | AP88: 1 | AS88: =RTD("cqg.rtd",,"StudyData", "Correlation("&$B$3&","&AS$2&",Period:="&$B$1&",InputChoice1:=Close,InputChoice2::=Close)", "FG", "", "Close",$B$2,A88, "all","", "","True","T")/100 -> -0.611920194 | AU88: 0.68 | AV88: 1 | AY88: =RTD("cqg.rtd",,"StudyData", "Correlation("&$B$3&","&AY$2&",Period:="&$B$1&",InputChoice1:=Close,InputChoice2::=Close)", "FG", "", "Close",$B$2,A88, "all","", "","True","T")/100 -> -0.9380400729 | BA88: 0.68 | BB88: 0 | BE88: =RTD("cqg.rtd",,"StudyData", "Correlation("&$B$3&","&BE$2&",Period:="&$B$1&",InputChoice1:=Close,InputChoice2::=Close)", "FG", "", "Close",$B$2,A88, "all","", "","True","T")/100 -> 0.4157095786 | BG88: 0.68 | BH88: 3
A89: -85 | C89: =RTD("cqg.rtd",,"StudyData", "Correlation("&$B$3&","&C$2&",Period:="&$B$1&",InputChoice1::=Close,InputChoice2::=Close)", "FG", "", "Close",$B$2,A89, "all","", "","True","T")/100 -> 0.9720657236 | E89: 0.7 | F89: 2 | I89: =RTD("cqg.rtd",,"StudyData", "Correlation("&$B$3&","&I$2&",Period:="&$B$1&",InputChoice1:=Close,InputChoice2::=Close)", "FG", "", "Close",$B$2,A89, "all","", "","True","T")/100 -> 0.9760869409 | K89: 0.7 | L89: 3 | O89: =RTD("cqg.rtd",,"StudyData", "Correlation("&$B$3&","&O$2&",Period:="&$B$1&",InputChoice1:=Close,InputChoice2::=Close)", "FG", "", "Close",$B$2,A89, "all","", "","True","T")/100 -> 0.9919694811 | Q89: 0.7 | R89: 0 | U89: =RTD("cqg.rtd",,"StudyData", "Correlation("&$B$3&","&U$2&",Period:="&$B$1&",InputChoice1:=Close,InputChoice2::=Close)", "FG", "", "Close",$B$2,A89, "all","", "","True","T")/100 -> 0.9936328668 | W89: 0.7 | X89: 0 | AA89: =RTD("cqg.rtd",,"StudyData", "Correlation("&$B$3&","&AA$2&",Period:="&$B$1&",InputChoice1:=Close,InputChoice2::=Close)", "FG", "", "Close",$B$2,A89, "all","", "","True","T")/100 -> 0.9137740712 | AC89: 0.7 | AD89: 5 | AG89: =RTD("cqg.rtd",,"StudyData", "Correlation("&$B$3&","&AG$2&",Period:="&$B$1&",InputChoice1:=Close,InputChoice2::=Close)", "FG", "", "Close",$B$2,A89, "all","", "","True","T")/100 -> 0.8542045231 | AI89: 0.7 | AJ89: 3 | AM89: =RTD("cqg.rtd",,"StudyData", "Correlation("&$B$3&","&AM$2&",Period:="&$B$1&",InputChoice1:=Close,InputChoice2::=Close)", "FG", "", "Close",$B$2,A89, "all","", "","True","T")/100 -> 0.7742925487 | AO89: 0.7 | AP89: 1 | AS89: =RTD("cqg.rtd",,"StudyData", "Correlation("&$B$3&","&AS$2&",Period:="&$B$1&",InputChoice1:=Close,InputChoice2::=Close)", "FG", "", "Close",$B$2,A89, "all","", "","True","T")/100 -> -0.442005046 | AU89: 0.7 | AV89: 1 | AY89: =RTD("cqg.rtd",,"StudyData", "Correlation("&$B$3&","&AY$2&",Period:="&$B$1&",InputChoice1:=Close,InputChoice2::=Close)", "FG", "", "Close",$B$2,A89, "all","", "","True","T")/100 -> -0.897191764 | BA89: 0.7 | BB89: 1 | BE89: =RTD("cqg.rtd",,"StudyData", "Correlation("&$B$3&","&BE$2&",Period:="&$B$1&",InputChoice1:=Close,InputChoice2::=Close)", "FG", "", "Close",$B$2,A89, "all","", "","True","T")/100 -> 0.1708592803 | BG89: 0.7 | BH89: 0
A90: -86 | C90: =RTD("cqg.rtd",,"StudyData", "Correlation("&$B$3&","&C$2&",Period:="&$B$1&",InputChoice1::=Close,InputChoice2::=Close)", "FG", "", "Close",$B$2,A90, "all","", "","True","T")/100 -> 0.9585751415 | E90: 0.72 | F90: 3 | I90: =RTD("cqg.rtd",,"StudyData", "Correlation("&$B$3&","&I$2&",Period:="&$B$1&",InputChoice1:=Close,InputChoice2::=Close)", "FG", "", "Close",$B$2,A90, "all","", "","True","T")/100 -> 0.9577861461 | K90: 0.72 | L90: 2 | O90: =RTD("cqg.rtd",,"StudyData", "Correlation("&$B$3&","&O$2&",Period:="&$B$1&",InputChoice1:=Close,InputChoice2::=Close)", "FG", "", "Close",$B$2,A90, "all","", "","True","T")/100 -> 0.9336596516 | Q90: 0.72 | R90: 0 | U90: =RTD("cqg.rtd",,"StudyData", "Correlation("&$B$3&","&U$2&",Period:="&$B$1&",InputChoice1:=Close,InputChoice2::=Close)", "FG", "", "Close",$B$2,A90, "all","", "","True","T")/100 -> 0.9871020191 | W90: 0.72 | X90: 1 | AA90: =RTD("cqg.rtd",,"StudyData", "Correlation("&$B$3&","&AA$2&",Period:="&$B$1&",InputChoice1:=Close,InputChoice2::=Close)", "FG", "", "Close",$B$2,A90, "all","", "","True","T")/100 -> 0.8236133467 | AC90: 0.72 | AD90: 4 | AG90: =RTD("cqg.rtd",,"StudyData", "Correlation("&$B$3&","&AG$2&",Period:="&$B$1&",InputChoice1:=Close,InputChoice2::=Close)", "FG", "", "Close",$B$2,A90, "all","", "","True","T")/100 -> 0.7154205974 | AI90: 0.72 | AJ90: 5 | AM90: =RTD("cqg.rtd",,"StudyData", "Correlation("&$B$3&","&AM$2&",Period:="&$B$1&",InputChoice1:=Close,InputChoice2::=Close)", "FG", "", "Close",$B$2,A90, "all","", "","True","T")/100 -> 0.472564997 | AO90: 0.72 | AP90: 3 | AS90: =RTD("cqg.rtd",,"StudyData", "Correlation("&$B$3&","&AS$2&",Period:="&$B$1&",InputChoice1:=Close,InputChoice2::=Close)", "FG", "", "Close",$B$2,A90, "all","", "","True","T")/100 -> -0.1905576895 | AU90: 0.72 | AV90: 1 | AY90: =RTD("cqg.rtd",,"StudyData", "Correlation("&$B$3&","&AY$2&",Period:="&$B$1&",InputChoice1:=Close,InputChoice2::=Close)", "FG", "", "Close",$B$2,A90, "all","", "","True","T")/100 -> -0.8037803823 | BA90: 0.72 | BB90: 0 | BE90: =RTD("cqg.rtd",,"StudyData", "Correlation("&$B$3&","&BE$2&",Period:="&$B$1&",InputChoice1:=Close,InputChoice2::=Close)", "FG", "", "Close",$B$2,A90, "all","", "","True","T")/100 -> 0.0463665795 | BG90: 0.72 | BH90: 3
A91: -87 | C91: =RTD("cqg.rtd",,"StudyData", "Correlation("&$B$3&","&C$2&",Period:="&$B$1&",InputChoice1::=Close,InputChoice2::=Close)", "FG", "", "Close",$B$2,A91, "all","", "","True","T")/100 -> 0.8233452973 | E91: 0.74 | F91: 6 | I91: =RTD("cqg.rtd",,"StudyData", "Correlation("&$B$3&","&I$2&",Period:="&$B$1&",InputChoice1:=Close,InputChoice2::=Close)", "FG", "", "Close",$B$2,A91, "all","", "","True","T")/100 -> 0.7872239674 | K91: 0.74 | L91: 2 | O91: =RTD("cqg.rtd",,"StudyData", "Correlation("&$B$3&","&O$2&",Period:="&$B$1&",InputChoice1:=Close,InputChoice2::=Close)", "FG", "", "Close",$B$2,A91, "all","", "","True","T")/100 -> 0.8594273152 | Q91: 0.74 | R91: 2 | U91: =RTD("cqg.rtd",,"StudyData", "Correlation("&$B$3&","&U$2&",Period:="&$B$1&",InputChoice1:=Close,InputChoice2::=Close)", "FG", "", "Close",$B$2,A91, "all","", "","True","T")/100 -> 0.9649976475 | W91: 0.74 | X91: 1 | AA91: =RTD("cqg.rtd",,"StudyData", "Correlation("&$B$3&","&AA$2&",Period:="&$B$1&",InputChoice1:=Close,InputChoice2::=Close)", "FG", "", "Close",$B$2,A91, "all","", "","True","T")/100 -> 0.7120037224 | AC91: 0.74 | AD91: 3 | AG91: =RTD("cqg.rtd",,"StudyData", "Correlation("&$B$3&","&AG$2&",Period:="&$B$1&",InputChoice1:=Close,InputChoice2::=Close)", "FG", "", "Close",$B$2,A91, "all","", "","True","T")/100 -> 0.438913664 | AI91: 0.74 | AJ91: 3 | AM91: =RTD("cqg.rtd",,"StudyData", "Correlation("&$B$3&","&AM$2&",Period:="&$B$1&",InputChoice1:=Close,InputChoice2::=Close)", "FG", "", "Close",$B$2,A91, "all","", "","True","T")/100 -> 0.1480458983 | AO91: 0.74 | AP91: 1 | AS91: =RTD("cqg.rtd",,"StudyData", "Correlation("&$B$3&","&AS$2&",Period:="&$B$1&",InputChoice1:=Close,InputChoice2::=Close)", "FG", "", "Close",$B$2,A91, "all","", "","True","T")/100 -> 0.0415021339 | AU91: 0.74 | AV91: 1 | AY91: =RTD("cqg.rtd",,"StudyData", "Correlation("&$B$3&","&AY$2&",Period:="&$B$1&",InputChoice1:=Close,InputChoice2::=Close)", "FG", "", "Close",$B$2,A91, "all","", "","True","T")/100 -> -0.6789737187 | BA91: 0.74 | BB91: 2 | BE91: =RTD("cqg.rtd",,"StudyData", "Correlation("&$B$3&","&BE$2&",Period:="&$B$1&",InputChoice1:=Close,InputChoice2::=Close)", "FG", "", "Close",$B$2,A91, "all","", "","True","T")/100 -> -0.1507663598 | BG91: 0.74 | BH91: 1
A92: -88 | C92: =RTD("cqg.rtd",,"StudyData", "Correlation("&$B$3&","&C$2&",Period:="&$B$1&",InputChoice1::=Close,InputChoice2::=Close)", "FG", "", "Close",$B$2,A92, "all","", "","True","T")/100 -> 0.6891117976 | E92: 0.76 | F92: 4 | I92: =RTD("cqg.rtd",,"StudyData", "Correlation("&$B$3&","&I$2&",Period:="&$B$1&",InputChoice1:=Close,InputChoice2::=Close)", "FG", "", "Close",$B$2,A92, "all","", "","True","T")/100 -> 0.5927040131 | K92: 0.76 | L92: 1 | O92: =RTD("cqg.rtd",,"StudyData", "Correlation("&$B$3&","&O$2&",Period:="&$B$1&",InputChoice1:=Close,InputChoice2::=Close)", "FG", "", "Close",$B$2,A92, "all","", "","True","T")/100 -> 0.9238908995 | Q92: 0.76 | R92: 1 | U92: =RTD("cqg.rtd",,"StudyData", "Correlation("&$B$3&","&U$2&",Period:="&$B$1&",InputChoice1:=Close,InputChoice2::=Close)", "FG", "", "Close",$B$2,A92, "all","", "","True","T")/100 -> 0.9385241159 | W92: 0.76 | X92: 1 | AA92: =RTD("cqg.rtd",,"StudyData", "Correlation("&$B$3&","&AA$2&",Period:="&$B$1&",InputChoice1:=Close,InputChoice2::=Close)", "FG", "", "Close",$B$2,A92, "all","", "","True","T")/100 -> 0.7003205057 | AC92: 0.76 | AD92: 5 | AG92: =RTD("cqg.rtd",,"StudyData", "Correlation("&$B$3&","&AG$2&",Period:="&$B$1&",InputChoice1:=Close,InputChoice2::=Close)", "FG", "", "Close",$B$2,A92, "all","", "","True","T")/100 -> 0.2721482966 | AI92: 0.76 | AJ92: 4 | AM92: =RTD("cqg.rtd",,"StudyData", "Correlation("&$B$3&","&AM$2&",Period:="&$B$1&",InputChoice1:=Close,InputChoice2::=Close)", "FG", "", "Close",$B$2,A92, "all","", "","True","T")/100 -> 0.0388187177 | AO92: 0.76 | AP92: 3 | AS92: =RTD("cqg.rtd",,"StudyData", "Correlation("&$B$3&","&AS$2&",Period:="&$B$1&",InputChoice1:=Close,InputChoice2::=Close)", "FG", "", "Close",$B$2,A92, "all","", "","True","T")/100 -> 0.4957199499 | AU92: 0.76 | AV92: 1 | AY92: =RTD("cqg.rtd",,"StudyData", "Correlation("&$B$3&","&AY$2&",Period:="&$B$1&",InputChoice1:=Close,InputChoice2::=Close)", "FG", "", "Close",$B$2,A92, "all","", "","True","T")/100 -> -0.7432098661 | BA92: 0.76 | BB92: 1 | BE92: =RTD("cqg.rtd",,"StudyData", "Correlation("&$B$3&","&BE$2&",Period:="&$B$1&",InputChoice1:=Close,InputChoice2::=Close)", "FG", "", "Close",$B$2,A92, "all","", "","True","T")/100 -> 0.3929096617 | BG92: 0.76 | BH92: 2
A93: -89 | C93: =RTD("cqg.rtd",,"StudyData", "Correlation("&$B$3&","&C$2&",Period:="&$B$1&",InputChoice1::=Close,InputChoice2::=Close)", "FG", "", "Close",$B$2,A93, "all","", "","True","T")/100 -> 0.5021410353 | E93: 0.78 | F93: 4 | I93: =RTD("cqg.rtd",,"StudyData", "Correlation("&$B$3&","&I$2&",Period:="&$B$1&",InputChoice1:=Close,InputChoice2::=Close)", "FG", "", "Close",$B$2,A93, "all","", "","True","T")/100 -> 0.4731701459 | K93: 0.78 | L93: 3 | O93: =RTD("cqg.rtd",,"StudyData", "Correlation("&$B$3&","&O$2&",Period:="&$B$1&",InputChoice1:=Close,InputChoice2::=Close)", "FG", "", "Close",$B$2,A93, "all","", "","True","T")/100 -> 0.9483666078 | Q93: 0.78 | R93: 2 | U93: =RTD("cqg.rtd",,"StudyData", "Correlation("&$B$3&","&U$2&",Period:="&$B$1&",InputChoice1:=Close,InputChoice2::=Close)", "FG", "", "Close",$B$2,A93, "all","", "","True","T")/100 -> 0.9240229717 | W93: 0.78 | X93: 1 | AA93: =RTD("cqg.rtd",,"StudyData", "Correlation("&$B$3&","&AA$2&",Period:="&$B$1&",InputChoice1:=Close,InputChoice2::=Close)", "FG", "", "Close",$B$2,A93, "all","", "","True","T")/100 -> 0.7612529916 | AC93: 0.78 | AD93: 1 | AG93: =RTD("cqg.rtd",,"StudyData", "Correlation("&$B$3&","&AG$2&",Period:="&$B$1&",InputChoice1:=Close,InputChoice2::=Close)", "FG", "", "Close",$B$2,A93, "all","", "","True","T")/100 -> 0.2301861901 | AI93: 0.78 | AJ93: 0 | AM93: =RTD("cqg.rtd",,"StudyData", "Correlation("&$B$3&","&AM$2&",Period:="&$B$1&",InputChoice1:=Close,InputChoice2::=Close)", "FG", "", "Close",$B$2,A93, "all","", "","True","T")/100 -> 0.2146695874 | AO93: 0.78 | AP93: 2 | AS93: =RTD("cqg.rtd",,"StudyData", "Correlation("&$B$3&","&AS$2&",Period:="&$B$1&",InputChoice1:=Close,InputChoice2::=Close)", "FG", "", "Close",$B$2,A93, "all","", "","True","T")/100 -> 0.7624511151 | AU93: 0.78 | AV93: 3 | AY93: =RTD("cqg.rtd",,"StudyData", "Correlation("&$B$3&","&AY$2&",Period:="&$B$1&",InputChoice1:=Close,InputChoice2::=Close)", "FG", "", "Close",$B$2,A93, "all","", "","True","T")/100 -> -0.7706667742 | BA93: 0.78 | BB93: 0 | BE93: =RTD("cqg.rtd",,"StudyData", "Correlation("&$B$3&","&BE$2&",Period:="&$B$1&",InputChoice1:=Close,InputChoice2::=Close)", "FG", "", "Close",$B$2,A93, "all","", "","True","T")/100 -> 0.5230431953 | BG93: 0.78 | BH93: 4
A94: -90 | C94: =RTD("cqg.rtd",,"StudyData", "Correlation("&$B$3&","&C$2&",Period:="&$B$1&",InputChoice1::=Close,InputChoice2::=Close)", "FG", "", "Close",$B$2,A94, "all","", "","True","T")/100 -> 0.3360790515 | E94: 0.8 | F94: 2 | I94: =RTD("cqg.rtd",,"StudyData", "Correlation("&$B$3&","&I$2&",Period:="&$B$1&",InputChoice1:=Close,InputChoice2::=Close)", "FG", "", "Close",$B$2,A94, "all","", "","True","T")/100 -> 0.3057095351 | K94: 0.8 | L94: 3 | O94: =RTD("cqg.rtd",,"StudyData", "Correlation("&$B$3&","&O$2&",Period:="&$B$1&",InputChoice1:=Close,InputChoice2::=Close)", "FG", "", "Close",$B$2,A94, "all","", "","True","T")/100 -> 0.9147140238 | Q94: 0.8 | R94: 2 | U94: =RTD("cqg.rtd",,"StudyData", "Correlation("&$B$3&","&U$2&",Period:="&$B$1&",InputChoice1:=Close,InputChoice2::=Close)", "FG", "", "Close",$B$2,A94, "all","", "","True","T")/100 -> 0.8929650856 | W94: 0.8 | X94: 5 | AA94: =RTD("cqg.rtd",,"StudyData", "Correlation("&$B$3&","&AA$2&",Period:="&$B$1&",InputChoice1:=Close,InputChoice2::=Close)", "FG", "", "Close",$B$2,A94, "all","", "","True","T")/100 -> 0.7447044012 | AC94: 0.8 | AD94: 1 | AG94: =RTD("cqg.rtd",,"StudyData", "Correlation("&$B$3&","&AG$2&",Period:="&$B$1&",InputChoice1:=Close,InputChoice2::=Close)", "FG", "", "Close",$B$2,A94, "all","", "","True","T")/100 -> 0.2631596597 | AI94: 0.8 | AJ94: 1 | AM94: =RTD("cqg.rtd",,"StudyData", "Correlation("&$B$3&","&AM$2&",Period:="&$B$1&",InputChoice1:=Close,InputChoice2::=Close)", "FG", "", "Close",$B$2,A94, "all","", "","True","T")/100 -> 0.1614484793 | AO94: 0.8 | AP94: 0 | AS94: =RTD("cqg.rtd",,"StudyData", "Correlation("&$B$3&","&AS$2&",Period:="&$B$1&",InputChoice1:=Close,InputChoice2::=Close)", "FG", "", "Close",$B$2,A94, "all","", "","True","T")/100 -> 0.6918022865 | AU94: 0.8 | AV94: 2 | AY94: =RTD("cqg.rtd",,"StudyData", "Correlation("&$B$3&","&AY$2&",Period:="&$B$1&",InputChoice1:=Close,InputChoice2::=Close)", "FG", "", "Close",$B$2,A94, "all","", "","True","T")/100 -> -0.8172059646 | BA94: 0.8 | BB94: 0 | BE94: =RTD("cqg.rtd",,"StudyData", "Correlation("&$B$3&","&BE$2&",Period:="&$B$1&",InputChoice1:=Close,InputChoice2::=Close)", "FG", "", "Close",$B$2,A94, "all","", "","True","T")/100 -> 0.5938152662 | BG94: 0.8 | BH94: 0
A95: -91 | C95: =RTD("cqg.rtd",,"StudyData", "Correlation("&$B$3&","&C$2&",Period:="&$B$1&",InputChoice1::=Close,InputChoice2::=Close)", "FG", "", "Close",$B$2,A95, "all","", "","True","T")/100 -> 0.4325159178 | E95: 0.82 | F95: 0 | I95: =RTD("cqg.rtd",,"StudyData", "Correlation("&$B$3&","&I$2&",Period:="&$B$1&",InputChoice1:=Close,InputChoice2::=Close)", "FG", "", "Close",$B$2,A95, "all","", "","True","T")/100 -> 0.4213740577 | K95: 0.82 | L95: 2 | O95: =RTD("cqg.rtd",,"StudyData", "Correlation("&$B$3&","&O$2&",Period:="&$B$1&",InputChoice1:=Close,InputChoice2::=Close)", "FG", "", "Close",$B$2,A95, "all","", "","True","T")/100 -> 0.857940546 | Q95: 0.82 | R95: 2 | U95: =RTD("cqg.rtd",,"StudyData", "Correlation("&$B$3&","&U$2&",Period:="&$B$1&",InputChoice1:=Close,InputChoice2::=Close)", "FG", "", "Close",$B$2,A95, "all","", "","True","T")/100 -> 0.8241492191 | W95: 0.82 | X95: 4 | AA95: =RTD("cqg.rtd",,"StudyData", "Correlation("&$B$3&","&AA$2&",Period:="&$B$1&",InputChoice1:=Close,InputChoice2::=Close)", "FG", "", "Close",$B$2,A95, "all","", "","True","T")/100 -> 0.6145310896 | AC95: 0.82 | AD95: 1 | AG95: =RTD("cqg.rtd",,"StudyData", "Correlation("&$B$3&","&AG$2&",Period:="&$B$1&",InputChoice1:=Close,InputChoice2::=Close)", "FG", "", "Close",$B$2,A95, "all","", "","True","T")/100 -> 0.3063305238 | AI95: 0.82 | AJ95: 4 | AM95: =RTD("cqg.rtd",,"StudyData", "Correlation("&$B$3&","&AM$2&",Period:="&$B$1&",InputChoice1:=Close,InputChoice2::=Close)", "FG", "", "Close",$B$2,A95, "all","", "","True","T")/100 -> 0.1731602903 | AO95: 0.82 | AP95: 3 | AS95: =RTD("cqg.rtd",,"StudyData", "Correlation("&$B$3&","&AS$2&",Period:="&$B$1&",InputChoice1:=Close,InputChoice2::=Close)", "FG", "", "Close",$B$2,A95, "all","", "","True","T")/100 -> 0.6601312962 | AU95: 0.82 | AV95: 0 | AY95: =RTD("cqg.rtd",,"StudyData", "Correlation("&$B$3&","&AY$2&",Period:="&$B$1&",InputChoice1:=Close,InputChoice2::=Close)", "FG", "", "Close",$B$2,A95, "all","", "","True","T")/100 -> -0.8357660886 | BA95: 0.82 | BB95: 0 | BE95: =RTD("cqg.rtd",,"StudyData", "Correlation("&$B$3&","&BE$2&",Period:="&$B$1&",InputChoice1:=Close,InputChoice2::=Close)", "FG", "", "Close",$B$2,A95, "all","", "","True","T")/100 -> 0.5803043748 | BG95: 0.82 | BH95: 0
A96: -92 | C96: =RTD("cqg.rtd",,"StudyData", "Correlation("&$B$3&","&C$2&",Period:="&$B$1&",InputChoice1::=Close,InputChoice2::=Close)", "FG", "", "Close",$B$2,A96, "all","", "","True","T")/100 -> 0.3337586926 | E96: 0.84 | F96: 6 | I96: =RTD("cqg.rtd",,"StudyData", "Correlation("&$B$3&","&I$2&",Period:="&$B$1&",InputChoice1:=Close,InputChoice2::=Close)", "FG", "", "Close",$B$2,A96, "all","", "","True","T")/100 -> 0.3362850517 | K96: 0.84 | L96: 3 | O96: =RTD("cqg.rtd",,"StudyData", "Correlation("&$B$3&","&O$2&",Period:="&$B$1&",InputChoice1:=Close,InputChoice2::=Close)", "FG", "", "Close",$B$2,A96, "all","", "","True","T")/100 -> 0.8369463063 | Q96: 0.84 | R96: 2 | U96: =RTD("cqg.rtd",,"StudyData", "Correlation("&$B$3&","&U$2&",Period:="&$B$1&",InputChoice1:=Close,InputChoice2::=Close)", "FG", "", "Close",$B$2,A96, "all","", "","True","T")/100 -> 0.8374617348 | W96: 0.84 | X96: 5 | AA96: =RTD("cqg.rtd",,"StudyData", "Correlation("&$B$3&","&AA$2&",Period:="&$B$1&",InputChoice1:=Close,InputChoice2::=Close)", "FG", "", "Close",$B$2,A96, "all","", "","True","T")/100 -> 0.4199309679 | AC96: 0.84 | AD96: 6 | AG96: =RTD("cqg.rtd",,"StudyData", "Correlation("&$B$3&","&AG$2&",Period:="&$B$1&",InputChoice1:=Close,InputChoice2::=Close)", "FG", "", "Close",$B$2,A96, "all","", "","True","T")/100 -> -0.0072517469 | AI96: 0.84 | AJ96: 2 | AM96: =RTD("cqg.rtd",,"StudyData", "Correlation("&$B$3&","&AM$2&",Period:="&$B$1&",InputChoice1:=Close,InputChoice2::=Close)", "FG", "", "Close",$B$2,A96, "all","", "","True","T")/100 -> -0.1307196223 | AO96: 0.84 | AP96: 1 | AS96: =RTD("cqg.rtd",,"StudyData", "Correlation("&$B$3&","&AS$2&",Period:="&$B$1&",InputChoice1:=Close,InputChoice2::=Close)", "FG", "", "Close",$B$2,A96, "all","", "","True","T")/100 -> 0.4662860239 | AU96: 0.84 | AV96: 1 | AY96: =RTD("cqg.rtd",,"StudyData", "Correlation("&$B$3&","&AY$2&",Period:="&$B$1&",InputChoice1:=Close,InputChoice2::=Close)", "FG", "", "Close",$B$2,A96, "all","", "","True","T")/100 -> -0.7932775406 | BA96: 0.84 | BB96: 0 | BE96: =RTD("cqg.rtd",,"StudyData", "Correlation("&$B$3&","&BE$2&",Period:="&$B$1&",InputChoice1:=Close,InputChoice2::=Close)", "FG", "", "Close",$B$2,A96, "all","", "","True","T")/100 -> 0.5269628552 | BG96: 0.84 | BH96: 0
A97: -93 | C97: =RTD("cqg.rtd",,"StudyData", "Correlation("&$B$3&","&C$2&",Period:="&$B$1&",InputChoice1::=Close,InputChoice2::=Close)", "FG", "", "Close",$B$2,A97, "all","", "","True","T")/100 -> 0.3073100865 | E97: 0.86 | F97: 4 | I97: =RTD("cqg.rtd",,"StudyData", "Correlation("&$B$3&","&I$2&",Period:="&$B$1&",InputChoice1:=Close,InputChoice2::=Close)", "FG", "", "Close",$B$2,A97, "all","", "","True","T")/100 -> 0.3537165835 | K97: 0.86 | L97: 10 | O97: =RTD("cqg.rtd",,"StudyData", "Correlation("&$B$3&","&O$2&",Period:="&$B$1&",InputChoice1:=Close,InputChoice2::=Close)", "FG", "", "Close",$B$2,A97, "all","", "","True","T")/100 -> 0.8318875878 | Q97: 0.86 | R97: 7 | S97: 7 | U97: =RTD("cqg.rtd",,"StudyData", "Correlation("&$B$3&","&U$2&",Period:="&$B$1&",InputChoice1:=Close,InputChoice2::=Close)", "FG", "", "Close",$B$2,A97, "all","", "","True","T")/100 -> 0.7805319847 | W97: 0.86 | X97: 4 | AA97: =RTD("cqg.rtd",,"StudyData", "Correlation("&$B$3&","&AA$2&",Period:="&$B$1&",InputChoice1:=Close,InputChoice2::=Close)", "FG", "", "Close",$B$2,A97, "all","", "","True","T")/100 -> 0.4162330076 | AC97: 0.86 | AD97: 3 | AG97: =RTD("cqg.rtd",,"StudyData", "Correlation("&$B$3&","&AG$2&",Period:="&$B$1&",InputChoice1:=Close,InputChoice2::=Close)", "FG", "", "Close",$B$2,A97, "all","", "","True","T")/100 -> -0.1645157253 | AI97: 0.86 | AJ97: 1 | AM97: =RTD("cqg.rtd",,"StudyData", "Correlation("&$B$3&","&AM$2&",Period:="&$B$1&",InputChoice1:=Close,InputChoice2::=Close)", "FG", "", "Close",$B$2,A97, "all","", "","True","T")/100 -> -0.290249477 | AO97: 0.86 | AP97: 0 | AS97: =RTD("cqg.rtd",,"StudyData", "Correlation("&$B$3&","&AS$2&",Period:="&$B$1&",InputChoice1:=Close,InputChoice2::=Close)", "FG", "", "Close",$B$2,A97, "all","", "","True","T")/100 -> 0.1601704388 | AU97: 0.86 | AV97: 1 | AY97: =RTD("cqg.rtd",,"StudyData", "Correlation("&$B$3&","&AY$2&",Period:="&$B$1&",InputChoice1:=Close,InputChoice2::=Close)", "FG", "", "Close",$B$2,A97, "all","", "","True","T")/100 -> -0.8289494921 | BA97: 0.86 | BB97: 0 | BE97: =RTD("cqg.rtd",,"StudyData", "Correlation("&$B$3&","&BE$2&",Period:="&$B$1&",InputChoice1:=Close,InputChoice2::=Close)", "FG", "", "Close",$B$2,A97, "all","", "","True","T")/100 -> 0.5869523529 | BG97: 0.86 | BH97: 0
A98: -94 | C98: =RTD("cqg.rtd",,"StudyData", "Correlation("&$B$3&","&C$2&",Period:="&$B$1&",InputChoice1::=Close,InputChoice2::=Close)", "FG", "", "Close",$B$2,A98, "all","", "","True","T")/100 -> 0.1948029487 | E98: 0.88 | F98: 5 | G98: 5 | I98: =RTD("cqg.rtd",,"StudyData", "Correlation("&$B$3&","&I$2&",Period:="&$B$1&",InputChoice1:=Close,InputChoice2::=Close)", "FG", "", "Close",$B$2,A98, "all","", "","True","T")/100 -> 0.2896911028 | K98: 0.88 | L98: 4 | M98: 4 | O98: =RTD("cqg.rtd",,"StudyData", "Correlation("&$B$3&","&O$2&",Period:="&$B$1&",InputChoice1:=Close,InputChoice2::=Close)", "FG", "", "Close",$B$2,A98, "all","", "","True","T")/100 -> 0.8455147614 | Q98: 0.88 | R98: 7 | U98: =RTD("cqg.rtd",,"StudyData", "Correlation("&$B$3&","&U$2&",Period:="&$B$1&",InputChoice1:=Close,InputChoice2::=Close)", "FG", "", "Close",$B$2,A98, "all","", "","True","T")/100 -> 0.8200278782 | W98: 0.88 | X98: 7 | AA98: =RTD("cqg.rtd",,"StudyData", "Correlation("&$B$3&","&AA$2&",Period:="&$B$1&",InputChoice1:=Close,InputChoice2::=Close)", "FG", "", "Close",$B$2,A98, "all","", "","True","T")/100 -> 0.3833111218 | AC98: 0.88 | AD98: 6 | AG98: =RTD("cqg.rtd",,"StudyData", "Correlation("&$B$3&","&AG$2&",Period:="&$B$1&",InputChoice1:=Close,InputChoice2::=Close)", "FG", "", "Close",$B$2,A98, "all","", "","True","T")/100 -> 0.1733662531 | AI98: 0.88 | AJ98: 1 | AM98: =RTD("cqg.rtd",,"StudyData", "Correlation("&$B$3&","&AM$2&",Period:="&$B$1&",InputChoice1:=Close,InputChoice2::=Close)", "FG", "", "Close",$B$2,A98, "all","", "","True","T")/100 -> -0.3440002982 | AO98: 0.88 | AP98: 3 | AS98: =RTD("cqg.rtd",,"StudyData", "Correlation("&$B$3&","&AS$2&",Period:="&$B$1&",InputChoice1:=Close,InputChoice2::=Close)", "FG", "", "Close",$B$2,A98, "all","", "","True","T")/100 -> 0.0962059809 | AU98: 0.88 | AV98: 0 | AY98: =RTD("cqg.rtd",,"StudyData", "Correlation("&$B$3&","&AY$2&",Period:="&$B$1&",InputChoice1:=Close,InputChoice2::=Close)", "FG", "", "Close",$B$2,A98, "all","", "","True","T")/100 -> -0.8180768989 | BA98: 0.88 | BB98: 0 | BE98: =RTD("cqg.rtd",,"StudyData", "Correlation("&$B$3&","&BE$2&",Period:="&$B$1&",InputChoice1:=Close,InputChoice2::=Close)", "FG", "", "Close",$B$2,A98, "all","", "","True","T")/100 -> 0.4568829242 | BG98: 0.88 | BH98: 0
A99: -95 | C99: =RTD("cqg.rtd",,"StudyData", "Correlation("&$B$3&","&C$2&",Period:="&$B$1&",InputChoice1::=Close,InputChoice2::=Close)", "FG", "", "Close",$B$2,A99, "all","", "","True","T")/100 -> 0.3065813875 | E99: 0.9 | F99: 8 | I99: =RTD("cqg.rtd",,"StudyData", "Correlation("&$B$3&","&I$2&",Period:="&$B$1&",InputChoice1:=Close,InputChoice2::=Close)", "FG", "", "Close",$B$2,A99, "all","", "","True","T")/100 -> 0.4247285621 | K99: 0.9 | L99: 6 | O99: =RTD("cqg.rtd",,"StudyData", "Correlation("&$B$3&","&O$2&",Period:="&$B$1&",InputChoice1:=Close,InputChoice2::=Close)", "FG", "", "Close",$B$2,A99, "all","", "","True","T")/100 -> 0.8800338078 | Q99: 0.9 | R99: 4 | U99: =RTD("cqg.rtd",,"StudyData", "Correlation("&$B$3&","&U$2&",Period:="&$B$1&",InputChoice1:=Close,InputChoice2::=Close)", "FG", "", "Close",$B$2,A99, "all","", "","True","T")/100 -> 0.8099978977 | W99: 0.9 | X99: 3 | Y99: 3 | AA99: =RTD("cqg.rtd",,"StudyData", "Correlation("&$B$3&","&AA$2&",Period:="&$B$1&",InputChoice1:=Close,InputChoice2::=Close)", "FG", "", "Close",$B$2,A99, "all","", "","True","T")/100 -> 0.3907611307 | AC99: 0.9 | AD99: 6 | AG99: =RTD("cqg.rtd",,"StudyData", "Correlation("&$B$3&","&AG$2&",Period:="&$B$1&",InputChoice1:=Close,InputChoice2::=Close)", "FG", "", "Close",$B$2,A99, "all","", "","True","T")/100 -> 0.2928555714 | AI99: 0.9 | AJ99: 5 | AM99: =RTD("cqg.rtd",,"StudyData", "Correlation("&$B$3&","&AM$2&",Period:="&$B$1&",InputChoice1:=Close,InputChoice2::=Close)", "FG", "", "Close",$B$2,A99, "all","", "","True","T")/100 -> -0.4378159718 | AO99: 0.9 | AP99: 3 | AS99: =RTD("cqg.rtd",,"StudyData", "Correlation("&$B$3&","&AS$2&",Period:="&$B$1&",InputChoice1:=Close,InputChoice2::=Close)", "FG", "", "Close",$B$2,A99, "all","", "","True","T")/100 -> 0.0592705014 | AU99: 0.9 | AV99: 1 | AY99: =RTD("cqg.rtd",,"StudyData", "Correlation("&$B$3&","&AY$2&",Period:="&$B$1&",InputChoice1:=Close,InputChoice2::=Close)", "FG", "", "Close",$B$2,A99, "all","", "","True","T")/100 -> -0.7020119372 | BA99: 0.9 | BB99: 0 | BE99: =RTD("cqg.rtd",,"StudyData", "Correlation("&$B$3&","&BE$2&",Period:="&$B$1&",InputChoice1:=Close,InputChoice2::=Close)", "FG", "", "Close",$B$2,A99, "all","", "","True","T")/100 -> 0.4372407447 | BG99: 0.9 | BH99: 0
A100: -96 | C100: =RTD("cqg.rtd",,"StudyData", "Correlation("&$B$3&","&C$2&",Period:="&$B$1&",InputChoice1::=Close,InputChoice2::=Close)", "FG", "", "Close",$B$2,A100, "all","", "","True","T")/100 -> 0.5110182845 | E100: 0.92 | F100: 3 | I100: =RTD("cqg.rtd",,"StudyData", "Correlation("&$B$3&","&I$2&",Period:="&$B$1&",InputChoice1:=Close,InputChoice2::=Close)", "FG", "", "Close",$B$2,A100, "all","", "","True","T")/100 -> 0.5863620502 | K100: 0.92 | L100: 8 | O100: =RTD("cqg.rtd",,"StudyData", "Correlation("&$B$3&","&O$2&",Period:="&$B$1&",InputChoice1:=Close,InputChoice2::=Close)", "FG", "", "Close",$B$2,A100, "all","", "","True","T")/100 -> 0.9196963099 | Q100: 0.92 | R100: 9 | U100: =RTD("cqg.rtd",,"StudyData", "Correlation("&$B$3&","&U$2&",Period:="&$B$1&",InputChoice1:=Close,InputChoice2::=Close)", "FG", "", "Close",$B$2,A100, "all","", "","True","T")/100 -> 0.7404560249 | W100: 0.92 | X100: 9 | AA100: =RTD("cqg.rtd",,"StudyData", "Correlation("&$B$3&","&AA$2&",Period:="&$B$1&",InputChoice1:=Close,InputChoice2::=Close)", "FG", "", "Close",$B$2,A100, "all","", "","True","T")/100 -> 0.5577637069 | AC100: 0.92 | AD100: 2 | AG100: =RTD("cqg.rtd",,"StudyData", "Correlation("&$B$3&","&AG$2&",Period:="&$B$1&",InputChoice1:=Close,InputChoice2::=Close)", "FG", "", "Close",$B$2,A100, "all","", "","True","T")/100 -> 0.5003019868 | AI100: 0.92 | AJ100: 6 | AM100: =RTD("cqg.rtd",,"StudyData", "Correlation("&$B$3&","&AM$2&",Period:="&$B$1&",InputChoice1:=Close,InputChoice2::=Close)", "FG", "", "Close",$B$2,A100, "all","", "","True","T")/100 -> -0.5875508579 | AO100: 0.92 | AP100: 6 | AS100: =RTD("cqg.rtd",,"StudyData", "Correlation("&$B$3&","&AS$2&",Period:="&$B$1&",InputChoice1:=Close,InputChoice2::=Close)", "FG", "", "Close",$B$2,A100, "all","", "","True","T")/100 -> 0.2336968725 | AU100: 0.92 | AV100: 0 | AY100: =RTD("cqg.rtd",,"StudyData", "Correlation("&$B$3&","&AY$2&",Period:="&$B$1&",InputChoice1:=Close,InputChoice2::=Close)", "FG", "", "Close",$B$2,A100, "all","", "","True","T")/100 -> -0.6619620441 | BA100: 0.92 | BB100: 0 | BE100: =RTD("cqg.rtd",,"StudyData", "Correlation("&$B$3&","&BE$2&",Period:="&$B$1&",InputChoice1:=Close,InputChoice2::=Close)", "FG", "", "Close",$B$2,A100, "all","", "","True","T")/100 -> 0.2446180303 | BG100: 0.92 | BH100: 0
A101: -97 | C101: =RTD("cqg.rtd",,"StudyData", "Correlation("&$B$3&","&C$2&",Period:="&$B$1&",InputChoice1::=Close,InputChoice2::=Close)", "FG", "", "Close",$B$2,A101, "all","", "","True","T")/100 -> 0.6838172628 | E101: 0.94 | F101: 9 | I101: =RTD("cqg.rtd",,"StudyData", "Correlation("&$B$3&","&I$2&",Period:="&$B$1&",InputChoice1:=Close,InputChoice2::=Close)", "FG", "", "Close",$B$2,A101, "all","", "","True","T")/100 -> 0.730398414 | K101: 0.94 | L101: 7 | O101: =RTD("cqg.rtd",,"StudyData", "Correlation("&$B$3&","&O$2&",Period:="&$B$1&",InputChoice1:=Close,InputChoice2::=Close)", "FG", "", "Close",$B$2,A101, "all","", "","True","T")/100 -> 0.9539117522 | Q101: 0.94 | R101: 16 | U101: =RTD("cqg.rtd",,"StudyData", "Correlation("&$B$3&","&U$2&",Period:="&$B$1&",InputChoice1:=Close,InputChoice2::=Close)", "FG", "", "Close",$B$2,A101, "all","", "","True","T")/100 -> 0.7878024473 | W101: 0.94 | X101: 16 | AA101: =RTD("cqg.rtd",,"StudyData", "Correlation("&$B$3&","&AA$2&",Period:="&$B$1&",InputChoice1:=Close,InputChoice2::=Close)", "FG", "", "Close",$B$2,A101, "all","", "","True","T")/100 -> 0.653554718 | AC101: 0.94 | AD101: 7 | AG101: =RTD("cqg.rtd",,"StudyData", "Correlation("&$B$3&","&AG$2&",Period:="&$B$1&",InputChoice1:=Close,InputChoice2::=Close)", "FG", "", "Close",$B$2,A101, "all","", "","True","T")/100 -> 0.6340490504 | AI101: 0.94 | AJ101: 2 | AM101: =RTD("cqg.rtd",,"StudyData", "Correlation("&$B$3&","&AM$2&",Period:="&$B$1&",InputChoice1:=Close,InputChoice2::=Close)", "FG", "", "Close",$B$2,A101, "all","", "","True","T")/100 -> -0.7731909236 | AO101: 0.94 | AP101: 1 | AS101: =RTD("cqg.rtd",,"StudyData", "Correlation("&$B$3&","&AS$2&",Period:="&$B$1&",InputChoice1:=Close,InputChoice2::=Close)", "FG", "", "Close",$B$2,A101, "all","", "","True","T")/100 -> 0.3931585055 | AU101: 0.94 | AV101: 0 | AY101: =RTD("cqg.rtd",,"StudyData", "Correlation("&$B$3&","&AY$2&",Period:="&$B$1&",InputChoice1:=Close,InputChoice2::=Close)", "FG", "", "Close",$B$2,A101, "all","", "","True","T")/100 -> -0.5628607624 | BA101: 0.94 | BB101: 0 | BE101: =RTD("cqg.rtd",,"StudyData", "Correlation("&$B$3&","&BE$2&",Period:="&$B$1&",InputChoice1:=Close,InputChoice2::=Close)", "FG", "", "Close",$B$2,A101, "all","", "","True","T")/100 -> 0.4893196358 | BG101: 0.94 | BH101: 0
A102: -98 | C102: =RTD("cqg.rtd",,"StudyData", "Correlation("&$B$3&","&C$2&",Period:="&$B$1&",InputChoice1::=Close,InputChoice2::=Close)", "FG", "", "Close",$B$2,A102, "all","", "","True","T")/100 -> 0.7658815539 | E102: 0.96 | F102: 4 | I102: =RTD("cqg.rtd",,"StudyData", "Correlation("&$B$3&","&I$2&",Period:="&$B$1&",InputChoice1:=Close,InputChoice2::=Close)", "FG", "", "Close",$B$2,A102, "all","", "","True","T")/100 -> 0.7736334272 | K102: 0.96 | L102: 4 | O102: =RTD("cqg.rtd",,"StudyData", "Correlation("&$B$3&","&O$2&",Period:="&$B$1&",InputChoice1:=Close,InputChoice2::=Close)", "FG", "", "Close",$B$2,A102, "all","", "","True","T")/100 -> 0.9332663917 | Q102: 0.96 | R102: 13 | U102: =RTD("cqg.rtd",,"StudyData", "Correlation("&$B$3&","&U$2&",Period:="&$B$1&",InputChoice1:=Close,InputChoice2::=Close)", "FG", "", "Close",$B$2,A102, "all","", "","True","T")/100 -> 0.8543199969 | W102: 0.96 | X102: 5 | AA102: =RTD("cqg.rtd",,"StudyData", "Correlation("&$B$3&","&AA$2&",Period:="&$B$1&",InputChoice1:=Close,InputChoice2::=Close)", "FG", "", "Close",$B$2,A102, "all","", "","True","T")/100 -> 0.6897224422 | AC102: 0.96 | AD102: 1 | AG102: =RTD("cqg.rtd",,"StudyData", "Correlation("&$B$3&","&AG$2&",Period:="&$B$1&",InputChoice1:=Close,InputChoice2::=Close)", "FG", "", "Close",$B$2,A102, "all","", "","True","T")/100 -> 0.7038217492 | AI102: 0.96 | AJ102: 0 | AM102: =RTD("cqg.rtd",,"StudyData", "Correlation("&$B$3&","&AM$2&",Period:="&$B$1&",InputChoice1:=Close,InputChoice2::=Close)", "FG", "", "Close",$B$2,A102, "all","", "","True","T")/100 -> -0.4492558304 | AO102: 0.96 | AP102: 2 | AS102: =RTD("cqg.rtd",,"StudyData", "Correlation("&$B$3&","&AS$2&",Period:="&$B$1&",InputChoice1:=Close,InputChoice2::=Close)", "FG", "", "Close",$B$2,A102, "all","", "","True","T")/100 -> 0.4484837558 | AU102: 0.96 | AV102: 0 | AY102: =RTD("cqg.rtd",,"StudyData", "Correlation("&$B$3&","&AY$2&",Period:="&$B$1&",InputChoice1:=Close,InputChoice2::=Close)", "FG", "", "Close",$B$2,A102, "all","", "","True","T")/100 -> -0.6604237684 | BA102: 0.96 | BB102: 0 | BE102: =RTD("cqg.rtd",,"StudyData", "Correlation("&$B$3&","&BE$2&",Period:="&$B$1&",InputChoice1:=Close,InputChoice2::=Close)", "FG", "", "Close",$B$2,A102, "all","", "","True","T")/100 -> 0.7682600355 | BG102: 0.96 | BH102: 0
A103: -99 | C103: =RTD("cqg.rtd",,"StudyData", "Correlation("&$B$3&","&C$2&",Period:="&$B$1&",InputChoice1::=Close,InputChoice2::=Close)", "FG", "", "Close",$B$2,A103, "all","", "","True","T")/100 -> 0.8433782159 | E103: 0.98 | F103: 5 | I103: =RTD("cqg.rtd",,"StudyData", "Correlation("&$B$3&","&I$2&",Period:="&$B$1&",InputChoice1:=Close,InputChoice2::=Close)", "FG", "", "Close",$B$2,A103, "all","", "","True","T")/100 -> 0.8347070799 | K103: 0.98 | L103: 3 | O103: =RTD("cqg.rtd",,"StudyData", "Correlation("&$B$3&","&O$2&",Period:="&$B$1&",InputChoice1:=Close,InputChoice2::=Close)", "FG", "", "Close",$B$2,A103, "all","", "","True","T")/100 -> 0.9308178948 | Q103: 0.98 | R103: 6 | U103: =RTD("cqg.rtd",,"StudyData", "Correlation("&$B$3&","&U$2&",Period:="&$B$1&",InputChoice1:=Close,InputChoice2::=Close)", "FG", "", "Close",$B$2,A103, "all","", "","True","T")/100 -> 0.919385568 | W103: 0.98 | X103: 13 | AA103: =RTD("cqg.rtd",,"StudyData", "Correlation("&$B$3&","&AA$2&",Period:="&$B$1&",InputChoice1:=Close,InputChoice2::=Close)", "FG", "", "Close",$B$2,A103, "all","", "","True","T")/100 -> 0.4895077609 | AC103: 0.98 | AD103: 0 | AG103: =RTD("cqg.rtd",,"StudyData", "Correlation("&$B$3&","&AG$2&",Period:="&$B$1&",InputChoice1:=Close,InputChoice2::=Close)", "FG", "", "Close",$B$2,A103, "all","", "","True","T")/100 -> 0.5869185716 | AI103: 0.98 | AJ103: 0 | AM103: =RTD("cqg.rtd",,"StudyData", "Correlation("&$B$3&","&AM$2&",Period:="&$B$1&",InputChoice1:=Close,InputChoice2::=Close)", "FG", "", "Close",$B$2,A103, "all","", "","True","T")/100 -> -0.3518966817 | AO103: 0.98 | AP103: 0 | AS103: =RTD("cqg.rtd",,"StudyData", "Correlation("&$B$3&","&AS$2&",Period:="&$B$1&",InputChoice1:=Close,InputChoice2::=Close)", "FG", "", "Close",$B$2,A103, "all","", "","True","T")/100 -> 0.3542260359 | AU103: 0.98 | AV103: 0 | AY103: =RTD("cqg.rtd",,"StudyData", "Correlation("&$B$3&","&AY$2&",Period:="&$B$1&",InputChoice1:=Close,InputChoice2::=Close)", "FG", "", "Close",$B$2,A103, "all","", "","True","T")/100 -> -0.6334735916 | BA103: 0.98 | BB103: 0 | BE103: =RTD("cqg.rtd",,"StudyData", "Correlation("&$B$3&","&BE$2&",Period:="&$B$1&",InputChoice1:=Close,InputChoice2::=Close)", "FG", "", "Close",$B$2,A103, "all","", "","True","T")/100 -> 0.7072787529 | BG103: 0.98 | BH103: 0
A104: -100 | C104: =IFERROR(RTD("cqg.rtd",,"StudyData", "Correlation("&$B$3&","&C$2&",Period:="&$B$1&",InputChoice1::=Close,InputChoice2::=Close)", "FG", "", "Close",$B$2,A104, "all","", "","True","T")/100,"") -> 0.8831468104 | E104: 1 | F104: 0 | I104: =IFERROR(RTD("cqg.rtd",,"StudyData", "Correlation("&$B$3&","&I$2&",Period:="&$B$1&",InputChoice1:=Close,InputChoice2::=Close)", "FG", "", "Close",$B$2,A104, "all","", "","True","T")/100,"") -> 0.8748911914 | K104: 1 | L104: 2 | O104: =IFERROR(RTD("cqg.rtd",,"StudyData", "Correlation("&$B$3&","&O$2&",Period:="&$B$1&",InputChoice1:=Close,InputChoice2::=Close)", "FG", "", "Close",$B$2,A104, "all","", "","True","T")/100,"") ->  | Q104: 1 | R104: 9 | U104: =IFERROR(RTD("cqg.rtd",,"StudyData", "Correlation("&$B$3&","&U$2&",Period:="&$B$1&",InputChoice1:=Close,InputChoice2::=Close)", "FG", "", "Close",$B$2,A104, "all","", "","True","T")/100,"") ->  | W104: 1 | X104: 6 | AA104: =IFERROR(RTD("cqg.rtd",,"StudyData", "Correlation("&$B$3&","&AA$2&",Period:="&$B$1&",InputChoice1:=Close,InputChoice2::=Close)", "FG", "", "Close",$B$2,A104, "all","", "","True","T")/100,"") -> 0.6979659662 | AC104: 1 | AD104: 0 | AG104: =IFERROR(RTD("cqg.rtd",,"StudyData", "Correlation("&$B$3&","&AG$2&",Period:="&$B$1&",InputChoice1:=Close,InputChoice2::=Close)", "FG", "", "Close",$B$2,A104, "all","", "","True","T")/100,"") -> 0.7989170854 | AI104: 1 | AJ104: 0 | AM104: =IFERROR(RTD("cqg.rtd",,"StudyData", "Correlation("&$B$3&","&AM$2&",Period:="&$B$1&",InputChoice1:=Close,InputChoice2::=Close)", "FG", "", "Close",$B$2,A104, "all","", "","True","T")/100,"") -> -0.1214431432 | AO104: 1 | AP104: 0 | AS104: =IFERROR(RTD("cqg.rtd",,"StudyData", "Correlation("&$B$3&","&AS$2&",Period:="&$B$1&",InputChoice1:=Close,InputChoice2::=Close)", "FG", "", "Close",$B$2,A104, "all","", "","True","T")/100,"") -> 0.6493474327 | AU104: 1 | AV104: 0 | AY104: =RTD("cqg.rtd",,"StudyData", "Correlation("&$B$3&","&AY$2&",Period:="&$B$1&",InputChoice1:=Close,InputChoice2::=Close)", "FG", "", "Close",$B$2,A104, "all","", "","True","T")/100 -> -0.4215066646 | BA104: 1 | BB104: 0 | BE104: =IFERROR(RTD("cqg.rtd",,"StudyData", "Correlation("&$B$3&","&BE$2&",Period:="&$B$1&",InputChoice1:=Close,InputChoice2::=Close)", "FG", "", "Close",$B$2,A104, "all","", "","True","T")/100,"") -> 0.3059764441 | BG104: 1 | BH104: 0
